Workbook

Sheet Summary (hidden)
A1: Year | B1: (Multiple Items)
A3: Sum of Usage Value | B3: Column Labels
A4: Row Labels | B4: F&I | C4: Maint | D4: Manuf | E4: SupportS | F4: Grand Total
A5: APRON UTILITY;SFTY,WD 60 X LG 120 MM | C5: R360.00 | D5: R119,376.00 | F5: R119,736.00
A6: APRON WELDER;BIB AND BRACE,LEATHER,CR | C6: R8,768.82 | E6: R6,771.96 | F6: R15,540.78
A7: AURAL PROTECTOR,SOUND {EAR MUFFS} | C7: R23,392.00 | D7: R1,118.00 | F7: R24,510.00
A8: BARRIER CREAM | C8: R286,279.04 | D8: R89,569.86 | E8: R68,899.89 | F8: R444,748.79
A9: BOOTS SAFETY;10,MALE,TOE TYP:STL CAP | C9: R88,330.00 | F9: R88,330.00
A10: BOOTS SAFETY;11,MALE,TOE TYP:STL CAP | C10: R39,498.93 | F10: R39,498.93
A11: BOOTS SAFETY;12,MALE,TOE TYP:STL CAP | C11: R35,527.06 | F11: R35,527.06
A12: BOOTS SAFETY;4,FEM | C12: R21,320.00 | E12: R27,060.00 | F12: R48,380.00
A13: BOOTS SAFETY;4,TOE TYP:STL CAP | C13: R19,007.10 | D13: R23,080.05 | F13: R42,087.15
A14: BOOTS SAFETY;5,MALE,TOE TYP:STL CAP | C14: R84,747.00 | F14: R84,747.00
A15: BOOTS SAFETY;5,TOE TYP:EXT WIDE STL CAP | C15: R56,090.00 | F15: R56,090.00
A16: BOOTS SAFETY;6,MALE,TOE TYP:STL CAP | C16: R160,035.89 | F16: R160,035.89
A17: BOOTS SAFETY;6,TOE TYP:EXT WIDE STL CAP | C17: R105,860.00 | F17: R105,860.00
A18: BOOTS SAFETY;7,MALE,TOE TYP:STL CAP | C18: R230,976.00 | F18: R230,976.00
A19: BOOTS SAFETY;7,TOE TYP:EXT WIDE STL CAP | C19: R173,010.00 | F19: R173,010.00
A20: BOOTS SAFETY;8,MALE,TOE TYP:STL CAP | C20: R204,670.40 | F20: R204,670.40
A21: BOOTS SAFETY;8,TOE TYP:EXT WIDE STL CAP | C21: R226,005.00 | F21: R226,005.00
A22: BOOTS SAFETY;9,MALE,TOE TYP:STL CAP | C22: R148,851.20 | F22: R148,851.20
A23: BOOTS SAFETY;9,TOE TYP:EXT WIDE STL CAP | C23: R197,241.20 | F23: R197,241.20
A24: BOOTS SAFETY;BOVA MUNICH 20002,10,MALE | B24: R105,399.00 | C24: R175,414.05 | D24: R159,604.20 | E24: R1,505.70 | F24: R441,922.95
A25: BOOTS SAFETY;BOVA MUNICH 20002,4,UNISEX | B25: R46,398.00 | C25: R48,507.00 | D25: R2,812.00 | F25: R97,717.00
A26: BOOTS SAFETY;BOVA MUNICH 20002,6,MALE | B26: R132,825.00 | C26: R124,476.00 | D26: R113,091.00 | E26: R43,263.00 | F26: R413,655.00
A27: BOOTS SAFETY;BOVA MUNICH 20002,7,MALE | B27: R197,340.00 | C27: R226,182.00 | D27: R211,002.00 | E27: R28,083.00 | F27: R662,607.00
A28: BOOTS SAFETY;BOVA MUNICH 20002,8,MALE | B28: R206,790.00 | C28: R376,980.00 | D28: R437,370.00 | E28: R25,620.00 | F28: R1,046,760.00
A29: BOOTS SAFETY;BOVA MUNICH,11,MALE | D29: R28,842.00 | F29: R28,842.00
A30: BOOTS SAFETY;BOVA NEOFLEX 90004,10,BLACK | B30: R9,350.00 | C30: R210,100.00 | D30: R235,400.00 | E30: R17,050.00 | F30: R471,900.00
A31: BOOTS SAFETY;BOVA NEOFLEX 90004,11,BLACK | B31: R1,650.00 | C31: R98,450.00 | D31: R131,450.00 | E31: R4,400.00 | F31: R235,950.00
A32: BOOTS SAFETY;BOVA NEOFLEX 90004,14,BLACK | C32: R2,993.70 | F32: R2,993.70
A33: BOOTS SAFETY;BOVA NEOFLEX 90004,5,UNISEX | B33: R5,500.00 | C33: R189,200.00 | D33: R190,850.00 | E33: R48,950.00 | F33: R434,500.00
A34: BOOTS SAFETY;BOVA NEOFLEX 90004,6,UNISEX | B34: R6,050.00 | C34: R239,800.00 | D34: R289,850.00 | E34: R55,550.00 | F34: R591,250.00
A35: BOOTS SAFETY;BOVA NEOFLEX 90004,7,UNISEX | B35: R20,350.00 | C35: R379,500.00 | D35: R499,950.00 | E35: R64,350.00 | F35: R964,150.00
A36: BOOTS SAFETY;BOVA NEOFLEX 90004,8,UNISEX | B36: R20,350.00 | C36: R464,200.00 | D36: R560,450.00 | E36: R39,600.00 | F36: R1,084,600.00
A37: BOOTS SAFETY;BOVA NEOFLEX 90004,9,UNISEX | B37: R12,100.00 | C37: R361,900.00 | D37: R468,600.00 | E37: R25,300.00 | F37: R867,900.00
A38: BOOTS SAFETY;BOVA TRAX 20002,10,UNISEX | C38: R234,954.00 | D38: R267,786.00 | E38: R11,286.00 | F38: R514,026.00
A39: BOOTS SAFETY;BOVA TRAX 20002,11,UNISEX | B39: R972.40 | C39: R79,736.80 | D39: R146,832.40 | F39: R227,541.60
A40: BOOTS SAFETY;BOVA TRAX 20002,5,MALE,RBR | C40: R304,151.32 | D40: R751,770.25 | E40: R131,990.20 | F40: R1,187,911.77
A41: BOOTS SAFETY;BOVA TRAX 20002,6,UNISEX | C41: R124,913.42 | D41: R255,191.22 | E41: R3,065.36 | F41: R383,170.00
A42: BOOTS SAFETY;BOVA TRAX 20002,7,UNISEX | C42: R229,135.66 | D42: R353,282.74 | E42: R41,382.36 | F42: R623,800.76
A43: BOOTS SAFETY;BOVA TRAX 20002,8,UNISEX | B43: R1,603.00 | C43: R650,818.00 | D43: R780,661.00 | E43: R52,899.00 | F43: R1,485,981.00
A44: BOOTS SAFETY;BOVA TRAX 20002,9,UNISEX | B44: R766.34 | C44: R227,602.98 | D44: R282,013.12 | E44: R7,663.40 | F44: R518,045.84
A45: BOOTS SAFETY;BRONX HIKER 6128 ,11,UNISEX | C45: R5,638.29 | E45: R1,409.57 | F45: R7,047.86
A46: BOOTS SAFETY;CHUKKA,10,UNISEX | B46: R17,550.22 | C46: R462,357.52 | D46: R134,955.14 | E46: R20,576.12 | F46: R635,439.00
A47: BOOTS SAFETY;CHUKKA,11,TOE TYP:STL CAP | B47: R5,037.60 | C47: R248,329.81 | D47: R65,005.33 | E47: R10,333.84 | F47: R328,706.58
A48: BOOTS SAFETY;CHUKKA,5,FEM,LEATHER UPPER | C48: R53,240.80 | F48: R53,240.80
A49: BOOTS SAFETY;CHUKKA,5,TOE TYP:STL CAP | B49: R10,876.68 | C49: R264,665.88 | D49: R51,966.36 | E49: R114,809.40 | F49: R442,318.32
A50: BOOTS SAFETY;CHUKKA,7,TOE TYP:STL CAP | B50: R31,860.42 | C50: R906,910.56 | D50: R282,298.14 | E50: R89,653.74 | F50: R1,310,722.86
A51: BOOTS SAFETY;CHUKKA,8,UNISEX,BLACK PRINT | B51: R39,050.00 | C51: R904,750.00 | D51: R282,700.00 | E51: R21,450.00 | F51: R1,247,950.00
A52: BOOTS SAFETY;CHUKKA,9,TOE TYP:STL CAP | B52: R687.41 | C52: R160,167.39 | D52: R30,246.20 | E52: R27,496.55 | F52: R218,597.56
A53: BOOTS SAFETY;CHUKKA,BOVA NEOFLEX 90004,9 | B53: R24,044.80 | C53: R821,129.92 | D53: R186,948.32 | E53: R30,657.12 | F53: R1,062,780.16
A54: BOOTS SAFETY;CHUKKA,REBEL,4,FEM,BLACK | C54: R23,198.40 | D54: R38,973.31 | E54: R2,783.81 | F54: R64,955.52
A55: BOOTS SAFETY;LEMAITRE EAGLE 8025,10,MALE | B55: R6,195.00 | C55: R72,570.00 | D55: R24,780.00 | F55: R103,545.00
A56: BOOTS SAFETY;LEMAITRE EAGLE 8025,11,MALE | B56: R18,345.18 | C56: R40,184.68 | D56: R21,839.50 | F56: R80,369.36
A57: BOOTS SAFETY;LEMAITRE EAGLE 8025,12,MALE | B57: R4,367.90 | C57: R18,345.18 | D57: R8,735.80 | F57: R31,448.88
A58: BOOTS SAFETY;LEMAITRE EAGLE 8025,5,MALE | C58: R63,589.79 | D58: R20,788.97 | F58: R84,378.76
A59: BOOTS SAFETY;LEMAITRE EAGLE 8025,6,MALE | B59: R10,948.00 | C59: R69,598.00 | D59: R27,370.00 | F59: R107,916.00
A60: BOOTS SAFETY;LEMAITRE EAGLE 8025,7,MALE | B60: R23,010.00 | C60: R150,450.00 | D60: R46,905.00 | F60: R220,365.00
A61: BOOTS SAFETY;LEMAITRE EAGLE 8025,8,MALE | B61: R47,476.00 | C61: R172,640.00 | D61: R65,819.00 | E61: R1,079.00 | F61: R287,014.00
A62: BOOTS SAFETY;LEMAITRE EAGLE 8025,9,MALE | B62: R20,501.00 | C62: R107,900.00 | D62: R44,239.00 | F62: R172,640.00
A63: BOOTS SAFETY;REBEL HIKER HI,7,UNISEX,PU | C63: R59,563.00 | D63: R148,463.00 | E63: R5,334.00 | F63: R213,360.00
A64: BOOTS SAFETY;REBEL HIKER RE303BK,7,MALE | C64: R7,990.00 | F64: R7,990.00
A65: BOOTS SAFETY;REBEL THAZO,3,FEM,BLACK | C65: R1,618.19 | D65: R1,618.19 | F65: R3,236.38
A66: BOOTS SAFETY;REBEL THAZO,5,FEM,BLACK | C66: R11,814.00 | D66: R1,181.40 | F66: R12,995.40
A67: BOOTS SAFETY;REBEL THAZO,6,FEM,BLACK | C67: R2,023.66 | D67: R11,130.12 | F67: R13,153.78
A68: BOOTS SAFETY;SISI REESE 55006,3,FEM | B68: R1,984.41 | C68: R10,583.52 | D68: R21,828.51 | E68: R6,614.70 | F68: R41,011.14
A69: BOOTS SAFETY;SISI REESE 55006,4,FEM | C69: R45,602.18 | D69: R8,991.98 | F69: R54,594.16
A70: BOOTS SAFETY;SISI REESE 55006,5,FEM | B70: R1,052.52 | C70: R90,516.72 | D70: R21,050.40 | E70: R1,052.52 | F70: R113,672.16
A71: BOOTS SAFETY;SISI REESE 55006,6,FEM | B71: R2,680.00 | C71: R27,470.00 | D71: R4,690.00 | F71: R34,840.00
A72: BOOTS SAFETY;SISI REESE 55006,7,FEM | B72: R750.00 | C72: R46,500.00 | D72: R12,750.00 | F72: R60,000.00
A73: BOOTS SAFETY;SISI REESE 55006,8,FEM | C73: R15,010.51 | D73: R625.44 | F73: R15,635.94
A74: BOOTS, SAFETY SIZE 247 (6) | C74: R113,290.89 | D74: R7,448.19 | F74: R120,739.08
A75: BOOTS, SAFETY SIZE 300 (13) | C75: R21,570.00 | D75: R15,225.88 | F75: R36,795.88
A76: BOOTS,SAFETY SIZE 225 (3) | C76: R2,257.76 | D76: R5,644.41 | E76: R15,239.90 | F76: R23,142.07
A77: CAP UTILITY;WELD,OXFORD BLUE | C77: R5,320.00 | D77: R151,440.00 | E77: R21,880.00 | F77: R178,640.00
A78: CAP;BUMP PROTECT,COTTON,GR:EN 812 | C78: R170,778.15 | D78: R92,433.60 | E78: R25,348.50 | F78: R288,560.25
A79: CARTRIDGE RESPIRATOR;TYPE 2091/2138,3M | C79: R130,977.00 | D79: R1,761,210.00 | F79: R1,892,187.00
A80: CLEANER HAND;LIQUID,YELLOW,25 L | C80: R2,440.00 | D80: R10,675.00 | F80: R13,115.00
A81: COVERALL SAFETY,INDUSTRIAL | C81: R2,204.00 | D81: R6,206.00 | F81: R8,410.00
A82: COVERALL,SAFETY,INDUSTRIAL | C82: R11,183.76 | F82: R11,183.76
A83: COVERALLS DISPOSABLE;1 PIECE,107 CM,ZIP | C83: R5,660,655.00 | D83: R2,869,035.00 | E83: R22,620.00 | F83: R8,552,310.00
A84: COVERALLS DISPOSABLE;1 PIECE,117 CM | C84: R3,153,300.00 | D84: R1,304,284.00 | E84: R2,116.00 | F84: R4,459,700.00
A85: COVERALLS DISPOSABLE;1 PIECE,2XL,PE | C85: R158,856.84 | D85: R8,893.79 | F85: R167,750.64
A86: COVERALLS DISPOSABLE;1 PIECE,3XL,PE | C86: R242,970.00 | D86: R161,805.00 | F86: R404,775.00
A87: COVERALLS DISPOSABLE;1 PIECE,L,PE,WHITE | C87: R204,488.85 | F87: R204,488.85
A88: COVERALLS DISPOSABLE;1 PIECE,M,PE,WHITE | C88: R128,549.53 | E88: R4,104.83 | F88: R132,654.36
A89: COVERALLS DISPOSABLE;1 PIECE,S,PE,WHITE | C89: R65,129.94 | F89: R65,129.94
A90: COVERALLS DISPOSABLE;1 PIECE,XL,PE,WHITE | C90: R197,168.57 | F90: R197,168.57
A91: COVERALLS DISPOSABLE;ASBESTOS,117 CM | C91: R2,130,978.00 | D91: R560,802.00 | E91: R6,380.00 | F91: R2,698,160.00
A92: COVERALLS DISPOSABLE;ASBESTOS,127 CM | B92: R132,044.80 | C92: R1,628,262.40 | D92: R1,070,284.80 | F92: R2,830,592.00
A93: COVERALLS DISPOSABLE;ASBESTOS,2XL,TYVEK | B93: R39,000.00 | C93: R5,521,620.00 | D93: R5,415,150.00 | E93: R26,325.00 | F93: R11,002,095.00
A94: COVERALLS DISPOSABLE;ASBESTOS,97 CM | C94: R293,895.00 | D94: R80,235.00 | E94: R7,875.00 | F94: R382,005.00
A95: COVERALLS DISPOSABLE;DUPONT TYVEK,127 C | C95: R1,676,606.00 | D95: R248,008.00 | E95: R2,320.00 | F95: R1,926,934.00
A96: COVERALLS DISPOSABLE;DUPONT TYVEK,147 C | C96: R472,120.00 | D96: R399,446.00 | F96: R871,566.00
A97: COVERALLS DISPOSABLE;PERSONAL PROTECT | C97: R1,730,082.00 | D97: R267,438.00 | E97: R11,310.00 | F97: R2,008,830.00
A98: COVERALLS DISPOSABLE;SPRAY PAINT,3XL | D98: R681,271.76 | F98: R681,271.76
A99: EARPLUG WHISPER UVEX CORDED CODE 0200081 | B99: R604.70 | C99: R39,572.60 | D99: R16,006.90 | E99: R18,336.79 | F99: R74,520.99
A100: FACESHIELD IND;CLEAR,WD 405 X THK 3 MM | B100: R10,505.00 | C100: R3,465.00 | D100: R268,015.00 | E100: R4,565.00 | F100: R286,550.00
A101: FILTER,RESPIRATOR,AIR FILTERING | C101: R43,497.98 | D101: R28,297.65 | E101: R1,804.32 | F101: R73,599.95
A102: GLOVE CLOTH ELBOW LENGTH LH SIZE 9 | C102: R7,086.40 | D102: R9,805.60 | E102: R3,708.00 | F102: R20,600.00
A103: GLOVE WELDERS CO2, LARGE 400mm LONG | C103: R25,344.00 | D103: R26,400.00 | F103: R51,744.00
A104: GLOVE, GREEN NITRILE | C104: R64,143.20 | D104: R4,425.20 | F104: R68,568.40
A105: GLOVE,LEATHER,SAFETY TYPE | C105: R107,017.67 | D105: R4,993.91 | F105: R112,011.58
A106: GLOVE,MENS | C106: R297,558.35 | D106: R48,774.00 | F106: R346,332.35
A107: GLOVE,RUBBER, R/H, CHEMICAL PROTECTIVE | C107: R1,608.00 | F107: R1,608.00
A108: GLOVE,SAFETY STRIPS | C108: R111,745.68 | D108: R5,592.56 | F108: R117,338.24
A109: GLOVES CHEMICAL;ELBOW LG RH,9,CLOTH/PVC | B109: R240.00 | C109: R7,560.00 | D109: R4,800.00 | F109: R12,600.00
A110: GLOVES CHEMICAL;FLEXINITE GRIP,8,NITRIL | C110: R60,079.50 | D110: R16,848.00 | F110: R76,927.50
A111: GLOVES CHEMICAL;FLEXINITE GRIP,9,NITRILE | C111: R112,905.00 | D111: R8,131.50 | E111: R5,265.00 | F111: R126,301.50
A112: GLOVES CHEMICAL;FLEXINITE GRIP,NITRILE | B112: R9,360.00 | C112: R112,758.75 | D112: R9,360.00 | E112: R51,275.25 | F112: R182,754.00
A113: GLOVES CHEMICAL;NITRI-GUARD PLUS,NITRIL | C113: R68,520.00 | D113: R34,860.00 | F113: R103,380.00
A114: GLOVES CHEMICAL;SANDBLASTING,RUBBER | C114: R472.68 | D114: R37,499.28 | F114: R37,971.96
A115: GLOVES UTILITY;EXEC,STD,LEATHER PIGSKIN | B115: R82,896.00 | C115: R234,273.60 | D115: R60,878.40 | F115: R378,048.00
A116: GLOVES UTILITY;HAS1 NINJA MAXIM,11 | C116: R475,145.00 | D116: R1,119,250.00 | F116: R1,594,395.00
A117: GLOVES UTILITY;MAXI CUT,10 CM,LG:25 CM | C117: R85,772.95 | D117: R442,393.31 | F117: R528,166.25
A118: GLOVES UTILITY;MAXI CUT,9 CM,LG:25 CM | C118: R23,203.77 | D118: R18,687.60 | F118: R41,891.37
A119: GLOVES UTILITY;PU2016,L,PU,BLACK,KNITTE | C119: R157,603.06 | F119: R157,603.06
A120: GLOVES UTILITY;PU2016,M,PU,BLACK,KNITTE | C120: R110,999.51 | F120: R110,999.51
A121: GLOVES UTILITY;PU2016,XL,PU,BLACK | C121: R146,036.61 | F121: R146,036.61
A122: GLOVES UTILITY;SAFETY,MEDIUM,PIGSKIN | C122: R17,584.00 | D122: R46,592.00 | F122: R64,176.00
A123: GLOVES UTILITY;SAFETY,SMALL,PIGSKIN | D123: R79,937.82 | F123: R79,937.82
A124: GLOVES UTILITY;SFTY LH,CHROME LEATHER | B124: R300.72 | C124: R30,748.62 | D124: R49,054.95 | E124: R7,518.00 | F124: R87,622.29
A125: GLOVES UTILITY;SFTY,L,PIGSKIN,UNISEX | B125: R251.32 | C125: R2,513.16 | D125: R179,272.08 | F125: R182,036.56
A126: GLOVES UTILITY;SFTY,ONE SIZE FITS ALL | B126: R47,687.04 | C126: R219,144.96 | D126: R861,867.36 | E126: R14,149.44 | F126: R1,142,848.80
A127: GLOVES WELDER'S;CO2 AFROX,RED,50 CM | B127: R244.14 | C127: R28,076.10 | D127: R345,051.20 | F127: R373,371.44
A128: GLOVES WELDER'S;LEFT HAND/RIGHT HAND,RE | C128: R3,615.69 | D128: R67,768.28 | E128: R106,817.69 | F128: R178,201.66
A129: GLOVES WELDER'S;PIGSKIN,L,LG:10.5 CM | C129: R55,776.00 | D129: R3,792.00 | F129: R59,568.00
A130: GLOVES WELDER'S;RH,GAUNTLET,LEATHER,L | C130: R12,240.00 | D130: R960.00 | F130: R13,200.00
A131: GLOVES WELDING CO2 LONG No:-41314X | C131: R3,604.00 | D131: R251,328.00 | F131: R254,932.00
A132: GLOVES,MENS,SAFETY | C132: R21,579.58 | F132: R21,579.58
A133: GLOVES;6 TO 10,LG:22 TO 27 CM,BLACK | B133: R11,440.00 | C133: R77,207.00 | D133: R55,107.00 | E133: R3,406.00 | F133: R147,160.00
A134: GLOVES;CHEMICAL PROTECT,9 CM,SHOULDER | C134: R19,548.52 | D134: R84,751.49 | F134: R104,300.01
A135: GLOVES;GREEN REINFORCED NITRILE,L | C135: R7,505.00 | F135: R7,505.00
A136: GLOVES;L,NITRILE,GREEN | B136: R60,529.72 | C136: R59,150.41 | D136: R47,176.40 | F136: R166,856.53
A137: GLOVES;MALE,NYLON NITRILE CTD | C137: R113,929.58 | D137: R297,978.90 | E137: R1,714.00 | F137: R413,622.48
A138: GLOVES;NF14 DURO TASK KNITTED SMLS,L;10 | C138: R23,352.00 | D138: R119,364.00 | F138: R142,716.00
A139: GLOVES;PROTECT KNITTED,CUF LG 60 MM | B139: R8,404.00 | C139: R10,329.00 | D139: R25,943.50 | F139: R44,676.50
A140: GOGGLES IND | C140: R19,530.00 | D140: R28,591.92 | E140: R39.06 | F140: R48,160.98
A141: GOGGLES IND;3M MAXIM 2X2 GOGGLE KIT,PC | C141: R12,300.00 | D141: R9,000.00 | F141: R21,300.00
A142: GOGGLES IND;DUST,PLASTIC,CLEAR | C142: R2,914.99 | D142: R1,814.22 | F142: R4,729.21
A143: GOGGLES IND;SFTY,ANTI-FOG | B143: R280.00 | C143: R6,496.00 | D143: R10,640.00 | F143: R17,416.00
A144: GOGGLES IND;SFTY,GLASS TOUGHENED,CLEAR | B144: R2,784.00 | C144: R1,740.00 | D144: R10,614.00 | E144: R1,450.00 | F144: R16,588.00
A145: GOGGLES IND;SFTY,PVC,CLEAR,ULTRA VISION | C145: R16,256.00 | D145: R34,912.00 | E145: R2,368.00 | F145: R53,536.00
A146: GOGGLES IND;UVEX ULTRAVISION,PC,CLEAR | C146: R47,896.96 | D146: R306,481.80 | E146: R5,876.93 | F146: R360,255.69
A147: GOGGLES,INDUSTRIAL | C147: R17,428.00 | D147: R150.00 | F147: R17,578.00
A148: GUARD KNEE PVC ORANGE | C148: R52,615.00 | D148: R5,695.00 | E148: R2,975.00 | F148: R61,285.00
A149: GUARD;KNEE,OVERALL LG 230 MM | C149: R37,879.04 | D149: R19,850.08 | F149: R57,729.12
A150: GUM BOOTS (7) | C150: R4,564.50 | D150: R1,095.48 | F150: R5,659.98
A151: GUMBOOTS;STL TOE,10,MOLDED PVC,BLACK | C151: R18,117.75 | D151: R1,218.00 | F151: R19,335.75
A152: GUMBOOTS;STL TOE,11,MOLDED PVC,BLACK | C152: R11,573.00 | D152: R1,630.00 | F152: R13,203.00
A153: GUMBOOTS;STL TOE,6,MOLDED PVC,BLACK | C153: R18,111.60 | D153: R619.20 | F153: R18,730.80
A154: GUMBOOTS;STL TOE,7,MOLDED PVC,BLACK | C154: R13,550.25 | D154: R1,827.00 | F154: R15,377.25
A155: GUMBOOTS;STL TOE,8,MOLDED PVC,BLACK | C155: R21,924.00 | D155: R4,872.00 | F155: R26,796.00
A156: GUMBOOTS;STL TOE,9,MOLDED PVC,BLACK | C156: R21,924.00 | D156: R1,218.00 | F156: R23,142.00
A157: HAT SUN;BUSH,FLOPPY,52,POLYESTER/COTTON | C157: R10,559.53 | F157: R10,559.53
A158: HAT SUN;BUSH,FLOPPY,54,POLYESTER/COTTON | C158: R50,795.62 | F158: R50,795.62
A159: HAT SUN;BUSH,FLOPPY,56,POLYESTER/COTTON | C159: R203,232.66 | F159: R203,232.66
A160: HAT SUN;BUSH,FLOPPY,58,POLYESTER/COTTON | C160: R118,047.00 | F160: R118,047.00
A161: HAT SUN;BUSH,FLOPPY,60,POLYESTER/COTTON | C161: R119,108.76 | D161: R534.12 | F161: R119,642.88
A162: HAT SUN;BUSH,FLOPPY,62,POLYESTER/COTTON | C162: R53,083.00 | F162: R53,083.00
A163: HELMET WELDING;AUTO DARK 9-13,BLACK | B163: R24,702.00 | C163: R321,126.00 | D163: R765,762.00 | F163: R1,111,590.00
A164: INSOLES FOOTWEAR;BOOTS/SHOES,6,SOFT RBR | B164: R1,299.54 | C164: R2,894.43 | D164: R48,319.26 | E164: R2,953.50 | F164: R55,466.73
A165: INSOLES FOOTWEAR;BOOTS/SHOES,7,SOFT RBR | B165: R2,530.00 | C165: R1,058.00 | D165: R49,588.00 | E165: R1,748.00 | F165: R54,924.00
A166: JACKET COLD WEATHER;DENIM PARKA,2XL | C166: R20,440.00 | D166: R30,660.00 | F166: R51,100.00
A167: JACKET COLD WEATHER;DENIM PARKA,L | C167: R24,820.00 | D167: R89,060.00 | F167: R113,880.00
A168: JACKET COLD WEATHER;DENIM PARKA,S | C168: R5,216.76 | D168: R12,389.80 | F168: R17,606.55
A169: JACKET COLD WEATHER;DENIM PARKA,XL | C169: R24,090.00 | D169: R80,300.00 | F169: R104,390.00
A170: JACKET COLD WEATHER;WORKWEAR,2XL | C170: R66,158.40 | D170: R4,510.80 | F170: R70,669.20
A171: JACKET COLD WEATHER;WORKWEAR,L,NAVY BLUE | C171: R144,990.00 | D171: R8,726.25 | F171: R153,716.25
A172: LEMAITRE 8008 CLOG UNISEX SAFETY SHOE | B172: R470.73 | C172: R38,807.58 | D172: R116,178.69 | F172: R155,457.00
A173: MASK AIR FILTERING;DISPOSABLE,DUST,OSFA | C173: R129,998.00 | F173: R129,998.00
A174: MASK,AIR FILTERING | C174: R1,030,891.25 | D174: R416,791.97 | E174: R6,567.12 | F174: R1,454,250.34
A175: MASK: AIR FILTERING | C175: R30,038,996.00 | D175: R879,303.60 | E175: R3,101.60 | F175: R30,921,401.20
A176: OVERALL DISPOSABLE XX LARGE | C176: R298,500.00 | D176: R108,450.00 | F176: R406,950.00
A177: OVERALL UTILITY;102 CM,MALE,2 PIECE,BLU | C177: R98,976.80 | D177: R507,655.20 | E177: R798.20 | F177: R607,430.20
A178: OVERALL UTILITY;107 CM,MALE,2 PIECE,BLUE | C178: R72,441.30 | D178: R845,828.70 | E178: R26,527.80 | F178: R944,797.80
A179: OVERALL UTILITY;122 CM,MALE,2 PIECE,BLU | C179: R7,751.36 | D179: R146,906.70 | F179: R154,658.06
A180: OVERALL UTILITY;77 CM,MALE,2 PIECE | C180: R9,371.99 | D180: R62,720.26 | E180: R123,277.75 | F180: R195,370.00
A181: OVERALL UTILITY;ACID RESISTANT,102 CM | C181: R11,682.97 | D181: R5,841.49 | F181: R17,524.46
A182: OVERALL UTILITY;ACID RESISTANT,117 CM | C182: R834.50 | D182: R8,066.81 | F182: R8,901.31
A183: OVERALL UTILITY;ACID RESISTANT,87 CM | C183: R14,533.80 | D183: R12,457.54 | F183: R26,991.34
A184: OVERALL UTILITY;ACID RESISTANT,97 CM | C184: R12,841.65 | D184: R8,561.10 | F184: R21,402.75
A185: OVERALL UTILITY;CONTI SUIT,112 CM,MALE | C185: R26,920.30 | D185: R43,603.30 | F185: R70,523.59
A186: OVERALL UTILITY;CONTI SUIT,117 CM,MALE | C186: R36,190.00 | D186: R201,740.00 | E186: R2,695.00 | F186: R240,625.00
A187: OVERALL UTILITY;CONTI SUIT,97 CM,MALE | C187: R18,000.00 | D187: R279,300.00 | E187: R12,000.00 | F187: R309,300.00
A188: OVERALL UTILITY;DISPOSABLE,137 CM,MALE | C188: R280,314.00 | D188: R97,150.00 | E188: R1,740.00 | F188: R379,204.00
A189: OVERALL UTILITY;TRIPPLE STITCHED,92 CM | C189: R738.00 | D189: R308,853.00 | E189: R73,062.00 | F189: R382,653.00
A190: OVERALL UTILITY;WORKWEAR,82 CM,MALE | C190: R11,211.79 | D190: R29,898.10 | E190: R97,168.82 | F190: R138,278.70
A191: PADS KNEE INDUSTRIAL;H/DUTY,1 PIECE | C191: R65,940.00 | D191: R30,520.00 | F191: R96,460.00
A192: PADS KNEE INDUSTRIAL;PROTECTOR,45 DEG | C192: R46,469.15 | D192: R81,806.13 | F192: R128,275.28
A193: PLUG,EAR SABS 1451/1988 PART 2 | C193: R335,834.40 | D193: R3,491.40 | E193: R3,300.00 | F193: R342,625.80
A194: PROTECTOR HEARING CODE: QB3HYG | C194: R23,712.00 | D194: R52,800.00 | F194: R76,512.00
A195: RAINCOAT TWO PIECE, EXTRA LARGE | C195: R33,708.00 | D195: R71,868.00 | F195: R105,576.00
A196: RESPIRATOR 9925 PARTICULAR 3M WELDING | C196: R3,966.12 | D196: R1,606,795.92 | E196: R90,013.68 | F196: R1,700,775.72
A197: RESPIRATOR HALF MASK TWIN CARTRIDGE 6200 | C197: R163,913.88 | D197: R17,033.64 | E197: R45,795.36 | F197: R226,742.88
A198: SHOES SAFETY;11,GRAY,UNISEX,SUEDE UPPER | C198: R24,090.00 | D198: R71,540.00 | E198: R2,190.00 | F198: R97,820.00
A199: SHOES SAFETY;4 | C199: R55,289.52 | D199: R5,026.32 | E199: R6,282.90 | F199: R66,598.74
A200: SHOES SAFETY;6,GRAY,MALE,SUEDE UPPER | C200: R44,705.44 | D200: R104,312.70 | E200: R7,058.75 | F200: R156,076.90
A201: SHOES SAFETY;7,BLACK,MALE,LEATHER UPPER | B201: R5,056.39 | C201: R60,676.70 | D201: R270,516.97 | F201: R336,250.07
... 39 more rows

Sheet Cape Cor - Cat 1 - Head
A1: Cape Corridor Personal Protective Equipment (PPE) Category 1 – Head Protection
A2: Item | B2: Description of PPE | C2: Size of PPE | D2: Quantity Per Unit | E2: Unit Price Per Unit | F2: Total Price
A3: 1 | B3: Bump Cap, Safety, Uvex, U-cap Sport Vent/Similar and/or Equivalent, with Short Brim, Size: 52-54cm | C3: 52-54cm | D3: 20
A4: 2 | B4: Bump Cap, Safety, Uvex, U-cap Sport Vent/Similar and/or Equivalent, with Short Brim, Size: 55-59cm | C4: 55-59cm | D4: 180
A5: 3 | B5: Bump Cap, Safety, Uvex, U-cap Sport Vent/Similar and/or Equivalent, with Short Brim, Size: 60-63cm | C5: 60-63cm | D5: 74
A6: 4 | B6: Hard Hat, Nikki 1 HHAT13200/Similar and/or Equivalent, Hard Hat, Short Peak Industrial Ratchet Lining: White, Visit Sidings | D6: 5
A7: 5 | B7: Safety Helmet, Uvex Pheos Alpine, 9773050/Similar and/or Equivalent, White, Work at Heights, Confined Space & Breakdown | D7: 20
A8: 6 | B8: Hard Hat Brim, Stewart Blue, J54, 100% Cotton | D8: 15
A9: 7 | B9: Sun Hat, Bush Style, Chin Strap, Stewart Blue, J54, 100% Cotton, Size: 52 | C9: 52 | D9: 2
A10: 8 | B10: Sun Hat, Bush Style, Chin Strap, Stewart Blue, J54, 100% Cotton, Size: 54 | C10: 54 | D10: 198
A11: 9 | B11: Sun Hat, Bush Style, Chin Strap, Stewart Blue, J54, 100% Cotton, Size: 56 | C11: 56 | D11: 84
A12: 10 | B12: Sun Hat, Bush Style, Chin Strap, Stewart Blue, J54, 100% Cotton, Size: 58 | C12: 58 | D12: 414
A13: 11 | B13: Sun Hat, Bush Style, Chin Strap, Stewart Blue, J54, 100% Cotton, Size: 60 | C13: 60 | D13: 334
A14: 12 | B14: Sun Hat, Bush Style, Chin Strap, Stewart Blue, J54, 100% Cotton, Size: 62 | C14: 62 | D14: 30
A15: 13 | B15: Welders Hood, D59, Flame & Acid Treated | D15: 6
A16: 14 | B16: Spectacles, Safety, MSA Alternator Spectacle/Similar and/or Equivalent – Clear Lens, Dust | D16: 200
A17: 15 | B17: Spectacles, Safety, MSA Spirit 2/Similar and/or Equivalent, Safety Goggle Type Spectacle – Clear Lens, Dust | D17: 549
A18: 16 | B18: Goggle - Overspecs, Safety, Uvex, Megasonic Goggle, 9320 265/Similar and/or Equivalent – Clear Lens | D18: 15
A19: 17 | B19: Safety Prescription Goggle, Eye Examination, Uvex, Carbonvision RX 5501 Goggle, RX Insert/Similar and/or Equivalent – Clear Lens, Single Vision | D19: 40
A20: 18 | B20: Safety Prescription Goggle, Eye Examination, Uvex, Carbonvision RX 5501 Goggle, RX Insert/Similar and/or Equivalent – Clear Lens, Bifocal | D20: 40
A21: 19 | B21: Safety Prescription Goggle, Eye Examination, Uvex, Carbonvision RX 5501 Goggle, RX Insert/Similar and/or Equivalent – Clear Lens, Multifocal | D21: 40
A22: 20 | B22: Combo: Uvex Ultravision Goggle, 9301 105/Similar and/or Equivalent & Uvex Face Shield, 9301 317/Similar and/or Equivalent – Clear Lens, Grinding & Chemical | D22: 285
A23: 21 | B23: Combo: Uvex Ultravision Goggle, 9301 105/Similar and/or Equivalent – Clear Lens & Face Shield, Protection Level 5, IR/UV – Green Lens, Flame Cutting & Brazing | D23: 5 | F23: ``
A24: 22 | B24: Combo: MSA Spirit 2/Similar and/or Equivalent, Safety Goggle Type Spectacle – Clear Lens & Face Shield, Protection Level 5, IR/UV – Green Lens, Flame Cutting & Brazing | D24: 5
A25: 23 | B25: Welding Helmet & Powered Air Respirator, 3M Speedglas Adflo System with welding filter 9100 XX/Similar and/or Equivalent | D25: 5
A26: 24 | B26: 3M Speedglas 100/Similar and/or Equivalent Welding Shield | D26: 5
A27: 25 | B27: Welding Mask, Auto Darkening Goggles Cobra Set: Digital Auto-Darkening Welding Goggle (Cobra-200FX), Clever Shield & Soft Hood/Similar and/or Equivalent, Welding Restricted Areas | D27: 5
A28: 26 | B28: Earmuffs, Re-usable, Headband, Electronic, SNR 25 dB, Honeywell, Howard Leight Impact Sport Earmuff, Tactical Black, Product Number: 1034490/Similar and/or Equivalent | D28: 96
A29: 27 | B29: Earplugs, Re-usable, Corded, SNR 28 dB, Honeywell, Quiet, Howard Leight, 1028457/Similar and/or Equivalent | D29: 2685
A30: 28 | B30: Earplugs, Re-usable, Corded, SNR 30 dB, Uvex, Whisper, Supreme, 2111.235/Similar and/or Equivalent | D30: 2685
A31: 29 | B31: Hygienic Storage Container, Earplugs, Honeywell, Howard Leight/Similar and/or Equivalent | D31: 250
A32: 30 | B32: Respirators, Disposable, Molded Cup Mask, Valve, FFP2, Uvex, Com4-air, FFP2 V (NR) - 8799701/Similar and/or Equivalent, Dust & Mist | D32: 1640
A33: 31 | B33: Respirators, Disposable, Flat Fold Mask, Valve, FFP2, Uvex, Com4-breathe, FFP2 V D - 8799802/Similar and/or Equivalent Dust & Mist | D33: 1641
A34: 32 | B34: Respirators, Disposable, Molded Cup Mask, Valve, FFP3, Uvex, Com4-air, FFP3 V (NR) - 8799703/Similar and/or Equivalent, Asbestos & Silica | D34: 4315
A35: 33 | B35: Respirators, Disposable, Flat Fold Mask, Valve, FFP3, Uvex, Com4-breathe, FFP3 V D - 8799803/Similar and/or Equivalent Asbestos & Silica | D35: 4315
A36: 34 | B36: Respirators, Welding Fume, Disposable, Molded Cup Mask, Valve, FFP2, 3M, Premium Welding Fume, FFP2 V (NR) (D) - 9925/Similar and/or Equivalent | D36: 1036
A37: 35 | B37: Respirators, Reusable, Half Face, Dust & Mist, Organic Vapours, Welding Fume, 3M, 6200/Similar and/or Equivalent, Half Face Respirator | D37: 127
A38: 36 | B38: Half Face Reusable Respirator Filter, Disc Filter Particulate, Welding Fume, 3M Disc Filter 2138/Similar and/or Equivalent, GP2/GP3 Particulate | D38: 5
A39: 37 | B39: Half/Full Face Reusable Respirator Filter, Cartridge Filter Particulate, Dust & Mist, 3M Cartridge Filter 6038,/Similar and/or Equivalent P2/P3 Particulate | D39: 5
A40: 38 | B40: Half/Full Face Reusable Respirator Filter, Cartridge Filter, Particulate Filter & Retainer Organic Vapours/Acid Gases, 3M Cartridge Filter 6057ABE1, 3M Particulate Filter 5935, P3, 3M Retainer 501/Similar and/or Equivalent | D40: 167
A41: 39 | B41: Respirators, Reusable, Full Face, Dust & Mist, Organic Vapours, Perchloroethylene (Electrical Cleaner), 3M, 6800/Similar and/or Equivalent, Full Face Respirator | D41: 10
A42: 40 | B42: Half/Full Face Reusable Respirator Filter, Cartridge Filter, Particulate Filter & Retainer Organic Vapours/Acid Gases & Perchloroethylene (Electrical Cleaner), 3M Cartridge Filter 6055A2, 3M Particulate Filter 5935, P3, 3M Retainer 501/Similar and/or Equivalent | D42: 150
A43: 41 | B43: Full Face Reusable Respirator, Organic Vapours & Perchloroethylene (Electrical Cleaner), MSA Auer 3S/Similar and/or Equivalent, Full Face Mask | D43: 6
A44: 42 | B44: Air Supply, Organic Vapours & Perchloroethylene (Electrical Cleaner), MSA A2B2E2K1P3/Similar and/or Equivalent, Cansister for Mask | D44: 90
A45: 43 | B45: MSA/Similar and/or Equivalent Airline, Trolley with 1 Cylinder and 2 users, with secondary backup, Organic Vapours & Perchloroethylene (Electrical Cleaner) | D45: 3
A46: 44 | B46: Air Cylinders refill, Organic Vapours & Perchloroethylene (Electrical Cleaner) | D46: 80

Sheet Cape Cor - Cat 2 - Body
A1: Cape Corridor Personal Protective Equipment (PPE) Category 2 – Body Protection
A2: Item | B2: Description of PPE | C2: Size of PPE | D2: Quantity Per Unit | E2: Unit Price Per Unit | F2: Total Price
A3: 1 | B3: Workwear - Work Suit, Acid resistant - Dromex, Poly Viscose Acid Conti suit Reflective, DW-PVACIDRT-S/Similar and/or Equivalent, Chemical | C3: 77cm | D3: 2
A4: 2 | B4: Workwear - Work Suit, Acid resistant - Dromex, Poly Viscose Acid Conti suit Reflective, DW-PVACIDRT-S/Similar and/or Equivalent, Chemical | C4: 82cm | D4: 1
A5: 3 | B5: Workwear - Work Suit, Acid resistant - Dromex, Poly Viscose Acid Conti suit Reflective, DW-PVACIDRT-S/Similar and/or Equivalent, Chemical | C5: 87cm | D5: 2
A6: 4 | B6: Workwear - Work Suit, Acid resistant - Dromex, Poly Viscose Acid Conti suit Reflective, DW-PVACIDRT-S/Similar and/or Equivalent, Chemical | C6: 92cm | D6: 7
A7: 5 | B7: Workwear - Work Suit, Acid resistant - Dromex, Poly Viscose Acid Conti suit Reflective, DW-PVACIDRT-S/Similar and/or Equivalent, Chemical | C7: 97cm | D7: 3
A8: 6 | B8: Workwear - Work Suit, Acid resistant - Dromex, Poly Viscose Acid Conti suit Reflective, DW-PVACIDRT-S/Similar and/or Equivalent, Chemical | C8: 102cm | D8: 11
A9: 7 | B9: Workwear - Work Suit, Acid resistant - Dromex, Poly Viscose Acid Conti suit Reflective, DW-PVACIDRT-S/Similar and/or Equivalent, Chemical | C9: 107cm | D9: 13
A10: 8 | B10: Workwear - Work Suit, Acid resistant - Dromex, Poly Viscose Acid Conti suit Reflective, DW-PVACIDRT-S/Similar and/or Equivalent, Chemical | C10: 112cm | D10: 3
A11: 9 | B11: Workwear - Work Suit, Acid resistant - Dromex, Poly Viscose Acid Conti suit Reflective, DW-PVACIDRT-S/Similar and/or Equivalent, Chemical | C11: 117cm | D11: 9
A12: 10 | B12: Workwear - Work Suit, Acid resistant - Dromex, Poly Viscose Acid Conti suit Reflective, DW-PVACIDRT-S/Similar and/or Equivalent, Chemical | C12: 122cm | D12: 6
A13: 11 | B13: Vest, High Visibility, WATT/Similar and/or Equivalent, Reflective Safety Vest (Operations) | C13: S | D13: 272
A14: 12 | B14: Vest, High Visibility, WATT/Similar and/or Equivalent, Reflective Safety Vest (Operations) | C14: M | D14: 333
A15: 13 | B15: Vest, High Visibility, WATT/Similar and/or Equivalent, Reflective Safety Vest (Operations) | C15: L | D15: 509
A16: 14 | B16: Vest, High Visibility, WATT/Similar and/or Equivalent, Reflective Safety Vest (Operations) | C16: XL | D16: 499
A17: 15 | B17: Vest, High Visibility, WATT/Similar and/or Equivalent, Reflective Safety Vest (Operations) | C17: 2XL | D17: 296
A18: 16 | B18: Vest, High Visibility, WATT/Similar and/or Equivalent, Reflective Safety Vest (Operations) | C18: 3XL | D18: 192
A19: 17 | B19: Walkie Talkie Harness, High Visibility, WATT/Similar and/or Equivalent, Reflective Safety Walkie Talkie Harness (Shunting) | C19: S | D19: 50
A20: 18 | B20: Walkie Talkie Harness, High Visibility, WATT/Similar and/or Equivalent, Reflective Safety Walkie Talkie Harness (Shunting) | C20: M | D20: 100
A21: 19 | B21: Walkie Talkie Harness, High Visibility, WATT/Similar and/or Equivalent, Reflective Safety Walkie Talkie Harness (Shunting) | C21: L | D21: 300
A22: 20 | B22: Walkie Talkie Harness, High Visibility, WATT/Similar and/or Equivalent, Reflective Safety Walkie Talkie Harness (Shunting) | C22: XL | D22: 300
A23: 21 | B23: Walkie Talkie Harness, High Visibility, WATT/Similar and/or Equivalent, Reflective Safety Walkie Talkie Harness (Shunting) | C23: 2XL | D23: 100
A24: 22 | B24: Walkie Talkie Harness, High Visibility, WATT/Similar and/or Equivalent, Reflective Safety Walkie Talkie Harness (Shunting) | C24: 3XL | D24: 50
A25: 23 | B25: Rainwear, Rainsuit, WATT/Similar and/or Equivalent, Navy Parka | C25: S:87-92cm | D25: 15
A26: 24 | B26: Rainwear, Rainsuit, WATT/Similar and/or Equivalent, Navy Parka | C26: M:97-102cm | D26: 11
A27: 25 | B27: Rainwear, Rainsuit, WATT/Similar and/or Equivalent, Navy Parka | C27: L:107-112cm | D27: 97
A28: 26 | B28: Rainwear, Rainsuit, WATT/Similar and/or Equivalent, Navy Parka | C28: XL:117-122cm | D28: 116
A29: 27 | B29: Rainwear, Rainsuit, WATT/Similar and/or Equivalent, Navy Parka | C29: 2XL: 127-132cm | D29: 6
A30: 28 | B30: Rainwear, Rainsuit, WATT/Similar and/or Equivalent, Navy Parka | C30: 3XL: 137-142cm | D30: 17
A31: 29 | B31: Knee Pad | D31: 842
A32: 30 | B32: Skullcap - Welding Clothing, Inherently Flame Resistant, Beier’s/Similar and/or Equivalent, I-Flame thermal protection fabric, Welding, Grinding & Flame Cutting | D32: 3
A33: 31 | B33: Hood - Welding Clothing, Inherently Flame Resistant, Beier’s/Similar and/or Equivalent, I-Flame thermal protection fabric, Welding, Grinding & Flame Cutting | D33: 3
A34: 32 | B34: Sleeves - Welding Clothing, Inherently Flame Resistant, Beier’s/Similar and/or Equivalent, I-Flame thermal protection fabric, Welding, Grinding & Flame Cutting | D34: 12
A35: 33 | B35: Apron - Welding Clothing, Inherently Flame Resistant, Beier’s/Similar and/or Equivalent, I-Flame thermal protection fabric, Welding, Grinding & Flame Cutting | D35: 3
A36: 34 | B36: Spats - Welding Clothing, Inherently Flame Resistant, Beier’s/Similar and/or Equivalent, I-Flame thermal protection fabric, Welding, Grinding & Flame Cutting | D36: 12
A37: 35 | B37: Yoke - Welding Clothing, Inherently Flame Resistant, Beier’s/Similar and/or Equivalent, I-Flame thermal protection fabric, Welding, Grinding & Flame Cutting | C37: S | D37: 1
A38: 36 | B38: Yoke - Welding Clothing, Inherently Flame Resistant, Beier’s/Similar and/or Equivalent, I-Flame thermal protection fabric, Welding, Grinding & Flame Cutting | C38: M | D38: 1
A39: 37 | B39: Yoke - Welding Clothing, Inherently Flame Resistant, Beier’s/Similar and/or Equivalent, I-Flame thermal protection fabric, Welding, Grinding & Flame Cutting | C39: L | D39: 1
A40: 38 | B40: Yoke - Welding Clothing, Inherently Flame Resistant, Beier’s/Similar and/or Equivalent, I-Flame thermal protection fabric, Welding, Grinding & Flame Cutting | C40: XL | D40: 1
A41: 39 | B41: Yoke - Welding Clothing, Inherently Flame Resistant, Beier’s/Similar and/or Equivalent, I-Flame thermal protection fabric, Welding, Grinding & Flame Cutting | C41: 2XL | D41: 1
A42: 40 | B42: Yoke - Welding Clothing, Inherently Flame Resistant, Beier’s/Similar and/or Equivalent, I-Flame thermal protection fabric, Welding, Grinding & Flame Cutting | C42: 3XL | D42: 1
A43: 41 | B43: Jacket - Welding Clothing, Inherently Flame Resistant, Beier’s/Similar and/or Equivalent, I-Flame thermal protection fabric, Welding, Grinding & Flame Cutting | C43: S | D43: 1
A44: 42 | B44: Jacket - Welding Clothing, Inherently Flame Resistant, Beier’s/Similar and/or Equivalent, I-Flame thermal protection fabric, Welding, Grinding & Flame Cutting | C44: M | D44: 1
A45: 43 | B45: Jacket - Welding Clothing, Inherently Flame Resistant, Beier’s/Similar and/or Equivalent, I-Flame thermal protection fabric, Welding, Grinding & Flame Cutting | C45: L | D45: 5
A46: 44 | B46: Jacket - Welding Clothing, Inherently Flame Resistant, Beier’s/Similar and/or Equivalent, I-Flame thermal protection fabric, Welding, Grinding & Flame Cutting | C46: XL | D46: 5
A47: 45 | B47: Jacket - Welding Clothing, Inherently Flame Resistant, Beier’s/Similar and/or Equivalent, I-Flame thermal protection fabric, Welding, Grinding & Flame Cutting | C47: 2XL | D47: 2
A48: 46 | B48: Jacket - Welding Clothing, Inherently Flame Resistant, Beier’s/Similar and/or Equivalent, I-Flame thermal protection fabric, Welding, Grinding & Flame Cutting | C48: 3XL | D48: 1
A49: 47 | B49: Trouser - Welding Clothing, Inherently Flame Resistant, Beier’s/Similar and/or Equivalent, I-Flame thermal protection fabric, Welding, Grinding & Flame Cutting | C49: S | D49: 1
A50: 48 | B50: Trouser - Welding Clothing, Inherently Flame Resistant, Beier’s/Similar and/or Equivalent, I-Flame thermal protection fabric, Welding, Grinding & Flame Cutting | C50: M | D50: 1
A51: 49 | B51: Trouser - Welding Clothing, Inherently Flame Resistant, Beier’s/Similar and/or Equivalent, I-Flame thermal protection fabric, Welding, Grinding & Flame Cutting | C51: L | D51: 5
A52: 50 | B52: Trouser - Welding Clothing, Inherently Flame Resistant, Beier’s/Similar and/or Equivalent, I-Flame thermal protection fabric, Welding, Grinding & Flame Cutting | C52: XL | D52: 5
A53: 51 | B53: Trouser - Welding Clothing, Inherently Flame Resistant, Beier’s/Similar and/or Equivalent, I-Flame thermal protection fabric, Welding, Grinding & Flame Cutting | C53: 2XL | D53: 2
A54: 52 | B54: Trouser - Welding Clothing, Inherently Flame Resistant, Beier’s/Similar and/or Equivalent, I-Flame thermal protection fabric, Welding, Grinding & Flame Cutting | C54: 3XL | D54: 1
A55: 53 | B55: Gloves - Welding Clothing, Inherently Flame Resistant, Beier’s/Similar and/or Equivalent, I-Flame thermal protection fabric, Welding, Grinding & Flame Cutting | C55: S | D55: 5
A56: 54 | B56: Gloves - Welding Clothing, Inherently Flame Resistant, Beier’s/Similar and/or Equivalent, I-Flame thermal protection fabric, Welding, Grinding & Flame Cutting | C56: M | D56: 12
A57: 55 | B57: Gloves - Welding Clothing, Inherently Flame Resistant, Beier’s/Similar and/or Equivalent, I-Flame thermal protection fabric, Welding, Grinding & Flame Cutting | C57: L | D57: 20
A58: 56 | B58: Gloves - Welding Clothing, Inherently Flame Resistant, Beier’s/Similar and/or Equivalent, I-Flame thermal protection fabric, Welding, Grinding & Flame Cutting | C58: XL | D58: 20
A59: 57 | B59: Gloves - Welding Clothing, Inherently Flame Resistant, Beier’s/Similar and/or Equivalent, I-Flame thermal protection fabric, Welding, Grinding & Flame Cutting | C59: 2XL | D59: 20
A60: 58 | B60: Gloves - Welding Clothing, Inherently Flame Resistant, Beier’s/Similar and/or Equivalent, I-Flame thermal protection fabric, Welding, Grinding & Flame Cutting | C60: 3XL | D60: 5
A61: 59 | B61: Leather Apron, 60cmx120cm, Welding, Grinding & Flame Cutting | D61: 60
A62: 60 | B62: Disposable Coverall Dust, Oil, Diesel: Type 5 and Type 6, Disposable Coverall, Dust, Oil, Diesel, Paint & Asbestos | C62: S | D62: 42
A63: 61 | B63: Disposable Coverall Dust, Oil, Diesel: Type 5 and Type 6, Disposable Coverall, Dust, Oil, Diesel, Paint & Asbestos | C63: M | D63: 859
A64: 62 | B64: Disposable Coverall Dust, Oil, Diesel: Type 5 and Type 6, Disposable Coverall, Dust, Oil, Diesel, Paint & Asbestos | C64: L | D64: 11600
A65: 63 | B65: Disposable Coverall Dust, Oil, Diesel: Type 5 and Type 6, Disposable Coverall, Dust, Oil, Diesel, Paint & Asbestos | C65: XL | D65: 17242
A66: 64 | B66: Disposable Coverall Dust, Oil, Diesel: Type 5 and Type 6, Disposable Coverall, Dust, Oil, Diesel, Paint & Asbestos | C66: 2XL | D66: 12092
A67: 65 | B67: Disposable Coverall Dust, Oil, Diesel: Type 5 and Type 6, Disposable Coverall, Dust, Oil, Diesel, Paint & Asbestos | C67: 3XL | D67: 520
A68: 66 | B68: Disposable Coverall Dust, Oil, Diesel: Type 5 and Type 6, Disposable Coverall, Dust, Oil, Diesel, Paint & Asbestos | C68: 4XL | D68: 5543
A69: 67 | B69: Disposable Coverall Paint: Type 5 and Type 6, Disposable Coverall, Dust, Oil, Diesel, Paint & Asbestos | C69: 3XL | D69: 93
A70: 68 | B70: Gloves, General Work, Safety, Wonder Grip, WG-787 Dexcut/Similar and/or Equivalent | C70: S/7 | D70: 74
A71: 69 | B71: Gloves, General Work, Safety, Wonder Grip, WG-787 Dexcut/Similar and/or Equivalent | C71: M/8 | D71: 432
A72: 70 | B72: Gloves, General Work, Safety, Wonder Grip, WG-787 Dexcut/Similar and/or Equivalent | C72: L/9 | D72: 2631
A73: 71 | B73: Gloves, General Work, Safety, Wonder Grip, WG-787 Dexcut/Similar and/or Equivalent | C73: XL/10 | D73: 3037
A74: 72 | B74: Gloves, General Work, Safety, Wonder Grip, WG-787 Dexcut/Similar and/or Equivalent | C74: 2XL/11 | D74: 8539
A75: 73 | B75: Gloves, General Work, Safety, Granberg, Protector 116.592/Similar and/or Equivalent | C75: XS/6 | D75: 10
A76: 74 | B76: Gloves, General Work, Safety, Granberg, Protector 116.592/Similar and/or Equivalent | C76: S/7 | D76: 70
A77: 75 | B77: Gloves, General Work, Safety, Granberg, Protector 116.592/Similar and/or Equivalent | C77: M/8 | D77: 338
A78: 76 | B78: Gloves, General Work, Safety, Granberg, Protector 116.592/Similar and/or Equivalent | C78: L/9 | D78: 431
A79: 77 | B79: Gloves, General Work, Safety, Granberg, Protector 116.592/Similar and/or Equivalent | C79: XL/10 | D79: 1167
A80: 78 | B80: Gloves, General Work, Safety, Granberg, Protector 116.592/Similar and/or Equivalent | C80: 2XL/11 | D80: 2118
A81: 79 | B81: Gloves, General Work, Safety, Granberg, Protector 116.592/Similar and/or Equivalent | C81: 3XL/12 | D81: 100
A82: 80 | B82: Gloves, Impact, Extreme Work (Breakdown, Shunting & Heavy Maintenance), Safety, Granberg, Cut Level D Impact Hi-Viz™ Protective Gloves 115.9001/Similar and/or Equivalent | C82: S/7 | D82: 5
A83: 81 | B83: Gloves, Impact, Extreme Work (Breakdown, Shunting & Heavy Maintenance), Safety, Granberg, Cut Level D Impact Hi-Viz™ Protective Gloves 115.9001/Similar and/or Equivalent | C83: M/8 | D83: 10
A84: 82 | B84: Gloves, Impact, Extreme Work (Breakdown, Shunting & Heavy Maintenance), Safety, Granberg, Cut Level D Impact Hi-Viz™ Protective Gloves 115.9001/Similar and/or Equivalent | C84: L/9 | D84: 30
A85: 83 | B85: Gloves, Impact, Extreme Work (Breakdown, Shunting & Heavy Maintenance), Safety, Granberg, Cut Level D Impact Hi-Viz™ Protective Gloves 115.9001/Similar and/or Equivalent | C85: XL/10 | D85: 30
A86: 84 | B86: Gloves, Impact, Extreme Work (Breakdown, Shunting & Heavy Maintenance), Safety, Granberg, Cut Level D Impact Hi-Viz™ Protective Gloves 115.9001/Similar and/or Equivalent | C86: 2XL/11 | D86: 20
A87: 85 | B87: Gloves, Impact, Extreme Work (Breakdown, Shunting & Heavy Maintenance), Safety, Granberg, Cut Level D Impact Hi-Viz™ Protective Gloves 115.9001/Similar and/or Equivalent | C87: 3XL/12 | D87: 5
A88: 86 | B88: Gloves, Extreme Oily, Safety, Granberg, 114.4279 /Similar and/or Equivalent, Assembly Gloves, Full Nitrile Microfoam Coating Unlined, Extreme Oily | C88: S/7 | D88: 2
A89: 87 | B89: Gloves, Extreme Oily, Safety, Granberg, 114.4279 /Similar and/or Equivalent, Assembly Gloves, Full Nitrile Microfoam Coating Unlined, Extreme Oily | C89: M/8 | D89: 5
A90: 88 | B90: Gloves, Extreme Oily, Safety, Granberg, 114.4279 /Similar and/or Equivalent, Assembly Gloves, Full Nitrile Microfoam Coating Unlined, Extreme Oily | C90: L/9 | D90: 5
A91: 89 | B91: Gloves, Extreme Oily, Safety, Granberg, 114.4279 /Similar and/or Equivalent, Assembly Gloves, Full Nitrile Microfoam Coating Unlined, Extreme Oily | C91: XL/10 | D91: 5
A92: 90 | B92: Gloves, Extreme Oily, Safety, Granberg, 114.4279 /Similar and/or Equivalent, Assembly Gloves, Full Nitrile Microfoam Coating Unlined, Extreme Oily | C92: 2XL/11 | D92: 5
A93: 91 | B93: Gloves, Extreme Oily, Safety, Granberg, 114.4279 /Similar and/or Equivalent, Assembly Gloves, Full Nitrile Microfoam Coating Unlined, Extreme Oily | C93: 3XL/12 | D93: 2
A94: 92 | B94: Leather Welding Glove, 8-inch cuff | D94: 50
A95: 93 | B95: Leather Welding Glove, 16-inch cuff | D95: 574
A96: 94 | B96: Gloves Chemical: Gloves, Chemical & Sandblast, Granberg, Chemstar 114.1000/Similar and/or Equivalent, Nitrile Chemical Resistant Gloves, 33cm length, 0.38mm thick | C96: 7 | D96: 10
A97: 95 | B97: Gloves Chemical: Gloves, Chemical & Sandblast, Granberg, Chemstar 114.1000/Similar and/or Equivalent, Nitrile Chemical Resistant Gloves, 33cm length, 0.38mm thick | C97: 8 | D97: 3200
A98: 96 | B98: Gloves Chemical: Gloves, Chemical & Sandblast, Granberg, Chemstar 114.1000/Similar and/or Equivalent, Nitrile Chemical Resistant Gloves, 33cm length, 0.38mm thick | C98: 9 | D98: 2232
A99: 97 | B99: Gloves Chemical: Gloves, Chemical & Sandblast, Granberg, Chemstar 114.1000/Similar and/or Equivalent, Nitrile Chemical Resistant Gloves, 33cm length, 0.38mm thick | C99: 10 | D99: 3647
A100: 98 | B100: Gloves Chemical: Gloves, Chemical & Sandblast, Granberg, Chemstar 114.1000/Similar and/or Equivalent, Nitrile Chemical Resistant Gloves, 33cm length, 0.38mm thick | C100: 11 | D100: 3563
A101: 99 | B101: Gloves Chemical: Gloves, Chemical & Sandblast, Granberg, Chemstar 114.1000/Similar and/or Equivalent, Nitrile Chemical Resistant Gloves, 33cm length, 0.38mm thick | C101: 12 | D101: 284
A102: 100 | B102: Gloves Chemical: Gloves, Chemical & Sandblast, Granberg, Chemstar 114.1046/Similar and/or Equivalent, Nitrile Chemical Resistant Gloves, 46cm length, 0.55mm thick | C102: 7 | D102: 10
A103: 101 | B103: Gloves Chemical: Gloves, Chemical & Sandblast, Granberg, Chemstar 114.1046/Similar and/or Equivalent, Nitrile Chemical Resistant Gloves, 46cm length, 0.55mm thick | C103: 8 | D103: 2485
A104: 102 | B104: Gloves Chemical: Gloves, Chemical & Sandblast, Granberg, Chemstar 114.1046/Similar and/or Equivalent, Nitrile Chemical Resistant Gloves, 46cm length, 0.55mm thick | C104: 9 | D104: 2000
A105: 103 | B105: Gloves Chemical: Gloves, Chemical & Sandblast, Granberg, Chemstar 114.1046/Similar and/or Equivalent, Nitrile Chemical Resistant Gloves, 46cm length, 0.55mm thick | C105: 10 | D105: 2000
A106: 104 | B106: Gloves Chemical: Gloves, Chemical & Sandblast, Granberg, Chemstar 114.1046/Similar and/or Equivalent, Nitrile Chemical Resistant Gloves, 46cm length, 0.55mm thick | C106: 11 | D106: 842
A107: 105 | B107: Gloves Chemical: Gloves, Chemical & Sandblast, Granberg, Chemstar 114.1046/Similar and/or Equivalent, Nitrile Chemical Resistant Gloves, 46cm length, 0.55mm thick | C107: 12 | D107: 134
A108: 106 | B108: Fall Protection - Fall Arrest Equipment, V-form Safety Harness, Back/Chest D-Ring, Qwik-Fit Leg Buckles, Latchways Mini Retractable Lanyard, Latchways Mini PFL, 1.8m, twin-leg with 36C snaphooks | D108: 100

Sheet Cape Cor - Cat 3 - Footwear
A1: Cape Corridor Personal Protective Equipment (PPE) Category 3 – Safety Footwear
A2: Item | B2: Description of PPE | C2: Size of PPE | D2: Quantity Per Pair | E2: Unit Price Per Pair | F2: Total Price
A3: 1 | B3: Boots, Safety, Bova Trax Hiker 21013/Similar and/or Equivalent | C3: 3 | D3: 1
A4: 2 | B4: Boots, Safety, Bova Trax Hiker 21013/Similar and/or Equivalent | C4: 4 | D4: 130
A5: 3 | B5: Boots, Safety, Bova Trax Hiker 21013/Similar and/or Equivalent | C5: 5 | D5: 239
A6: 4 | B6: Boots, Safety, Bova Trax Hiker 21013/Similar and/or Equivalent | C6: 6 | D6: 439
A7: 5 | B7: Boots, Safety, Bova Trax Hiker 21013/Similar and/or Equivalent | C7: 7 | D7: =676+4 -> 680
A8: 6 | B8: Boots, Safety, Bova Trax Hiker 21013/Similar and/or Equivalent | C8: 8 | D8: 771
A9: 7 | B9: Boots, Safety, Bova Trax Hiker 21013/Similar and/or Equivalent | C9: 9 | D9: 664
A10: 8 | B10: Boots, Safety, Bova Trax Hiker 21013/Similar and/or Equivalent | C10: 10 | D10: 245
A11: 9 | B11: Boots, Safety, Bova Trax Hiker 21013/Similar and/or Equivalent | C11: 11 | D11: 122
A12: 10 | B12: Boots, Safety, Bova Trax Hiker 21013/Similar and/or Equivalent | C12: 12 | D12: 32
A13: 11 | B13: Boots, Safety, Bova Trax Hiker 21013/Similar and/or Equivalent | C13: 13 | D13: 13
A14: 12 | B14: Boots, Safety, Bova Trax Hiker 21013/Similar and/or Equivalent | C14: 14 | D14: 1
A15: 13 | B15: Gumboots, Safety, Shosholoza, ZBBSR/Similar and/or Equivalent | C15: 6 | D15: 1
A16: 14 | B16: Gumboots, Safety, Shosholoza, ZBBSR/Similar and/or Equivalent | C16: 7 | D16: 7
A17: 15 | B17: Gumboots, Safety, Shosholoza, ZBBSR/Similar and/or Equivalent | C17: 8 | D17: 16
A18: 16 | B18: Gumboots, Safety, Shosholoza, ZBBSR/Similar and/or Equivalent | C18: 9 | D18: 18
A19: 17 | B19: Gumboots, Safety, Shosholoza, ZBBSR/Similar and/or Equivalent | C19: 10 | D19: 17
A20: 18 | B20: Gumboots, Safety, Shosholoza, ZBBSR/Similar and/or Equivalent | C20: 11 | D20: 1
A21: 19 | B21: Socks, Safety, BOVA Anti-Bacterial Sox ACC12918/Similar and/or Equivalent | D21: 833
A22: 20 | B22: Insoles Footwear; Elastopan, (Cushioned Footbed)/Similar and/or Equivalent | C22: 3 | D22: 1
A23: 21 | B23: Insoles Footwear; Elastopan, (Cushioned Footbed)/Similar and/or Equivalent | C23: 4 | D23: 65
A24: 22 | B24: Insoles Footwear; Elastopan, (Cushioned Footbed)/Similar and/or Equivalent | C24: 5 | D24: 120
A25: 23 | B25: Insoles Footwear; Elastopan, (Cushioned Footbed)/Similar and/or Equivalent | C25: 6 | D25: 220
A26: 24 | B26: Insoles Footwear; Elastopan, (Cushioned Footbed)/Similar and/or Equivalent | C26: 7 | D26: 340
A27: 25 | B27: Insoles Footwear; Elastopan, (Cushioned Footbed)/Similar and/or Equivalent | C27: 8 | D27: 386
A28: 26 | B28: Insoles Footwear; Elastopan, (Cushioned Footbed)/Similar and/or Equivalent | C28: 9 | D28: 332
A29: 27 | B29: Insoles Footwear; Elastopan, (Cushioned Footbed)/Similar and/or Equivalent | C29: 10 | D29: 123
A30: 28 | B30: Insoles Footwear; Elastopan, (Cushioned Footbed)/Similar and/or Equivalent | C30: 11 | D30: 61
A31: 29 | B31: Insoles Footwear; Elastopan, (Cushioned Footbed)/Similar and/or Equivalent | C31: 12 | D31: 16
A32: 30 | B32: Insoles Footwear; Elastopan, (Cushioned Footbed)/Similar and/or Equivalent | C32: 13 | D32: 7
A33: 31 | B33: Insoles Footwear; Elastopan, (Cushioned Footbed)/Similar and/or Equivalent | C33: 14 | D33: 1

Sheet RAW (hidden)
V1: CPI | W1: 1.074
W2: 2023
A3: Material | B3: Description | C3: Plant | D3: Execuvtive | E3: Corridor | F3: Fiscal Year | G3: Period Indicator | H3: Follow-on records | I3: Jan | J3: Feb | K3: Mar | L3: Apr | M3: May | N3: Jun | O3: Jul | P3: Aug | Q3: Sep | R3: Oct | S3: Nov | T3: Dec | U3: Jan2 | V3: Subtotal | W3: Last PO | X3: Last PO Price | Y3: Last PO date | Z3: Last Vendor | AA3: Year | AB3: Number | AC3: MRP | AD3: Usage Value
A4: 035000042 | B4: =VLOOKUP(A4,[1]!Table93[[Material Number]:[Description]],4,FALSE) ->  | C4: 1117 | D4: =VLOOKUP(Table1[[#This Row],[Plant]],[2]Sheet1!$C:$G,5,FALSE) -> Maint | E4: =VLOOKUP(Table1[[#This Row],[Plant]],[2]Sheet1!$C:$I,7,FALSE) -> MAINTENANCE CENTRAL CORRIDOR | F4: 2018 | G4: M | H4: 1 | I4: 0.000 | J4: 100.000 | K4: 0.000 | L4: 0.000 | M4: 0.000 | N4: 0.000 | O4: 0.000 | P4: 0.000 | Q4: 0.000 | R4: 0.000 | S4: 0.000 | T4: 0.000 | U4: 0.000 | V4: =SUM(Table1[[#This Row],[Jan]:[Jan2]]) -> 100.000 | W4: =VLOOKUP($A4,'[3]All POs'!$A:$G,2,FALSE) -> 4503033104 | X4: =VLOOKUP($A4,'[3]All POs'!$A:$G,3,FALSE) -> R63.70 | Y4: =VLOOKUP($A4,'[3]All POs'!$A:$G,5,FALSE) -> 2022-11-25 | Z4: =VLOOKUP($A4,'[3]All POs'!$A:$G,7,FALSE) -> MKC PROJECTS | AA4: =YEAR(Table1[[#This Row],[Last PO date]]) -> 2022 | AB4: =$W$2-Table1[[#This Row],[Year]] -> 1 | AC4: =Table1[[#This Row],[Last PO Price]]*($W$1)^AB4 -> R68.41 | AD4: =Table1[[#This Row],[MRP]]*Table1[[#This Row],[Subtotal]] -> R6,841.38
A5: 035000042 | B5: =VLOOKUP(A5,[1]!Table93[[Material Number]:[Description]],4,FALSE) ->  | C5: 1117 | D5: =VLOOKUP(Table1[[#This Row],[Plant]],[2]Sheet1!$C:$G,5,FALSE) -> Maint | E5: =VLOOKUP(Table1[[#This Row],[Plant]],[2]Sheet1!$C:$I,7,FALSE) -> MAINTENANCE CENTRAL CORRIDOR | F5: 2019 | G5: M | H5: 1 | I5: 0.000 | J5: 0.000 | K5: 0.000 | L5: 50.000 | M5: 0.000 | N5: 0.000 | O5: 0.000 | P5: 0.000 | Q5: 0.000 | R5: 0.000 | S5: 0.000 | T5: 0.000 | U5: 0.000 | V5: =SUM(Table1[[#This Row],[Jan]:[Jan2]]) -> 50.000 | W5: =VLOOKUP($A5,'[3]All POs'!$A:$G,2,FALSE) -> 4503033104 | X5: =VLOOKUP($A5,'[3]All POs'!$A:$G,3,FALSE) -> R63.70 | Y5: =VLOOKUP($A5,'[3]All POs'!$A:$G,5,FALSE) -> 2022-11-25 | Z5: =VLOOKUP($A5,'[3]All POs'!$A:$G,7,FALSE) -> MKC PROJECTS | AA5: =YEAR(Table1[[#This Row],[Last PO date]]) -> 2022 | AB5: =$W$2-Table1[[#This Row],[Year]] -> 1 | AC5: =Table1[[#This Row],[Last PO Price]]*($W$1)^AB5 -> R68.41 | AD5: =Table1[[#This Row],[MRP]]*Table1[[#This Row],[Subtotal]] -> R3,420.69
A6: 035000042 | B6: =VLOOKUP(A6,[1]!Table93[[Material Number]:[Description]],4,FALSE) ->  | C6: 1117 | D6: =VLOOKUP(Table1[[#This Row],[Plant]],[2]Sheet1!$C:$G,5,FALSE) -> Maint | E6: =VLOOKUP(Table1[[#This Row],[Plant]],[2]Sheet1!$C:$I,7,FALSE) -> MAINTENANCE CENTRAL CORRIDOR | F6: 2020 | G6: M | H6: 1 | I6: 0.000 | J6: 0.000 | K6: 0.000 | L6: 0.000 | M6: 0.000 | N6: 0.000 | O6: 0.000 | P6: 0.000 | Q6: 0.000 | R6: 100.000 | S6: 0.000 | T6: 0.000 | U6: 0.000 | V6: =SUM(Table1[[#This Row],[Jan]:[Jan2]]) -> 100.000 | W6: =VLOOKUP($A6,'[3]All POs'!$A:$G,2,FALSE) -> 4503033104 | X6: =VLOOKUP($A6,'[3]All POs'!$A:$G,3,FALSE) -> R63.70 | Y6: =VLOOKUP($A6,'[3]All POs'!$A:$G,5,FALSE) -> 2022-11-25 | Z6: =VLOOKUP($A6,'[3]All POs'!$A:$G,7,FALSE) -> MKC PROJECTS | AA6: =YEAR(Table1[[#This Row],[Last PO date]]) -> 2022 | AB6: =$W$2-Table1[[#This Row],[Year]] -> 1 | AC6: =Table1[[#This Row],[Last PO Price]]*($W$1)^AB6 -> R68.41 | AD6: =Table1[[#This Row],[MRP]]*Table1[[#This Row],[Subtotal]] -> R6,841.38
A7: 035000042 | B7: =VLOOKUP(A7,[1]!Table93[[Material Number]:[Description]],4,FALSE) ->  | C7: 1117 | D7: =VLOOKUP(Table1[[#This Row],[Plant]],[2]Sheet1!$C:$G,5,FALSE) -> Maint | E7: =VLOOKUP(Table1[[#This Row],[Plant]],[2]Sheet1!$C:$I,7,FALSE) -> MAINTENANCE CENTRAL CORRIDOR | F7: 2021 | G7: M | H7: 1 | I7: 0.000 | J7: 0.000 | K7: 0.000 | L7: 0.000 | M7: 0.000 | N7: 0.000 | O7: 100.000 | P7: 0.000 | Q7: 0.000 | R7: 0.000 | S7: 0.000 | T7: 0.000 | U7: 0.000 | V7: =SUM(Table1[[#This Row],[Jan]:[Jan2]]) -> 100.000 | W7: =VLOOKUP($A7,'[3]All POs'!$A:$G,2,FALSE) -> 4503033104 | X7: =VLOOKUP($A7,'[3]All POs'!$A:$G,3,FALSE) -> R63.70 | Y7: =VLOOKUP($A7,'[3]All POs'!$A:$G,5,FALSE) -> 2022-11-25 | Z7: =VLOOKUP($A7,'[3]All POs'!$A:$G,7,FALSE) -> MKC PROJECTS | AA7: =YEAR(Table1[[#This Row],[Last PO date]]) -> 2022 | AB7: =$W$2-Table1[[#This Row],[Year]] -> 1 | AC7: =Table1[[#This Row],[Last PO Price]]*($W$1)^AB7 -> R68.41 | AD7: =Table1[[#This Row],[MRP]]*Table1[[#This Row],[Subtotal]] -> R6,841.38
A8: 035000042 | B8: =VLOOKUP(A8,[1]!Table93[[Material Number]:[Description]],4,FALSE) ->  | C8: 1117 | D8: =VLOOKUP(Table1[[#This Row],[Plant]],[2]Sheet1!$C:$G,5,FALSE) -> Maint | E8: =VLOOKUP(Table1[[#This Row],[Plant]],[2]Sheet1!$C:$I,7,FALSE) -> MAINTENANCE CENTRAL CORRIDOR | F8: 2022 | G8: M | H8: 1 | I8: 0.000 | J8: 100.000 | K8: 0.000 | L8: 0.000 | M8: 0.000 | N8: 0.000 | O8: 0.000 | P8: 0.000 | Q8: 0.000 | R8: 0.000 | S8: 0.000 | T8: 0.000 | U8: 0.000 | V8: =SUM(Table1[[#This Row],[Jan]:[Jan2]]) -> 100.000 | W8: =VLOOKUP($A8,'[3]All POs'!$A:$G,2,FALSE) -> 4503033104 | X8: =VLOOKUP($A8,'[3]All POs'!$A:$G,3,FALSE) -> R63.70 | Y8: =VLOOKUP($A8,'[3]All POs'!$A:$G,5,FALSE) -> 2022-11-25 | Z8: =VLOOKUP($A8,'[3]All POs'!$A:$G,7,FALSE) -> MKC PROJECTS | AA8: =YEAR(Table1[[#This Row],[Last PO date]]) -> 2022 | AB8: =$W$2-Table1[[#This Row],[Year]] -> 1 | AC8: =Table1[[#This Row],[Last PO Price]]*($W$1)^AB8 -> R68.41 | AD8: =Table1[[#This Row],[MRP]]*Table1[[#This Row],[Subtotal]] -> R6,841.38
A9: 035000042 | B9: =VLOOKUP(A9,[1]!Table93[[Material Number]:[Description]],4,FALSE) ->  | C9: 1117 | D9: =VLOOKUP(Table1[[#This Row],[Plant]],[2]Sheet1!$C:$G,5,FALSE) -> Maint | E9: =VLOOKUP(Table1[[#This Row],[Plant]],[2]Sheet1!$C:$I,7,FALSE) -> MAINTENANCE CENTRAL CORRIDOR | F9: 2023 | G9: M | H9: 1 | I9: 100.000 | J9: 0.000 | K9: 0.000 | L9: 0.000 | M9: 0.000 | N9: 0.000 | O9: 0.000 | P9: 0.000 | Q9: 0.000 | R9: 0.000 | S9: 0.000 | T9: 0.000 | U9: 0.000 | V9: =SUM(Table1[[#This Row],[Jan]:[Jan2]]) -> 100.000 | W9: =VLOOKUP($A9,'[3]All POs'!$A:$G,2,FALSE) -> 4503033104 | X9: =VLOOKUP($A9,'[3]All POs'!$A:$G,3,FALSE) -> R63.70 | Y9: =VLOOKUP($A9,'[3]All POs'!$A:$G,5,FALSE) -> 2022-11-25 | Z9: =VLOOKUP($A9,'[3]All POs'!$A:$G,7,FALSE) -> MKC PROJECTS | AA9: =YEAR(Table1[[#This Row],[Last PO date]]) -> 2022 | AB9: =$W$2-Table1[[#This Row],[Year]] -> 1 | AC9: =Table1[[#This Row],[Last PO Price]]*($W$1)^AB9 -> R68.41 | AD9: =Table1[[#This Row],[MRP]]*Table1[[#This Row],[Subtotal]] -> R6,841.38
A10: 035000042 | B10: =VLOOKUP(A10,[1]!Table93[[Material Number]:[Description]],4,FALSE) ->  | C10: 1417 | D10: =VLOOKUP(Table1[[#This Row],[Plant]],[2]Sheet1!$C:$G,5,FALSE) -> Maint | E10: =VLOOKUP(Table1[[#This Row],[Plant]],[2]Sheet1!$C:$I,7,FALSE) -> MAINTENANCE CENTRAL CORRIDOR | F10: 2019 | G10: M | H10: 1 | I10: 0.000 | J10: 0.000 | K10: 0.000 | L10: 2.000 | M10: 0.000 | N10: 0.000 | O10: 0.000 | P10: 0.000 | Q10: 0.000 | R10: 0.000 | S10: 0.000 | T10: 0.000 | U10: 0.000 | V10: =SUM(Table1[[#This Row],[Jan]:[Jan2]]) -> 2.000 | W10: =VLOOKUP($A10,'[3]All POs'!$A:$G,2,FALSE) -> 4503033104 | X10: =VLOOKUP($A10,'[3]All POs'!$A:$G,3,FALSE) -> R63.70 | Y10: =VLOOKUP($A10,'[3]All POs'!$A:$G,5,FALSE) -> 2022-11-25 | Z10: =VLOOKUP($A10,'[3]All POs'!$A:$G,7,FALSE) -> MKC PROJECTS | AA10: =YEAR(Table1[[#This Row],[Last PO date]]) -> 2022 | AB10: =$W$2-Table1[[#This Row],[Year]] -> 1 | AC10: =Table1[[#This Row],[Last PO Price]]*($W$1)^AB10 -> R68.41 | AD10: =Table1[[#This Row],[MRP]]*Table1[[#This Row],[Subtotal]] -> R136.83
A11: 035000042 | B11: =VLOOKUP(A11,[1]!Table93[[Material Number]:[Description]],4,FALSE) ->  | C11: 1417 | D11: =VLOOKUP(Table1[[#This Row],[Plant]],[2]Sheet1!$C:$G,5,FALSE) -> Maint | E11: =VLOOKUP(Table1[[#This Row],[Plant]],[2]Sheet1!$C:$I,7,FALSE) -> MAINTENANCE CENTRAL CORRIDOR | F11: 2020 | G11: M | H11: 1 | I11: 0.000 | J11: 0.000 | K11: 20.000 | L11: 0.000 | M11: 0.000 | N11: 0.000 | O11: 0.000 | P11: 0.000 | Q11: 0.000 | R11: 0.000 | S11: 0.000 | T11: 0.000 | U11: 0.000 | V11: =SUM(Table1[[#This Row],[Jan]:[Jan2]]) -> 20.000 | W11: =VLOOKUP($A11,'[3]All POs'!$A:$G,2,FALSE) -> 4503033104 | X11: =VLOOKUP($A11,'[3]All POs'!$A:$G,3,FALSE) -> R63.70 | Y11: =VLOOKUP($A11,'[3]All POs'!$A:$G,5,FALSE) -> 2022-11-25 | Z11: =VLOOKUP($A11,'[3]All POs'!$A:$G,7,FALSE) -> MKC PROJECTS | AA11: =YEAR(Table1[[#This Row],[Last PO date]]) -> 2022 | AB11: =$W$2-Table1[[#This Row],[Year]] -> 1 | AC11: =Table1[[#This Row],[Last PO Price]]*($W$1)^AB11 -> R68.41 | AD11: =Table1[[#This Row],[MRP]]*Table1[[#This Row],[Subtotal]] -> R1,368.28
A12: 035000042 | B12: =VLOOKUP(A12,[1]!Table93[[Material Number]:[Description]],4,FALSE) ->  | C12: 1417 | D12: =VLOOKUP(Table1[[#This Row],[Plant]],[2]Sheet1!$C:$G,5,FALSE) -> Maint | E12: =VLOOKUP(Table1[[#This Row],[Plant]],[2]Sheet1!$C:$I,7,FALSE) -> MAINTENANCE CENTRAL CORRIDOR | F12: 2021 | G12: M | H12: 1 | I12: 0.000 | J12: 0.000 | K12: 30.000 | L12: 0.000 | M12: 0.000 | N12: 0.000 | O12: 0.000 | P12: 0.000 | Q12: 0.000 | R12: 0.000 | S12: 0.000 | T12: 0.000 | U12: 0.000 | V12: =SUM(Table1[[#This Row],[Jan]:[Jan2]]) -> 30.000 | W12: =VLOOKUP($A12,'[3]All POs'!$A:$G,2,FALSE) -> 4503033104 | X12: =VLOOKUP($A12,'[3]All POs'!$A:$G,3,FALSE) -> R63.70 | Y12: =VLOOKUP($A12,'[3]All POs'!$A:$G,5,FALSE) -> 2022-11-25 | Z12: =VLOOKUP($A12,'[3]All POs'!$A:$G,7,FALSE) -> MKC PROJECTS | AA12: =YEAR(Table1[[#This Row],[Last PO date]]) -> 2022 | AB12: =$W$2-Table1[[#This Row],[Year]] -> 1 | AC12: =Table1[[#This Row],[Last PO Price]]*($W$1)^AB12 -> R68.41 | AD12: =Table1[[#This Row],[MRP]]*Table1[[#This Row],[Subtotal]] -> R2,052.41
A13: 035000042 | B13: =VLOOKUP(A13,[1]!Table93[[Material Number]:[Description]],4,FALSE) ->  | C13: 1417 | D13: =VLOOKUP(Table1[[#This Row],[Plant]],[2]Sheet1!$C:$G,5,FALSE) -> Maint | E13: =VLOOKUP(Table1[[#This Row],[Plant]],[2]Sheet1!$C:$I,7,FALSE) -> MAINTENANCE CENTRAL CORRIDOR | F13: 2022 | G13: M | H13: 1 | I13: 0.000 | J13: 0.000 | K13: 0.000 | L13: 0.000 | M13: 0.000 | N13: 0.000 | O13: 0.000 | P13: 0.000 | Q13: 0.000 | R13: 0.000 | S13: 250.000 | T13: 0.000 | U13: 0.000 | V13: =SUM(Table1[[#This Row],[Jan]:[Jan2]]) -> 250.000 | W13: =VLOOKUP($A13,'[3]All POs'!$A:$G,2,FALSE) -> 4503033104 | X13: =VLOOKUP($A13,'[3]All POs'!$A:$G,3,FALSE) -> R63.70 | Y13: =VLOOKUP($A13,'[3]All POs'!$A:$G,5,FALSE) -> 2022-11-25 | Z13: =VLOOKUP($A13,'[3]All POs'!$A:$G,7,FALSE) -> MKC PROJECTS | AA13: =YEAR(Table1[[#This Row],[Last PO date]]) -> 2022 | AB13: =$W$2-Table1[[#This Row],[Year]] -> 1 | AC13: =Table1[[#This Row],[Last PO Price]]*($W$1)^AB13 -> R68.41 | AD13: =Table1[[#This Row],[MRP]]*Table1[[#This Row],[Subtotal]] -> R17,103.45
A14: 035000042 | B14: =VLOOKUP(A14,[1]!Table93[[Material Number]:[Description]],4,FALSE) ->  | C14: 1437 | D14: =VLOOKUP(Table1[[#This Row],[Plant]],[2]Sheet1!$C:$G,5,FALSE) -> Maint | E14: =VLOOKUP(Table1[[#This Row],[Plant]],[2]Sheet1!$C:$I,7,FALSE) -> MAINTENANCE CENTRAL CORRIDOR | F14: 2019 | G14: M | H14: 1 | I14: 0.000 | J14: 0.000 | K14: 0.000 | L14: 0.000 | M14: 0.000 | N14: 0.000 | O14: 0.000 | P14: 0.000 | Q14: 0.000 | R14: 100.000 | S14: 0.000 | T14: 0.000 | U14: 0.000 | V14: =SUM(Table1[[#This Row],[Jan]:[Jan2]]) -> 100.000 | W14: =VLOOKUP($A14,'[3]All POs'!$A:$G,2,FALSE) -> 4503033104 | X14: =VLOOKUP($A14,'[3]All POs'!$A:$G,3,FALSE) -> R63.70 | Y14: =VLOOKUP($A14,'[3]All POs'!$A:$G,5,FALSE) -> 2022-11-25 | Z14: =VLOOKUP($A14,'[3]All POs'!$A:$G,7,FALSE) -> MKC PROJECTS | AA14: =YEAR(Table1[[#This Row],[Last PO date]]) -> 2022 | AB14: =$W$2-Table1[[#This Row],[Year]] -> 1 | AC14: =Table1[[#This Row],[Last PO Price]]*($W$1)^AB14 -> R68.41 | AD14: =Table1[[#This Row],[MRP]]*Table1[[#This Row],[Subtotal]] -> R6,841.38
A15: 035000043 | B15: =VLOOKUP(A15,[1]!Table93[[Material Number]:[Description]],4,FALSE) ->  | C15: 1117 | D15: =VLOOKUP(Table1[[#This Row],[Plant]],[2]Sheet1!$C:$G,5,FALSE) -> Maint | E15: =VLOOKUP(Table1[[#This Row],[Plant]],[2]Sheet1!$C:$I,7,FALSE) -> MAINTENANCE CENTRAL CORRIDOR | F15: 2018 | G15: M | H15: 1 | I15: 0.000 | J15: 0.000 | K15: 0.000 | L15: 0.000 | M15: 0.000 | N15: 0.000 | O15: 0.000 | P15: 0.000 | Q15: 200.000 | R15: 0.000 | S15: 0.000 | T15: 0.000 | U15: 0.000 | V15: =SUM(Table1[[#This Row],[Jan]:[Jan2]]) -> 200.000 | W15: =VLOOKUP($A15,'[3]All POs'!$A:$G,2,FALSE) -> 4503033104 | X15: =VLOOKUP($A15,'[3]All POs'!$A:$G,3,FALSE) -> R63.70 | Y15: =VLOOKUP($A15,'[3]All POs'!$A:$G,5,FALSE) -> 2022-11-25 | Z15: =VLOOKUP($A15,'[3]All POs'!$A:$G,7,FALSE) -> MKC PROJECTS | AA15: =YEAR(Table1[[#This Row],[Last PO date]]) -> 2022 | AB15: =$W$2-Table1[[#This Row],[Year]] -> 1 | AC15: =Table1[[#This Row],[Last PO Price]]*($W$1)^AB15 -> R68.41 | AD15: =Table1[[#This Row],[MRP]]*Table1[[#This Row],[Subtotal]] -> R13,682.76
A16: 035000043 | B16: =VLOOKUP(A16,[1]!Table93[[Material Number]:[Description]],4,FALSE) ->  | C16: 1117 | D16: =VLOOKUP(Table1[[#This Row],[Plant]],[2]Sheet1!$C:$G,5,FALSE) -> Maint | E16: =VLOOKUP(Table1[[#This Row],[Plant]],[2]Sheet1!$C:$I,7,FALSE) -> MAINTENANCE CENTRAL CORRIDOR | F16: 2019 | G16: M | H16: 1 | I16: 0.000 | J16: 0.000 | K16: 0.000 | L16: 200.000 | M16: 0.000 | N16: 0.000 | O16: 0.000 | P16: 0.000 | Q16: 0.000 | R16: 0.000 | S16: 0.000 | T16: 0.000 | U16: 0.000 | V16: =SUM(Table1[[#This Row],[Jan]:[Jan2]]) -> 200.000 | W16: =VLOOKUP($A16,'[3]All POs'!$A:$G,2,FALSE) -> 4503033104 | X16: =VLOOKUP($A16,'[3]All POs'!$A:$G,3,FALSE) -> R63.70 | Y16: =VLOOKUP($A16,'[3]All POs'!$A:$G,5,FALSE) -> 2022-11-25 | Z16: =VLOOKUP($A16,'[3]All POs'!$A:$G,7,FALSE) -> MKC PROJECTS | AA16: =YEAR(Table1[[#This Row],[Last PO date]]) -> 2022 | AB16: =$W$2-Table1[[#This Row],[Year]] -> 1 | AC16: =Table1[[#This Row],[Last PO Price]]*($W$1)^AB16 -> R68.41 | AD16: =Table1[[#This Row],[MRP]]*Table1[[#This Row],[Subtotal]] -> R13,682.76
A17: 035000043 | B17: =VLOOKUP(A17,[1]!Table93[[Material Number]:[Description]],4,FALSE) ->  | C17: 1117 | D17: =VLOOKUP(Table1[[#This Row],[Plant]],[2]Sheet1!$C:$G,5,FALSE) -> Maint | E17: =VLOOKUP(Table1[[#This Row],[Plant]],[2]Sheet1!$C:$I,7,FALSE) -> MAINTENANCE CENTRAL CORRIDOR | F17: 2020 | G17: M | H17: 1 | I17: 0.000 | J17: 0.000 | K17: 0.000 | L17: 0.000 | M17: 0.000 | N17: 0.000 | O17: 0.000 | P17: 0.000 | Q17: 0.000 | R17: 180.000 | S17: 20.000 | T17: 0.000 | U17: 0.000 | V17: =SUM(Table1[[#This Row],[Jan]:[Jan2]]) -> 200.000 | W17: =VLOOKUP($A17,'[3]All POs'!$A:$G,2,FALSE) -> 4503033104 | X17: =VLOOKUP($A17,'[3]All POs'!$A:$G,3,FALSE) -> R63.70 | Y17: =VLOOKUP($A17,'[3]All POs'!$A:$G,5,FALSE) -> 2022-11-25 | Z17: =VLOOKUP($A17,'[3]All POs'!$A:$G,7,FALSE) -> MKC PROJECTS | AA17: =YEAR(Table1[[#This Row],[Last PO date]]) -> 2022 | AB17: =$W$2-Table1[[#This Row],[Year]] -> 1 | AC17: =Table1[[#This Row],[Last PO Price]]*($W$1)^AB17 -> R68.41 | AD17: =Table1[[#This Row],[MRP]]*Table1[[#This Row],[Subtotal]] -> R13,682.76
A18: 035000043 | B18: =VLOOKUP(A18,[1]!Table93[[Material Number]:[Description]],4,FALSE) ->  | C18: 1117 | D18: =VLOOKUP(Table1[[#This Row],[Plant]],[2]Sheet1!$C:$G,5,FALSE) -> Maint | E18: =VLOOKUP(Table1[[#This Row],[Plant]],[2]Sheet1!$C:$I,7,FALSE) -> MAINTENANCE CENTRAL CORRIDOR | F18: 2021 | G18: M | H18: 1 | I18: 0.000 | J18: 0.000 | K18: 0.000 | L18: 0.000 | M18: 0.000 | N18: 0.000 | O18: 300.000 | P18: 0.000 | Q18: 0.000 | R18: 0.000 | S18: 0.000 | T18: 0.000 | U18: 0.000 | V18: =SUM(Table1[[#This Row],[Jan]:[Jan2]]) -> 300.000 | W18: =VLOOKUP($A18,'[3]All POs'!$A:$G,2,FALSE) -> 4503033104 | X18: =VLOOKUP($A18,'[3]All POs'!$A:$G,3,FALSE) -> R63.70 | Y18: =VLOOKUP($A18,'[3]All POs'!$A:$G,5,FALSE) -> 2022-11-25 | Z18: =VLOOKUP($A18,'[3]All POs'!$A:$G,7,FALSE) -> MKC PROJECTS | AA18: =YEAR(Table1[[#This Row],[Last PO date]]) -> 2022 | AB18: =$W$2-Table1[[#This Row],[Year]] -> 1 | AC18: =Table1[[#This Row],[Last PO Price]]*($W$1)^AB18 -> R68.41 | AD18: =Table1[[#This Row],[MRP]]*Table1[[#This Row],[Subtotal]] -> R20,524.14
A19: 035000043 | B19: =VLOOKUP(A19,[1]!Table93[[Material Number]:[Description]],4,FALSE) ->  | C19: 1117 | D19: =VLOOKUP(Table1[[#This Row],[Plant]],[2]Sheet1!$C:$G,5,FALSE) -> Maint | E19: =VLOOKUP(Table1[[#This Row],[Plant]],[2]Sheet1!$C:$I,7,FALSE) -> MAINTENANCE CENTRAL CORRIDOR | F19: 2022 | G19: M | H19: 1 | I19: 0.000 | J19: 200.000 | K19: 0.000 | L19: 0.000 | M19: 0.000 | N19: 0.000 | O19: 0.000 | P19: 0.000 | Q19: 0.000 | R19: 0.000 | S19: 0.000 | T19: 0.000 | U19: 0.000 | V19: =SUM(Table1[[#This Row],[Jan]:[Jan2]]) -> 200.000 | W19: =VLOOKUP($A19,'[3]All POs'!$A:$G,2,FALSE) -> 4503033104 | X19: =VLOOKUP($A19,'[3]All POs'!$A:$G,3,FALSE) -> R63.70 | Y19: =VLOOKUP($A19,'[3]All POs'!$A:$G,5,FALSE) -> 2022-11-25 | Z19: =VLOOKUP($A19,'[3]All POs'!$A:$G,7,FALSE) -> MKC PROJECTS | AA19: =YEAR(Table1[[#This Row],[Last PO date]]) -> 2022 | AB19: =$W$2-Table1[[#This Row],[Year]] -> 1 | AC19: =Table1[[#This Row],[Last PO Price]]*($W$1)^AB19 -> R68.41 | AD19: =Table1[[#This Row],[MRP]]*Table1[[#This Row],[Subtotal]] -> R13,682.76
A20: 035000043 | B20: =VLOOKUP(A20,[1]!Table93[[Material Number]:[Description]],4,FALSE) ->  | C20: 1117 | D20: =VLOOKUP(Table1[[#This Row],[Plant]],[2]Sheet1!$C:$G,5,FALSE) -> Maint | E20: =VLOOKUP(Table1[[#This Row],[Plant]],[2]Sheet1!$C:$I,7,FALSE) -> MAINTENANCE CENTRAL CORRIDOR | F20: 2023 | G20: M | H20: 1 | I20: 300.000 | J20: 0.000 | K20: 0.000 | L20: 0.000 | M20: 0.000 | N20: 0.000 | O20: 0.000 | P20: 0.000 | Q20: 0.000 | R20: 0.000 | S20: 0.000 | T20: 0.000 | U20: 0.000 | V20: =SUM(Table1[[#This Row],[Jan]:[Jan2]]) -> 300.000 | W20: =VLOOKUP($A20,'[3]All POs'!$A:$G,2,FALSE) -> 4503033104 | X20: =VLOOKUP($A20,'[3]All POs'!$A:$G,3,FALSE) -> R63.70 | Y20: =VLOOKUP($A20,'[3]All POs'!$A:$G,5,FALSE) -> 2022-11-25 | Z20: =VLOOKUP($A20,'[3]All POs'!$A:$G,7,FALSE) -> MKC PROJECTS | AA20: =YEAR(Table1[[#This Row],[Last PO date]]) -> 2022 | AB20: =$W$2-Table1[[#This Row],[Year]] -> 1 | AC20: =Table1[[#This Row],[Last PO Price]]*($W$1)^AB20 -> R68.41 | AD20: =Table1[[#This Row],[MRP]]*Table1[[#This Row],[Subtotal]] -> R20,524.14
A21: 035000043 | B21: =VLOOKUP(A21,[1]!Table93[[Material Number]:[Description]],4,FALSE) ->  | C21: 1417 | D21: =VLOOKUP(Table1[[#This Row],[Plant]],[2]Sheet1!$C:$G,5,FALSE) -> Maint | E21: =VLOOKUP(Table1[[#This Row],[Plant]],[2]Sheet1!$C:$I,7,FALSE) -> MAINTENANCE CENTRAL CORRIDOR | F21: 2019 | G21: M | H21: 1 | I21: 9.000 | J21: 0.000 | K21: 0.000 | L21: 0.000 | M21: 0.000 | N21: 0.000 | O21: 0.000 | P21: 0.000 | Q21: 0.000 | R21: 0.000 | S21: 20.000 | T21: 0.000 | U21: 0.000 | V21: =SUM(Table1[[#This Row],[Jan]:[Jan2]]) -> 29.000 | W21: =VLOOKUP($A21,'[3]All POs'!$A:$G,2,FALSE) -> 4503033104 | X21: =VLOOKUP($A21,'[3]All POs'!$A:$G,3,FALSE) -> R63.70 | Y21: =VLOOKUP($A21,'[3]All POs'!$A:$G,5,FALSE) -> 2022-11-25 | Z21: =VLOOKUP($A21,'[3]All POs'!$A:$G,7,FALSE) -> MKC PROJECTS | AA21: =YEAR(Table1[[#This Row],[Last PO date]]) -> 2022 | AB21: =$W$2-Table1[[#This Row],[Year]] -> 1 | AC21: =Table1[[#This Row],[Last PO Price]]*($W$1)^AB21 -> R68.41 | AD21: =Table1[[#This Row],[MRP]]*Table1[[#This Row],[Subtotal]] -> R1,984.00
A22: 035000043 | B22: =VLOOKUP(A22,[1]!Table93[[Material Number]:[Description]],4,FALSE) ->  | C22: 1417 | D22: =VLOOKUP(Table1[[#This Row],[Plant]],[2]Sheet1!$C:$G,5,FALSE) -> Maint | E22: =VLOOKUP(Table1[[#This Row],[Plant]],[2]Sheet1!$C:$I,7,FALSE) -> MAINTENANCE CENTRAL CORRIDOR | F22: 2021 | G22: M | H22: 1 | I22: 0.000 | J22: 0.000 | K22: 100.000 | L22: 0.000 | M22: 0.000 | N22: 0.000 | O22: 0.000 | P22: 0.000 | Q22: 0.000 | R22: 0.000 | S22: 0.000 | T22: 0.000 | U22: 0.000 | V22: =SUM(Table1[[#This Row],[Jan]:[Jan2]]) -> 100.000 | W22: =VLOOKUP($A22,'[3]All POs'!$A:$G,2,FALSE) -> 4503033104 | X22: =VLOOKUP($A22,'[3]All POs'!$A:$G,3,FALSE) -> R63.70 | Y22: =VLOOKUP($A22,'[3]All POs'!$A:$G,5,FALSE) -> 2022-11-25 | Z22: =VLOOKUP($A22,'[3]All POs'!$A:$G,7,FALSE) -> MKC PROJECTS | AA22: =YEAR(Table1[[#This Row],[Last PO date]]) -> 2022 | AB22: =$W$2-Table1[[#This Row],[Year]] -> 1 | AC22: =Table1[[#This Row],[Last PO Price]]*($W$1)^AB22 -> R68.41 | AD22: =Table1[[#This Row],[MRP]]*Table1[[#This Row],[Subtotal]] -> R6,841.38
A23: 035000043 | B23: =VLOOKUP(A23,[1]!Table93[[Material Number]:[Description]],4,FALSE) ->  | C23: 1417 | D23: =VLOOKUP(Table1[[#This Row],[Plant]],[2]Sheet1!$C:$G,5,FALSE) -> Maint | E23: =VLOOKUP(Table1[[#This Row],[Plant]],[2]Sheet1!$C:$I,7,FALSE) -> MAINTENANCE CENTRAL CORRIDOR | F23: 2022 | G23: M | H23: 1 | I23: 0.000 | J23: 0.000 | K23: 0.000 | L23: 0.000 | M23: 0.000 | N23: 0.000 | O23: 0.000 | P23: 0.000 | Q23: 0.000 | R23: 0.000 | S23: 250.000 | T23: 0.000 | U23: 0.000 | V23: =SUM(Table1[[#This Row],[Jan]:[Jan2]]) -> 250.000 | W23: =VLOOKUP($A23,'[3]All POs'!$A:$G,2,FALSE) -> 4503033104 | X23: =VLOOKUP($A23,'[3]All POs'!$A:$G,3,FALSE) -> R63.70 | Y23: =VLOOKUP($A23,'[3]All POs'!$A:$G,5,FALSE) -> 2022-11-25 | Z23: =VLOOKUP($A23,'[3]All POs'!$A:$G,7,FALSE) -> MKC PROJECTS | AA23: =YEAR(Table1[[#This Row],[Last PO date]]) -> 2022 | AB23: =$W$2-Table1[[#This Row],[Year]] -> 1 | AC23: =Table1[[#This Row],[Last PO Price]]*($W$1)^AB23 -> R68.41 | AD23: =Table1[[#This Row],[MRP]]*Table1[[#This Row],[Subtotal]] -> R17,103.45
A24: 035000043 | B24: =VLOOKUP(A24,[1]!Table93[[Material Number]:[Description]],4,FALSE) ->  | C24: 1437 | D24: =VLOOKUP(Table1[[#This Row],[Plant]],[2]Sheet1!$C:$G,5,FALSE) -> Maint | E24: =VLOOKUP(Table1[[#This Row],[Plant]],[2]Sheet1!$C:$I,7,FALSE) -> MAINTENANCE CENTRAL CORRIDOR | F24: 2019 | G24: M | H24: 1 | I24: 0.000 | J24: 0.000 | K24: 0.000 | L24: 0.000 | M24: 0.000 | N24: 0.000 | O24: 0.000 | P24: 0.000 | Q24: 0.000 | R24: 100.000 | S24: 0.000 | T24: 0.000 | U24: 0.000 | V24: =SUM(Table1[[#This Row],[Jan]:[Jan2]]) -> 100.000 | W24: =VLOOKUP($A24,'[3]All POs'!$A:$G,2,FALSE) -> 4503033104 | X24: =VLOOKUP($A24,'[3]All POs'!$A:$G,3,FALSE) -> R63.70 | Y24: =VLOOKUP($A24,'[3]All POs'!$A:$G,5,FALSE) -> 2022-11-25 | Z24: =VLOOKUP($A24,'[3]All POs'!$A:$G,7,FALSE) -> MKC PROJECTS | AA24: =YEAR(Table1[[#This Row],[Last PO date]]) -> 2022 | AB24: =$W$2-Table1[[#This Row],[Year]] -> 1 | AC24: =Table1[[#This Row],[Last PO Price]]*($W$1)^AB24 -> R68.41 | AD24: =Table1[[#This Row],[MRP]]*Table1[[#This Row],[Subtotal]] -> R6,841.38
A25: 035000043 | B25: =VLOOKUP(A25,[1]!Table93[[Material Number]:[Description]],4,FALSE) ->  | C25: 5008 | D25: =VLOOKUP(Table1[[#This Row],[Plant]],[2]Sheet1!$C:$G,5,FALSE) -> SupportS | E25: =VLOOKUP(Table1[[#This Row],[Plant]],[2]Sheet1!$C:$I,7,FALSE) -> NATIONAL SUPPORT SERVICES | F25: 2020 | G25: M | H25: 1 | I25: 0.000 | J25: 0.000 | K25: 0.000 | L25: 0.000 | M25: 0.000 | N25: 0.000 | O25: 0.000 | P25: 0.000 | Q25: 0.000 | R25: 60.000 | S25: 0.000 | T25: 0.000 | U25: 0.000 | V25: =SUM(Table1[[#This Row],[Jan]:[Jan2]]) -> 60.000 | W25: =VLOOKUP($A25,'[3]All POs'!$A:$G,2,FALSE) -> 4503033104 | X25: =VLOOKUP($A25,'[3]All POs'!$A:$G,3,FALSE) -> R63.70 | Y25: =VLOOKUP($A25,'[3]All POs'!$A:$G,5,FALSE) -> 2022-11-25 | Z25: =VLOOKUP($A25,'[3]All POs'!$A:$G,7,FALSE) -> MKC PROJECTS | AA25: =YEAR(Table1[[#This Row],[Last PO date]]) -> 2022 | AB25: =$W$2-Table1[[#This Row],[Year]] -> 1 | AC25: =Table1[[#This Row],[Last PO Price]]*($W$1)^AB25 -> R68.41 | AD25: =Table1[[#This Row],[MRP]]*Table1[[#This Row],[Subtotal]] -> R4,104.83
A26: 035000044 | B26: =VLOOKUP(A26,[1]!Table93[[Material Number]:[Description]],4,FALSE) ->  | C26: 1117 | D26: =VLOOKUP(Table1[[#This Row],[Plant]],[2]Sheet1!$C:$G,5,FALSE) -> Maint | E26: =VLOOKUP(Table1[[#This Row],[Plant]],[2]Sheet1!$C:$I,7,FALSE) -> MAINTENANCE CENTRAL CORRIDOR | F26: 2018 | G26: M | H26: 1 | I26: 0.000 | J26: 0.000 | K26: 0.000 | L26: 0.000 | M26: 0.000 | N26: 0.000 | O26: 0.000 | P26: 0.000 | Q26: 200.000 | R26: 0.000 | S26: 0.000 | T26: 0.000 | U26: 0.000 | V26: =SUM(Table1[[#This Row],[Jan]:[Jan2]]) -> 200.000 | W26: =VLOOKUP($A26,'[3]All POs'!$A:$G,2,FALSE) -> 4503033104 | X26: =VLOOKUP($A26,'[3]All POs'!$A:$G,3,FALSE) -> R63.70 | Y26: =VLOOKUP($A26,'[3]All POs'!$A:$G,5,FALSE) -> 2022-11-25 | Z26: =VLOOKUP($A26,'[3]All POs'!$A:$G,7,FALSE) -> MKC PROJECTS | AA26: =YEAR(Table1[[#This Row],[Last PO date]]) -> 2022 | AB26: =$W$2-Table1[[#This Row],[Year]] -> 1 | AC26: =Table1[[#This Row],[Last PO Price]]*($W$1)^AB26 -> R68.41 | AD26: =Table1[[#This Row],[MRP]]*Table1[[#This Row],[Subtotal]] -> R13,682.76
A27: 035000044 | B27: =VLOOKUP(A27,[1]!Table93[[Material Number]:[Description]],4,FALSE) ->  | C27: 1117 | D27: =VLOOKUP(Table1[[#This Row],[Plant]],[2]Sheet1!$C:$G,5,FALSE) -> Maint | E27: =VLOOKUP(Table1[[#This Row],[Plant]],[2]Sheet1!$C:$I,7,FALSE) -> MAINTENANCE CENTRAL CORRIDOR | F27: 2019 | G27: M | H27: 1 | I27: 0.000 | J27: 0.000 | K27: 200.000 | L27: 0.000 | M27: 0.000 | N27: 0.000 | O27: 0.000 | P27: 0.000 | Q27: 0.000 | R27: 0.000 | S27: 10.000 | T27: 300.000 | U27: 0.000 | V27: =SUM(Table1[[#This Row],[Jan]:[Jan2]]) -> 510.000 | W27: =VLOOKUP($A27,'[3]All POs'!$A:$G,2,FALSE) -> 4503033104 | X27: =VLOOKUP($A27,'[3]All POs'!$A:$G,3,FALSE) -> R63.70 | Y27: =VLOOKUP($A27,'[3]All POs'!$A:$G,5,FALSE) -> 2022-11-25 | Z27: =VLOOKUP($A27,'[3]All POs'!$A:$G,7,FALSE) -> MKC PROJECTS | AA27: =YEAR(Table1[[#This Row],[Last PO date]]) -> 2022 | AB27: =$W$2-Table1[[#This Row],[Year]] -> 1 | AC27: =Table1[[#This Row],[Last PO Price]]*($W$1)^AB27 -> R68.41 | AD27: =Table1[[#This Row],[MRP]]*Table1[[#This Row],[Subtotal]] -> R34,891.04
A28: 035000044 | B28: =VLOOKUP(A28,[1]!Table93[[Material Number]:[Description]],4,FALSE) ->  | C28: 1117 | D28: =VLOOKUP(Table1[[#This Row],[Plant]],[2]Sheet1!$C:$G,5,FALSE) -> Maint | E28: =VLOOKUP(Table1[[#This Row],[Plant]],[2]Sheet1!$C:$I,7,FALSE) -> MAINTENANCE CENTRAL CORRIDOR | F28: 2020 | G28: M | H28: 1 | I28: 0.000 | J28: 0.000 | K28: 0.000 | L28: 0.000 | M28: 0.000 | N28: 0.000 | O28: 150.000 | P28: 0.000 | Q28: 0.000 | R28: 300.000 | S28: 0.000 | T28: 0.000 | U28: 0.000 | V28: =SUM(Table1[[#This Row],[Jan]:[Jan2]]) -> 450.000 | W28: =VLOOKUP($A28,'[3]All POs'!$A:$G,2,FALSE) -> 4503033104 | X28: =VLOOKUP($A28,'[3]All POs'!$A:$G,3,FALSE) -> R63.70 | Y28: =VLOOKUP($A28,'[3]All POs'!$A:$G,5,FALSE) -> 2022-11-25 | Z28: =VLOOKUP($A28,'[3]All POs'!$A:$G,7,FALSE) -> MKC PROJECTS | AA28: =YEAR(Table1[[#This Row],[Last PO date]]) -> 2022 | AB28: =$W$2-Table1[[#This Row],[Year]] -> 1 | AC28: =Table1[[#This Row],[Last PO Price]]*($W$1)^AB28 -> R68.41 | AD28: =Table1[[#This Row],[MRP]]*Table1[[#This Row],[Subtotal]] -> R30,786.21
A29: 035000044 | B29: =VLOOKUP(A29,[1]!Table93[[Material Number]:[Description]],4,FALSE) ->  | C29: 1117 | D29: =VLOOKUP(Table1[[#This Row],[Plant]],[2]Sheet1!$C:$G,5,FALSE) -> Maint | E29: =VLOOKUP(Table1[[#This Row],[Plant]],[2]Sheet1!$C:$I,7,FALSE) -> MAINTENANCE CENTRAL CORRIDOR | F29: 2021 | G29: M | H29: 1 | I29: 0.000 | J29: 0.000 | K29: 0.000 | L29: 150.000 | M29: 0.000 | N29: 0.000 | O29: 300.000 | P29: 0.000 | Q29: 0.000 | R29: 0.000 | S29: 0.000 | T29: 0.000 | U29: 0.000 | V29: =SUM(Table1[[#This Row],[Jan]:[Jan2]]) -> 450.000 | W29: =VLOOKUP($A29,'[3]All POs'!$A:$G,2,FALSE) -> 4503033104 | X29: =VLOOKUP($A29,'[3]All POs'!$A:$G,3,FALSE) -> R63.70 | Y29: =VLOOKUP($A29,'[3]All POs'!$A:$G,5,FALSE) -> 2022-11-25 | Z29: =VLOOKUP($A29,'[3]All POs'!$A:$G,7,FALSE) -> MKC PROJECTS | AA29: =YEAR(Table1[[#This Row],[Last PO date]]) -> 2022 | AB29: =$W$2-Table1[[#This Row],[Year]] -> 1 | AC29: =Table1[[#This Row],[Last PO Price]]*($W$1)^AB29 -> R68.41 | AD29: =Table1[[#This Row],[MRP]]*Table1[[#This Row],[Subtotal]] -> R30,786.21
A30: 035000044 | B30: =VLOOKUP(A30,[1]!Table93[[Material Number]:[Description]],4,FALSE) ->  | C30: 1117 | D30: =VLOOKUP(Table1[[#This Row],[Plant]],[2]Sheet1!$C:$G,5,FALSE) -> Maint | E30: =VLOOKUP(Table1[[#This Row],[Plant]],[2]Sheet1!$C:$I,7,FALSE) -> MAINTENANCE CENTRAL CORRIDOR | F30: 2022 | G30: M | H30: 1 | I30: 0.000 | J30: 400.000 | K30: 0.000 | L30: 0.000 | M30: 0.000 | N30: 0.000 | O30: 0.000 | P30: 0.000 | Q30: 0.000 | R30: 0.000 | S30: 0.000 | T30: 0.000 | U30: 0.000 | V30: =SUM(Table1[[#This Row],[Jan]:[Jan2]]) -> 400.000 | W30: =VLOOKUP($A30,'[3]All POs'!$A:$G,2,FALSE) -> 4503033104 | X30: =VLOOKUP($A30,'[3]All POs'!$A:$G,3,FALSE) -> R63.70 | Y30: =VLOOKUP($A30,'[3]All POs'!$A:$G,5,FALSE) -> 2022-11-25 | Z30: =VLOOKUP($A30,'[3]All POs'!$A:$G,7,FALSE) -> MKC PROJECTS | AA30: =YEAR(Table1[[#This Row],[Last PO date]]) -> 2022 | AB30: =$W$2-Table1[[#This Row],[Year]] -> 1 | AC30: =Table1[[#This Row],[Last PO Price]]*($W$1)^AB30 -> R68.41 | AD30: =Table1[[#This Row],[MRP]]*Table1[[#This Row],[Subtotal]] -> R27,365.52
A31: 035000044 | B31: =VLOOKUP(A31,[1]!Table93[[Material Number]:[Description]],4,FALSE) ->  | C31: 1117 | D31: =VLOOKUP(Table1[[#This Row],[Plant]],[2]Sheet1!$C:$G,5,FALSE) -> Maint | E31: =VLOOKUP(Table1[[#This Row],[Plant]],[2]Sheet1!$C:$I,7,FALSE) -> MAINTENANCE CENTRAL CORRIDOR | F31: 2023 | G31: M | H31: 1 | I31: 400.000 | J31: 0.000 | K31: 0.000 | L31: 0.000 | M31: 0.000 | N31: 0.000 | O31: 0.000 | P31: 0.000 | Q31: 0.000 | R31: 0.000 | S31: 0.000 | T31: 0.000 | U31: 0.000 | V31: =SUM(Table1[[#This Row],[Jan]:[Jan2]]) -> 400.000 | W31: =VLOOKUP($A31,'[3]All POs'!$A:$G,2,FALSE) -> 4503033104 | X31: =VLOOKUP($A31,'[3]All POs'!$A:$G,3,FALSE) -> R63.70 | Y31: =VLOOKUP($A31,'[3]All POs'!$A:$G,5,FALSE) -> 2022-11-25 | Z31: =VLOOKUP($A31,'[3]All POs'!$A:$G,7,FALSE) -> MKC PROJECTS | AA31: =YEAR(Table1[[#This Row],[Last PO date]]) -> 2022 | AB31: =$W$2-Table1[[#This Row],[Year]] -> 1 | AC31: =Table1[[#This Row],[Last PO Price]]*($W$1)^AB31 -> R68.41 | AD31: =Table1[[#This Row],[MRP]]*Table1[[#This Row],[Subtotal]] -> R27,365.52
A32: 035000044 | B32: =VLOOKUP(A32,[1]!Table93[[Material Number]:[Description]],4,FALSE) ->  | C32: 1417 | D32: =VLOOKUP(Table1[[#This Row],[Plant]],[2]Sheet1!$C:$G,5,FALSE) -> Maint | E32: =VLOOKUP(Table1[[#This Row],[Plant]],[2]Sheet1!$C:$I,7,FALSE) -> MAINTENANCE CENTRAL CORRIDOR | F32: 2019 | G32: M | H32: 1 | I32: 9.000 | J32: 0.000 | K32: 0.000 | L32: 0.000 | M32: 0.000 | N32: 0.000 | O32: 0.000 | P32: 0.000 | Q32: 0.000 | R32: 0.000 | S32: 20.000 | T32: 0.000 | U32: 0.000 | V32: =SUM(Table1[[#This Row],[Jan]:[Jan2]]) -> 29.000 | W32: =VLOOKUP($A32,'[3]All POs'!$A:$G,2,FALSE) -> 4503033104 | X32: =VLOOKUP($A32,'[3]All POs'!$A:$G,3,FALSE) -> R63.70 | Y32: =VLOOKUP($A32,'[3]All POs'!$A:$G,5,FALSE) -> 2022-11-25 | Z32: =VLOOKUP($A32,'[3]All POs'!$A:$G,7,FALSE) -> MKC PROJECTS | AA32: =YEAR(Table1[[#This Row],[Last PO date]]) -> 2022 | AB32: =$W$2-Table1[[#This Row],[Year]] -> 1 | AC32: =Table1[[#This Row],[Last PO Price]]*($W$1)^AB32 -> R68.41 | AD32: =Table1[[#This Row],[MRP]]*Table1[[#This Row],[Subtotal]] -> R1,984.00
A33: 035000044 | B33: =VLOOKUP(A33,[1]!Table93[[Material Number]:[Description]],4,FALSE) ->  | C33: 1417 | D33: =VLOOKUP(Table1[[#This Row],[Plant]],[2]Sheet1!$C:$G,5,FALSE) -> Maint | E33: =VLOOKUP(Table1[[#This Row],[Plant]],[2]Sheet1!$C:$I,7,FALSE) -> MAINTENANCE CENTRAL CORRIDOR | F33: 2021 | G33: M | H33: 1 | I33: 0.000 | J33: 0.000 | K33: 200.000 | L33: 0.000 | M33: 0.000 | N33: 0.000 | O33: 0.000 | P33: 0.000 | Q33: 0.000 | R33: 0.000 | S33: 0.000 | T33: 0.000 | U33: 0.000 | V33: =SUM(Table1[[#This Row],[Jan]:[Jan2]]) -> 200.000 | W33: =VLOOKUP($A33,'[3]All POs'!$A:$G,2,FALSE) -> 4503033104 | X33: =VLOOKUP($A33,'[3]All POs'!$A:$G,3,FALSE) -> R63.70 | Y33: =VLOOKUP($A33,'[3]All POs'!$A:$G,5,FALSE) -> 2022-11-25 | Z33: =VLOOKUP($A33,'[3]All POs'!$A:$G,7,FALSE) -> MKC PROJECTS | AA33: =YEAR(Table1[[#This Row],[Last PO date]]) -> 2022 | AB33: =$W$2-Table1[[#This Row],[Year]] -> 1 | AC33: =Table1[[#This Row],[Last PO Price]]*($W$1)^AB33 -> R68.41 | AD33: =Table1[[#This Row],[MRP]]*Table1[[#This Row],[Subtotal]] -> R13,682.76
A34: 035000044 | B34: =VLOOKUP(A34,[1]!Table93[[Material Number]:[Description]],4,FALSE) ->  | C34: 1417 | D34: =VLOOKUP(Table1[[#This Row],[Plant]],[2]Sheet1!$C:$G,5,FALSE) -> Maint | E34: =VLOOKUP(Table1[[#This Row],[Plant]],[2]Sheet1!$C:$I,7,FALSE) -> MAINTENANCE CENTRAL CORRIDOR | F34: 2022 | G34: M | H34: 1 | I34: 0.000 | J34: 0.000 | K34: 0.000 | L34: 0.000 | M34: 0.000 | N34: 0.000 | O34: 0.000 | P34: 0.000 | Q34: 0.000 | R34: 0.000 | S34: 250.000 | T34: 0.000 | U34: 0.000 | V34: =SUM(Table1[[#This Row],[Jan]:[Jan2]]) -> 250.000 | W34: =VLOOKUP($A34,'[3]All POs'!$A:$G,2,FALSE) -> 4503033104 | X34: =VLOOKUP($A34,'[3]All POs'!$A:$G,3,FALSE) -> R63.70 | Y34: =VLOOKUP($A34,'[3]All POs'!$A:$G,5,FALSE) -> 2022-11-25 | Z34: =VLOOKUP($A34,'[3]All POs'!$A:$G,7,FALSE) -> MKC PROJECTS | AA34: =YEAR(Table1[[#This Row],[Last PO date]]) -> 2022 | AB34: =$W$2-Table1[[#This Row],[Year]] -> 1 | AC34: =Table1[[#This Row],[Last PO Price]]*($W$1)^AB34 -> R68.41 | AD34: =Table1[[#This Row],[MRP]]*Table1[[#This Row],[Subtotal]] -> R17,103.45
A35: 035000044 | B35: =VLOOKUP(A35,[1]!Table93[[Material Number]:[Description]],4,FALSE) ->  | C35: 1437 | D35: =VLOOKUP(Table1[[#This Row],[Plant]],[2]Sheet1!$C:$G,5,FALSE) -> Maint | E35: =VLOOKUP(Table1[[#This Row],[Plant]],[2]Sheet1!$C:$I,7,FALSE) -> MAINTENANCE CENTRAL CORRIDOR | F35: 2019 | G35: M | H35: 1 | I35: 0.000 | J35: 0.000 | K35: 0.000 | L35: 0.000 | M35: 0.000 | N35: 0.000 | O35: 0.000 | P35: 0.000 | Q35: 0.000 | R35: 100.000 | S35: 0.000 | T35: 0.000 | U35: 0.000 | V35: =SUM(Table1[[#This Row],[Jan]:[Jan2]]) -> 100.000 | W35: =VLOOKUP($A35,'[3]All POs'!$A:$G,2,FALSE) -> 4503033104 | X35: =VLOOKUP($A35,'[3]All POs'!$A:$G,3,FALSE) -> R63.70 | Y35: =VLOOKUP($A35,'[3]All POs'!$A:$G,5,FALSE) -> 2022-11-25 | Z35: =VLOOKUP($A35,'[3]All POs'!$A:$G,7,FALSE) -> MKC PROJECTS | AA35: =YEAR(Table1[[#This Row],[Last PO date]]) -> 2022 | AB35: =$W$2-Table1[[#This Row],[Year]] -> 1 | AC35: =Table1[[#This Row],[Last PO Price]]*($W$1)^AB35 -> R68.41 | AD35: =Table1[[#This Row],[MRP]]*Table1[[#This Row],[Subtotal]] -> R6,841.38
A36: 035000045 | B36: =VLOOKUP(A36,[1]!Table93[[Material Number]:[Description]],4,FALSE) ->  | C36: 1117 | D36: =VLOOKUP(Table1[[#This Row],[Plant]],[2]Sheet1!$C:$G,5,FALSE) -> Maint | E36: =VLOOKUP(Table1[[#This Row],[Plant]],[2]Sheet1!$C:$I,7,FALSE) -> MAINTENANCE CENTRAL CORRIDOR | F36: 2018 | G36: M | H36: 1 | I36: 0.000 | J36: 0.000 | K36: 0.000 | L36: 0.000 | M36: 0.000 | N36: 0.000 | O36: 0.000 | P36: 0.000 | Q36: 200.000 | R36: 0.000 | S36: 0.000 | T36: 0.000 | U36: 0.000 | V36: =SUM(Table1[[#This Row],[Jan]:[Jan2]]) -> 200.000 | W36: =VLOOKUP($A36,'[3]All POs'!$A:$G,2,FALSE) -> 4503033104 | X36: =VLOOKUP($A36,'[3]All POs'!$A:$G,3,FALSE) -> R63.70 | Y36: =VLOOKUP($A36,'[3]All POs'!$A:$G,5,FALSE) -> 2022-11-25 | Z36: =VLOOKUP($A36,'[3]All POs'!$A:$G,7,FALSE) -> MKC PROJECTS | AA36: =YEAR(Table1[[#This Row],[Last PO date]]) -> 2022 | AB36: =$W$2-Table1[[#This Row],[Year]] -> 1 | AC36: =Table1[[#This Row],[Last PO Price]]*($W$1)^AB36 -> R68.41 | AD36: =Table1[[#This Row],[MRP]]*Table1[[#This Row],[Subtotal]] -> R13,682.76
A37: 035000045 | B37: =VLOOKUP(A37,[1]!Table93[[Material Number]:[Description]],4,FALSE) ->  | C37: 1117 | D37: =VLOOKUP(Table1[[#This Row],[Plant]],[2]Sheet1!$C:$G,5,FALSE) -> Maint | E37: =VLOOKUP(Table1[[#This Row],[Plant]],[2]Sheet1!$C:$I,7,FALSE) -> MAINTENANCE CENTRAL CORRIDOR | F37: 2019 | G37: M | H37: 1 | I37: 0.000 | J37: 0.000 | K37: 200.000 | L37: 0.000 | M37: 0.000 | N37: 0.000 | O37: 0.000 | P37: 0.000 | Q37: 0.000 | R37: 0.000 | S37: 10.000 | T37: 300.000 | U37: 0.000 | V37: =SUM(Table1[[#This Row],[Jan]:[Jan2]]) -> 510.000 | W37: =VLOOKUP($A37,'[3]All POs'!$A:$G,2,FALSE) -> 4503033104 | X37: =VLOOKUP($A37,'[3]All POs'!$A:$G,3,FALSE) -> R63.70 | Y37: =VLOOKUP($A37,'[3]All POs'!$A:$G,5,FALSE) -> 2022-11-25 | Z37: =VLOOKUP($A37,'[3]All POs'!$A:$G,7,FALSE) -> MKC PROJECTS | AA37: =YEAR(Table1[[#This Row],[Last PO date]]) -> 2022 | AB37: =$W$2-Table1[[#This Row],[Year]] -> 1 | AC37: =Table1[[#This Row],[Last PO Price]]*($W$1)^AB37 -> R68.41 | AD37: =Table1[[#This Row],[MRP]]*Table1[[#This Row],[Subtotal]] -> R34,891.04
A38: 035000045 | B38: =VLOOKUP(A38,[1]!Table93[[Material Number]:[Description]],4,FALSE) ->  | C38: 1117 | D38: =VLOOKUP(Table1[[#This Row],[Plant]],[2]Sheet1!$C:$G,5,FALSE) -> Maint | E38: =VLOOKUP(Table1[[#This Row],[Plant]],[2]Sheet1!$C:$I,7,FALSE) -> MAINTENANCE CENTRAL CORRIDOR | F38: 2020 | G38: M | H38: 1 | I38: 0.000 | J38: 0.000 | K38: 0.000 | L38: 0.000 | M38: 0.000 | N38: 0.000 | O38: 150.000 | P38: 0.000 | Q38: 0.000 | R38: 300.000 | S38: 0.000 | T38: 0.000 | U38: 0.000 | V38: =SUM(Table1[[#This Row],[Jan]:[Jan2]]) -> 450.000 | W38: =VLOOKUP($A38,'[3]All POs'!$A:$G,2,FALSE) -> 4503033104 | X38: =VLOOKUP($A38,'[3]All POs'!$A:$G,3,FALSE) -> R63.70 | Y38: =VLOOKUP($A38,'[3]All POs'!$A:$G,5,FALSE) -> 2022-11-25 | Z38: =VLOOKUP($A38,'[3]All POs'!$A:$G,7,FALSE) -> MKC PROJECTS | AA38: =YEAR(Table1[[#This Row],[Last PO date]]) -> 2022 | AB38: =$W$2-Table1[[#This Row],[Year]] -> 1 | AC38: =Table1[[#This Row],[Last PO Price]]*($W$1)^AB38 -> R68.41 | AD38: =Table1[[#This Row],[MRP]]*Table1[[#This Row],[Subtotal]] -> R30,786.21
A39: 035000045 | B39: =VLOOKUP(A39,[1]!Table93[[Material Number]:[Description]],4,FALSE) ->  | C39: 1117 | D39: =VLOOKUP(Table1[[#This Row],[Plant]],[2]Sheet1!$C:$G,5,FALSE) -> Maint | E39: =VLOOKUP(Table1[[#This Row],[Plant]],[2]Sheet1!$C:$I,7,FALSE) -> MAINTENANCE CENTRAL CORRIDOR | F39: 2021 | G39: M | H39: 1 | I39: 0.000 | J39: 0.000 | K39: 0.000 | L39: 150.000 | M39: 0.000 | N39: 0.000 | O39: 300.000 | P39: 0.000 | Q39: 0.000 | R39: 0.000 | S39: 0.000 | T39: 0.000 | U39: 0.000 | V39: =SUM(Table1[[#This Row],[Jan]:[Jan2]]) -> 450.000 | W39: =VLOOKUP($A39,'[3]All POs'!$A:$G,2,FALSE) -> 4503033104 | X39: =VLOOKUP($A39,'[3]All POs'!$A:$G,3,FALSE) -> R63.70 | Y39: =VLOOKUP($A39,'[3]All POs'!$A:$G,5,FALSE) -> 2022-11-25 | Z39: =VLOOKUP($A39,'[3]All POs'!$A:$G,7,FALSE) -> MKC PROJECTS | AA39: =YEAR(Table1[[#This Row],[Last PO date]]) -> 2022 | AB39: =$W$2-Table1[[#This Row],[Year]] -> 1 | AC39: =Table1[[#This Row],[Last PO Price]]*($W$1)^AB39 -> R68.41 | AD39: =Table1[[#This Row],[MRP]]*Table1[[#This Row],[Subtotal]] -> R30,786.21
A40: 035000045 | B40: =VLOOKUP(A40,[1]!Table93[[Material Number]:[Description]],4,FALSE) ->  | C40: 1117 | D40: =VLOOKUP(Table1[[#This Row],[Plant]],[2]Sheet1!$C:$G,5,FALSE) -> Maint | E40: =VLOOKUP(Table1[[#This Row],[Plant]],[2]Sheet1!$C:$I,7,FALSE) -> MAINTENANCE CENTRAL CORRIDOR | F40: 2022 | G40: M | H40: 1 | I40: 0.000 | J40: 400.000 | K40: 0.000 | L40: 0.000 | M40: 0.000 | N40: 0.000 | O40: 0.000 | P40: 0.000 | Q40: 0.000 | R40: 0.000 | S40: 0.000 | T40: 0.000 | U40: 0.000 | V40: =SUM(Table1[[#This Row],[Jan]:[Jan2]]) -> 400.000 | W40: =VLOOKUP($A40,'[3]All POs'!$A:$G,2,FALSE) -> 4503033104 | X40: =VLOOKUP($A40,'[3]All POs'!$A:$G,3,FALSE) -> R63.70 | Y40: =VLOOKUP($A40,'[3]All POs'!$A:$G,5,FALSE) -> 2022-11-25 | Z40: =VLOOKUP($A40,'[3]All POs'!$A:$G,7,FALSE) -> MKC PROJECTS | AA40: =YEAR(Table1[[#This Row],[Last PO date]]) -> 2022 | AB40: =$W$2-Table1[[#This Row],[Year]] -> 1 | AC40: =Table1[[#This Row],[Last PO Price]]*($W$1)^AB40 -> R68.41 | AD40: =Table1[[#This Row],[MRP]]*Table1[[#This Row],[Subtotal]] -> R27,365.52
A41: 035000045 | B41: =VLOOKUP(A41,[1]!Table93[[Material Number]:[Description]],4,FALSE) ->  | C41: 1117 | D41: =VLOOKUP(Table1[[#This Row],[Plant]],[2]Sheet1!$C:$G,5,FALSE) -> Maint | E41: =VLOOKUP(Table1[[#This Row],[Plant]],[2]Sheet1!$C:$I,7,FALSE) -> MAINTENANCE CENTRAL CORRIDOR | F41: 2023 | G41: M | H41: 1 | I41: 400.000 | J41: 0.000 | K41: 0.000 | L41: 0.000 | M41: 0.000 | N41: 0.000 | O41: 0.000 | P41: 0.000 | Q41: 0.000 | R41: 0.000 | S41: 0.000 | T41: 0.000 | U41: 0.000 | V41: =SUM(Table1[[#This Row],[Jan]:[Jan2]]) -> 400.000 | W41: =VLOOKUP($A41,'[3]All POs'!$A:$G,2,FALSE) -> 4503033104 | X41: =VLOOKUP($A41,'[3]All POs'!$A:$G,3,FALSE) -> R63.70 | Y41: =VLOOKUP($A41,'[3]All POs'!$A:$G,5,FALSE) -> 2022-11-25 | Z41: =VLOOKUP($A41,'[3]All POs'!$A:$G,7,FALSE) -> MKC PROJECTS | AA41: =YEAR(Table1[[#This Row],[Last PO date]]) -> 2022 | AB41: =$W$2-Table1[[#This Row],[Year]] -> 1 | AC41: =Table1[[#This Row],[Last PO Price]]*($W$1)^AB41 -> R68.41 | AD41: =Table1[[#This Row],[MRP]]*Table1[[#This Row],[Subtotal]] -> R27,365.52
A42: 035000045 | B42: =VLOOKUP(A42,[1]!Table93[[Material Number]:[Description]],4,FALSE) ->  | C42: 1417 | D42: =VLOOKUP(Table1[[#This Row],[Plant]],[2]Sheet1!$C:$G,5,FALSE) -> Maint | E42: =VLOOKUP(Table1[[#This Row],[Plant]],[2]Sheet1!$C:$I,7,FALSE) -> MAINTENANCE CENTRAL CORRIDOR | F42: 2019 | G42: M | H42: 1 | I42: 2.000 | J42: 0.000 | K42: 0.000 | L42: 0.000 | M42: 0.000 | N42: 0.000 | O42: 0.000 | P42: 0.000 | Q42: 0.000 | R42: 0.000 | S42: 20.000 | T42: 0.000 | U42: 0.000 | V42: =SUM(Table1[[#This Row],[Jan]:[Jan2]]) -> 22.000 | W42: =VLOOKUP($A42,'[3]All POs'!$A:$G,2,FALSE) -> 4503033104 | X42: =VLOOKUP($A42,'[3]All POs'!$A:$G,3,FALSE) -> R63.70 | Y42: =VLOOKUP($A42,'[3]All POs'!$A:$G,5,FALSE) -> 2022-11-25 | Z42: =VLOOKUP($A42,'[3]All POs'!$A:$G,7,FALSE) -> MKC PROJECTS | AA42: =YEAR(Table1[[#This Row],[Last PO date]]) -> 2022 | AB42: =$W$2-Table1[[#This Row],[Year]] -> 1 | AC42: =Table1[[#This Row],[Last PO Price]]*($W$1)^AB42 -> R68.41 | AD42: =Table1[[#This Row],[MRP]]*Table1[[#This Row],[Subtotal]] -> R1,505.10
A43: 035000045 | B43: =VLOOKUP(A43,[1]!Table93[[Material Number]:[Description]],4,FALSE) ->  | C43: 1417 | D43: =VLOOKUP(Table1[[#This Row],[Plant]],[2]Sheet1!$C:$G,5,FALSE) -> Maint | E43: =VLOOKUP(Table1[[#This Row],[Plant]],[2]Sheet1!$C:$I,7,FALSE) -> MAINTENANCE CENTRAL CORRIDOR | F43: 2021 | G43: M | H43: 1 | I43: 0.000 | J43: 0.000 | K43: 200.000 | L43: 0.000 | M43: 0.000 | N43: 0.000 | O43: 0.000 | P43: 0.000 | Q43: 0.000 | R43: 0.000 | S43: 0.000 | T43: 0.000 | U43: 0.000 | V43: =SUM(Table1[[#This Row],[Jan]:[Jan2]]) -> 200.000 | W43: =VLOOKUP($A43,'[3]All POs'!$A:$G,2,FALSE) -> 4503033104 | X43: =VLOOKUP($A43,'[3]All POs'!$A:$G,3,FALSE) -> R63.70 | Y43: =VLOOKUP($A43,'[3]All POs'!$A:$G,5,FALSE) -> 2022-11-25 | Z43: =VLOOKUP($A43,'[3]All POs'!$A:$G,7,FALSE) -> MKC PROJECTS | AA43: =YEAR(Table1[[#This Row],[Last PO date]]) -> 2022 | AB43: =$W$2-Table1[[#This Row],[Year]] -> 1 | AC43: =Table1[[#This Row],[Last PO Price]]*($W$1)^AB43 -> R68.41 | AD43: =Table1[[#This Row],[MRP]]*Table1[[#This Row],[Subtotal]] -> R13,682.76
A44: 035000045 | B44: =VLOOKUP(A44,[1]!Table93[[Material Number]:[Description]],4,FALSE) ->  | C44: 1417 | D44: =VLOOKUP(Table1[[#This Row],[Plant]],[2]Sheet1!$C:$G,5,FALSE) -> Maint | E44: =VLOOKUP(Table1[[#This Row],[Plant]],[2]Sheet1!$C:$I,7,FALSE) -> MAINTENANCE CENTRAL CORRIDOR | F44: 2022 | G44: M | H44: 1 | I44: 0.000 | J44: 0.000 | K44: 0.000 | L44: 0.000 | M44: 0.000 | N44: 0.000 | O44: 0.000 | P44: 0.000 | Q44: 0.000 | R44: 0.000 | S44: 250.000 | T44: 0.000 | U44: 0.000 | V44: =SUM(Table1[[#This Row],[Jan]:[Jan2]]) -> 250.000 | W44: =VLOOKUP($A44,'[3]All POs'!$A:$G,2,FALSE) -> 4503033104 | X44: =VLOOKUP($A44,'[3]All POs'!$A:$G,3,FALSE) -> R63.70 | Y44: =VLOOKUP($A44,'[3]All POs'!$A:$G,5,FALSE) -> 2022-11-25 | Z44: =VLOOKUP($A44,'[3]All POs'!$A:$G,7,FALSE) -> MKC PROJECTS | AA44: =YEAR(Table1[[#This Row],[Last PO date]]) -> 2022 | AB44: =$W$2-Table1[[#This Row],[Year]] -> 1 | AC44: =Table1[[#This Row],[Last PO Price]]*($W$1)^AB44 -> R68.41 | AD44: =Table1[[#This Row],[MRP]]*Table1[[#This Row],[Subtotal]] -> R17,103.45
A45: 035000046 | B45: =VLOOKUP(A45,[1]!Table93[[Material Number]:[Description]],4,FALSE) ->  | C45: 1117 | D45: =VLOOKUP(Table1[[#This Row],[Plant]],[2]Sheet1!$C:$G,5,FALSE) -> Maint | E45: =VLOOKUP(Table1[[#This Row],[Plant]],[2]Sheet1!$C:$I,7,FALSE) -> MAINTENANCE CENTRAL CORRIDOR | F45: 2018 | G45: M | H45: 1 | I45: 0.000 | J45: 200.000 | K45: 0.000 | L45: 0.000 | M45: 0.000 | N45: 0.000 | O45: 0.000 | P45: 0.000 | Q45: 200.000 | R45: 0.000 | S45: 0.000 | T45: 0.000 | U45: 0.000 | V45: =SUM(Table1[[#This Row],[Jan]:[Jan2]]) -> 400.000 | W45: =VLOOKUP($A45,'[3]All POs'!$A:$G,2,FALSE) -> 4503033104 | X45: =VLOOKUP($A45,'[3]All POs'!$A:$G,3,FALSE) -> R63.70 | Y45: =VLOOKUP($A45,'[3]All POs'!$A:$G,5,FALSE) -> 2022-11-25 | Z45: =VLOOKUP($A45,'[3]All POs'!$A:$G,7,FALSE) -> MKC PROJECTS | AA45: =YEAR(Table1[[#This Row],[Last PO date]]) -> 2022 | AB45: =$W$2-Table1[[#This Row],[Year]] -> 1 | AC45: =Table1[[#This Row],[Last PO Price]]*($W$1)^AB45 -> R68.41 | AD45: =Table1[[#This Row],[MRP]]*Table1[[#This Row],[Subtotal]] -> R27,365.52
A46: 035000046 | B46: =VLOOKUP(A46,[1]!Table93[[Material Number]:[Description]],4,FALSE) ->  | C46: 1117 | D46: =VLOOKUP(Table1[[#This Row],[Plant]],[2]Sheet1!$C:$G,5,FALSE) -> Maint | E46: =VLOOKUP(Table1[[#This Row],[Plant]],[2]Sheet1!$C:$I,7,FALSE) -> MAINTENANCE CENTRAL CORRIDOR | F46: 2019 | G46: M | H46: 1 | I46: 0.000 | J46: 0.000 | K46: 200.000 | L46: 0.000 | M46: 0.000 | N46: 0.000 | O46: 0.000 | P46: 0.000 | Q46: 0.000 | R46: 0.000 | S46: 0.000 | T46: 200.000 | U46: 0.000 | V46: =SUM(Table1[[#This Row],[Jan]:[Jan2]]) -> 400.000 | W46: =VLOOKUP($A46,'[3]All POs'!$A:$G,2,FALSE) -> 4503033104 | X46: =VLOOKUP($A46,'[3]All POs'!$A:$G,3,FALSE) -> R63.70 | Y46: =VLOOKUP($A46,'[3]All POs'!$A:$G,5,FALSE) -> 2022-11-25 | Z46: =VLOOKUP($A46,'[3]All POs'!$A:$G,7,FALSE) -> MKC PROJECTS | AA46: =YEAR(Table1[[#This Row],[Last PO date]]) -> 2022 | AB46: =$W$2-Table1[[#This Row],[Year]] -> 1 | AC46: =Table1[[#This Row],[Last PO Price]]*($W$1)^AB46 -> R68.41 | AD46: =Table1[[#This Row],[MRP]]*Table1[[#This Row],[Subtotal]] -> R27,365.52
A47: 035000046 | B47: =VLOOKUP(A47,[1]!Table93[[Material Number]:[Description]],4,FALSE) ->  | C47: 1117 | D47: =VLOOKUP(Table1[[#This Row],[Plant]],[2]Sheet1!$C:$G,5,FALSE) -> Maint | E47: =VLOOKUP(Table1[[#This Row],[Plant]],[2]Sheet1!$C:$I,7,FALSE) -> MAINTENANCE CENTRAL CORRIDOR | F47: 2020 | G47: M | H47: 1 | I47: 0.000 | J47: 0.000 | K47: 0.000 | L47: 0.000 | M47: 0.000 | N47: 0.000 | O47: 150.000 | P47: 0.000 | Q47: 0.000 | R47: 300.000 | S47: 0.000 | T47: 0.000 | U47: 0.000 | V47: =SUM(Table1[[#This Row],[Jan]:[Jan2]]) -> 450.000 | W47: =VLOOKUP($A47,'[3]All POs'!$A:$G,2,FALSE) -> 4503033104 | X47: =VLOOKUP($A47,'[3]All POs'!$A:$G,3,FALSE) -> R63.70 | Y47: =VLOOKUP($A47,'[3]All POs'!$A:$G,5,FALSE) -> 2022-11-25 | Z47: =VLOOKUP($A47,'[3]All POs'!$A:$G,7,FALSE) -> MKC PROJECTS | AA47: =YEAR(Table1[[#This Row],[Last PO date]]) -> 2022 | AB47: =$W$2-Table1[[#This Row],[Year]] -> 1 | AC47: =Table1[[#This Row],[Last PO Price]]*($W$1)^AB47 -> R68.41 | AD47: =Table1[[#This Row],[MRP]]*Table1[[#This Row],[Subtotal]] -> R30,786.21
A48: 035000046 | B48: =VLOOKUP(A48,[1]!Table93[[Material Number]:[Description]],4,FALSE) ->  | C48: 1117 | D48: =VLOOKUP(Table1[[#This Row],[Plant]],[2]Sheet1!$C:$G,5,FALSE) -> Maint | E48: =VLOOKUP(Table1[[#This Row],[Plant]],[2]Sheet1!$C:$I,7,FALSE) -> MAINTENANCE CENTRAL CORRIDOR | F48: 2021 | G48: M | H48: 1 | I48: 0.000 | J48: 0.000 | K48: 0.000 | L48: 150.000 | M48: 0.000 | N48: 0.000 | O48: 300.000 | P48: 0.000 | Q48: 0.000 | R48: 0.000 | S48: 0.000 | T48: 0.000 | U48: 0.000 | V48: =SUM(Table1[[#This Row],[Jan]:[Jan2]]) -> 450.000 | W48: =VLOOKUP($A48,'[3]All POs'!$A:$G,2,FALSE) -> 4503033104 | X48: =VLOOKUP($A48,'[3]All POs'!$A:$G,3,FALSE) -> R63.70 | Y48: =VLOOKUP($A48,'[3]All POs'!$A:$G,5,FALSE) -> 2022-11-25 | Z48: =VLOOKUP($A48,'[3]All POs'!$A:$G,7,FALSE) -> MKC PROJECTS | AA48: =YEAR(Table1[[#This Row],[Last PO date]]) -> 2022 | AB48: =$W$2-Table1[[#This Row],[Year]] -> 1 | AC48: =Table1[[#This Row],[Last PO Price]]*($W$1)^AB48 -> R68.41 | AD48: =Table1[[#This Row],[MRP]]*Table1[[#This Row],[Subtotal]] -> R30,786.21
A49: 035000046 | B49: =VLOOKUP(A49,[1]!Table93[[Material Number]:[Description]],4,FALSE) ->  | C49: 1117 | D49: =VLOOKUP(Table1[[#This Row],[Plant]],[2]Sheet1!$C:$G,5,FALSE) -> Maint | E49: =VLOOKUP(Table1[[#This Row],[Plant]],[2]Sheet1!$C:$I,7,FALSE) -> MAINTENANCE CENTRAL CORRIDOR | F49: 2022 | G49: M | H49: 1 | I49: 0.000 | J49: 200.000 | K49: 0.000 | L49: 0.000 | M49: 0.000 | N49: 0.000 | O49: 0.000 | P49: 0.000 | Q49: 0.000 | R49: 0.000 | S49: 0.000 | T49: 0.000 | U49: 0.000 | V49: =SUM(Table1[[#This Row],[Jan]:[Jan2]]) -> 200.000 | W49: =VLOOKUP($A49,'[3]All POs'!$A:$G,2,FALSE) -> 4503033104 | X49: =VLOOKUP($A49,'[3]All POs'!$A:$G,3,FALSE) -> R63.70 | Y49: =VLOOKUP($A49,'[3]All POs'!$A:$G,5,FALSE) -> 2022-11-25 | Z49: =VLOOKUP($A49,'[3]All POs'!$A:$G,7,FALSE) -> MKC PROJECTS | AA49: =YEAR(Table1[[#This Row],[Last PO date]]) -> 2022 | AB49: =$W$2-Table1[[#This Row],[Year]] -> 1 | AC49: =Table1[[#This Row],[Last PO Price]]*($W$1)^AB49 -> R68.41 | AD49: =Table1[[#This Row],[MRP]]*Table1[[#This Row],[Subtotal]] -> R13,682.76
A50: 035000046 | B50: =VLOOKUP(A50,[1]!Table93[[Material Number]:[Description]],4,FALSE) ->  | C50: 1117 | D50: =VLOOKUP(Table1[[#This Row],[Plant]],[2]Sheet1!$C:$G,5,FALSE) -> Maint | E50: =VLOOKUP(Table1[[#This Row],[Plant]],[2]Sheet1!$C:$I,7,FALSE) -> MAINTENANCE CENTRAL CORRIDOR | F50: 2023 | G50: M | H50: 1 | I50: 400.000 | J50: 0.000 | K50: 0.000 | L50: 0.000 | M50: 0.000 | N50: 0.000 | O50: 0.000 | P50: 0.000 | Q50: 0.000 | R50: 0.000 | S50: 0.000 | T50: 0.000 | U50: 0.000 | V50: =SUM(Table1[[#This Row],[Jan]:[Jan2]]) -> 400.000 | W50: =VLOOKUP($A50,'[3]All POs'!$A:$G,2,FALSE) -> 4503033104 | X50: =VLOOKUP($A50,'[3]All POs'!$A:$G,3,FALSE) -> R63.70 | Y50: =VLOOKUP($A50,'[3]All POs'!$A:$G,5,FALSE) -> 2022-11-25 | Z50: =VLOOKUP($A50,'[3]All POs'!$A:$G,7,FALSE) -> MKC PROJECTS | AA50: =YEAR(Table1[[#This Row],[Last PO date]]) -> 2022 | AB50: =$W$2-Table1[[#This Row],[Year]] -> 1 | AC50: =Table1[[#This Row],[Last PO Price]]*($W$1)^AB50 -> R68.41 | AD50: =Table1[[#This Row],[MRP]]*Table1[[#This Row],[Subtotal]] -> R27,365.52
A51: 035000046 | B51: =VLOOKUP(A51,[1]!Table93[[Material Number]:[Description]],4,FALSE) ->  | C51: 1405 | D51: =VLOOKUP(Table1[[#This Row],[Plant]],[2]Sheet1!$C:$G,5,FALSE) -> Manuf | E51: =VLOOKUP(Table1[[#This Row],[Plant]],[2]Sheet1!$C:$I,7,FALSE) -> NATIONAL MANUFACTURING WAGONS | F51: 2019 | G51: M | H51: 1 | I51: 1.000 | J51: 0.000 | K51: 0.000 | L51: 0.000 | M51: 49.000 | N51: 0.000 | O51: 0.000 | P51: 0.000 | Q51: 0.000 | R51: 0.000 | S51: 0.000 | T51: 0.000 | U51: 0.000 | V51: =SUM(Table1[[#This Row],[Jan]:[Jan2]]) -> 50.000 | W51: =VLOOKUP($A51,'[3]All POs'!$A:$G,2,FALSE) -> 4503033104 | X51: =VLOOKUP($A51,'[3]All POs'!$A:$G,3,FALSE) -> R63.70 | Y51: =VLOOKUP($A51,'[3]All POs'!$A:$G,5,FALSE) -> 2022-11-25 | Z51: =VLOOKUP($A51,'[3]All POs'!$A:$G,7,FALSE) -> MKC PROJECTS | AA51: =YEAR(Table1[[#This Row],[Last PO date]]) -> 2022 | AB51: =$W$2-Table1[[#This Row],[Year]] -> 1 | AC51: =Table1[[#This Row],[Last PO Price]]*($W$1)^AB51 -> R68.41 | AD51: =Table1[[#This Row],[MRP]]*Table1[[#This Row],[Subtotal]] -> R3,420.69
A52: 035000046 | B52: =VLOOKUP(A52,[1]!Table93[[Material Number]:[Description]],4,FALSE) ->  | C52: 1405 | D52: =VLOOKUP(Table1[[#This Row],[Plant]],[2]Sheet1!$C:$G,5,FALSE) -> Manuf | E52: =VLOOKUP(Table1[[#This Row],[Plant]],[2]Sheet1!$C:$I,7,FALSE) -> NATIONAL MANUFACTURING WAGONS | F52: 2023 | G52: M | H52: 1 | I52: 0.000 | J52: 0.000 | K52: 0.000 | L52: 0.000 | M52: 20.000 | N52: 0.000 | O52: 0.000 | P52: 0.000 | Q52: 0.000 | R52: 0.000 | S52: 0.000 | T52: 0.000 | U52: 0.000 | V52: =SUM(Table1[[#This Row],[Jan]:[Jan2]]) -> 20.000 | W52: =VLOOKUP($A52,'[3]All POs'!$A:$G,2,FALSE) -> 4503033104 | X52: =VLOOKUP($A52,'[3]All POs'!$A:$G,3,FALSE) -> R63.70 | Y52: =VLOOKUP($A52,'[3]All POs'!$A:$G,5,FALSE) -> 2022-11-25 | Z52: =VLOOKUP($A52,'[3]All POs'!$A:$G,7,FALSE) -> MKC PROJECTS | AA52: =YEAR(Table1[[#This Row],[Last PO date]]) -> 2022 | AB52: =$W$2-Table1[[#This Row],[Year]] -> 1 | AC52: =Table1[[#This Row],[Last PO Price]]*($W$1)^AB52 -> R68.41 | AD52: =Table1[[#This Row],[MRP]]*Table1[[#This Row],[Subtotal]] -> R1,368.28
A53: 035000046 | B53: =VLOOKUP(A53,[1]!Table93[[Material Number]:[Description]],4,FALSE) ->  | C53: 1417 | D53: =VLOOKUP(Table1[[#This Row],[Plant]],[2]Sheet1!$C:$G,5,FALSE) -> Maint | E53: =VLOOKUP(Table1[[#This Row],[Plant]],[2]Sheet1!$C:$I,7,FALSE) -> MAINTENANCE CENTRAL CORRIDOR | F53: 2019 | G53: M | H53: 1 | I53: 2.000 | J53: 0.000 | K53: 0.000 | L53: 0.000 | M53: 0.000 | N53: 0.000 | O53: 0.000 | P53: 0.000 | Q53: 0.000 | R53: 0.000 | S53: 20.000 | T53: 0.000 | U53: 0.000 | V53: =SUM(Table1[[#This Row],[Jan]:[Jan2]]) -> 22.000 | W53: =VLOOKUP($A53,'[3]All POs'!$A:$G,2,FALSE) -> 4503033104 | X53: =VLOOKUP($A53,'[3]All POs'!$A:$G,3,FALSE) -> R63.70 | Y53: =VLOOKUP($A53,'[3]All POs'!$A:$G,5,FALSE) -> 2022-11-25 | Z53: =VLOOKUP($A53,'[3]All POs'!$A:$G,7,FALSE) -> MKC PROJECTS | AA53: =YEAR(Table1[[#This Row],[Last PO date]]) -> 2022 | AB53: =$W$2-Table1[[#This Row],[Year]] -> 1 | AC53: =Table1[[#This Row],[Last PO Price]]*($W$1)^AB53 -> R68.41 | AD53: =Table1[[#This Row],[MRP]]*Table1[[#This Row],[Subtotal]] -> R1,505.10
A54: 035000046 | B54: =VLOOKUP(A54,[1]!Table93[[Material Number]:[Description]],4,FALSE) ->  | C54: 2908 | D54: =VLOOKUP(Table1[[#This Row],[Plant]],[2]Sheet1!$C:$G,5,FALSE) -> Manuf | E54: =VLOOKUP(Table1[[#This Row],[Plant]],[2]Sheet1!$C:$I,7,FALSE) -> NATIONAL MANUFACTURING LOCOMOTIVES | F54: 2020 | G54: M | H54: 1 | I54: 0.000 | J54: 0.000 | K54: 0.000 | L54: 0.000 | M54: 0.000 | N54: 0.000 | O54: 0.000 | P54: 10.000 | Q54: 49.000 | R54: 0.000 | S54: 0.000 | T54: 0.000 | U54: 0.000 | V54: =SUM(Table1[[#This Row],[Jan]:[Jan2]]) -> 59.000 | W54: =VLOOKUP($A54,'[3]All POs'!$A:$G,2,FALSE) -> 4503033104 | X54: =VLOOKUP($A54,'[3]All POs'!$A:$G,3,FALSE) -> R63.70 | Y54: =VLOOKUP($A54,'[3]All POs'!$A:$G,5,FALSE) -> 2022-11-25 | Z54: =VLOOKUP($A54,'[3]All POs'!$A:$G,7,FALSE) -> MKC PROJECTS | AA54: =YEAR(Table1[[#This Row],[Last PO date]]) -> 2022 | AB54: =$W$2-Table1[[#This Row],[Year]] -> 1 | AC54: =Table1[[#This Row],[Last PO Price]]*($W$1)^AB54 -> R68.41 | AD54: =Table1[[#This Row],[MRP]]*Table1[[#This Row],[Subtotal]] -> R4,036.41
A55: 035000046 | B55: =VLOOKUP(A55,[1]!Table93[[Material Number]:[Description]],4,FALSE) ->  | C55: 2908 | D55: =VLOOKUP(Table1[[#This Row],[Plant]],[2]Sheet1!$C:$G,5,FALSE) -> Manuf | E55: =VLOOKUP(Table1[[#This Row],[Plant]],[2]Sheet1!$C:$I,7,FALSE) -> NATIONAL MANUFACTURING LOCOMOTIVES | F55: 2021 | G55: M | H55: 1 | I55: 0.000 | J55: 0.000 | K55: 0.000 | L55: 0.000 | M55: 0.000 | N55: 0.000 | O55: 0.000 | P55: 0.000 | Q55: 0.000 | R55: 1.000 | S55: 0.000 | T55: 0.000 | U55: 0.000 | V55: =SUM(Table1[[#This Row],[Jan]:[Jan2]]) -> 1.000 | W55: =VLOOKUP($A55,'[3]All POs'!$A:$G,2,FALSE) -> 4503033104 | X55: =VLOOKUP($A55,'[3]All POs'!$A:$G,3,FALSE) -> R63.70 | Y55: =VLOOKUP($A55,'[3]All POs'!$A:$G,5,FALSE) -> 2022-11-25 | Z55: =VLOOKUP($A55,'[3]All POs'!$A:$G,7,FALSE) -> MKC PROJECTS | AA55: =YEAR(Table1[[#This Row],[Last PO date]]) -> 2022 | AB55: =$W$2-Table1[[#This Row],[Year]] -> 1 | AC55: =Table1[[#This Row],[Last PO Price]]*($W$1)^AB55 -> R68.41 | AD55: =Table1[[#This Row],[MRP]]*Table1[[#This Row],[Subtotal]] -> R68.41
A56: 035000047 | B56: =VLOOKUP(A56,[1]!Table93[[Material Number]:[Description]],4,FALSE) ->  | C56: 1105 | D56: =VLOOKUP(Table1[[#This Row],[Plant]],[2]Sheet1!$C:$G,5,FALSE) -> Manuf | E56: =VLOOKUP(Table1[[#This Row],[Plant]],[2]Sheet1!$C:$I,7,FALSE) -> NATIONAL MANUFACTURING LOCOMOTIVES | F56: 2018 | G56: M | H56: 1 | I56: 30.000 | J56: 22.000 | K56: 0.000 | L56: 0.000 | M56: 20.000 | N56: 15.000 | O56: 10.000 | P56: 110.000 | Q56: 90.000 | R56: 60.000 | S56: 45.000 | T56: 10.000 | U56: 0.000 | V56: =SUM(Table1[[#This Row],[Jan]:[Jan2]]) -> 412.000 | W56: =VLOOKUP($A56,'[3]All POs'!$A:$G,2,FALSE) -> 4503059393 | X56: =VLOOKUP($A56,'[3]All POs'!$A:$G,3,FALSE) -> R58.00 | Y56: =VLOOKUP($A56,'[3]All POs'!$A:$G,5,FALSE) -> 2023-06-19 | Z56: =VLOOKUP($A56,'[3]All POs'!$A:$G,7,FALSE) -> SAFETYMATE EASTERN CAPE | AA56: =YEAR(Table1[[#This Row],[Last PO date]]) -> 2023 | AB56: =$W$2-Table1[[#This Row],[Year]] -> 0 | AC56: =Table1[[#This Row],[Last PO Price]]*($W$1)^AB56 -> R58.00 | AD56: =Table1[[#This Row],[MRP]]*Table1[[#This Row],[Subtotal]] -> R23,896.00
A57: 035000047 | B57: =VLOOKUP(A57,[1]!Table93[[Material Number]:[Description]],4,FALSE) ->  | C57: 1105 | D57: =VLOOKUP(Table1[[#This Row],[Plant]],[2]Sheet1!$C:$G,5,FALSE) -> Manuf | E57: =VLOOKUP(Table1[[#This Row],[Plant]],[2]Sheet1!$C:$I,7,FALSE) -> NATIONAL MANUFACTURING LOCOMOTIVES | F57: 2019 | G57: M | H57: 1 | I57: 15.000 | J57: 40.000 | K57: 42.000 | L57: 41.000 | M57: 66.000 | N57: 66.000 | O57: 50.000 | P57: 60.000 | Q57: 49.000 | R57: 55.000 | S57: 35.000 | T57: 0.000 | U57: 0.000 | V57: =SUM(Table1[[#This Row],[Jan]:[Jan2]]) -> 519.000 | W57: =VLOOKUP($A57,'[3]All POs'!$A:$G,2,FALSE) -> 4503059393 | X57: =VLOOKUP($A57,'[3]All POs'!$A:$G,3,FALSE) -> R58.00 | Y57: =VLOOKUP($A57,'[3]All POs'!$A:$G,5,FALSE) -> 2023-06-19 | Z57: =VLOOKUP($A57,'[3]All POs'!$A:$G,7,FALSE) -> SAFETYMATE EASTERN CAPE | AA57: =YEAR(Table1[[#This Row],[Last PO date]]) -> 2023 | AB57: =$W$2-Table1[[#This Row],[Year]] -> 0 | AC57: =Table1[[#This Row],[Last PO Price]]*($W$1)^AB57 -> R58.00 | AD57: =Table1[[#This Row],[MRP]]*Table1[[#This Row],[Subtotal]] -> R30,102.00
A58: 035000047 | B58: =VLOOKUP(A58,[1]!Table93[[Material Number]:[Description]],4,FALSE) ->  | C58: 1105 | D58: =VLOOKUP(Table1[[#This Row],[Plant]],[2]Sheet1!$C:$G,5,FALSE) -> Manuf | E58: =VLOOKUP(Table1[[#This Row],[Plant]],[2]Sheet1!$C:$I,7,FALSE) -> NATIONAL MANUFACTURING LOCOMOTIVES | F58: 2020 | G58: M | H58: 1 | I58: 1.000 | J58: 0.000 | K58: 6.000 | L58: 0.000 | M58: 0.000 | N58: 2.000 | O58: -1.000 | P58: 13.000 | Q58: 0.000 | R58: 20.000 | S58: 25.000 | T58: 20.000 | U58: 0.000 | V58: =SUM(Table1[[#This Row],[Jan]:[Jan2]]) -> 86.000 | W58: =VLOOKUP($A58,'[3]All POs'!$A:$G,2,FALSE) -> 4503059393 | X58: =VLOOKUP($A58,'[3]All POs'!$A:$G,3,FALSE) -> R58.00 | Y58: =VLOOKUP($A58,'[3]All POs'!$A:$G,5,FALSE) -> 2023-06-19 | Z58: =VLOOKUP($A58,'[3]All POs'!$A:$G,7,FALSE) -> SAFETYMATE EASTERN CAPE | AA58: =YEAR(Table1[[#This Row],[Last PO date]]) -> 2023 | AB58: =$W$2-Table1[[#This Row],[Year]] -> 0 | AC58: =Table1[[#This Row],[Last PO Price]]*($W$1)^AB58 -> R58.00 | AD58: =Table1[[#This Row],[MRP]]*Table1[[#This Row],[Subtotal]] -> R4,988.00
A59: 035000047 | B59: =VLOOKUP(A59,[1]!Table93[[Material Number]:[Description]],4,FALSE) ->  | C59: 1105 | D59: =VLOOKUP(Table1[[#This Row],[Plant]],[2]Sheet1!$C:$G,5,FALSE) -> Manuf | E59: =VLOOKUP(Table1[[#This Row],[Plant]],[2]Sheet1!$C:$I,7,FALSE) -> NATIONAL MANUFACTURING LOCOMOTIVES | F59: 2021 | G59: M | H59: 1 | I59: 58.000 | J59: 126.000 | K59: 76.000 | L59: 92.000 | M59: 18.000 | N59: 38.000 | O59: 0.000 | P59: 98.000 | Q59: 45.000 | R59: 26.000 | S59: 60.000 | T59: 10.000 | U59: 0.000 | V59: =SUM(Table1[[#This Row],[Jan]:[Jan2]]) -> 647.000 | W59: =VLOOKUP($A59,'[3]All POs'!$A:$G,2,FALSE) -> 4503059393 | X59: =VLOOKUP($A59,'[3]All POs'!$A:$G,3,FALSE) -> R58.00 | Y59: =VLOOKUP($A59,'[3]All POs'!$A:$G,5,FALSE) -> 2023-06-19 | Z59: =VLOOKUP($A59,'[3]All POs'!$A:$G,7,FALSE) -> SAFETYMATE EASTERN CAPE | AA59: =YEAR(Table1[[#This Row],[Last PO date]]) -> 2023 | AB59: =$W$2-Table1[[#This Row],[Year]] -> 0 | AC59: =Table1[[#This Row],[Last PO Price]]*($W$1)^AB59 -> R58.00 | AD59: =Table1[[#This Row],[MRP]]*Table1[[#This Row],[Subtotal]] -> R37,526.00
A60: 035000047 | B60: =VLOOKUP(A60,[1]!Table93[[Material Number]:[Description]],4,FALSE) ->  | C60: 1105 | D60: =VLOOKUP(Table1[[#This Row],[Plant]],[2]Sheet1!$C:$G,5,FALSE) -> Manuf | E60: =VLOOKUP(Table1[[#This Row],[Plant]],[2]Sheet1!$C:$I,7,FALSE) -> NATIONAL MANUFACTURING LOCOMOTIVES | F60: 2022 | G60: M | H60: 1 | I60: 3.000 | J60: 0.000 | K60: 0.000 | L60: 13.000 | M60: 50.000 | N60: 101.000 | O60: 23.000 | P60: 10.000 | Q60: 33.000 | R60: 23.000 | S60: 13.000 | T60: 66.000 | U60: 0.000 | V60: =SUM(Table1[[#This Row],[Jan]:[Jan2]]) -> 335.000 | W60: =VLOOKUP($A60,'[3]All POs'!$A:$G,2,FALSE) -> 4503059393 | X60: =VLOOKUP($A60,'[3]All POs'!$A:$G,3,FALSE) -> R58.00 | Y60: =VLOOKUP($A60,'[3]All POs'!$A:$G,5,FALSE) -> 2023-06-19 | Z60: =VLOOKUP($A60,'[3]All POs'!$A:$G,7,FALSE) -> SAFETYMATE EASTERN CAPE | AA60: =YEAR(Table1[[#This Row],[Last PO date]]) -> 2023 | AB60: =$W$2-Table1[[#This Row],[Year]] -> 0 | AC60: =Table1[[#This Row],[Last PO Price]]*($W$1)^AB60 -> R58.00 | AD60: =Table1[[#This Row],[MRP]]*Table1[[#This Row],[Subtotal]] -> R19,430.00
A61: 035000047 | B61: =VLOOKUP(A61,[1]!Table93[[Material Number]:[Description]],4,FALSE) ->  | C61: 1105 | D61: =VLOOKUP(Table1[[#This Row],[Plant]],[2]Sheet1!$C:$G,5,FALSE) -> Manuf | E61: =VLOOKUP(Table1[[#This Row],[Plant]],[2]Sheet1!$C:$I,7,FALSE) -> NATIONAL MANUFACTURING LOCOMOTIVES | F61: 2023 | G61: M | H61: 1 | I61: 10.000 | J61: 80.000 | K61: 28.000 | L61: 0.000 | M61: 74.000 | N61: 0.000 | O61: 0.000 | P61: 0.000 | Q61: 0.000 | R61: 0.000 | S61: 0.000 | T61: 0.000 | U61: 0.000 | V61: =SUM(Table1[[#This Row],[Jan]:[Jan2]]) -> 192.000 | W61: =VLOOKUP($A61,'[3]All POs'!$A:$G,2,FALSE) -> 4503059393 | X61: =VLOOKUP($A61,'[3]All POs'!$A:$G,3,FALSE) -> R58.00 | Y61: =VLOOKUP($A61,'[3]All POs'!$A:$G,5,FALSE) -> 2023-06-19 | Z61: =VLOOKUP($A61,'[3]All POs'!$A:$G,7,FALSE) -> SAFETYMATE EASTERN CAPE | AA61: =YEAR(Table1[[#This Row],[Last PO date]]) -> 2023 | AB61: =$W$2-Table1[[#This Row],[Year]] -> 0 | AC61: =Table1[[#This Row],[Last PO Price]]*($W$1)^AB61 -> R58.00 | AD61: =Table1[[#This Row],[MRP]]*Table1[[#This Row],[Subtotal]] -> R11,136.00
A62: 035000047 | B62: =VLOOKUP(A62,[1]!Table93[[Material Number]:[Description]],4,FALSE) ->  | C62: 1111 | D62: =VLOOKUP(Table1[[#This Row],[Plant]],[2]Sheet1!$C:$G,5,FALSE) -> Maint | E62: =VLOOKUP(Table1[[#This Row],[Plant]],[2]Sheet1!$C:$I,7,FALSE) -> MAINTENANCE CAPE CORRIDOR | F62: 2018 | G62: M | H62: 1 | I62: 0.000 | J62: 0.000 | K62: 0.000 | L62: 3.000 | M62: 20.000 | N62: 20.000 | O62: 17.000 | P62: 0.000 | Q62: 0.000 | R62: 0.000 | S62: 0.000 | T62: 0.000 | U62: 0.000 | V62: =SUM(Table1[[#This Row],[Jan]:[Jan2]]) -> 60.000 | W62: =VLOOKUP($A62,'[3]All POs'!$A:$G,2,FALSE) -> 4503059393 | X62: =VLOOKUP($A62,'[3]All POs'!$A:$G,3,FALSE) -> R58.00 | Y62: =VLOOKUP($A62,'[3]All POs'!$A:$G,5,FALSE) -> 2023-06-19 | Z62: =VLOOKUP($A62,'[3]All POs'!$A:$G,7,FALSE) -> SAFETYMATE EASTERN CAPE | AA62: =YEAR(Table1[[#This Row],[Last PO date]]) -> 2023 | AB62: =$W$2-Table1[[#This Row],[Year]] -> 0 | AC62: =Table1[[#This Row],[Last PO Price]]*($W$1)^AB62 -> R58.00 | AD62: =Table1[[#This Row],[MRP]]*Table1[[#This Row],[Subtotal]] -> R3,480.00
A63: 035000047 | B63: =VLOOKUP(A63,[1]!Table93[[Material Number]:[Description]],4,FALSE) ->  | C63: 1111 | D63: =VLOOKUP(Table1[[#This Row],[Plant]],[2]Sheet1!$C:$G,5,FALSE) -> Maint | E63: =VLOOKUP(Table1[[#This Row],[Plant]],[2]Sheet1!$C:$I,7,FALSE) -> MAINTENANCE CAPE CORRIDOR | F63: 2019 | G63: M | H63: 1 | I63: 0.000 | J63: 0.000 | K63: 0.000 | L63: 40.000 | M63: 0.000 | N63: 0.000 | O63: 0.000 | P63: 0.000 | Q63: 0.000 | R63: 0.000 | S63: 0.000 | T63: 0.000 | U63: 0.000 | V63: =SUM(Table1[[#This Row],[Jan]:[Jan2]]) -> 40.000 | W63: =VLOOKUP($A63,'[3]All POs'!$A:$G,2,FALSE) -> 4503059393 | X63: =VLOOKUP($A63,'[3]All POs'!$A:$G,3,FALSE) -> R58.00 | Y63: =VLOOKUP($A63,'[3]All POs'!$A:$G,5,FALSE) -> 2023-06-19 | Z63: =VLOOKUP($A63,'[3]All POs'!$A:$G,7,FALSE) -> SAFETYMATE EASTERN CAPE | AA63: =YEAR(Table1[[#This Row],[Last PO date]]) -> 2023 | AB63: =$W$2-Table1[[#This Row],[Year]] -> 0 | AC63: =Table1[[#This Row],[Last PO Price]]*($W$1)^AB63 -> R58.00 | AD63: =Table1[[#This Row],[MRP]]*Table1[[#This Row],[Subtotal]] -> R2,320.00
A64: 035000047 | B64: =VLOOKUP(A64,[1]!Table93[[Material Number]:[Description]],4,FALSE) ->  | C64: 1111 | D64: =VLOOKUP(Table1[[#This Row],[Plant]],[2]Sheet1!$C:$G,5,FALSE) -> Maint | E64: =VLOOKUP(Table1[[#This Row],[Plant]],[2]Sheet1!$C:$I,7,FALSE) -> MAINTENANCE CAPE CORRIDOR | F64: 2020 | G64: M | H64: 1 | I64: 0.000 | J64: 0.000 | K64: 0.000 | L64: 0.000 | M64: 21.000 | N64: 20.000 | O64: 21.000 | P64: 19.000 | Q64: 2.000 | R64: 0.000 | S64: 75.000 | T64: 0.000 | U64: 0.000 | V64: =SUM(Table1[[#This Row],[Jan]:[Jan2]]) -> 158.000 | W64: =VLOOKUP($A64,'[3]All POs'!$A:$G,2,FALSE) -> 4503059393 | X64: =VLOOKUP($A64,'[3]All POs'!$A:$G,3,FALSE) -> R58.00 | Y64: =VLOOKUP($A64,'[3]All POs'!$A:$G,5,FALSE) -> 2023-06-19 | Z64: =VLOOKUP($A64,'[3]All POs'!$A:$G,7,FALSE) -> SAFETYMATE EASTERN CAPE | AA64: =YEAR(Table1[[#This Row],[Last PO date]]) -> 2023 | AB64: =$W$2-Table1[[#This Row],[Year]] -> 0 | AC64: =Table1[[#This Row],[Last PO Price]]*($W$1)^AB64 -> R58.00 | AD64: =Table1[[#This Row],[MRP]]*Table1[[#This Row],[Subtotal]] -> R9,164.00
A65: 035000047 | B65: =VLOOKUP(A65,[1]!Table93[[Material Number]:[Description]],4,FALSE) ->  | C65: 1111 | D65: =VLOOKUP(Table1[[#This Row],[Plant]],[2]Sheet1!$C:$G,5,FALSE) -> Maint | E65: =VLOOKUP(Table1[[#This Row],[Plant]],[2]Sheet1!$C:$I,7,FALSE) -> MAINTENANCE CAPE CORRIDOR | F65: 2021 | G65: M | H65: 1 | I65: 0.000 | J65: 0.000 | K65: 0.000 | L65: 44.000 | M65: 31.000 | N65: 173.000 | O65: 56.000 | P65: 22.000 | Q65: 16.000 | R65: 0.000 | S65: 0.000 | T65: 0.000 | U65: 0.000 | V65: =SUM(Table1[[#This Row],[Jan]:[Jan2]]) -> 342.000 | W65: =VLOOKUP($A65,'[3]All POs'!$A:$G,2,FALSE) -> 4503059393 | X65: =VLOOKUP($A65,'[3]All POs'!$A:$G,3,FALSE) -> R58.00 | Y65: =VLOOKUP($A65,'[3]All POs'!$A:$G,5,FALSE) -> 2023-06-19 | Z65: =VLOOKUP($A65,'[3]All POs'!$A:$G,7,FALSE) -> SAFETYMATE EASTERN CAPE | AA65: =YEAR(Table1[[#This Row],[Last PO date]]) -> 2023 | AB65: =$W$2-Table1[[#This Row],[Year]] -> 0 | AC65: =Table1[[#This Row],[Last PO Price]]*($W$1)^AB65 -> R58.00 | AD65: =Table1[[#This Row],[MRP]]*Table1[[#This Row],[Subtotal]] -> R19,836.00
A66: 035000047 | B66: =VLOOKUP(A66,[1]!Table93[[Material Number]:[Description]],4,FALSE) ->  | C66: 1111 | D66: =VLOOKUP(Table1[[#This Row],[Plant]],[2]Sheet1!$C:$G,5,FALSE) -> Maint | E66: =VLOOKUP(Table1[[#This Row],[Plant]],[2]Sheet1!$C:$I,7,FALSE) -> MAINTENANCE CAPE CORRIDOR | F66: 2022 | G66: M | H66: 1 | I66: 0.000 | J66: 0.000 | K66: 0.000 | L66: 0.000 | M66: 0.000 | N66: 0.000 | O66: 0.000 | P66: 0.000 | Q66: 0.000 | R66: 5.000 | S66: 90.000 | T66: 29.000 | U66: 0.000 | V66: =SUM(Table1[[#This Row],[Jan]:[Jan2]]) -> 124.000 | W66: =VLOOKUP($A66,'[3]All POs'!$A:$G,2,FALSE) -> 4503059393 | X66: =VLOOKUP($A66,'[3]All POs'!$A:$G,3,FALSE) -> R58.00 | Y66: =VLOOKUP($A66,'[3]All POs'!$A:$G,5,FALSE) -> 2023-06-19 | Z66: =VLOOKUP($A66,'[3]All POs'!$A:$G,7,FALSE) -> SAFETYMATE EASTERN CAPE | AA66: =YEAR(Table1[[#This Row],[Last PO date]]) -> 2023 | AB66: =$W$2-Table1[[#This Row],[Year]] -> 0 | AC66: =Table1[[#This Row],[Last PO Price]]*($W$1)^AB66 -> R58.00 | AD66: =Table1[[#This Row],[MRP]]*Table1[[#This Row],[Subtotal]] -> R7,192.00
A67: 035000047 | B67: =VLOOKUP(A67,[1]!Table93[[Material Number]:[Description]],4,FALSE) ->  | C67: 1111 | D67: =VLOOKUP(Table1[[#This Row],[Plant]],[2]Sheet1!$C:$G,5,FALSE) -> Maint | E67: =VLOOKUP(Table1[[#This Row],[Plant]],[2]Sheet1!$C:$I,7,FALSE) -> MAINTENANCE CAPE CORRIDOR | F67: 2023 | G67: M | H67: 1 | I67: 80.000 | J67: 137.000 | K67: 19.000 | L67: 40.000 | M67: 0.000 | N67: 0.000 | O67: 0.000 | P67: 0.000 | Q67: 0.000 | R67: 0.000 | S67: 0.000 | T67: 0.000 | U67: 0.000 | V67: =SUM(Table1[[#This Row],[Jan]:[Jan2]]) -> 276.000 | W67: =VLOOKUP($A67,'[3]All POs'!$A:$G,2,FALSE) -> 4503059393 | X67: =VLOOKUP($A67,'[3]All POs'!$A:$G,3,FALSE) -> R58.00 | Y67: =VLOOKUP($A67,'[3]All POs'!$A:$G,5,FALSE) -> 2023-06-19 | Z67: =VLOOKUP($A67,'[3]All POs'!$A:$G,7,FALSE) -> SAFETYMATE EASTERN CAPE | AA67: =YEAR(Table1[[#This Row],[Last PO date]]) -> 2023 | AB67: =$W$2-Table1[[#This Row],[Year]] -> 0 | AC67: =Table1[[#This Row],[Last PO Price]]*($W$1)^AB67 -> R58.00 | AD67: =Table1[[#This Row],[MRP]]*Table1[[#This Row],[Subtotal]] -> R16,008.00
A68: 035000047 | B68: =VLOOKUP(A68,[1]!Table93[[Material Number]:[Description]],4,FALSE) ->  | C68: 1113 | D68: =VLOOKUP(Table1[[#This Row],[Plant]],[2]Sheet1!$C:$G,5,FALSE) -> Maint | E68: =VLOOKUP(Table1[[#This Row],[Plant]],[2]Sheet1!$C:$I,7,FALSE) -> MAINTENANCE CAPE CORRIDOR | F68: 2018 | G68: M | H68: 1 | I68: 30.000 | J68: 50.000 | K68: 0.000 | L68: 60.000 | M68: 50.000 | N68: 90.000 | O68: 100.000 | P68: 130.000 | Q68: 70.000 | R68: 110.000 | S68: 60.000 | T68: 30.000 | U68: 0.000 | V68: =SUM(Table1[[#This Row],[Jan]:[Jan2]]) -> 780.000 | W68: =VLOOKUP($A68,'[3]All POs'!$A:$G,2,FALSE) -> 4503059393 | X68: =VLOOKUP($A68,'[3]All POs'!$A:$G,3,FALSE) -> R58.00 | Y68: =VLOOKUP($A68,'[3]All POs'!$A:$G,5,FALSE) -> 2023-06-19 | Z68: =VLOOKUP($A68,'[3]All POs'!$A:$G,7,FALSE) -> SAFETYMATE EASTERN CAPE | AA68: =YEAR(Table1[[#This Row],[Last PO date]]) -> 2023 | AB68: =$W$2-Table1[[#This Row],[Year]] -> 0 | AC68: =Table1[[#This Row],[Last PO Price]]*($W$1)^AB68 -> R58.00 | AD68: =Table1[[#This Row],[MRP]]*Table1[[#This Row],[Subtotal]] -> R45,240.00
A69: 035000047 | B69: =VLOOKUP(A69,[1]!Table93[[Material Number]:[Description]],4,FALSE) ->  | C69: 1113 | D69: =VLOOKUP(Table1[[#This Row],[Plant]],[2]Sheet1!$C:$G,5,FALSE) -> Maint | E69: =VLOOKUP(Table1[[#This Row],[Plant]],[2]Sheet1!$C:$I,7,FALSE) -> MAINTENANCE CAPE CORRIDOR | F69: 2019 | G69: M | H69: 1 | I69: 70.000 | J69: 60.000 | K69: 25.000 | L69: 5.000 | M69: 50.000 | N69: 106.000 | O69: 85.000 | P69: 9.000 | Q69: 0.000 | R69: 20.000 | S69: 60.000 | T69: 80.000 | U69: 0.000 | V69: =SUM(Table1[[#This Row],[Jan]:[Jan2]]) -> 570.000 | W69: =VLOOKUP($A69,'[3]All POs'!$A:$G,2,FALSE) -> 4503059393 | X69: =VLOOKUP($A69,'[3]All POs'!$A:$G,3,FALSE) -> R58.00 | Y69: =VLOOKUP($A69,'[3]All POs'!$A:$G,5,FALSE) -> 2023-06-19 | Z69: =VLOOKUP($A69,'[3]All POs'!$A:$G,7,FALSE) -> SAFETYMATE EASTERN CAPE | AA69: =YEAR(Table1[[#This Row],[Last PO date]]) -> 2023 | AB69: =$W$2-Table1[[#This Row],[Year]] -> 0 | AC69: =Table1[[#This Row],[Last PO Price]]*($W$1)^AB69 -> R58.00 | AD69: =Table1[[#This Row],[MRP]]*Table1[[#This Row],[Subtotal]] -> R33,060.00
A70: 035000047 | B70: =VLOOKUP(A70,[1]!Table93[[Material Number]:[Description]],4,FALSE) ->  | C70: 1113 | D70: =VLOOKUP(Table1[[#This Row],[Plant]],[2]Sheet1!$C:$G,5,FALSE) -> Maint | E70: =VLOOKUP(Table1[[#This Row],[Plant]],[2]Sheet1!$C:$I,7,FALSE) -> MAINTENANCE CAPE CORRIDOR | F70: 2020 | G70: M | H70: 1 | I70: 40.000 | J70: 0.000 | K70: 10.000 | L70: 0.000 | M70: 28.000 | N70: 31.000 | O70: 85.000 | P70: 46.000 | Q70: 50.000 | R70: 75.000 | S70: 20.000 | T70: 60.000 | U70: 0.000 | V70: =SUM(Table1[[#This Row],[Jan]:[Jan2]]) -> 445.000 | W70: =VLOOKUP($A70,'[3]All POs'!$A:$G,2,FALSE) -> 4503059393 | X70: =VLOOKUP($A70,'[3]All POs'!$A:$G,3,FALSE) -> R58.00 | Y70: =VLOOKUP($A70,'[3]All POs'!$A:$G,5,FALSE) -> 2023-06-19 | Z70: =VLOOKUP($A70,'[3]All POs'!$A:$G,7,FALSE) -> SAFETYMATE EASTERN CAPE | AA70: =YEAR(Table1[[#This Row],[Last PO date]]) -> 2023 | AB70: =$W$2-Table1[[#This Row],[Year]] -> 0 | AC70: =Table1[[#This Row],[Last PO Price]]*($W$1)^AB70 -> R58.00 | AD70: =Table1[[#This Row],[MRP]]*Table1[[#This Row],[Subtotal]] -> R25,810.00
A71: 035000047 | B71: =VLOOKUP(A71,[1]!Table93[[Material Number]:[Description]],4,FALSE) ->  | C71: 1113 | D71: =VLOOKUP(Table1[[#This Row],[Plant]],[2]Sheet1!$C:$G,5,FALSE) -> Maint | E71: =VLOOKUP(Table1[[#This Row],[Plant]],[2]Sheet1!$C:$I,7,FALSE) -> MAINTENANCE CAPE CORRIDOR | F71: 2021 | G71: M | H71: 1 | I71: 50.000 | J71: 20.000 | K71: 10.000 | L71: 0.000 | M71: 0.000 | N71: 15.000 | O71: 0.000 | P71: 0.000 | Q71: 160.000 | R71: 39.000 | S71: 20.000 | T71: 20.000 | U71: 0.000 | V71: =SUM(Table1[[#This Row],[Jan]:[Jan2]]) -> 334.000 | W71: =VLOOKUP($A71,'[3]All POs'!$A:$G,2,FALSE) -> 4503059393 | X71: =VLOOKUP($A71,'[3]All POs'!$A:$G,3,FALSE) -> R58.00 | Y71: =VLOOKUP($A71,'[3]All POs'!$A:$G,5,FALSE) -> 2023-06-19 | Z71: =VLOOKUP($A71,'[3]All POs'!$A:$G,7,FALSE) -> SAFETYMATE EASTERN CAPE | AA71: =YEAR(Table1[[#This Row],[Last PO date]]) -> 2023 | AB71: =$W$2-Table1[[#This Row],[Year]] -> 0 | AC71: =Table1[[#This Row],[Last PO Price]]*($W$1)^AB71 -> R58.00 | AD71: =Table1[[#This Row],[MRP]]*Table1[[#This Row],[Subtotal]] -> R19,372.00
A72: 035000047 | B72: =VLOOKUP(A72,[1]!Table93[[Material Number]:[Description]],4,FALSE) ->  | C72: 1113 | D72: =VLOOKUP(Table1[[#This Row],[Plant]],[2]Sheet1!$C:$G,5,FALSE) -> Maint | E72: =VLOOKUP(Table1[[#This Row],[Plant]],[2]Sheet1!$C:$I,7,FALSE) -> MAINTENANCE CAPE CORRIDOR | F72: 2022 | G72: M | H72: 1 | I72: 0.000 | J72: 159.000 | K72: 2.000 | L72: 0.000 | M72: 0.000 | N72: 0.000 | O72: 0.000 | P72: 0.000 | Q72: 30.000 | R72: 15.000 | S72: 96.000 | T72: 60.000 | U72: 0.000 | V72: =SUM(Table1[[#This Row],[Jan]:[Jan2]]) -> 362.000 | W72: =VLOOKUP($A72,'[3]All POs'!$A:$G,2,FALSE) -> 4503059393 | X72: =VLOOKUP($A72,'[3]All POs'!$A:$G,3,FALSE) -> R58.00 | Y72: =VLOOKUP($A72,'[3]All POs'!$A:$G,5,FALSE) -> 2023-06-19 | Z72: =VLOOKUP($A72,'[3]All POs'!$A:$G,7,FALSE) -> SAFETYMATE EASTERN CAPE | AA72: =YEAR(Table1[[#This Row],[Last PO date]]) -> 2023 | AB72: =$W$2-Table1[[#This Row],[Year]] -> 0 | AC72: =Table1[[#This Row],[Last PO Price]]*($W$1)^AB72 -> R58.00 | AD72: =Table1[[#This Row],[MRP]]*Table1[[#This Row],[Subtotal]] -> R20,996.00
A73: 035000047 | B73: =VLOOKUP(A73,[1]!Table93[[Material Number]:[Description]],4,FALSE) ->  | C73: 1113 | D73: =VLOOKUP(Table1[[#This Row],[Plant]],[2]Sheet1!$C:$G,5,FALSE) -> Maint | E73: =VLOOKUP(Table1[[#This Row],[Plant]],[2]Sheet1!$C:$I,7,FALSE) -> MAINTENANCE CAPE CORRIDOR | F73: 2023 | G73: M | H73: 1 | I73: 25.000 | J73: 20.000 | K73: 4.000 | L73: 0.000 | M73: 0.000 | N73: 0.000 | O73: 0.000 | P73: 0.000 | Q73: 0.000 | R73: 0.000 | S73: 0.000 | T73: 0.000 | U73: 0.000 | V73: =SUM(Table1[[#This Row],[Jan]:[Jan2]]) -> 49.000 | W73: =VLOOKUP($A73,'[3]All POs'!$A:$G,2,FALSE) -> 4503059393 | X73: =VLOOKUP($A73,'[3]All POs'!$A:$G,3,FALSE) -> R58.00 | Y73: =VLOOKUP($A73,'[3]All POs'!$A:$G,5,FALSE) -> 2023-06-19 | Z73: =VLOOKUP($A73,'[3]All POs'!$A:$G,7,FALSE) -> SAFETYMATE EASTERN CAPE | AA73: =YEAR(Table1[[#This Row],[Last PO date]]) -> 2023 | AB73: =$W$2-Table1[[#This Row],[Year]] -> 0 | AC73: =Table1[[#This Row],[Last PO Price]]*($W$1)^AB73 -> R58.00 | AD73: =Table1[[#This Row],[MRP]]*Table1[[#This Row],[Subtotal]] -> R2,842.00
A74: 035000047 | B74: =VLOOKUP(A74,[1]!Table93[[Material Number]:[Description]],4,FALSE) ->  | C74: 1115 | D74: =VLOOKUP(Table1[[#This Row],[Plant]],[2]Sheet1!$C:$G,5,FALSE) -> Maint | E74: =VLOOKUP(Table1[[#This Row],[Plant]],[2]Sheet1!$C:$I,7,FALSE) -> MAINTENANCE CAPE CORRIDOR | F74: 2018 | G74: M | H74: 1 | I74: 122.000 | J74: 100.000 | K74: 80.000 | L74: 100.000 | M74: 275.000 | N74: 152.000 | O74: 160.000 | P74: 165.000 | Q74: 236.000 | R74: 161.000 | S74: 120.000 | T74: 123.000 | U74: 0.000 | V74: =SUM(Table1[[#This Row],[Jan]:[Jan2]]) -> 1794.000 | W74: =VLOOKUP($A74,'[3]All POs'!$A:$G,2,FALSE) -> 4503059393 | X74: =VLOOKUP($A74,'[3]All POs'!$A:$G,3,FALSE) -> R58.00 | Y74: =VLOOKUP($A74,'[3]All POs'!$A:$G,5,FALSE) -> 2023-06-19 | Z74: =VLOOKUP($A74,'[3]All POs'!$A:$G,7,FALSE) -> SAFETYMATE EASTERN CAPE | AA74: =YEAR(Table1[[#This Row],[Last PO date]]) -> 2023 | AB74: =$W$2-Table1[[#This Row],[Year]] -> 0 | AC74: =Table1[[#This Row],[Last PO Price]]*($W$1)^AB74 -> R58.00 | AD74: =Table1[[#This Row],[MRP]]*Table1[[#This Row],[Subtotal]] -> R104,052.00
A75: 035000047 | B75: =VLOOKUP(A75,[1]!Table93[[Material Number]:[Description]],4,FALSE) ->  | C75: 1115 | D75: =VLOOKUP(Table1[[#This Row],[Plant]],[2]Sheet1!$C:$G,5,FALSE) -> Maint | E75: =VLOOKUP(Table1[[#This Row],[Plant]],[2]Sheet1!$C:$I,7,FALSE) -> MAINTENANCE CAPE CORRIDOR | F75: 2019 | G75: M | H75: 1 | I75: 125.000 | J75: 130.000 | K75: 60.000 | L75: 102.000 | M75: 150.000 | N75: 98.000 | O75: 234.000 | P75: 140.000 | Q75: 280.000 | R75: 6.000 | S75: 273.000 | T75: 140.000 | U75: 0.000 | V75: =SUM(Table1[[#This Row],[Jan]:[Jan2]]) -> 1738.000 | W75: =VLOOKUP($A75,'[3]All POs'!$A:$G,2,FALSE) -> 4503059393 | X75: =VLOOKUP($A75,'[3]All POs'!$A:$G,3,FALSE) -> R58.00 | Y75: =VLOOKUP($A75,'[3]All POs'!$A:$G,5,FALSE) -> 2023-06-19 | Z75: =VLOOKUP($A75,'[3]All POs'!$A:$G,7,FALSE) -> SAFETYMATE EASTERN CAPE | AA75: =YEAR(Table1[[#This Row],[Last PO date]]) -> 2023 | AB75: =$W$2-Table1[[#This Row],[Year]] -> 0 | AC75: =Table1[[#This Row],[Last PO Price]]*($W$1)^AB75 -> R58.00 | AD75: =Table1[[#This Row],[MRP]]*Table1[[#This Row],[Subtotal]] -> R100,804.00
A76: 035000047 | B76: =VLOOKUP(A76,[1]!Table93[[Material Number]:[Description]],4,FALSE) ->  | C76: 1115 | D76: =VLOOKUP(Table1[[#This Row],[Plant]],[2]Sheet1!$C:$G,5,FALSE) -> Maint | E76: =VLOOKUP(Table1[[#This Row],[Plant]],[2]Sheet1!$C:$I,7,FALSE) -> MAINTENANCE CAPE CORRIDOR | F76: 2020 | G76: M | H76: 1 | I76: 10.000 | J76: 17.000 | K76: 169.000 | L76: 0.000 | M76: 51.000 | N76: 0.000 | O76: 0.000 | P76: 20.000 | Q76: 165.000 | R76: 201.000 | S76: 21.000 | T76: 157.000 | U76: 0.000 | V76: =SUM(Table1[[#This Row],[Jan]:[Jan2]]) -> 811.000 | W76: =VLOOKUP($A76,'[3]All POs'!$A:$G,2,FALSE) -> 4503059393 | X76: =VLOOKUP($A76,'[3]All POs'!$A:$G,3,FALSE) -> R58.00 | Y76: =VLOOKUP($A76,'[3]All POs'!$A:$G,5,FALSE) -> 2023-06-19 | Z76: =VLOOKUP($A76,'[3]All POs'!$A:$G,7,FALSE) -> SAFETYMATE EASTERN CAPE | AA76: =YEAR(Table1[[#This Row],[Last PO date]]) -> 2023 | AB76: =$W$2-Table1[[#This Row],[Year]] -> 0 | AC76: =Table1[[#This Row],[Last PO Price]]*($W$1)^AB76 -> R58.00 | AD76: =Table1[[#This Row],[MRP]]*Table1[[#This Row],[Subtotal]] -> R47,038.00
A77: 035000047 | B77: =VLOOKUP(A77,[1]!Table93[[Material Number]:[Description]],4,FALSE) ->  | C77: 1115 | D77: =VLOOKUP(Table1[[#This Row],[Plant]],[2]Sheet1!$C:$G,5,FALSE) -> Maint | E77: =VLOOKUP(Table1[[#This Row],[Plant]],[2]Sheet1!$C:$I,7,FALSE) -> MAINTENANCE CAPE CORRIDOR | F77: 2021 | G77: M | H77: 1 | I77: 80.000 | J77: 30.000 | K77: 40.000 | L77: 95.000 | M77: 240.000 | N77: 30.000 | O77: 42.000 | P77: 138.000 | Q77: 221.000 | R77: 40.000 | S77: 60.000 | T77: 90.000 | U77: 0.000 | V77: =SUM(Table1[[#This Row],[Jan]:[Jan2]]) -> 1106.000 | W77: =VLOOKUP($A77,'[3]All POs'!$A:$G,2,FALSE) -> 4503059393 | X77: =VLOOKUP($A77,'[3]All POs'!$A:$G,3,FALSE) -> R58.00 | Y77: =VLOOKUP($A77,'[3]All POs'!$A:$G,5,FALSE) -> 2023-06-19 | Z77: =VLOOKUP($A77,'[3]All POs'!$A:$G,7,FALSE) -> SAFETYMATE EASTERN CAPE | AA77: =YEAR(Table1[[#This Row],[Last PO date]]) -> 2023 | AB77: =$W$2-Table1[[#This Row],[Year]] -> 0 | AC77: =Table1[[#This Row],[Last PO Price]]*($W$1)^AB77 -> R58.00 | AD77: =Table1[[#This Row],[MRP]]*Table1[[#This Row],[Subtotal]] -> R64,148.00
A78: 035000047 | B78: =VLOOKUP(A78,[1]!Table93[[Material Number]:[Description]],4,FALSE) ->  | C78: 1115 | D78: =VLOOKUP(Table1[[#This Row],[Plant]],[2]Sheet1!$C:$G,5,FALSE) -> Maint | E78: =VLOOKUP(Table1[[#This Row],[Plant]],[2]Sheet1!$C:$I,7,FALSE) -> MAINTENANCE CAPE CORRIDOR | F78: 2022 | G78: M | H78: 1 | I78: 50.000 | J78: 135.000 | K78: 3.000 | L78: 20.000 | M78: 42.000 | N78: 0.000 | O78: 0.000 | P78: 0.000 | Q78: 180.000 | R78: 418.000 | S78: 2.000 | T78: 0.000 | U78: 0.000 | V78: =SUM(Table1[[#This Row],[Jan]:[Jan2]]) -> 850.000 | W78: =VLOOKUP($A78,'[3]All POs'!$A:$G,2,FALSE) -> 4503059393 | X78: =VLOOKUP($A78,'[3]All POs'!$A:$G,3,FALSE) -> R58.00 | Y78: =VLOOKUP($A78,'[3]All POs'!$A:$G,5,FALSE) -> 2023-06-19 | Z78: =VLOOKUP($A78,'[3]All POs'!$A:$G,7,FALSE) -> SAFETYMATE EASTERN CAPE | AA78: =YEAR(Table1[[#This Row],[Last PO date]]) -> 2023 | AB78: =$W$2-Table1[[#This Row],[Year]] -> 0 | AC78: =Table1[[#This Row],[Last PO Price]]*($W$1)^AB78 -> R58.00 | AD78: =Table1[[#This Row],[MRP]]*Table1[[#This Row],[Subtotal]] -> R49,300.00
A79: 035000047 | B79: =VLOOKUP(A79,[1]!Table93[[Material Number]:[Description]],4,FALSE) ->  | C79: 1118 | D79: =VLOOKUP(Table1[[#This Row],[Plant]],[2]Sheet1!$C:$G,5,FALSE) -> Maint | E79: =VLOOKUP(Table1[[#This Row],[Plant]],[2]Sheet1!$C:$I,7,FALSE) -> MAINTENANCE CENTRAL CORRIDOR | F79: 2018 | G79: M | H79: 1 | I79: 22.000 | J79: 2.000 | K79: 5.000 | L79: 2.000 | M79: 33.000 | N79: 104.000 | O79: 44.000 | P79: 8.000 | Q79: 24.000 | R79: 61.000 | S79: 35.000 | T79: 36.000 | U79: 0.000 | V79: =SUM(Table1[[#This Row],[Jan]:[Jan2]]) -> 376.000 | W79: =VLOOKUP($A79,'[3]All POs'!$A:$G,2,FALSE) -> 4503059393 | X79: =VLOOKUP($A79,'[3]All POs'!$A:$G,3,FALSE) -> R58.00 | Y79: =VLOOKUP($A79,'[3]All POs'!$A:$G,5,FALSE) -> 2023-06-19 | Z79: =VLOOKUP($A79,'[3]All POs'!$A:$G,7,FALSE) -> SAFETYMATE EASTERN CAPE | AA79: =YEAR(Table1[[#This Row],[Last PO date]]) -> 2023 | AB79: =$W$2-Table1[[#This Row],[Year]] -> 0 | AC79: =Table1[[#This Row],[Last PO Price]]*($W$1)^AB79 -> R58.00 | AD79: =Table1[[#This Row],[MRP]]*Table1[[#This Row],[Subtotal]] -> R21,808.00
A80: 035000047 | B80: =VLOOKUP(A80,[1]!Table93[[Material Number]:[Description]],4,FALSE) ->  | C80: 1118 | D80: =VLOOKUP(Table1[[#This Row],[Plant]],[2]Sheet1!$C:$G,5,FALSE) -> Maint | E80: =VLOOKUP(Table1[[#This Row],[Plant]],[2]Sheet1!$C:$I,7,FALSE) -> MAINTENANCE CENTRAL CORRIDOR | F80: 2019 | G80: M | H80: 1 | I80: 26.000 | J80: 0.000 | K80: 0.000 | L80: 0.000 | M80: 21.000 | N80: 58.000 | O80: 51.000 | P80: 11.000 | Q80: 9.000 | R80: 25.000 | S80: 5.000 | T80: 5.000 | U80: 0.000 | V80: =SUM(Table1[[#This Row],[Jan]:[Jan2]]) -> 211.000 | W80: =VLOOKUP($A80,'[3]All POs'!$A:$G,2,FALSE) -> 4503059393 | X80: =VLOOKUP($A80,'[3]All POs'!$A:$G,3,FALSE) -> R58.00 | Y80: =VLOOKUP($A80,'[3]All POs'!$A:$G,5,FALSE) -> 2023-06-19 | Z80: =VLOOKUP($A80,'[3]All POs'!$A:$G,7,FALSE) -> SAFETYMATE EASTERN CAPE | AA80: =YEAR(Table1[[#This Row],[Last PO date]]) -> 2023 | AB80: =$W$2-Table1[[#This Row],[Year]] -> 0 | AC80: =Table1[[#This Row],[Last PO Price]]*($W$1)^AB80 -> R58.00 | AD80: =Table1[[#This Row],[MRP]]*Table1[[#This Row],[Subtotal]] -> R12,238.00
A81: 035000047 | B81: =VLOOKUP(A81,[1]!Table93[[Material Number]:[Description]],4,FALSE) ->  | C81: 1118 | D81: =VLOOKUP(Table1[[#This Row],[Plant]],[2]Sheet1!$C:$G,5,FALSE) -> Maint | E81: =VLOOKUP(Table1[[#This Row],[Plant]],[2]Sheet1!$C:$I,7,FALSE) -> MAINTENANCE CENTRAL CORRIDOR | F81: 2020 | G81: M | H81: 1 | I81: 15.000 | J81: 71.000 | K81: 40.000 | L81: 0.000 | M81: 5.000 | N81: 9.000 | O81: 21.000 | P81: 29.000 | Q81: 0.000 | R81: 75.000 | S81: 0.000 | T81: 17.000 | U81: 0.000 | V81: =SUM(Table1[[#This Row],[Jan]:[Jan2]]) -> 282.000 | W81: =VLOOKUP($A81,'[3]All POs'!$A:$G,2,FALSE) -> 4503059393 | X81: =VLOOKUP($A81,'[3]All POs'!$A:$G,3,FALSE) -> R58.00 | Y81: =VLOOKUP($A81,'[3]All POs'!$A:$G,5,FALSE) -> 2023-06-19 | Z81: =VLOOKUP($A81,'[3]All POs'!$A:$G,7,FALSE) -> SAFETYMATE EASTERN CAPE | AA81: =YEAR(Table1[[#This Row],[Last PO date]]) -> 2023 | AB81: =$W$2-Table1[[#This Row],[Year]] -> 0 | AC81: =Table1[[#This Row],[Last PO Price]]*($W$1)^AB81 -> R58.00 | AD81: =Table1[[#This Row],[MRP]]*Table1[[#This Row],[Subtotal]] -> R16,356.00
A82: 035000047 | B82: =VLOOKUP(A82,[1]!Table93[[Material Number]:[Description]],4,FALSE) ->  | C82: 1118 | D82: =VLOOKUP(Table1[[#This Row],[Plant]],[2]Sheet1!$C:$G,5,FALSE) -> Maint | E82: =VLOOKUP(Table1[[#This Row],[Plant]],[2]Sheet1!$C:$I,7,FALSE) -> MAINTENANCE CENTRAL CORRIDOR | F82: 2021 | G82: M | H82: 1 | I82: 22.000 | J82: 129.000 | K82: 48.000 | L82: 40.000 | M82: 48.000 | N82: 40.000 | O82: -74.000 | P82: 66.000 | Q82: 29.000 | R82: -46.000 | S82: 46.000 | T82: 0.000 | U82: 0.000 | V82: =SUM(Table1[[#This Row],[Jan]:[Jan2]]) -> 348.000 | W82: =VLOOKUP($A82,'[3]All POs'!$A:$G,2,FALSE) -> 4503059393 | X82: =VLOOKUP($A82,'[3]All POs'!$A:$G,3,FALSE) -> R58.00 | Y82: =VLOOKUP($A82,'[3]All POs'!$A:$G,5,FALSE) -> 2023-06-19 | Z82: =VLOOKUP($A82,'[3]All POs'!$A:$G,7,FALSE) -> SAFETYMATE EASTERN CAPE | AA82: =YEAR(Table1[[#This Row],[Last PO date]]) -> 2023 | AB82: =$W$2-Table1[[#This Row],[Year]] -> 0 | AC82: =Table1[[#This Row],[Last PO Price]]*($W$1)^AB82 -> R58.00 | AD82: =Table1[[#This Row],[MRP]]*Table1[[#This Row],[Subtotal]] -> R20,184.00
A83: 035000047 | B83: =VLOOKUP(A83,[1]!Table93[[Material Number]:[Description]],4,FALSE) ->  | C83: 1118 | D83: =VLOOKUP(Table1[[#This Row],[Plant]],[2]Sheet1!$C:$G,5,FALSE) -> Maint | E83: =VLOOKUP(Table1[[#This Row],[Plant]],[2]Sheet1!$C:$I,7,FALSE) -> MAINTENANCE CENTRAL CORRIDOR | F83: 2022 | G83: M | H83: 1 | I83: 0.000 | J83: 5.000 | K83: 95.000 | L83: 54.000 | M83: 17.000 | N83: 0.000 | O83: 0.000 | P83: 0.000 | Q83: 0.000 | R83: 0.000 | S83: 0.000 | T83: 0.000 | U83: 0.000 | V83: =SUM(Table1[[#This Row],[Jan]:[Jan2]]) -> 171.000 | W83: =VLOOKUP($A83,'[3]All POs'!$A:$G,2,FALSE) -> 4503059393 | X83: =VLOOKUP($A83,'[3]All POs'!$A:$G,3,FALSE) -> R58.00 | Y83: =VLOOKUP($A83,'[3]All POs'!$A:$G,5,FALSE) -> 2023-06-19 | Z83: =VLOOKUP($A83,'[3]All POs'!$A:$G,7,FALSE) -> SAFETYMATE EASTERN CAPE | AA83: =YEAR(Table1[[#This Row],[Last PO date]]) -> 2023 | AB83: =$W$2-Table1[[#This Row],[Year]] -> 0 | AC83: =Table1[[#This Row],[Last PO Price]]*($W$1)^AB83 -> R58.00 | AD83: =Table1[[#This Row],[MRP]]*Table1[[#This Row],[Subtotal]] -> R9,918.00
A84: 035000047 | B84: =VLOOKUP(A84,[1]!Table93[[Material Number]:[Description]],4,FALSE) ->  | C84: 1118 | D84: =VLOOKUP(Table1[[#This Row],[Plant]],[2]Sheet1!$C:$G,5,FALSE) -> Maint | E84: =VLOOKUP(Table1[[#This Row],[Plant]],[2]Sheet1!$C:$I,7,FALSE) -> MAINTENANCE CENTRAL CORRIDOR | F84: 2023 | G84: M | H84: 1 | I84: 0.000 | J84: 0.000 | K84: 0.000 | L84: 0.000 | M84: 2.000 | N84: 13.000 | O84: 2.000 | P84: 0.000 | Q84: 0.000 | R84: 0.000 | S84: 0.000 | T84: 0.000 | U84: 0.000 | V84: =SUM(Table1[[#This Row],[Jan]:[Jan2]]) -> 17.000 | W84: =VLOOKUP($A84,'[3]All POs'!$A:$G,2,FALSE) -> 4503059393 | X84: =VLOOKUP($A84,'[3]All POs'!$A:$G,3,FALSE) -> R58.00 | Y84: =VLOOKUP($A84,'[3]All POs'!$A:$G,5,FALSE) -> 2023-06-19 | Z84: =VLOOKUP($A84,'[3]All POs'!$A:$G,7,FALSE) -> SAFETYMATE EASTERN CAPE | AA84: =YEAR(Table1[[#This Row],[Last PO date]]) -> 2023 | AB84: =$W$2-Table1[[#This Row],[Year]] -> 0 | AC84: =Table1[[#This Row],[Last PO Price]]*($W$1)^AB84 -> R58.00 | AD84: =Table1[[#This Row],[MRP]]*Table1[[#This Row],[Subtotal]] -> R986.00
A85: 035000047 | B85: =VLOOKUP(A85,[1]!Table93[[Material Number]:[Description]],4,FALSE) ->  | C85: 1123 | D85: =VLOOKUP(Table1[[#This Row],[Plant]],[2]Sheet1!$C:$G,5,FALSE) -> Maint | E85: =VLOOKUP(Table1[[#This Row],[Plant]],[2]Sheet1!$C:$I,7,FALSE) -> MAINTENANCE CAPE CORRIDOR | F85: 2021 | G85: M | H85: 1 | I85: 83.000 | J85: 20.000 | K85: 10.000 | L85: 0.000 | M85: 40.000 | N85: 47.000 | O85: 0.000 | P85: 0.000 | Q85: 0.000 | R85: 0.000 | S85: 153.000 | T85: 10.000 | U85: 0.000 | V85: =SUM(Table1[[#This Row],[Jan]:[Jan2]]) -> 363.000 | W85: =VLOOKUP($A85,'[3]All POs'!$A:$G,2,FALSE) -> 4503059393 | X85: =VLOOKUP($A85,'[3]All POs'!$A:$G,3,FALSE) -> R58.00 | Y85: =VLOOKUP($A85,'[3]All POs'!$A:$G,5,FALSE) -> 2023-06-19 | Z85: =VLOOKUP($A85,'[3]All POs'!$A:$G,7,FALSE) -> SAFETYMATE EASTERN CAPE | AA85: =YEAR(Table1[[#This Row],[Last PO date]]) -> 2023 | AB85: =$W$2-Table1[[#This Row],[Year]] -> 0 | AC85: =Table1[[#This Row],[Last PO Price]]*($W$1)^AB85 -> R58.00 | AD85: =Table1[[#This Row],[MRP]]*Table1[[#This Row],[Subtotal]] -> R21,054.00
A86: 035000047 | B86: =VLOOKUP(A86,[1]!Table93[[Material Number]:[Description]],4,FALSE) ->  | C86: 1123 | D86: =VLOOKUP(Table1[[#This Row],[Plant]],[2]Sheet1!$C:$G,5,FALSE) -> Maint | E86: =VLOOKUP(Table1[[#This Row],[Plant]],[2]Sheet1!$C:$I,7,FALSE) -> MAINTENANCE CAPE CORRIDOR | F86: 2022 | G86: M | H86: 1 | I86: 44.000 | J86: 30.000 | K86: 0.000 | L86: 40.000 | M86: 20.000 | N86: 30.000 | O86: 33.000 | P86: 0.000 | Q86: 0.000 | R86: 10.000 | S86: 0.000 | T86: 0.000 | U86: 0.000 | V86: =SUM(Table1[[#This Row],[Jan]:[Jan2]]) -> 207.000 | W86: =VLOOKUP($A86,'[3]All POs'!$A:$G,2,FALSE) -> 4503059393 | X86: =VLOOKUP($A86,'[3]All POs'!$A:$G,3,FALSE) -> R58.00 | Y86: =VLOOKUP($A86,'[3]All POs'!$A:$G,5,FALSE) -> 2023-06-19 | Z86: =VLOOKUP($A86,'[3]All POs'!$A:$G,7,FALSE) -> SAFETYMATE EASTERN CAPE | AA86: =YEAR(Table1[[#This Row],[Last PO date]]) -> 2023 | AB86: =$W$2-Table1[[#This Row],[Year]] -> 0 | AC86: =Table1[[#This Row],[Last PO Price]]*($W$1)^AB86 -> R58.00 | AD86: =Table1[[#This Row],[MRP]]*Table1[[#This Row],[Subtotal]] -> R12,006.00
A87: 035000047 | B87: =VLOOKUP(A87,[1]!Table93[[Material Number]:[Description]],4,FALSE) ->  | C87: 1123 | D87: =VLOOKUP(Table1[[#This Row],[Plant]],[2]Sheet1!$C:$G,5,FALSE) -> Maint | E87: =VLOOKUP(Table1[[#This Row],[Plant]],[2]Sheet1!$C:$I,7,FALSE) -> MAINTENANCE CAPE CORRIDOR | F87: 2023 | G87: M | H87: 1 | I87: 13.000 | J87: 77.000 | K87: 0.000 | L87: 0.000 | M87: 0.000 | N87: 25.000 | O87: 0.000 | P87: 0.000 | Q87: 0.000 | R87: 0.000 | S87: 0.000 | T87: 0.000 | U87: 0.000 | V87: =SUM(Table1[[#This Row],[Jan]:[Jan2]]) -> 115.000 | W87: =VLOOKUP($A87,'[3]All POs'!$A:$G,2,FALSE) -> 4503059393 | X87: =VLOOKUP($A87,'[3]All POs'!$A:$G,3,FALSE) -> R58.00 | Y87: =VLOOKUP($A87,'[3]All POs'!$A:$G,5,FALSE) -> 2023-06-19 | Z87: =VLOOKUP($A87,'[3]All POs'!$A:$G,7,FALSE) -> SAFETYMATE EASTERN CAPE | AA87: =YEAR(Table1[[#This Row],[Last PO date]]) -> 2023 | AB87: =$W$2-Table1[[#This Row],[Year]] -> 0 | AC87: =Table1[[#This Row],[Last PO Price]]*($W$1)^AB87 -> R58.00 | AD87: =Table1[[#This Row],[MRP]]*Table1[[#This Row],[Subtotal]] -> R6,670.00
A88: 035000047 | B88: =VLOOKUP(A88,[1]!Table93[[Material Number]:[Description]],4,FALSE) ->  | C88: 1125 | D88: =VLOOKUP(Table1[[#This Row],[Plant]],[2]Sheet1!$C:$G,5,FALSE) -> Maint | E88: =VLOOKUP(Table1[[#This Row],[Plant]],[2]Sheet1!$C:$I,7,FALSE) -> MAINTENANCE CAPE CORRIDOR | F88: 2018 | G88: M | H88: 1 | I88: 50.000 | J88: 50.000 | K88: 20.000 | L88: 0.000 | M88: 0.000 | N88: 0.000 | O88: 145.000 | P88: 30.000 | Q88: 10.000 | R88: 0.000 | S88: 10.000 | T88: 0.000 | U88: 0.000 | V88: =SUM(Table1[[#This Row],[Jan]:[Jan2]]) -> 315.000 | W88: =VLOOKUP($A88,'[3]All POs'!$A:$G,2,FALSE) -> 4503059393 | X88: =VLOOKUP($A88,'[3]All POs'!$A:$G,3,FALSE) -> R58.00 | Y88: =VLOOKUP($A88,'[3]All POs'!$A:$G,5,FALSE) -> 2023-06-19 | Z88: =VLOOKUP($A88,'[3]All POs'!$A:$G,7,FALSE) -> SAFETYMATE EASTERN CAPE | AA88: =YEAR(Table1[[#This Row],[Last PO date]]) -> 2023 | AB88: =$W$2-Table1[[#This Row],[Year]] -> 0 | AC88: =Table1[[#This Row],[Last PO Price]]*($W$1)^AB88 -> R58.00 | AD88: =Table1[[#This Row],[MRP]]*Table1[[#This Row],[Subtotal]] -> R18,270.00
A89: 035000047 | B89: =VLOOKUP(A89,[1]!Table93[[Material Number]:[Description]],4,FALSE) ->  | C89: 1125 | D89: =VLOOKUP(Table1[[#This Row],[Plant]],[2]Sheet1!$C:$G,5,FALSE) -> Maint | E89: =VLOOKUP(Table1[[#This Row],[Plant]],[2]Sheet1!$C:$I,7,FALSE) -> MAINTENANCE CAPE CORRIDOR | F89: 2019 | G89: M | H89: 1 | I89: 5.000 | J89: 0.000 | K89: 5.000 | L89: 0.000 | M89: 0.000 | N89: 0.000 | O89: 0.000 | P89: 0.000 | Q89: 0.000 | R89: 0.000 | S89: 0.000 | T89: 0.000 | U89: 0.000 | V89: =SUM(Table1[[#This Row],[Jan]:[Jan2]]) -> 10.000 | W89: =VLOOKUP($A89,'[3]All POs'!$A:$G,2,FALSE) -> 4503059393 | X89: =VLOOKUP($A89,'[3]All POs'!$A:$G,3,FALSE) -> R58.00 | Y89: =VLOOKUP($A89,'[3]All POs'!$A:$G,5,FALSE) -> 2023-06-19 | Z89: =VLOOKUP($A89,'[3]All POs'!$A:$G,7,FALSE) -> SAFETYMATE EASTERN CAPE | AA89: =YEAR(Table1[[#This Row],[Last PO date]]) -> 2023 | AB89: =$W$2-Table1[[#This Row],[Year]] -> 0 | AC89: =Table1[[#This Row],[Last PO Price]]*($W$1)^AB89 -> R58.00 | AD89: =Table1[[#This Row],[MRP]]*Table1[[#This Row],[Subtotal]] -> R580.00
A90: 035000047 | B90: =VLOOKUP(A90,[1]!Table93[[Material Number]:[Description]],4,FALSE) ->  | C90: 1125 | D90: =VLOOKUP(Table1[[#This Row],[Plant]],[2]Sheet1!$C:$G,5,FALSE) -> Maint | E90: =VLOOKUP(Table1[[#This Row],[Plant]],[2]Sheet1!$C:$I,7,FALSE) -> MAINTENANCE CAPE CORRIDOR | F90: 2020 | G90: M | H90: 1 | I90: 40.000 | J90: 10.000 | K90: 20.000 | L90: 50.000 | M90: 0.000 | N90: 0.000 | O90: 13.000 | P90: 0.000 | Q90: 50.000 | R90: 70.000 | S90: 40.000 | T90: 15.000 | U90: 0.000 | V90: =SUM(Table1[[#This Row],[Jan]:[Jan2]]) -> 308.000 | W90: =VLOOKUP($A90,'[3]All POs'!$A:$G,2,FALSE) -> 4503059393 | X90: =VLOOKUP($A90,'[3]All POs'!$A:$G,3,FALSE) -> R58.00 | Y90: =VLOOKUP($A90,'[3]All POs'!$A:$G,5,FALSE) -> 2023-06-19 | Z90: =VLOOKUP($A90,'[3]All POs'!$A:$G,7,FALSE) -> SAFETYMATE EASTERN CAPE | AA90: =YEAR(Table1[[#This Row],[Last PO date]]) -> 2023 | AB90: =$W$2-Table1[[#This Row],[Year]] -> 0 | AC90: =Table1[[#This Row],[Last PO Price]]*($W$1)^AB90 -> R58.00 | AD90: =Table1[[#This Row],[MRP]]*Table1[[#This Row],[Subtotal]] -> R17,864.00
A91: 035000047 | B91: =VLOOKUP(A91,[1]!Table93[[Material Number]:[Description]],4,FALSE) ->  | C91: 1125 | D91: =VLOOKUP(Table1[[#This Row],[Plant]],[2]Sheet1!$C:$G,5,FALSE) -> Maint | E91: =VLOOKUP(Table1[[#This Row],[Plant]],[2]Sheet1!$C:$I,7,FALSE) -> MAINTENANCE CAPE CORRIDOR | F91: 2021 | G91: M | H91: 1 | I91: 5.000 | J91: 0.000 | K91: 0.000 | L91: 0.000 | M91: 0.000 | N91: 0.000 | O91: 0.000 | P91: 0.000 | Q91: 0.000 | R91: 0.000 | S91: 0.000 | T91: 0.000 | U91: 0.000 | V91: =SUM(Table1[[#This Row],[Jan]:[Jan2]]) -> 5.000 | W91: =VLOOKUP($A91,'[3]All POs'!$A:$G,2,FALSE) -> 4503059393 | X91: =VLOOKUP($A91,'[3]All POs'!$A:$G,3,FALSE) -> R58.00 | Y91: =VLOOKUP($A91,'[3]All POs'!$A:$G,5,FALSE) -> 2023-06-19 | Z91: =VLOOKUP($A91,'[3]All POs'!$A:$G,7,FALSE) -> SAFETYMATE EASTERN CAPE | AA91: =YEAR(Table1[[#This Row],[Last PO date]]) -> 2023 | AB91: =$W$2-Table1[[#This Row],[Year]] -> 0 | AC91: =Table1[[#This Row],[Last PO Price]]*($W$1)^AB91 -> R58.00 | AD91: =Table1[[#This Row],[MRP]]*Table1[[#This Row],[Subtotal]] -> R290.00
A92: 035000047 | B92: =VLOOKUP(A92,[1]!Table93[[Material Number]:[Description]],4,FALSE) ->  | C92: 1125 | D92: =VLOOKUP(Table1[[#This Row],[Plant]],[2]Sheet1!$C:$G,5,FALSE) -> Maint | E92: =VLOOKUP(Table1[[#This Row],[Plant]],[2]Sheet1!$C:$I,7,FALSE) -> MAINTENANCE CAPE CORRIDOR | F92: 2022 | G92: M | H92: 1 | I92: 0.000 | J92: 0.000 | K92: 0.000 | L92: 5.000 | M92: 1.000 | N92: 81.000 | O92: 3.000 | P92: 0.000 | Q92: 0.000 | R92: 0.000 | S92: 0.000 | T92: 0.000 | U92: 0.000 | V92: =SUM(Table1[[#This Row],[Jan]:[Jan2]]) -> 90.000 | W92: =VLOOKUP($A92,'[3]All POs'!$A:$G,2,FALSE) -> 4503059393 | X92: =VLOOKUP($A92,'[3]All POs'!$A:$G,3,FALSE) -> R58.00 | Y92: =VLOOKUP($A92,'[3]All POs'!$A:$G,5,FALSE) -> 2023-06-19 | Z92: =VLOOKUP($A92,'[3]All POs'!$A:$G,7,FALSE) -> SAFETYMATE EASTERN CAPE | AA92: =YEAR(Table1[[#This Row],[Last PO date]]) -> 2023 | AB92: =$W$2-Table1[[#This Row],[Year]] -> 0 | AC92: =Table1[[#This Row],[Last PO Price]]*($W$1)^AB92 -> R58.00 | AD92: =Table1[[#This Row],[MRP]]*Table1[[#This Row],[Subtotal]] -> R5,220.00
A93: 035000047 | B93: =VLOOKUP(A93,[1]!Table93[[Material Number]:[Description]],4,FALSE) ->  | C93: 1138 | D93: =VLOOKUP(Table1[[#This Row],[Plant]],[2]Sheet1!$C:$G,5,FALSE) -> Maint | E93: =VLOOKUP(Table1[[#This Row],[Plant]],[2]Sheet1!$C:$I,7,FALSE) -> MAINTENANCE NOTH EAST CORRIDOR | F93: 2018 | G93: M | H93: 1 | I93: 0.000 | J93: 30.000 | K93: 0.000 | L93: 78.000 | M93: 128.000 | N93: 172.000 | O93: 58.000 | P93: 53.000 | Q93: 94.000 | R93: 0.000 | S93: 167.000 | T93: 25.000 | U93: 0.000 | V93: =SUM(Table1[[#This Row],[Jan]:[Jan2]]) -> 805.000 | W93: =VLOOKUP($A93,'[3]All POs'!$A:$G,2,FALSE) -> 4503059393 | X93: =VLOOKUP($A93,'[3]All POs'!$A:$G,3,FALSE) -> R58.00 | Y93: =VLOOKUP($A93,'[3]All POs'!$A:$G,5,FALSE) -> 2023-06-19 | Z93: =VLOOKUP($A93,'[3]All POs'!$A:$G,7,FALSE) -> SAFETYMATE EASTERN CAPE | AA93: =YEAR(Table1[[#This Row],[Last PO date]]) -> 2023 | AB93: =$W$2-Table1[[#This Row],[Year]] -> 0 | AC93: =Table1[[#This Row],[Last PO Price]]*($W$1)^AB93 -> R58.00 | AD93: =Table1[[#This Row],[MRP]]*Table1[[#This Row],[Subtotal]] -> R46,690.00
A94: 035000047 | B94: =VLOOKUP(A94,[1]!Table93[[Material Number]:[Description]],4,FALSE) ->  | C94: 1138 | D94: =VLOOKUP(Table1[[#This Row],[Plant]],[2]Sheet1!$C:$G,5,FALSE) -> Maint | E94: =VLOOKUP(Table1[[#This Row],[Plant]],[2]Sheet1!$C:$I,7,FALSE) -> MAINTENANCE NOTH EAST CORRIDOR | F94: 2019 | G94: M | H94: 1 | I94: 68.000 | J94: 14.000 | K94: 25.000 | L94: 101.000 | M94: 30.000 | N94: 11.000 | O94: 70.000 | P94: 28.000 | Q94: 11.000 | R94: 94.000 | S94: 4.000 | T94: 2.000 | U94: 0.000 | V94: =SUM(Table1[[#This Row],[Jan]:[Jan2]]) -> 458.000 | W94: =VLOOKUP($A94,'[3]All POs'!$A:$G,2,FALSE) -> 4503059393 | X94: =VLOOKUP($A94,'[3]All POs'!$A:$G,3,FALSE) -> R58.00 | Y94: =VLOOKUP($A94,'[3]All POs'!$A:$G,5,FALSE) -> 2023-06-19 | Z94: =VLOOKUP($A94,'[3]All POs'!$A:$G,7,FALSE) -> SAFETYMATE EASTERN CAPE | AA94: =YEAR(Table1[[#This Row],[Last PO date]]) -> 2023 | AB94: =$W$2-Table1[[#This Row],[Year]] -> 0 | AC94: =Table1[[#This Row],[Last PO Price]]*($W$1)^AB94 -> R58.00 | AD94: =Table1[[#This Row],[MRP]]*Table1[[#This Row],[Subtotal]] -> R26,564.00
A95: 035000047 | B95: =VLOOKUP(A95,[1]!Table93[[Material Number]:[Description]],4,FALSE) ->  | C95: 1138 | D95: =VLOOKUP(Table1[[#This Row],[Plant]],[2]Sheet1!$C:$G,5,FALSE) -> Maint | E95: =VLOOKUP(Table1[[#This Row],[Plant]],[2]Sheet1!$C:$I,7,FALSE) -> MAINTENANCE NOTH EAST CORRIDOR | F95: 2020 | G95: M | H95: 1 | I95: 8.000 | J95: 87.000 | K95: 5.000 | L95: 0.000 | M95: 0.000 | N95: 104.000 | O95: 6.000 | P95: 40.000 | Q95: 18.000 | R95: 9.000 | S95: 5.000 | T95: 5.000 | U95: 0.000 | V95: =SUM(Table1[[#This Row],[Jan]:[Jan2]]) -> 287.000 | W95: =VLOOKUP($A95,'[3]All POs'!$A:$G,2,FALSE) -> 4503059393 | X95: =VLOOKUP($A95,'[3]All POs'!$A:$G,3,FALSE) -> R58.00 | Y95: =VLOOKUP($A95,'[3]All POs'!$A:$G,5,FALSE) -> 2023-06-19 | Z95: =VLOOKUP($A95,'[3]All POs'!$A:$G,7,FALSE) -> SAFETYMATE EASTERN CAPE | AA95: =YEAR(Table1[[#This Row],[Last PO date]]) -> 2023 | AB95: =$W$2-Table1[[#This Row],[Year]] -> 0 | AC95: =Table1[[#This Row],[Last PO Price]]*($W$1)^AB95 -> R58.00 | AD95: =Table1[[#This Row],[MRP]]*Table1[[#This Row],[Subtotal]] -> R16,646.00
A96: 035000047 | B96: =VLOOKUP(A96,[1]!Table93[[Material Number]:[Description]],4,FALSE) ->  | C96: 1138 | D96: =VLOOKUP(Table1[[#This Row],[Plant]],[2]Sheet1!$C:$G,5,FALSE) -> Maint | E96: =VLOOKUP(Table1[[#This Row],[Plant]],[2]Sheet1!$C:$I,7,FALSE) -> MAINTENANCE NOTH EAST CORRIDOR | F96: 2021 | G96: M | H96: 1 | I96: 32.000 | J96: 40.000 | K96: 41.000 | L96: 13.000 | M96: 20.000 | N96: 46.000 | O96: 152.000 | P96: 0.000 | Q96: 53.000 | R96: 25.000 | S96: 0.000 | T96: 36.000 | U96: 0.000 | V96: =SUM(Table1[[#This Row],[Jan]:[Jan2]]) -> 458.000 | W96: =VLOOKUP($A96,'[3]All POs'!$A:$G,2,FALSE) -> 4503059393 | X96: =VLOOKUP($A96,'[3]All POs'!$A:$G,3,FALSE) -> R58.00 | Y96: =VLOOKUP($A96,'[3]All POs'!$A:$G,5,FALSE) -> 2023-06-19 | Z96: =VLOOKUP($A96,'[3]All POs'!$A:$G,7,FALSE) -> SAFETYMATE EASTERN CAPE | AA96: =YEAR(Table1[[#This Row],[Last PO date]]) -> 2023 | AB96: =$W$2-Table1[[#This Row],[Year]] -> 0 | AC96: =Table1[[#This Row],[Last PO Price]]*($W$1)^AB96 -> R58.00 | AD96: =Table1[[#This Row],[MRP]]*Table1[[#This Row],[Subtotal]] -> R26,564.00
A97: 035000047 | B97: =VLOOKUP(A97,[1]!Table93[[Material Number]:[Description]],4,FALSE) ->  | C97: 1138 | D97: =VLOOKUP(Table1[[#This Row],[Plant]],[2]Sheet1!$C:$G,5,FALSE) -> Maint | E97: =VLOOKUP(Table1[[#This Row],[Plant]],[2]Sheet1!$C:$I,7,FALSE) -> MAINTENANCE NOTH EAST CORRIDOR | F97: 2022 | G97: M | H97: 1 | I97: 4.000 | J97: 12.000 | K97: 83.000 | L97: 88.000 | M97: 54.000 | N97: 38.000 | O97: 25.000 | P97: 49.000 | Q97: 0.000 | R97: 0.000 | S97: 0.000 | T97: 15.000 | U97: 0.000 | V97: =SUM(Table1[[#This Row],[Jan]:[Jan2]]) -> 368.000 | W97: =VLOOKUP($A97,'[3]All POs'!$A:$G,2,FALSE) -> 4503059393 | X97: =VLOOKUP($A97,'[3]All POs'!$A:$G,3,FALSE) -> R58.00 | Y97: =VLOOKUP($A97,'[3]All POs'!$A:$G,5,FALSE) -> 2023-06-19 | Z97: =VLOOKUP($A97,'[3]All POs'!$A:$G,7,FALSE) -> SAFETYMATE EASTERN CAPE | AA97: =YEAR(Table1[[#This Row],[Last PO date]]) -> 2023 | AB97: =$W$2-Table1[[#This Row],[Year]] -> 0 | AC97: =Table1[[#This Row],[Last PO Price]]*($W$1)^AB97 -> R58.00 | AD97: =Table1[[#This Row],[MRP]]*Table1[[#This Row],[Subtotal]] -> R21,344.00
A98: 035000047 | B98: =VLOOKUP(A98,[1]!Table93[[Material Number]:[Description]],4,FALSE) ->  | C98: 1138 | D98: =VLOOKUP(Table1[[#This Row],[Plant]],[2]Sheet1!$C:$G,5,FALSE) -> Maint | E98: =VLOOKUP(Table1[[#This Row],[Plant]],[2]Sheet1!$C:$I,7,FALSE) -> MAINTENANCE NOTH EAST CORRIDOR | F98: 2023 | G98: M | H98: 1 | I98: 2.000 | J98: 85.000 | K98: 118.000 | L98: 20.000 | M98: 124.000 | N98: 138.000 | O98: 0.000 | P98: 0.000 | Q98: 0.000 | R98: 0.000 | S98: 0.000 | T98: 0.000 | U98: 0.000 | V98: =SUM(Table1[[#This Row],[Jan]:[Jan2]]) -> 487.000 | W98: =VLOOKUP($A98,'[3]All POs'!$A:$G,2,FALSE) -> 4503059393 | X98: =VLOOKUP($A98,'[3]All POs'!$A:$G,3,FALSE) -> R58.00 | Y98: =VLOOKUP($A98,'[3]All POs'!$A:$G,5,FALSE) -> 2023-06-19 | Z98: =VLOOKUP($A98,'[3]All POs'!$A:$G,7,FALSE) -> SAFETYMATE EASTERN CAPE | AA98: =YEAR(Table1[[#This Row],[Last PO date]]) -> 2023 | AB98: =$W$2-Table1[[#This Row],[Year]] -> 0 | AC98: =Table1[[#This Row],[Last PO Price]]*($W$1)^AB98 -> R58.00 | AD98: =Table1[[#This Row],[MRP]]*Table1[[#This Row],[Subtotal]] -> R28,246.00
A99: 035000047 | B99: =VLOOKUP(A99,[1]!Table93[[Material Number]:[Description]],4,FALSE) ->  | C99: 1151 | D99: =VLOOKUP(Table1[[#This Row],[Plant]],[2]Sheet1!$C:$G,5,FALSE) -> Maint | E99: =VLOOKUP(Table1[[#This Row],[Plant]],[2]Sheet1!$C:$I,7,FALSE) -> MAINTENANCE ORE CORRIDOR | F99: 2018 | G99: M | H99: 1 | I99: 85.000 | J99: 241.000 | K99: 105.000 | L99: 53.000 | M99: 330.000 | N99: 185.000 | O99: 195.000 | P99: 217.000 | Q99: 210.000 | R99: 260.000 | S99: 245.000 | T99: 50.000 | U99: 0.000 | V99: =SUM(Table1[[#This Row],[Jan]:[Jan2]]) -> 2176.000 | W99: =VLOOKUP($A99,'[3]All POs'!$A:$G,2,FALSE) -> 4503059393 | X99: =VLOOKUP($A99,'[3]All POs'!$A:$G,3,FALSE) -> R58.00 | Y99: =VLOOKUP($A99,'[3]All POs'!$A:$G,5,FALSE) -> 2023-06-19 | Z99: =VLOOKUP($A99,'[3]All POs'!$A:$G,7,FALSE) -> SAFETYMATE EASTERN CAPE | AA99: =YEAR(Table1[[#This Row],[Last PO date]]) -> 2023 | AB99: =$W$2-Table1[[#This Row],[Year]] -> 0 | AC99: =Table1[[#This Row],[Last PO Price]]*($W$1)^AB99 -> R58.00 | AD99: =Table1[[#This Row],[MRP]]*Table1[[#This Row],[Subtotal]] -> R126,208.00
A100: 035000047 | B100: =VLOOKUP(A100,[1]!Table93[[Material Number]:[Description]],4,FALSE) ->  | C100: 1151 | D100: =VLOOKUP(Table1[[#This Row],[Plant]],[2]Sheet1!$C:$G,5,FALSE) -> Maint | E100: =VLOOKUP(Table1[[#This Row],[Plant]],[2]Sheet1!$C:$I,7,FALSE) -> MAINTENANCE ORE CORRIDOR | F100: 2019 | G100: M | H100: 1 | I100: 175.000 | J100: 150.000 | K100: 175.000 | L100: 185.000 | M100: 340.000 | N100: 0.000 | O100: 0.000 | P100: 0.000 | Q100: 725.000 | R100: 170.000 | S100: 130.000 | T100: 10.000 | U100: 0.000 | V100: =SUM(Table1[[#This Row],[Jan]:[Jan2]]) -> 2060.000 | W100: =VLOOKUP($A100,'[3]All POs'!$A:$G,2,FALSE) -> 4503059393 | X100: =VLOOKUP($A100,'[3]All POs'!$A:$G,3,FALSE) -> R58.00 | Y100: =VLOOKUP($A100,'[3]All POs'!$A:$G,5,FALSE) -> 2023-06-19 | Z100: =VLOOKUP($A100,'[3]All POs'!$A:$G,7,FALSE) -> SAFETYMATE EASTERN CAPE | AA100: =YEAR(Table1[[#This Row],[Last PO date]]) -> 2023 | AB100: =$W$2-Table1[[#This Row],[Year]] -> 0 | AC100: =Table1[[#This Row],[Last PO Price]]*($W$1)^AB100 -> R58.00 | AD100: =Table1[[#This Row],[MRP]]*Table1[[#This Row],[Subtotal]] -> R119,480.00
A101: 035000047 | B101: =VLOOKUP(A101,[1]!Table93[[Material Number]:[Description]],4,FALSE) ->  | C101: 1151 | D101: =VLOOKUP(Table1[[#This Row],[Plant]],[2]Sheet1!$C:$G,5,FALSE) -> Maint | E101: =VLOOKUP(Table1[[#This Row],[Plant]],[2]Sheet1!$C:$I,7,FALSE) -> MAINTENANCE ORE CORRIDOR | F101: 2020 | G101: M | H101: 1 | I101: 270.000 | J101: 70.000 | K101: 0.000 | L101: 20.000 | M101: 380.000 | N101: 70.000 | O101: 305.000 | P101: 350.000 | Q101: 410.000 | R101: 214.000 | S101: 0.000 | T101: 324.000 | U101: 0.000 | V101: =SUM(Table1[[#This Row],[Jan]:[Jan2]]) -> 2413.000 | W101: =VLOOKUP($A101,'[3]All POs'!$A:$G,2,FALSE) -> 4503059393 | X101: =VLOOKUP($A101,'[3]All POs'!$A:$G,3,FALSE) -> R58.00 | Y101: =VLOOKUP($A101,'[3]All POs'!$A:$G,5,FALSE) -> 2023-06-19 | Z101: =VLOOKUP($A101,'[3]All POs'!$A:$G,7,FALSE) -> SAFETYMATE EASTERN CAPE | AA101: =YEAR(Table1[[#This Row],[Last PO date]]) -> 2023 | AB101: =$W$2-Table1[[#This Row],[Year]] -> 0 | AC101: =Table1[[#This Row],[Last PO Price]]*($W$1)^AB101 -> R58.00 | AD101: =Table1[[#This Row],[MRP]]*Table1[[#This Row],[Subtotal]] -> R139,954.00
A102: 035000047 | B102: =VLOOKUP(A102,[1]!Table93[[Material Number]:[Description]],4,FALSE) ->  | C102: 1151 | D102: =VLOOKUP(Table1[[#This Row],[Plant]],[2]Sheet1!$C:$G,5,FALSE) -> Maint | E102: =VLOOKUP(Table1[[#This Row],[Plant]],[2]Sheet1!$C:$I,7,FALSE) -> MAINTENANCE ORE CORRIDOR | F102: 2021 | G102: M | H102: 1 | I102: 305.000 | J102: 127.000 | K102: 310.000 | L102: 416.000 | M102: 420.000 | N102: 294.000 | O102: 350.000 | P102: 0.000 | Q102: 0.000 | R102: 500.000 | S102: 440.000 | T102: 120.000 | U102: 0.000 | V102: =SUM(Table1[[#This Row],[Jan]:[Jan2]]) -> 3282.000 | W102: =VLOOKUP($A102,'[3]All POs'!$A:$G,2,FALSE) -> 4503059393 | X102: =VLOOKUP($A102,'[3]All POs'!$A:$G,3,FALSE) -> R58.00 | Y102: =VLOOKUP($A102,'[3]All POs'!$A:$G,5,FALSE) -> 2023-06-19 | Z102: =VLOOKUP($A102,'[3]All POs'!$A:$G,7,FALSE) -> SAFETYMATE EASTERN CAPE | AA102: =YEAR(Table1[[#This Row],[Last PO date]]) -> 2023 | AB102: =$W$2-Table1[[#This Row],[Year]] -> 0 | AC102: =Table1[[#This Row],[Last PO Price]]*($W$1)^AB102 -> R58.00 | AD102: =Table1[[#This Row],[MRP]]*Table1[[#This Row],[Subtotal]] -> R190,356.00
A103: 035000047 | B103: =VLOOKUP(A103,[1]!Table93[[Material Number]:[Description]],4,FALSE) ->  | C103: 1151 | D103: =VLOOKUP(Table1[[#This Row],[Plant]],[2]Sheet1!$C:$G,5,FALSE) -> Maint | E103: =VLOOKUP(Table1[[#This Row],[Plant]],[2]Sheet1!$C:$I,7,FALSE) -> MAINTENANCE ORE CORRIDOR | F103: 2022 | G103: M | H103: 1 | I103: 340.000 | J103: 0.000 | K103: 777.000 | L103: 110.000 | M103: 254.000 | N103: 0.000 | O103: 49.000 | P103: 0.000 | Q103: 680.000 | R103: 50.000 | S103: 30.000 | T103: 0.000 | U103: 0.000 | V103: =SUM(Table1[[#This Row],[Jan]:[Jan2]]) -> 2290.000 | W103: =VLOOKUP($A103,'[3]All POs'!$A:$G,2,FALSE) -> 4503059393 | X103: =VLOOKUP($A103,'[3]All POs'!$A:$G,3,FALSE) -> R58.00 | Y103: =VLOOKUP($A103,'[3]All POs'!$A:$G,5,FALSE) -> 2023-06-19 | Z103: =VLOOKUP($A103,'[3]All POs'!$A:$G,7,FALSE) -> SAFETYMATE EASTERN CAPE | AA103: =YEAR(Table1[[#This Row],[Last PO date]]) -> 2023 | AB103: =$W$2-Table1[[#This Row],[Year]] -> 0 | AC103: =Table1[[#This Row],[Last PO Price]]*($W$1)^AB103 -> R58.00 | AD103: =Table1[[#This Row],[MRP]]*Table1[[#This Row],[Subtotal]] -> R132,820.00
A104: 035000047 | B104: =VLOOKUP(A104,[1]!Table93[[Material Number]:[Description]],4,FALSE) ->  | C104: 1151 | D104: =VLOOKUP(Table1[[#This Row],[Plant]],[2]Sheet1!$C:$G,5,FALSE) -> Maint | E104: =VLOOKUP(Table1[[#This Row],[Plant]],[2]Sheet1!$C:$I,7,FALSE) -> MAINTENANCE ORE CORRIDOR | F104: 2023 | G104: M | H104: 1 | I104: 0.000 | J104: 0.000 | K104: 0.000 | L104: 350.000 | M104: 150.000 | N104: 0.000 | O104: 0.000 | P104: 0.000 | Q104: 0.000 | R104: 0.000 | S104: 0.000 | T104: 0.000 | U104: 0.000 | V104: =SUM(Table1[[#This Row],[Jan]:[Jan2]]) -> 500.000 | W104: =VLOOKUP($A104,'[3]All POs'!$A:$G,2,FALSE) -> 4503059393 | X104: =VLOOKUP($A104,'[3]All POs'!$A:$G,3,FALSE) -> R58.00 | Y104: =VLOOKUP($A104,'[3]All POs'!$A:$G,5,FALSE) -> 2023-06-19 | Z104: =VLOOKUP($A104,'[3]All POs'!$A:$G,7,FALSE) -> SAFETYMATE EASTERN CAPE | AA104: =YEAR(Table1[[#This Row],[Last PO date]]) -> 2023 | AB104: =$W$2-Table1[[#This Row],[Year]] -> 0 | AC104: =Table1[[#This Row],[Last PO Price]]*($W$1)^AB104 -> R58.00 | AD104: =Table1[[#This Row],[MRP]]*Table1[[#This Row],[Subtotal]] -> R29,000.00
A105: 035000047 | B105: =VLOOKUP(A105,[1]!Table93[[Material Number]:[Description]],4,FALSE) ->  | C105: 1405 | D105: =VLOOKUP(Table1[[#This Row],[Plant]],[2]Sheet1!$C:$G,5,FALSE) -> Manuf | E105: =VLOOKUP(Table1[[#This Row],[Plant]],[2]Sheet1!$C:$I,7,FALSE) -> NATIONAL MANUFACTURING WAGONS | F105: 2019 | G105: M | H105: 1 | I105: 0.000 | J105: 0.000 | K105: 0.000 | L105: 0.000 | M105: 0.000 | N105: 0.000 | O105: 10.000 | P105: 60.000 | Q105: 60.000 | R105: 40.000 | S105: 32.000 | T105: 0.000 | U105: 0.000 | V105: =SUM(Table1[[#This Row],[Jan]:[Jan2]]) -> 202.000 | W105: =VLOOKUP($A105,'[3]All POs'!$A:$G,2,FALSE) -> 4503059393 | X105: =VLOOKUP($A105,'[3]All POs'!$A:$G,3,FALSE) -> R58.00 | Y105: =VLOOKUP($A105,'[3]All POs'!$A:$G,5,FALSE) -> 2023-06-19 | Z105: =VLOOKUP($A105,'[3]All POs'!$A:$G,7,FALSE) -> SAFETYMATE EASTERN CAPE | AA105: =YEAR(Table1[[#This Row],[Last PO date]]) -> 2023 | AB105: =$W$2-Table1[[#This Row],[Year]] -> 0 | AC105: =Table1[[#This Row],[Last PO Price]]*($W$1)^AB105 -> R58.00 | AD105: =Table1[[#This Row],[MRP]]*Table1[[#This Row],[Subtotal]] -> R11,716.00
A106: 035000047 | B106: =VLOOKUP(A106,[1]!Table93[[Material Number]:[Description]],4,FALSE) ->  | C106: 1405 | D106: =VLOOKUP(Table1[[#This Row],[Plant]],[2]Sheet1!$C:$G,5,FALSE) -> Manuf | E106: =VLOOKUP(Table1[[#This Row],[Plant]],[2]Sheet1!$C:$I,7,FALSE) -> NATIONAL MANUFACTURING WAGONS | F106: 2020 | G106: M | H106: 1 | I106: 0.000 | J106: 28.000 | K106: 0.000 | L106: 0.000 | M106: 25.000 | N106: 25.000 | O106: 0.000 | P106: 0.000 | Q106: 0.000 | R106: 0.000 | S106: 230.000 | T106: 450.000 | U106: 0.000 | V106: =SUM(Table1[[#This Row],[Jan]:[Jan2]]) -> 758.000 | W106: =VLOOKUP($A106,'[3]All POs'!$A:$G,2,FALSE) -> 4503059393 | X106: =VLOOKUP($A106,'[3]All POs'!$A:$G,3,FALSE) -> R58.00 | Y106: =VLOOKUP($A106,'[3]All POs'!$A:$G,5,FALSE) -> 2023-06-19 | Z106: =VLOOKUP($A106,'[3]All POs'!$A:$G,7,FALSE) -> SAFETYMATE EASTERN CAPE | AA106: =YEAR(Table1[[#This Row],[Last PO date]]) -> 2023 | AB106: =$W$2-Table1[[#This Row],[Year]] -> 0 | AC106: =Table1[[#This Row],[Last PO Price]]*($W$1)^AB106 -> R58.00 | AD106: =Table1[[#This Row],[MRP]]*Table1[[#This Row],[Subtotal]] -> R43,964.00
A107: 035000047 | B107: =VLOOKUP(A107,[1]!Table93[[Material Number]:[Description]],4,FALSE) ->  | C107: 1405 | D107: =VLOOKUP(Table1[[#This Row],[Plant]],[2]Sheet1!$C:$G,5,FALSE) -> Manuf | E107: =VLOOKUP(Table1[[#This Row],[Plant]],[2]Sheet1!$C:$I,7,FALSE) -> NATIONAL MANUFACTURING WAGONS | F107: 2021 | G107: M | H107: 1 | I107: 65.000 | J107: 0.000 | K107: 9.000 | L107: 0.000 | M107: 100.000 | N107: 105.000 | O107: 0.000 | P107: 20.000 | Q107: 20.000 | R107: 40.000 | S107: 95.000 | T107: 17.000 | U107: 0.000 | V107: =SUM(Table1[[#This Row],[Jan]:[Jan2]]) -> 471.000 | W107: =VLOOKUP($A107,'[3]All POs'!$A:$G,2,FALSE) -> 4503059393 | X107: =VLOOKUP($A107,'[3]All POs'!$A:$G,3,FALSE) -> R58.00 | Y107: =VLOOKUP($A107,'[3]All POs'!$A:$G,5,FALSE) -> 2023-06-19 | Z107: =VLOOKUP($A107,'[3]All POs'!$A:$G,7,FALSE) -> SAFETYMATE EASTERN CAPE | AA107: =YEAR(Table1[[#This Row],[Last PO date]]) -> 2023 | AB107: =$W$2-Table1[[#This Row],[Year]] -> 0 | AC107: =Table1[[#This Row],[Last PO Price]]*($W$1)^AB107 -> R58.00 | AD107: =Table1[[#This Row],[MRP]]*Table1[[#This Row],[Subtotal]] -> R27,318.00
A108: 035000047 | B108: =VLOOKUP(A108,[1]!Table93[[Material Number]:[Description]],4,FALSE) ->  | C108: 1405 | D108: =VLOOKUP(Table1[[#This Row],[Plant]],[2]Sheet1!$C:$G,5,FALSE) -> Manuf | E108: =VLOOKUP(Table1[[#This Row],[Plant]],[2]Sheet1!$C:$I,7,FALSE) -> NATIONAL MANUFACTURING WAGONS | F108: 2022 | G108: M | H108: 1 | I108: 8.000 | J108: 11.000 | K108: 0.000 | L108: 0.000 | M108: 20.000 | N108: 40.000 | O108: 53.000 | P108: 60.000 | Q108: 0.000 | R108: 2.000 | S108: 100.000 | T108: 69.000 | U108: 0.000 | V108: =SUM(Table1[[#This Row],[Jan]:[Jan2]]) -> 363.000 | W108: =VLOOKUP($A108,'[3]All POs'!$A:$G,2,FALSE) -> 4503059393 | X108: =VLOOKUP($A108,'[3]All POs'!$A:$G,3,FALSE) -> R58.00 | Y108: =VLOOKUP($A108,'[3]All POs'!$A:$G,5,FALSE) -> 2023-06-19 | Z108: =VLOOKUP($A108,'[3]All POs'!$A:$G,7,FALSE) -> SAFETYMATE EASTERN CAPE | AA108: =YEAR(Table1[[#This Row],[Last PO date]]) -> 2023 | AB108: =$W$2-Table1[[#This Row],[Year]] -> 0 | AC108: =Table1[[#This Row],[Last PO Price]]*($W$1)^AB108 -> R58.00 | AD108: =Table1[[#This Row],[MRP]]*Table1[[#This Row],[Subtotal]] -> R21,054.00
A109: 035000047 | B109: =VLOOKUP(A109,[1]!Table93[[Material Number]:[Description]],4,FALSE) ->  | C109: 1405 | D109: =VLOOKUP(Table1[[#This Row],[Plant]],[2]Sheet1!$C:$G,5,FALSE) -> Manuf | E109: =VLOOKUP(Table1[[#This Row],[Plant]],[2]Sheet1!$C:$I,7,FALSE) -> NATIONAL MANUFACTURING WAGONS | F109: 2023 | G109: M | H109: 1 | I109: 2.000 | J109: 0.000 | K109: 0.000 | L109: 0.000 | M109: 34.000 | N109: 43.000 | O109: 0.000 | P109: 0.000 | Q109: 0.000 | R109: 0.000 | S109: 0.000 | T109: 0.000 | U109: 0.000 | V109: =SUM(Table1[[#This Row],[Jan]:[Jan2]]) -> 79.000 | W109: =VLOOKUP($A109,'[3]All POs'!$A:$G,2,FALSE) -> 4503059393 | X109: =VLOOKUP($A109,'[3]All POs'!$A:$G,3,FALSE) -> R58.00 | Y109: =VLOOKUP($A109,'[3]All POs'!$A:$G,5,FALSE) -> 2023-06-19 | Z109: =VLOOKUP($A109,'[3]All POs'!$A:$G,7,FALSE) -> SAFETYMATE EASTERN CAPE | AA109: =YEAR(Table1[[#This Row],[Last PO date]]) -> 2023 | AB109: =$W$2-Table1[[#This Row],[Year]] -> 0 | AC109: =Table1[[#This Row],[Last PO Price]]*($W$1)^AB109 -> R58.00 | AD109: =Table1[[#This Row],[MRP]]*Table1[[#This Row],[Subtotal]] -> R4,582.00
A110: 035000047 | B110: =VLOOKUP(A110,[1]!Table93[[Material Number]:[Description]],4,FALSE) ->  | C110: 1411 | D110: =VLOOKUP(Table1[[#This Row],[Plant]],[2]Sheet1!$C:$G,5,FALSE) -> Maint | E110: =VLOOKUP(Table1[[#This Row],[Plant]],[2]Sheet1!$C:$I,7,FALSE) -> MAINTENANCE CAPE CORRIDOR | F110: 2018 | G110: M | H110: 1 | I110: 0.000 | J110: 0.000 | K110: 0.000 | L110: 0.000 | M110: 0.000 | N110: 0.000 | O110: 0.000 | P110: 1.000 | Q110: 2.000 | R110: 0.000 | S110: 0.000 | T110: 0.000 | U110: 0.000 | V110: =SUM(Table1[[#This Row],[Jan]:[Jan2]]) -> 3.000 | W110: =VLOOKUP($A110,'[3]All POs'!$A:$G,2,FALSE) -> 4503059393 | X110: =VLOOKUP($A110,'[3]All POs'!$A:$G,3,FALSE) -> R58.00 | Y110: =VLOOKUP($A110,'[3]All POs'!$A:$G,5,FALSE) -> 2023-06-19 | Z110: =VLOOKUP($A110,'[3]All POs'!$A:$G,7,FALSE) -> SAFETYMATE EASTERN CAPE | AA110: =YEAR(Table1[[#This Row],[Last PO date]]) -> 2023 | AB110: =$W$2-Table1[[#This Row],[Year]] -> 0 | AC110: =Table1[[#This Row],[Last PO Price]]*($W$1)^AB110 -> R58.00 | AD110: =Table1[[#This Row],[MRP]]*Table1[[#This Row],[Subtotal]] -> R174.00
A111: 035000047 | B111: =VLOOKUP(A111,[1]!Table93[[Material Number]:[Description]],4,FALSE) ->  | C111: 1425 | D111: =VLOOKUP(Table1[[#This Row],[Plant]],[2]Sheet1!$C:$G,5,FALSE) -> Maint | E111: =VLOOKUP(Table1[[#This Row],[Plant]],[2]Sheet1!$C:$I,7,FALSE) -> MAINTENANCE CAPE CORRIDOR | F111: 2021 | G111: M | H111: 1 | I111: 0.000 | J111: 0.000 | K111: 0.000 | L111: 20.000 | M111: 20.000 | N111: 0.000 | O111: 0.000 | P111: 0.000 | Q111: 80.000 | R111: 30.000 | S111: 0.000 | T111: 0.000 | U111: 0.000 | V111: =SUM(Table1[[#This Row],[Jan]:[Jan2]]) -> 150.000 | W111: =VLOOKUP($A111,'[3]All POs'!$A:$G,2,FALSE) -> 4503059393 | X111: =VLOOKUP($A111,'[3]All POs'!$A:$G,3,FALSE) -> R58.00 | Y111: =VLOOKUP($A111,'[3]All POs'!$A:$G,5,FALSE) -> 2023-06-19 | Z111: =VLOOKUP($A111,'[3]All POs'!$A:$G,7,FALSE) -> SAFETYMATE EASTERN CAPE | AA111: =YEAR(Table1[[#This Row],[Last PO date]]) -> 2023 | AB111: =$W$2-Table1[[#This Row],[Year]] -> 0 | AC111: =Table1[[#This Row],[Last PO Price]]*($W$1)^AB111 -> R58.00 | AD111: =Table1[[#This Row],[MRP]]*Table1[[#This Row],[Subtotal]] -> R8,700.00
A112: 035000047 | B112: =VLOOKUP(A112,[1]!Table93[[Material Number]:[Description]],4,FALSE) ->  | C112: 1425 | D112: =VLOOKUP(Table1[[#This Row],[Plant]],[2]Sheet1!$C:$G,5,FALSE) -> Maint | E112: =VLOOKUP(Table1[[#This Row],[Plant]],[2]Sheet1!$C:$I,7,FALSE) -> MAINTENANCE CAPE CORRIDOR | F112: 2022 | G112: M | H112: 1 | I112: 0.000 | J112: 0.000 | K112: 0.000 | L112: 0.000 | M112: 0.000 | N112: 0.000 | O112: 30.000 | P112: 0.000 | Q112: 0.000 | R112: 0.000 | S112: 0.000 | T112: 0.000 | U112: 0.000 | V112: =SUM(Table1[[#This Row],[Jan]:[Jan2]]) -> 30.000 | W112: =VLOOKUP($A112,'[3]All POs'!$A:$G,2,FALSE) -> 4503059393 | X112: =VLOOKUP($A112,'[3]All POs'!$A:$G,3,FALSE) -> R58.00 | Y112: =VLOOKUP($A112,'[3]All POs'!$A:$G,5,FALSE) -> 2023-06-19 | Z112: =VLOOKUP($A112,'[3]All POs'!$A:$G,7,FALSE) -> SAFETYMATE EASTERN CAPE | AA112: =YEAR(Table1[[#This Row],[Last PO date]]) -> 2023 | AB112: =$W$2-Table1[[#This Row],[Year]] -> 0 | AC112: =Table1[[#This Row],[Last PO Price]]*($W$1)^AB112 -> R58.00 | AD112: =Table1[[#This Row],[MRP]]*Table1[[#This Row],[Subtotal]] -> R1,740.00
A113: 035000047 | B113: =VLOOKUP(A113,[1]!Table93[[Material Number]:[Description]],4,FALSE) ->  | C113: 1425 | D113: =VLOOKUP(Table1[[#This Row],[Plant]],[2]Sheet1!$C:$G,5,FALSE) -> Maint | E113: =VLOOKUP(Table1[[#This Row],[Plant]],[2]Sheet1!$C:$I,7,FALSE) -> MAINTENANCE CAPE CORRIDOR | F113: 2023 | G113: M | H113: 1 | I113: 0.000 | J113: 0.000 | K113: 100.000 | L113: 0.000 | M113: 0.000 | N113: 0.000 | O113: 0.000 | P113: 0.000 | Q113: 0.000 | R113: 0.000 | S113: 0.000 | T113: 0.000 | U113: 0.000 | V113: =SUM(Table1[[#This Row],[Jan]:[Jan2]]) -> 100.000 | W113: =VLOOKUP($A113,'[3]All POs'!$A:$G,2,FALSE) -> 4503059393 | X113: =VLOOKUP($A113,'[3]All POs'!$A:$G,3,FALSE) -> R58.00 | Y113: =VLOOKUP($A113,'[3]All POs'!$A:$G,5,FALSE) -> 2023-06-19 | Z113: =VLOOKUP($A113,'[3]All POs'!$A:$G,7,FALSE) -> SAFETYMATE EASTERN CAPE | AA113: =YEAR(Table1[[#This Row],[Last PO date]]) -> 2023 | AB113: =$W$2-Table1[[#This Row],[Year]] -> 0 | AC113: =Table1[[#This Row],[Last PO Price]]*($W$1)^AB113 -> R58.00 | AD113: =Table1[[#This Row],[MRP]]*Table1[[#This Row],[Subtotal]] -> R5,800.00
A114: 035000047 | B114: =VLOOKUP(A114,[1]!Table93[[Material Number]:[Description]],4,FALSE) ->  | C114: 1435 | D114: =VLOOKUP(Table1[[#This Row],[Plant]],[2]Sheet1!$C:$G,5,FALSE) -> Maint | E114: =VLOOKUP(Table1[[#This Row],[Plant]],[2]Sheet1!$C:$I,7,FALSE) -> MAINTENANCE CAPE CORRIDOR | F114: 2020 | G114: M | H114: 1 | I114: 0.000 | J114: 0.000 | K114: 0.000 | L114: 0.000 | M114: 0.000 | N114: 0.000 | O114: 20.000 | P114: 0.000 | Q114: 0.000 | R114: 0.000 | S114: 0.000 | T114: 0.000 | U114: 0.000 | V114: =SUM(Table1[[#This Row],[Jan]:[Jan2]]) -> 20.000 | W114: =VLOOKUP($A114,'[3]All POs'!$A:$G,2,FALSE) -> 4503059393 | X114: =VLOOKUP($A114,'[3]All POs'!$A:$G,3,FALSE) -> R58.00 | Y114: =VLOOKUP($A114,'[3]All POs'!$A:$G,5,FALSE) -> 2023-06-19 | Z114: =VLOOKUP($A114,'[3]All POs'!$A:$G,7,FALSE) -> SAFETYMATE EASTERN CAPE | AA114: =YEAR(Table1[[#This Row],[Last PO date]]) -> 2023 | AB114: =$W$2-Table1[[#This Row],[Year]] -> 0 | AC114: =Table1[[#This Row],[Last PO Price]]*($W$1)^AB114 -> R58.00 | AD114: =Table1[[#This Row],[MRP]]*Table1[[#This Row],[Subtotal]] -> R1,160.00
A115: 035000047 | B115: =VLOOKUP(A115,[1]!Table93[[Material Number]:[Description]],4,FALSE) ->  | C115: 1435 | D115: =VLOOKUP(Table1[[#This Row],[Plant]],[2]Sheet1!$C:$G,5,FALSE) -> Maint | E115: =VLOOKUP(Table1[[#This Row],[Plant]],[2]Sheet1!$C:$I,7,FALSE) -> MAINTENANCE CAPE CORRIDOR | F115: 2022 | G115: M | H115: 1 | I115: 0.000 | J115: 0.000 | K115: 0.000 | L115: 0.000 | M115: 0.000 | N115: 0.000 | O115: 0.000 | P115: 0.000 | Q115: 0.000 | R115: 0.000 | S115: 80.000 | T115: 0.000 | U115: 0.000 | V115: =SUM(Table1[[#This Row],[Jan]:[Jan2]]) -> 80.000 | W115: =VLOOKUP($A115,'[3]All POs'!$A:$G,2,FALSE) -> 4503059393 | X115: =VLOOKUP($A115,'[3]All POs'!$A:$G,3,FALSE) -> R58.00 | Y115: =VLOOKUP($A115,'[3]All POs'!$A:$G,5,FALSE) -> 2023-06-19 | Z115: =VLOOKUP($A115,'[3]All POs'!$A:$G,7,FALSE) -> SAFETYMATE EASTERN CAPE | AA115: =YEAR(Table1[[#This Row],[Last PO date]]) -> 2023 | AB115: =$W$2-Table1[[#This Row],[Year]] -> 0 | AC115: =Table1[[#This Row],[Last PO Price]]*($W$1)^AB115 -> R58.00 | AD115: =Table1[[#This Row],[MRP]]*Table1[[#This Row],[Subtotal]] -> R4,640.00
A116: 035000047 | B116: =VLOOKUP(A116,[1]!Table93[[Material Number]:[Description]],4,FALSE) ->  | C116: 1487 | D116: =VLOOKUP(Table1[[#This Row],[Plant]],[2]Sheet1!$C:$G,5,FALSE) -> Maint | E116: =VLOOKUP(Table1[[#This Row],[Plant]],[2]Sheet1!$C:$I,7,FALSE) -> MAINTENANCE NOTH EAST CORRIDOR | F116: 2019 | G116: M | H116: 1 | I116: 0.000 | J116: 0.000 | K116: 0.000 | L116: 0.000 | M116: 0.000 | N116: 0.000 | O116: 0.000 | P116: 0.000 | Q116: 8.000 | R116: 0.000 | S116: 0.000 | T116: 0.000 | U116: 0.000 | V116: =SUM(Table1[[#This Row],[Jan]:[Jan2]]) -> 8.000 | W116: =VLOOKUP($A116,'[3]All POs'!$A:$G,2,FALSE) -> 4503059393 | X116: =VLOOKUP($A116,'[3]All POs'!$A:$G,3,FALSE) -> R58.00 | Y116: =VLOOKUP($A116,'[3]All POs'!$A:$G,5,FALSE) -> 2023-06-19 | Z116: =VLOOKUP($A116,'[3]All POs'!$A:$G,7,FALSE) -> SAFETYMATE EASTERN CAPE | AA116: =YEAR(Table1[[#This Row],[Last PO date]]) -> 2023 | AB116: =$W$2-Table1[[#This Row],[Year]] -> 0 | AC116: =Table1[[#This Row],[Last PO Price]]*($W$1)^AB116 -> R58.00 | AD116: =Table1[[#This Row],[MRP]]*Table1[[#This Row],[Subtotal]] -> R464.00
A117: 035000047 | B117: =VLOOKUP(A117,[1]!Table93[[Material Number]:[Description]],4,FALSE) ->  | C117: 1487 | D117: =VLOOKUP(Table1[[#This Row],[Plant]],[2]Sheet1!$C:$G,5,FALSE) -> Maint | E117: =VLOOKUP(Table1[[#This Row],[Plant]],[2]Sheet1!$C:$I,7,FALSE) -> MAINTENANCE NOTH EAST CORRIDOR | F117: 2020 | G117: M | H117: 1 | I117: 0.000 | J117: 0.000 | K117: 20.000 | L117: 0.000 | M117: 0.000 | N117: 0.000 | O117: 0.000 | P117: 0.000 | Q117: 0.000 | R117: 35.000 | S117: 0.000 | T117: 50.000 | U117: 0.000 | V117: =SUM(Table1[[#This Row],[Jan]:[Jan2]]) -> 105.000 | W117: =VLOOKUP($A117,'[3]All POs'!$A:$G,2,FALSE) -> 4503059393 | X117: =VLOOKUP($A117,'[3]All POs'!$A:$G,3,FALSE) -> R58.00 | Y117: =VLOOKUP($A117,'[3]All POs'!$A:$G,5,FALSE) -> 2023-06-19 | Z117: =VLOOKUP($A117,'[3]All POs'!$A:$G,7,FALSE) -> SAFETYMATE EASTERN CAPE | AA117: =YEAR(Table1[[#This Row],[Last PO date]]) -> 2023 | AB117: =$W$2-Table1[[#This Row],[Year]] -> 0 | AC117: =Table1[[#This Row],[Last PO Price]]*($W$1)^AB117 -> R58.00 | AD117: =Table1[[#This Row],[MRP]]*Table1[[#This Row],[Subtotal]] -> R6,090.00
A118: 035000047 | B118: =VLOOKUP(A118,[1]!Table93[[Material Number]:[Description]],4,FALSE) ->  | C118: 1487 | D118: =VLOOKUP(Table1[[#This Row],[Plant]],[2]Sheet1!$C:$G,5,FALSE) -> Maint | E118: =VLOOKUP(Table1[[#This Row],[Plant]],[2]Sheet1!$C:$I,7,FALSE) -> MAINTENANCE NOTH EAST CORRIDOR | F118: 2021 | G118: M | H118: 1 | I118: 0.000 | J118: 25.000 | K118: 0.000 | L118: 0.000 | M118: 0.000 | N118: 25.000 | O118: 0.000 | P118: 0.000 | Q118: 0.000 | R118: 0.000 | S118: 0.000 | T118: 0.000 | U118: 0.000 | V118: =SUM(Table1[[#This Row],[Jan]:[Jan2]]) -> 50.000 | W118: =VLOOKUP($A118,'[3]All POs'!$A:$G,2,FALSE) -> 4503059393 | X118: =VLOOKUP($A118,'[3]All POs'!$A:$G,3,FALSE) -> R58.00 | Y118: =VLOOKUP($A118,'[3]All POs'!$A:$G,5,FALSE) -> 2023-06-19 | Z118: =VLOOKUP($A118,'[3]All POs'!$A:$G,7,FALSE) -> SAFETYMATE EASTERN CAPE | AA118: =YEAR(Table1[[#This Row],[Last PO date]]) -> 2023 | AB118: =$W$2-Table1[[#This Row],[Year]] -> 0 | AC118: =Table1[[#This Row],[Last PO Price]]*($W$1)^AB118 -> R58.00 | AD118: =Table1[[#This Row],[MRP]]*Table1[[#This Row],[Subtotal]] -> R2,900.00
A119: 035000047 | B119: =VLOOKUP(A119,[1]!Table93[[Material Number]:[Description]],4,FALSE) ->  | C119: 1487 | D119: =VLOOKUP(Table1[[#This Row],[Plant]],[2]Sheet1!$C:$G,5,FALSE) -> Maint | E119: =VLOOKUP(Table1[[#This Row],[Plant]],[2]Sheet1!$C:$I,7,FALSE) -> MAINTENANCE NOTH EAST CORRIDOR | F119: 2022 | G119: M | H119: 1 | I119: 0.000 | J119: 0.000 | K119: 50.000 | L119: 0.000 | M119: 0.000 | N119: 0.000 | O119: 50.000 | P119: 20.000 | Q119: 0.000 | R119: 0.000 | S119: 0.000 | T119: 0.000 | U119: 0.000 | V119: =SUM(Table1[[#This Row],[Jan]:[Jan2]]) -> 120.000 | W119: =VLOOKUP($A119,'[3]All POs'!$A:$G,2,FALSE) -> 4503059393 | X119: =VLOOKUP($A119,'[3]All POs'!$A:$G,3,FALSE) -> R58.00 | Y119: =VLOOKUP($A119,'[3]All POs'!$A:$G,5,FALSE) -> 2023-06-19 | Z119: =VLOOKUP($A119,'[3]All POs'!$A:$G,7,FALSE) -> SAFETYMATE EASTERN CAPE | AA119: =YEAR(Table1[[#This Row],[Last PO date]]) -> 2023 | AB119: =$W$2-Table1[[#This Row],[Year]] -> 0 | AC119: =Table1[[#This Row],[Last PO Price]]*($W$1)^AB119 -> R58.00 | AD119: =Table1[[#This Row],[MRP]]*Table1[[#This Row],[Subtotal]] -> R6,960.00
A120: 035000047 | B120: =VLOOKUP(A120,[1]!Table93[[Material Number]:[Description]],4,FALSE) ->  | C120: 2105 | D120: =VLOOKUP(Table1[[#This Row],[Plant]],[2]Sheet1!$C:$G,5,FALSE) -> Manuf | E120: =VLOOKUP(Table1[[#This Row],[Plant]],[2]Sheet1!$C:$I,7,FALSE) -> NATIONAL MANUFACTURING RS SUPPORT | F120: 2023 | G120: M | H120: 1 | I120: 0.000 | J120: 2.000 | K120: 0.000 | L120: 0.000 | M120: 0.000 | N120: 0.000 | O120: 0.000 | P120: 0.000 | Q120: 0.000 | R120: 0.000 | S120: 0.000 | T120: 0.000 | U120: 0.000 | V120: =SUM(Table1[[#This Row],[Jan]:[Jan2]]) -> 2.000 | W120: =VLOOKUP($A120,'[3]All POs'!$A:$G,2,FALSE) -> 4503059393 | X120: =VLOOKUP($A120,'[3]All POs'!$A:$G,3,FALSE) -> R58.00 | Y120: =VLOOKUP($A120,'[3]All POs'!$A:$G,5,FALSE) -> 2023-06-19 | Z120: =VLOOKUP($A120,'[3]All POs'!$A:$G,7,FALSE) -> SAFETYMATE EASTERN CAPE | AA120: =YEAR(Table1[[#This Row],[Last PO date]]) -> 2023 | AB120: =$W$2-Table1[[#This Row],[Year]] -> 0 | AC120: =Table1[[#This Row],[Last PO Price]]*($W$1)^AB120 -> R58.00 | AD120: =Table1[[#This Row],[MRP]]*Table1[[#This Row],[Subtotal]] -> R116.00
A121: 035000047 | B121: =VLOOKUP(A121,[1]!Table93[[Material Number]:[Description]],4,FALSE) ->  | C121: 2201 | D121: =VLOOKUP(Table1[[#This Row],[Plant]],[2]Sheet1!$C:$G,5,FALSE) -> Manuf | E121: =VLOOKUP(Table1[[#This Row],[Plant]],[2]Sheet1!$C:$I,7,FALSE) -> NATIONAL MANUFACTURING RS SUPPORT | F121: 2021 | G121: M | H121: 1 | I121: 0.000 | J121: 0.000 | K121: 0.000 | L121: 0.000 | M121: 39.000 | N121: 38.000 | O121: 55.000 | P121: 68.000 | Q121: 0.000 | R121: 0.000 | S121: 0.000 | T121: 0.000 | U121: 0.000 | V121: =SUM(Table1[[#This Row],[Jan]:[Jan2]]) -> 200.000 | W121: =VLOOKUP($A121,'[3]All POs'!$A:$G,2,FALSE) -> 4503059393 | X121: =VLOOKUP($A121,'[3]All POs'!$A:$G,3,FALSE) -> R58.00 | Y121: =VLOOKUP($A121,'[3]All POs'!$A:$G,5,FALSE) -> 2023-06-19 | Z121: =VLOOKUP($A121,'[3]All POs'!$A:$G,7,FALSE) -> SAFETYMATE EASTERN CAPE | AA121: =YEAR(Table1[[#This Row],[Last PO date]]) -> 2023 | AB121: =$W$2-Table1[[#This Row],[Year]] -> 0 | AC121: =Table1[[#This Row],[Last PO Price]]*($W$1)^AB121 -> R58.00 | AD121: =Table1[[#This Row],[MRP]]*Table1[[#This Row],[Subtotal]] -> R11,600.00
A122: 035000047 | B122: =VLOOKUP(A122,[1]!Table93[[Material Number]:[Description]],4,FALSE) ->  | C122: 3105 | D122: =VLOOKUP(Table1[[#This Row],[Plant]],[2]Sheet1!$C:$G,5,FALSE) -> Manuf | E122: =VLOOKUP(Table1[[#This Row],[Plant]],[2]Sheet1!$C:$I,7,FALSE) -> NATIONAL MANUFACTURING WAGONS | F122: 2018 | G122: M | H122: 1 | I122: 0.000 | J122: 0.000 | K122: 0.000 | L122: 10.000 | M122: 0.000 | N122: 0.000 | O122: 0.000 | P122: 0.000 | Q122: 0.000 | R122: 0.000 | S122: 0.000 | T122: 0.000 | U122: 0.000 | V122: =SUM(Table1[[#This Row],[Jan]:[Jan2]]) -> 10.000 | W122: =VLOOKUP($A122,'[3]All POs'!$A:$G,2,FALSE) -> 4503059393 | X122: =VLOOKUP($A122,'[3]All POs'!$A:$G,3,FALSE) -> R58.00 | Y122: =VLOOKUP($A122,'[3]All POs'!$A:$G,5,FALSE) -> 2023-06-19 | Z122: =VLOOKUP($A122,'[3]All POs'!$A:$G,7,FALSE) -> SAFETYMATE EASTERN CAPE | AA122: =YEAR(Table1[[#This Row],[Last PO date]]) -> 2023 | AB122: =$W$2-Table1[[#This Row],[Year]] -> 0 | AC122: =Table1[[#This Row],[Last PO Price]]*($W$1)^AB122 -> R58.00 | AD122: =Table1[[#This Row],[MRP]]*Table1[[#This Row],[Subtotal]] -> R580.00
A123: 035000047 | B123: =VLOOKUP(A123,[1]!Table93[[Material Number]:[Description]],4,FALSE) ->  | C123: 5005 | D123: =VLOOKUP(Table1[[#This Row],[Plant]],[2]Sheet1!$C:$G,5,FALSE) -> SupportS | E123: =VLOOKUP(Table1[[#This Row],[Plant]],[2]Sheet1!$C:$I,7,FALSE) -> NATIONAL SUPPORT SERVICES | F123: 2018 | G123: M | H123: 1 | I123: 0.000 | J123: 0.000 | K123: 0.000 | L123: 0.000 | M123: 0.000 | N123: 0.000 | O123: 0.000 | P123: 0.000 | Q123: 40.000 | R123: 0.000 | S123: 0.000 | T123: 0.000 | U123: 0.000 | V123: =SUM(Table1[[#This Row],[Jan]:[Jan2]]) -> 40.000 | W123: =VLOOKUP($A123,'[3]All POs'!$A:$G,2,FALSE) -> 4503059393 | X123: =VLOOKUP($A123,'[3]All POs'!$A:$G,3,FALSE) -> R58.00 | Y123: =VLOOKUP($A123,'[3]All POs'!$A:$G,5,FALSE) -> 2023-06-19 | Z123: =VLOOKUP($A123,'[3]All POs'!$A:$G,7,FALSE) -> SAFETYMATE EASTERN CAPE | AA123: =YEAR(Table1[[#This Row],[Last PO date]]) -> 2023 | AB123: =$W$2-Table1[[#This Row],[Year]] -> 0 | AC123: =Table1[[#This Row],[Last PO Price]]*($W$1)^AB123 -> R58.00 | AD123: =Table1[[#This Row],[MRP]]*Table1[[#This Row],[Subtotal]] -> R2,320.00
A124: 035000048 | B124: =VLOOKUP(A124,[1]!Table93[[Material Number]:[Description]],4,FALSE) ->  | C124: 1008 | D124: =VLOOKUP(Table1[[#This Row],[Plant]],[2]Sheet1!$C:$G,5,FALSE) -> Manuf | E124: =VLOOKUP(Table1[[#This Row],[Plant]],[2]Sheet1!$C:$I,7,FALSE) -> NATIONAL MANUFACTURING LOCOMOTIVES | F124: 2018 | G124: M | H124: 1 | I124: 0.000 | J124: 0.000 | K124: 0.000 | L124: 0.000 | M124: 60.000 | N124: 0.000 | O124: 0.000 | P124: 0.000 | Q124: 57.000 | R124: 21.000 | S124: 25.000 | T124: 33.000 | U124: 0.000 | V124: =SUM(Table1[[#This Row],[Jan]:[Jan2]]) -> 196.000 | W124: =VLOOKUP($A124,'[3]All POs'!$A:$G,2,FALSE) -> 4503046750 | X124: =VLOOKUP($A124,'[3]All POs'!$A:$G,3,FALSE) -> R52.50 | Y124: =VLOOKUP($A124,'[3]All POs'!$A:$G,5,FALSE) -> 2023-03-22 | Z124: =VLOOKUP($A124,'[3]All POs'!$A:$G,7,FALSE) -> JAZZ STUDIO GRAPHIX | AA124: =YEAR(Table1[[#This Row],[Last PO date]]) -> 2023 | AB124: =$W$2-Table1[[#This Row],[Year]] -> 0 | AC124: =Table1[[#This Row],[Last PO Price]]*($W$1)^AB124 -> R52.50 | AD124: =Table1[[#This Row],[MRP]]*Table1[[#This Row],[Subtotal]] -> R10,290.00
A125: 035000048 | B125: =VLOOKUP(A125,[1]!Table93[[Material Number]:[Description]],4,FALSE) ->  | C125: 1008 | D125: =VLOOKUP(Table1[[#This Row],[Plant]],[2]Sheet1!$C:$G,5,FALSE) -> Manuf | E125: =VLOOKUP(Table1[[#This Row],[Plant]],[2]Sheet1!$C:$I,7,FALSE) -> NATIONAL MANUFACTURING LOCOMOTIVES | F125: 2019 | G125: M | H125: 1 | I125: 0.000 | J125: -13.000 | K125: 4.000 | L125: 0.000 | M125: 32.000 | N125: 171.000 | O125: 82.000 | P125: 160.000 | Q125: 89.000 | R125: 119.000 | S125: 73.000 | T125: 14.000 | U125: 0.000 | V125: =SUM(Table1[[#This Row],[Jan]:[Jan2]]) -> 731.000 | W125: =VLOOKUP($A125,'[3]All POs'!$A:$G,2,FALSE) -> 4503046750 | X125: =VLOOKUP($A125,'[3]All POs'!$A:$G,3,FALSE) -> R52.50 | Y125: =VLOOKUP($A125,'[3]All POs'!$A:$G,5,FALSE) -> 2023-03-22 | Z125: =VLOOKUP($A125,'[3]All POs'!$A:$G,7,FALSE) -> JAZZ STUDIO GRAPHIX | AA125: =YEAR(Table1[[#This Row],[Last PO date]]) -> 2023 | AB125: =$W$2-Table1[[#This Row],[Year]] -> 0 | AC125: =Table1[[#This Row],[Last PO Price]]*($W$1)^AB125 -> R52.50 | AD125: =Table1[[#This Row],[MRP]]*Table1[[#This Row],[Subtotal]] -> R38,377.50
A126: 035000048 | B126: =VLOOKUP(A126,[1]!Table93[[Material Number]:[Description]],4,FALSE) ->  | C126: 1008 | D126: =VLOOKUP(Table1[[#This Row],[Plant]],[2]Sheet1!$C:$G,5,FALSE) -> Manuf | E126: =VLOOKUP(Table1[[#This Row],[Plant]],[2]Sheet1!$C:$I,7,FALSE) -> NATIONAL MANUFACTURING LOCOMOTIVES | F126: 2020 | G126: M | H126: 1 | I126: 0.000 | J126: 194.000 | K126: 471.000 | L126: 0.000 | M126: 0.000 | N126: 0.000 | O126: 0.000 | P126: 161.000 | Q126: -40.000 | R126: 117.000 | S126: 293.000 | T126: 11.000 | U126: 0.000 | V126: =SUM(Table1[[#This Row],[Jan]:[Jan2]]) -> 1207.000 | W126: =VLOOKUP($A126,'[3]All POs'!$A:$G,2,FALSE) -> 4503046750 | X126: =VLOOKUP($A126,'[3]All POs'!$A:$G,3,FALSE) -> R52.50 | Y126: =VLOOKUP($A126,'[3]All POs'!$A:$G,5,FALSE) -> 2023-03-22 | Z126: =VLOOKUP($A126,'[3]All POs'!$A:$G,7,FALSE) -> JAZZ STUDIO GRAPHIX | AA126: =YEAR(Table1[[#This Row],[Last PO date]]) -> 2023 | AB126: =$W$2-Table1[[#This Row],[Year]] -> 0 | AC126: =Table1[[#This Row],[Last PO Price]]*($W$1)^AB126 -> R52.50 | AD126: =Table1[[#This Row],[MRP]]*Table1[[#This Row],[Subtotal]] -> R63,367.50
A127: 035000048 | B127: =VLOOKUP(A127,[1]!Table93[[Material Number]:[Description]],4,FALSE) ->  | C127: 1008 | D127: =VLOOKUP(Table1[[#This Row],[Plant]],[2]Sheet1!$C:$G,5,FALSE) -> Manuf | E127: =VLOOKUP(Table1[[#This Row],[Plant]],[2]Sheet1!$C:$I,7,FALSE) -> NATIONAL MANUFACTURING LOCOMOTIVES | F127: 2021 | G127: M | H127: 1 | I127: 34.000 | J127: 11.000 | K127: 10.000 | L127: 30.000 | M127: 15.000 | N127: 17.000 | O127: 5.000 | P127: 19.000 | Q127: 2.000 | R127: 24.000 | S127: 10.000 | T127: 0.000 | U127: 0.000 | V127: =SUM(Table1[[#This Row],[Jan]:[Jan2]]) -> 177.000 | W127: =VLOOKUP($A127,'[3]All POs'!$A:$G,2,FALSE) -> 4503046750 | X127: =VLOOKUP($A127,'[3]All POs'!$A:$G,3,FALSE) -> R52.50 | Y127: =VLOOKUP($A127,'[3]All POs'!$A:$G,5,FALSE) -> 2023-03-22 | Z127: =VLOOKUP($A127,'[3]All POs'!$A:$G,7,FALSE) -> JAZZ STUDIO GRAPHIX | AA127: =YEAR(Table1[[#This Row],[Last PO date]]) -> 2023 | AB127: =$W$2-Table1[[#This Row],[Year]] -> 0 | AC127: =Table1[[#This Row],[Last PO Price]]*($W$1)^AB127 -> R52.50 | AD127: =Table1[[#This Row],[MRP]]*Table1[[#This Row],[Subtotal]] -> R9,292.50
A128: 035000048 | B128: =VLOOKUP(A128,[1]!Table93[[Material Number]:[Description]],4,FALSE) ->  | C128: 1008 | D128: =VLOOKUP(Table1[[#This Row],[Plant]],[2]Sheet1!$C:$G,5,FALSE) -> Manuf | E128: =VLOOKUP(Table1[[#This Row],[Plant]],[2]Sheet1!$C:$I,7,FALSE) -> NATIONAL MANUFACTURING LOCOMOTIVES | F128: 2022 | G128: M | H128: 1 | I128: 0.000 | J128: 0.000 | K128: 0.000 | L128: 0.000 | M128: 44.000 | N128: 0.000 | O128: 0.000 | P128: 168.000 | Q128: 0.000 | R128: 0.000 | S128: 0.000 | T128: 0.000 | U128: 0.000 | V128: =SUM(Table1[[#This Row],[Jan]:[Jan2]]) -> 212.000 | W128: =VLOOKUP($A128,'[3]All POs'!$A:$G,2,FALSE) -> 4503046750 | X128: =VLOOKUP($A128,'[3]All POs'!$A:$G,3,FALSE) -> R52.50 | Y128: =VLOOKUP($A128,'[3]All POs'!$A:$G,5,FALSE) -> 2023-03-22 | Z128: =VLOOKUP($A128,'[3]All POs'!$A:$G,7,FALSE) -> JAZZ STUDIO GRAPHIX | AA128: =YEAR(Table1[[#This Row],[Last PO date]]) -> 2023 | AB128: =$W$2-Table1[[#This Row],[Year]] -> 0 | AC128: =Table1[[#This Row],[Last PO Price]]*($W$1)^AB128 -> R52.50 | AD128: =Table1[[#This Row],[MRP]]*Table1[[#This Row],[Subtotal]] -> R11,130.00
A129: 035000048 | B129: =VLOOKUP(A129,[1]!Table93[[Material Number]:[Description]],4,FALSE) ->  | C129: 1008 | D129: =VLOOKUP(Table1[[#This Row],[Plant]],[2]Sheet1!$C:$G,5,FALSE) -> Manuf | E129: =VLOOKUP(Table1[[#This Row],[Plant]],[2]Sheet1!$C:$I,7,FALSE) -> NATIONAL MANUFACTURING LOCOMOTIVES | F129: 2023 | G129: M | H129: 1 | I129: 0.000 | J129: 24.000 | K129: 20.000 | L129: 60.000 | M129: 51.000 | N129: 97.000 | O129: 3.000 | P129: 0.000 | Q129: 0.000 | R129: 0.000 | S129: 0.000 | T129: 0.000 | U129: 0.000 | V129: =SUM(Table1[[#This Row],[Jan]:[Jan2]]) -> 255.000 | W129: =VLOOKUP($A129,'[3]All POs'!$A:$G,2,FALSE) -> 4503046750 | X129: =VLOOKUP($A129,'[3]All POs'!$A:$G,3,FALSE) -> R52.50 | Y129: =VLOOKUP($A129,'[3]All POs'!$A:$G,5,FALSE) -> 2023-03-22 | Z129: =VLOOKUP($A129,'[3]All POs'!$A:$G,7,FALSE) -> JAZZ STUDIO GRAPHIX | AA129: =YEAR(Table1[[#This Row],[Last PO date]]) -> 2023 | AB129: =$W$2-Table1[[#This Row],[Year]] -> 0 | AC129: =Table1[[#This Row],[Last PO Price]]*($W$1)^AB129 -> R52.50 | AD129: =Table1[[#This Row],[MRP]]*Table1[[#This Row],[Subtotal]] -> R13,387.50
A130: 035000048 | B130: =VLOOKUP(A130,[1]!Table93[[Material Number]:[Description]],4,FALSE) ->  | C130: 1116 | D130: =VLOOKUP(Table1[[#This Row],[Plant]],[2]Sheet1!$C:$G,5,FALSE) -> Maint | E130: =VLOOKUP(Table1[[#This Row],[Plant]],[2]Sheet1!$C:$I,7,FALSE) -> MAINTENANCE NATAL CORRIDOR | F130: 2018 | G130: M | H130: 1 | I130: 0.000 | J130: 84.000 | K130: 16.000 | L130: 100.000 | M130: 0.000 | N130: 100.000 | O130: 100.000 | P130: 100.000 | Q130: 0.000 | R130: 100.000 | S130: 100.000 | T130: 200.000 | U130: 0.000 | V130: =SUM(Table1[[#This Row],[Jan]:[Jan2]]) -> 900.000 | W130: =VLOOKUP($A130,'[3]All POs'!$A:$G,2,FALSE) -> 4503046750 | X130: =VLOOKUP($A130,'[3]All POs'!$A:$G,3,FALSE) -> R52.50 | Y130: =VLOOKUP($A130,'[3]All POs'!$A:$G,5,FALSE) -> 2023-03-22 | Z130: =VLOOKUP($A130,'[3]All POs'!$A:$G,7,FALSE) -> JAZZ STUDIO GRAPHIX | AA130: =YEAR(Table1[[#This Row],[Last PO date]]) -> 2023 | AB130: =$W$2-Table1[[#This Row],[Year]] -> 0 | AC130: =Table1[[#This Row],[Last PO Price]]*($W$1)^AB130 -> R52.50 | AD130: =Table1[[#This Row],[MRP]]*Table1[[#This Row],[Subtotal]] -> R47,250.00
A131: 035000048 | B131: =VLOOKUP(A131,[1]!Table93[[Material Number]:[Description]],4,FALSE) ->  | C131: 1116 | D131: =VLOOKUP(Table1[[#This Row],[Plant]],[2]Sheet1!$C:$G,5,FALSE) -> Maint | E131: =VLOOKUP(Table1[[#This Row],[Plant]],[2]Sheet1!$C:$I,7,FALSE) -> MAINTENANCE NATAL CORRIDOR | F131: 2019 | G131: M | H131: 1 | I131: 0.000 | J131: 129.000 | K131: 71.000 | L131: 100.000 | M131: 0.000 | N131: 0.000 | O131: 100.000 | P131: 0.000 | Q131: 100.000 | R131: 100.000 | S131: 0.000 | T131: 0.000 | U131: 0.000 | V131: =SUM(Table1[[#This Row],[Jan]:[Jan2]]) -> 600.000 | W131: =VLOOKUP($A131,'[3]All POs'!$A:$G,2,FALSE) -> 4503046750 | X131: =VLOOKUP($A131,'[3]All POs'!$A:$G,3,FALSE) -> R52.50 | Y131: =VLOOKUP($A131,'[3]All POs'!$A:$G,5,FALSE) -> 2023-03-22 | Z131: =VLOOKUP($A131,'[3]All POs'!$A:$G,7,FALSE) -> JAZZ STUDIO GRAPHIX | AA131: =YEAR(Table1[[#This Row],[Last PO date]]) -> 2023 | AB131: =$W$2-Table1[[#This Row],[Year]] -> 0 | AC131: =Table1[[#This Row],[Last PO Price]]*($W$1)^AB131 -> R52.50 | AD131: =Table1[[#This Row],[MRP]]*Table1[[#This Row],[Subtotal]] -> R31,500.00
A132: 035000048 | B132: =VLOOKUP(A132,[1]!Table93[[Material Number]:[Description]],4,FALSE) ->  | C132: 1116 | D132: =VLOOKUP(Table1[[#This Row],[Plant]],[2]Sheet1!$C:$G,5,FALSE) -> Maint | E132: =VLOOKUP(Table1[[#This Row],[Plant]],[2]Sheet1!$C:$I,7,FALSE) -> MAINTENANCE NATAL CORRIDOR | F132: 2020 | G132: M | H132: 1 | I132: 111.000 | J132: 19.000 | K132: 80.000 | L132: 0.000 | M132: 19.000 | N132: 49.000 | O132: 78.000 | P132: 244.000 | Q132: 0.000 | R132: 0.000 | S132: 100.000 | T132: 0.000 | U132: 0.000 | V132: =SUM(Table1[[#This Row],[Jan]:[Jan2]]) -> 700.000 | W132: =VLOOKUP($A132,'[3]All POs'!$A:$G,2,FALSE) -> 4503046750 | X132: =VLOOKUP($A132,'[3]All POs'!$A:$G,3,FALSE) -> R52.50 | Y132: =VLOOKUP($A132,'[3]All POs'!$A:$G,5,FALSE) -> 2023-03-22 | Z132: =VLOOKUP($A132,'[3]All POs'!$A:$G,7,FALSE) -> JAZZ STUDIO GRAPHIX | AA132: =YEAR(Table1[[#This Row],[Last PO date]]) -> 2023 | AB132: =$W$2-Table1[[#This Row],[Year]] -> 0 | AC132: =Table1[[#This Row],[Last PO Price]]*($W$1)^AB132 -> R52.50 | AD132: =Table1[[#This Row],[MRP]]*Table1[[#This Row],[Subtotal]] -> R36,750.00
A133: 035000048 | B133: =VLOOKUP(A133,[1]!Table93[[Material Number]:[Description]],4,FALSE) ->  | C133: 1116 | D133: =VLOOKUP(Table1[[#This Row],[Plant]],[2]Sheet1!$C:$G,5,FALSE) -> Maint | E133: =VLOOKUP(Table1[[#This Row],[Plant]],[2]Sheet1!$C:$I,7,FALSE) -> MAINTENANCE NATAL CORRIDOR | F133: 2021 | G133: M | H133: 1 | I133: 0.000 | J133: 100.000 | K133: 100.000 | L133: 0.000 | M133: 0.000 | N133: 0.000 | O133: 0.000 | P133: 0.000 | Q133: 0.000 | R133: 130.000 | S133: 0.000 | T133: 0.000 | U133: 0.000 | V133: =SUM(Table1[[#This Row],[Jan]:[Jan2]]) -> 330.000 | W133: =VLOOKUP($A133,'[3]All POs'!$A:$G,2,FALSE) -> 4503046750 | X133: =VLOOKUP($A133,'[3]All POs'!$A:$G,3,FALSE) -> R52.50 | Y133: =VLOOKUP($A133,'[3]All POs'!$A:$G,5,FALSE) -> 2023-03-22 | Z133: =VLOOKUP($A133,'[3]All POs'!$A:$G,7,FALSE) -> JAZZ STUDIO GRAPHIX | AA133: =YEAR(Table1[[#This Row],[Last PO date]]) -> 2023 | AB133: =$W$2-Table1[[#This Row],[Year]] -> 0 | AC133: =Table1[[#This Row],[Last PO Price]]*($W$1)^AB133 -> R52.50 | AD133: =Table1[[#This Row],[MRP]]*Table1[[#This Row],[Subtotal]] -> R17,325.00
A134: 035000048 | B134: =VLOOKUP(A134,[1]!Table93[[Material Number]:[Description]],4,FALSE) ->  | C134: 1116 | D134: =VLOOKUP(Table1[[#This Row],[Plant]],[2]Sheet1!$C:$G,5,FALSE) -> Maint | E134: =VLOOKUP(Table1[[#This Row],[Plant]],[2]Sheet1!$C:$I,7,FALSE) -> MAINTENANCE NATAL CORRIDOR | F134: 2022 | G134: M | H134: 1 | I134: 0.000 | J134: 170.000 | K134: 0.000 | L134: 0.000 | M134: 0.000 | N134: 0.000 | O134: 0.000 | P134: 50.000 | Q134: 0.000 | R134: 0.000 | S134: 0.000 | T134: 0.000 | U134: 0.000 | V134: =SUM(Table1[[#This Row],[Jan]:[Jan2]]) -> 220.000 | W134: =VLOOKUP($A134,'[3]All POs'!$A:$G,2,FALSE) -> 4503046750 | X134: =VLOOKUP($A134,'[3]All POs'!$A:$G,3,FALSE) -> R52.50 | Y134: =VLOOKUP($A134,'[3]All POs'!$A:$G,5,FALSE) -> 2023-03-22 | Z134: =VLOOKUP($A134,'[3]All POs'!$A:$G,7,FALSE) -> JAZZ STUDIO GRAPHIX | AA134: =YEAR(Table1[[#This Row],[Last PO date]]) -> 2023 | AB134: =$W$2-Table1[[#This Row],[Year]] -> 0 | AC134: =Table1[[#This Row],[Last PO Price]]*($W$1)^AB134 -> R52.50 | AD134: =Table1[[#This Row],[MRP]]*Table1[[#This Row],[Subtotal]] -> R11,550.00
A135: 035000048 | B135: =VLOOKUP(A135,[1]!Table93[[Material Number]:[Description]],4,FALSE) ->  | C135: 1116 | D135: =VLOOKUP(Table1[[#This Row],[Plant]],[2]Sheet1!$C:$G,5,FALSE) -> Maint | E135: =VLOOKUP(Table1[[#This Row],[Plant]],[2]Sheet1!$C:$I,7,FALSE) -> MAINTENANCE NATAL CORRIDOR | F135: 2023 | G135: M | H135: 1 | I135: 0.000 | J135: 0.000 | K135: 0.000 | L135: 0.000 | M135: 100.000 | N135: 0.000 | O135: 0.000 | P135: 0.000 | Q135: 0.000 | R135: 0.000 | S135: 0.000 | T135: 0.000 | U135: 0.000 | V135: =SUM(Table1[[#This Row],[Jan]:[Jan2]]) -> 100.000 | W135: =VLOOKUP($A135,'[3]All POs'!$A:$G,2,FALSE) -> 4503046750 | X135: =VLOOKUP($A135,'[3]All POs'!$A:$G,3,FALSE) -> R52.50 | Y135: =VLOOKUP($A135,'[3]All POs'!$A:$G,5,FALSE) -> 2023-03-22 | Z135: =VLOOKUP($A135,'[3]All POs'!$A:$G,7,FALSE) -> JAZZ STUDIO GRAPHIX | AA135: =YEAR(Table1[[#This Row],[Last PO date]]) -> 2023 | AB135: =$W$2-Table1[[#This Row],[Year]] -> 0 | AC135: =Table1[[#This Row],[Last PO Price]]*($W$1)^AB135 -> R52.50 | AD135: =Table1[[#This Row],[MRP]]*Table1[[#This Row],[Subtotal]] -> R5,250.00
A136: 035000048 | B136: =VLOOKUP(A136,[1]!Table93[[Material Number]:[Description]],4,FALSE) ->  | C136: 1117 | D136: =VLOOKUP(Table1[[#This Row],[Plant]],[2]Sheet1!$C:$G,5,FALSE) -> Maint | E136: =VLOOKUP(Table1[[#This Row],[Plant]],[2]Sheet1!$C:$I,7,FALSE) -> MAINTENANCE CENTRAL CORRIDOR | F136: 2018 | G136: M | H136: 1 | I136: 0.000 | J136: 0.000 | K136: 50.000 | L136: 0.000 | M136: 0.000 | N136: 0.000 | O136: 0.000 | P136: 0.000 | Q136: 200.000 | R136: 0.000 | S136: 0.000 | T136: 0.000 | U136: 0.000 | V136: =SUM(Table1[[#This Row],[Jan]:[Jan2]]) -> 250.000 | W136: =VLOOKUP($A136,'[3]All POs'!$A:$G,2,FALSE) -> 4503046750 | X136: =VLOOKUP($A136,'[3]All POs'!$A:$G,3,FALSE) -> R52.50 | Y136: =VLOOKUP($A136,'[3]All POs'!$A:$G,5,FALSE) -> 2023-03-22 | Z136: =VLOOKUP($A136,'[3]All POs'!$A:$G,7,FALSE) -> JAZZ STUDIO GRAPHIX | AA136: =YEAR(Table1[[#This Row],[Last PO date]]) -> 2023 | AB136: =$W$2-Table1[[#This Row],[Year]] -> 0 | AC136: =Table1[[#This Row],[Last PO Price]]*($W$1)^AB136 -> R52.50 | AD136: =Table1[[#This Row],[MRP]]*Table1[[#This Row],[Subtotal]] -> R13,125.00
A137: 035000048 | B137: =VLOOKUP(A137,[1]!Table93[[Material Number]:[Description]],4,FALSE) ->  | C137: 1117 | D137: =VLOOKUP(Table1[[#This Row],[Plant]],[2]Sheet1!$C:$G,5,FALSE) -> Maint | E137: =VLOOKUP(Table1[[#This Row],[Plant]],[2]Sheet1!$C:$I,7,FALSE) -> MAINTENANCE CENTRAL CORRIDOR | F137: 2019 | G137: M | H137: 1 | I137: 0.000 | J137: 0.000 | K137: 0.000 | L137: 200.000 | M137: 0.000 | N137: 0.000 | O137: 0.000 | P137: 0.000 | Q137: 0.000 | R137: 0.000 | S137: 0.000 | T137: 200.000 | U137: 0.000 | V137: =SUM(Table1[[#This Row],[Jan]:[Jan2]]) -> 400.000 | W137: =VLOOKUP($A137,'[3]All POs'!$A:$G,2,FALSE) -> 4503046750 | X137: =VLOOKUP($A137,'[3]All POs'!$A:$G,3,FALSE) -> R52.50 | Y137: =VLOOKUP($A137,'[3]All POs'!$A:$G,5,FALSE) -> 2023-03-22 | Z137: =VLOOKUP($A137,'[3]All POs'!$A:$G,7,FALSE) -> JAZZ STUDIO GRAPHIX | AA137: =YEAR(Table1[[#This Row],[Last PO date]]) -> 2023 | AB137: =$W$2-Table1[[#This Row],[Year]] -> 0 | AC137: =Table1[[#This Row],[Last PO Price]]*($W$1)^AB137 -> R52.50 | AD137: =Table1[[#This Row],[MRP]]*Table1[[#This Row],[Subtotal]] -> R21,000.00
A138: 035000048 | B138: =VLOOKUP(A138,[1]!Table93[[Material Number]:[Description]],4,FALSE) ->  | C138: 1117 | D138: =VLOOKUP(Table1[[#This Row],[Plant]],[2]Sheet1!$C:$G,5,FALSE) -> Maint | E138: =VLOOKUP(Table1[[#This Row],[Plant]],[2]Sheet1!$C:$I,7,FALSE) -> MAINTENANCE CENTRAL CORRIDOR | F138: 2020 | G138: M | H138: 1 | I138: 0.000 | J138: 0.000 | K138: 0.000 | L138: 0.000 | M138: 0.000 | N138: 0.000 | O138: 300.000 | P138: 0.000 | Q138: 0.000 | R138: 0.000 | S138: 80.000 | T138: 160.000 | U138: 0.000 | V138: =SUM(Table1[[#This Row],[Jan]:[Jan2]]) -> 540.000 | W138: =VLOOKUP($A138,'[3]All POs'!$A:$G,2,FALSE) -> 4503046750 | X138: =VLOOKUP($A138,'[3]All POs'!$A:$G,3,FALSE) -> R52.50 | Y138: =VLOOKUP($A138,'[3]All POs'!$A:$G,5,FALSE) -> 2023-03-22 | Z138: =VLOOKUP($A138,'[3]All POs'!$A:$G,7,FALSE) -> JAZZ STUDIO GRAPHIX | AA138: =YEAR(Table1[[#This Row],[Last PO date]]) -> 2023 | AB138: =$W$2-Table1[[#This Row],[Year]] -> 0 | AC138: =Table1[[#This Row],[Last PO Price]]*($W$1)^AB138 -> R52.50 | AD138: =Table1[[#This Row],[MRP]]*Table1[[#This Row],[Subtotal]] -> R28,350.00
A139: 035000048 | B139: =VLOOKUP(A139,[1]!Table93[[Material Number]:[Description]],4,FALSE) ->  | C139: 1117 | D139: =VLOOKUP(Table1[[#This Row],[Plant]],[2]Sheet1!$C:$G,5,FALSE) -> Maint | E139: =VLOOKUP(Table1[[#This Row],[Plant]],[2]Sheet1!$C:$I,7,FALSE) -> MAINTENANCE CENTRAL CORRIDOR | F139: 2021 | G139: M | H139: 1 | I139: 0.000 | J139: 0.000 | K139: 0.000 | L139: 60.000 | M139: 0.000 | N139: 0.000 | O139: 0.000 | P139: 0.000 | Q139: 0.000 | R139: 0.000 | S139: 0.000 | T139: 0.000 | U139: 0.000 | V139: =SUM(Table1[[#This Row],[Jan]:[Jan2]]) -> 60.000 | W139: =VLOOKUP($A139,'[3]All POs'!$A:$G,2,FALSE) -> 4503046750 | X139: =VLOOKUP($A139,'[3]All POs'!$A:$G,3,FALSE) -> R52.50 | Y139: =VLOOKUP($A139,'[3]All POs'!$A:$G,5,FALSE) -> 2023-03-22 | Z139: =VLOOKUP($A139,'[3]All POs'!$A:$G,7,FALSE) -> JAZZ STUDIO GRAPHIX | AA139: =YEAR(Table1[[#This Row],[Last PO date]]) -> 2023 | AB139: =$W$2-Table1[[#This Row],[Year]] -> 0 | AC139: =Table1[[#This Row],[Last PO Price]]*($W$1)^AB139 -> R52.50 | AD139: =Table1[[#This Row],[MRP]]*Table1[[#This Row],[Subtotal]] -> R3,150.00
A140: 035000048 | B140: =VLOOKUP(A140,[1]!Table93[[Material Number]:[Description]],4,FALSE) ->  | C140: 1117 | D140: =VLOOKUP(Table1[[#This Row],[Plant]],[2]Sheet1!$C:$G,5,FALSE) -> Maint | E140: =VLOOKUP(Table1[[#This Row],[Plant]],[2]Sheet1!$C:$I,7,FALSE) -> MAINTENANCE CENTRAL CORRIDOR | F140: 2022 | G140: M | H140: 1 | I140: 0.000 | J140: 200.000 | K140: 0.000 | L140: 0.000 | M140: 0.000 | N140: 0.000 | O140: 0.000 | P140: 0.000 | Q140: 0.000 | R140: 0.000 | S140: 0.000 | T140: 0.000 | U140: 0.000 | V140: =SUM(Table1[[#This Row],[Jan]:[Jan2]]) -> 200.000 | W140: =VLOOKUP($A140,'[3]All POs'!$A:$G,2,FALSE) -> 4503046750 | X140: =VLOOKUP($A140,'[3]All POs'!$A:$G,3,FALSE) -> R52.50 | Y140: =VLOOKUP($A140,'[3]All POs'!$A:$G,5,FALSE) -> 2023-03-22 | Z140: =VLOOKUP($A140,'[3]All POs'!$A:$G,7,FALSE) -> JAZZ STUDIO GRAPHIX | AA140: =YEAR(Table1[[#This Row],[Last PO date]]) -> 2023 | AB140: =$W$2-Table1[[#This Row],[Year]] -> 0 | AC140: =Table1[[#This Row],[Last PO Price]]*($W$1)^AB140 -> R52.50 | AD140: =Table1[[#This Row],[MRP]]*Table1[[#This Row],[Subtotal]] -> R10,500.00
A141: 035000048 | B141: =VLOOKUP(A141,[1]!Table93[[Material Number]:[Description]],4,FALSE) ->  | C141: 1117 | D141: =VLOOKUP(Table1[[#This Row],[Plant]],[2]Sheet1!$C:$G,5,FALSE) -> Maint | E141: =VLOOKUP(Table1[[#This Row],[Plant]],[2]Sheet1!$C:$I,7,FALSE) -> MAINTENANCE CENTRAL CORRIDOR | F141: 2023 | G141: M | H141: 1 | I141: 300.000 | J141: 0.000 | K141: 0.000 | L141: 0.000 | M141: 0.000 | N141: 0.000 | O141: 0.000 | P141: 0.000 | Q141: 0.000 | R141: 0.000 | S141: 0.000 | T141: 0.000 | U141: 0.000 | V141: =SUM(Table1[[#This Row],[Jan]:[Jan2]]) -> 300.000 | W141: =VLOOKUP($A141,'[3]All POs'!$A:$G,2,FALSE) -> 4503046750 | X141: =VLOOKUP($A141,'[3]All POs'!$A:$G,3,FALSE) -> R52.50 | Y141: =VLOOKUP($A141,'[3]All POs'!$A:$G,5,FALSE) -> 2023-03-22 | Z141: =VLOOKUP($A141,'[3]All POs'!$A:$G,7,FALSE) -> JAZZ STUDIO GRAPHIX | AA141: =YEAR(Table1[[#This Row],[Last PO date]]) -> 2023 | AB141: =$W$2-Table1[[#This Row],[Year]] -> 0 | AC141: =Table1[[#This Row],[Last PO Price]]*($W$1)^AB141 -> R52.50 | AD141: =Table1[[#This Row],[MRP]]*Table1[[#This Row],[Subtotal]] -> R15,750.00
A142: 035000048 | B142: =VLOOKUP(A142,[1]!Table93[[Material Number]:[Description]],4,FALSE) ->  | C142: 1405 | D142: =VLOOKUP(Table1[[#This Row],[Plant]],[2]Sheet1!$C:$G,5,FALSE) -> Manuf | E142: =VLOOKUP(Table1[[#This Row],[Plant]],[2]Sheet1!$C:$I,7,FALSE) -> NATIONAL MANUFACTURING WAGONS | F142: 2019 | G142: M | H142: 1 | I142: 0.000 | J142: 0.000 | K142: 0.000 | L142: 0.000 | M142: 100.000 | N142: 0.000 | O142: 0.000 | P142: 0.000 | Q142: 0.000 | R142: 0.000 | S142: 0.000 | T142: 0.000 | U142: 0.000 | V142: =SUM(Table1[[#This Row],[Jan]:[Jan2]]) -> 100.000 | W142: =VLOOKUP($A142,'[3]All POs'!$A:$G,2,FALSE) -> 4503046750 | X142: =VLOOKUP($A142,'[3]All POs'!$A:$G,3,FALSE) -> R52.50 | Y142: =VLOOKUP($A142,'[3]All POs'!$A:$G,5,FALSE) -> 2023-03-22 | Z142: =VLOOKUP($A142,'[3]All POs'!$A:$G,7,FALSE) -> JAZZ STUDIO GRAPHIX | AA142: =YEAR(Table1[[#This Row],[Last PO date]]) -> 2023 | AB142: =$W$2-Table1[[#This Row],[Year]] -> 0 | AC142: =Table1[[#This Row],[Last PO Price]]*($W$1)^AB142 -> R52.50 | AD142: =Table1[[#This Row],[MRP]]*Table1[[#This Row],[Subtotal]] -> R5,250.00
A143: 035000048 | B143: =VLOOKUP(A143,[1]!Table93[[Material Number]:[Description]],4,FALSE) ->  | C143: 1405 | D143: =VLOOKUP(Table1[[#This Row],[Plant]],[2]Sheet1!$C:$G,5,FALSE) -> Manuf | E143: =VLOOKUP(Table1[[#This Row],[Plant]],[2]Sheet1!$C:$I,7,FALSE) -> NATIONAL MANUFACTURING WAGONS | F143: 2021 | G143: M | H143: 1 | I143: 0.000 | J143: 0.000 | K143: 0.000 | L143: 20.000 | M143: 0.000 | N143: 40.000 | O143: 0.000 | P143: 0.000 | Q143: 0.000 | R143: 40.000 | S143: 40.000 | T143: 0.000 | U143: 0.000 | V143: =SUM(Table1[[#This Row],[Jan]:[Jan2]]) -> 140.000 | W143: =VLOOKUP($A143,'[3]All POs'!$A:$G,2,FALSE) -> 4503046750 | X143: =VLOOKUP($A143,'[3]All POs'!$A:$G,3,FALSE) -> R52.50 | Y143: =VLOOKUP($A143,'[3]All POs'!$A:$G,5,FALSE) -> 2023-03-22 | Z143: =VLOOKUP($A143,'[3]All POs'!$A:$G,7,FALSE) -> JAZZ STUDIO GRAPHIX | AA143: =YEAR(Table1[[#This Row],[Last PO date]]) -> 2023 | AB143: =$W$2-Table1[[#This Row],[Year]] -> 0 | AC143: =Table1[[#This Row],[Last PO Price]]*($W$1)^AB143 -> R52.50 | AD143: =Table1[[#This Row],[MRP]]*Table1[[#This Row],[Subtotal]] -> R7,350.00
A144: 035000048 | B144: =VLOOKUP(A144,[1]!Table93[[Material Number]:[Description]],4,FALSE) ->  | C144: 1405 | D144: =VLOOKUP(Table1[[#This Row],[Plant]],[2]Sheet1!$C:$G,5,FALSE) -> Manuf | E144: =VLOOKUP(Table1[[#This Row],[Plant]],[2]Sheet1!$C:$I,7,FALSE) -> NATIONAL MANUFACTURING WAGONS | F144: 2022 | G144: M | H144: 1 | I144: 0.000 | J144: 0.000 | K144: 20.000 | L144: 40.000 | M144: 0.000 | N144: 0.000 | O144: 0.000 | P144: 0.000 | Q144: 0.000 | R144: 0.000 | S144: 0.000 | T144: 0.000 | U144: 0.000 | V144: =SUM(Table1[[#This Row],[Jan]:[Jan2]]) -> 60.000 | W144: =VLOOKUP($A144,'[3]All POs'!$A:$G,2,FALSE) -> 4503046750 | X144: =VLOOKUP($A144,'[3]All POs'!$A:$G,3,FALSE) -> R52.50 | Y144: =VLOOKUP($A144,'[3]All POs'!$A:$G,5,FALSE) -> 2023-03-22 | Z144: =VLOOKUP($A144,'[3]All POs'!$A:$G,7,FALSE) -> JAZZ STUDIO GRAPHIX | AA144: =YEAR(Table1[[#This Row],[Last PO date]]) -> 2023 | AB144: =$W$2-Table1[[#This Row],[Year]] -> 0 | AC144: =Table1[[#This Row],[Last PO Price]]*($W$1)^AB144 -> R52.50 | AD144: =Table1[[#This Row],[MRP]]*Table1[[#This Row],[Subtotal]] -> R3,150.00
A145: 035000048 | B145: =VLOOKUP(A145,[1]!Table93[[Material Number]:[Description]],4,FALSE) ->  | C145: 1417 | D145: =VLOOKUP(Table1[[#This Row],[Plant]],[2]Sheet1!$C:$G,5,FALSE) -> Maint | E145: =VLOOKUP(Table1[[#This Row],[Plant]],[2]Sheet1!$C:$I,7,FALSE) -> MAINTENANCE CENTRAL CORRIDOR | F145: 2019 | G145: M | H145: 1 | I145: 0.000 | J145: 0.000 | K145: 0.000 | L145: 0.000 | M145: 0.000 | N145: 0.000 | O145: 0.000 | P145: 0.000 | Q145: 0.000 | R145: 0.000 | S145: 20.000 | T145: 0.000 | U145: 0.000 | V145: =SUM(Table1[[#This Row],[Jan]:[Jan2]]) -> 20.000 | W145: =VLOOKUP($A145,'[3]All POs'!$A:$G,2,FALSE) -> 4503046750 | X145: =VLOOKUP($A145,'[3]All POs'!$A:$G,3,FALSE) -> R52.50 | Y145: =VLOOKUP($A145,'[3]All POs'!$A:$G,5,FALSE) -> 2023-03-22 | Z145: =VLOOKUP($A145,'[3]All POs'!$A:$G,7,FALSE) -> JAZZ STUDIO GRAPHIX | AA145: =YEAR(Table1[[#This Row],[Last PO date]]) -> 2023 | AB145: =$W$2-Table1[[#This Row],[Year]] -> 0 | AC145: =Table1[[#This Row],[Last PO Price]]*($W$1)^AB145 -> R52.50 | AD145: =Table1[[#This Row],[MRP]]*Table1[[#This Row],[Subtotal]] -> R1,050.00
A146: 035000048 | B146: =VLOOKUP(A146,[1]!Table93[[Material Number]:[Description]],4,FALSE) ->  | C146: 1478 | D146: =VLOOKUP(Table1[[#This Row],[Plant]],[2]Sheet1!$C:$G,5,FALSE) -> Maint | E146: =VLOOKUP(Table1[[#This Row],[Plant]],[2]Sheet1!$C:$I,7,FALSE) -> MAINTENANCE NORTHERN CORRIDOR | F146: 2023 | G146: M | H146: 1 | I146: 0.000 | J146: 0.000 | K146: 0.000 | L146: 8.000 | M146: 0.000 | N146: 0.000 | O146: 0.000 | P146: 0.000 | Q146: 0.000 | R146: 0.000 | S146: 0.000 | T146: 0.000 | U146: 0.000 | V146: =SUM(Table1[[#This Row],[Jan]:[Jan2]]) -> 8.000 | W146: =VLOOKUP($A146,'[3]All POs'!$A:$G,2,FALSE) -> 4503046750 | X146: =VLOOKUP($A146,'[3]All POs'!$A:$G,3,FALSE) -> R52.50 | Y146: =VLOOKUP($A146,'[3]All POs'!$A:$G,5,FALSE) -> 2023-03-22 | Z146: =VLOOKUP($A146,'[3]All POs'!$A:$G,7,FALSE) -> JAZZ STUDIO GRAPHIX | AA146: =YEAR(Table1[[#This Row],[Last PO date]]) -> 2023 | AB146: =$W$2-Table1[[#This Row],[Year]] -> 0 | AC146: =Table1[[#This Row],[Last PO Price]]*($W$1)^AB146 -> R52.50 | AD146: =Table1[[#This Row],[MRP]]*Table1[[#This Row],[Subtotal]] -> R420.00
A147: 035000048 | B147: =VLOOKUP(A147,[1]!Table93[[Material Number]:[Description]],4,FALSE) ->  | C147: 2106 | D147: =VLOOKUP(Table1[[#This Row],[Plant]],[2]Sheet1!$C:$G,5,FALSE) -> Manuf | E147: =VLOOKUP(Table1[[#This Row],[Plant]],[2]Sheet1!$C:$I,7,FALSE) -> NATIONAL MANUFACTURING RS SUPPORT | F147: 2020 | G147: M | H147: 1 | I147: 0.000 | J147: 4.000 | K147: 0.000 | L147: 0.000 | M147: 0.000 | N147: 0.000 | O147: 0.000 | P147: 0.000 | Q147: 0.000 | R147: 0.000 | S147: 0.000 | T147: 0.000 | U147: 0.000 | V147: =SUM(Table1[[#This Row],[Jan]:[Jan2]]) -> 4.000 | W147: =VLOOKUP($A147,'[3]All POs'!$A:$G,2,FALSE) -> 4503046750 | X147: =VLOOKUP($A147,'[3]All POs'!$A:$G,3,FALSE) -> R52.50 | Y147: =VLOOKUP($A147,'[3]All POs'!$A:$G,5,FALSE) -> 2023-03-22 | Z147: =VLOOKUP($A147,'[3]All POs'!$A:$G,7,FALSE) -> JAZZ STUDIO GRAPHIX | AA147: =YEAR(Table1[[#This Row],[Last PO date]]) -> 2023 | AB147: =$W$2-Table1[[#This Row],[Year]] -> 0 | AC147: =Table1[[#This Row],[Last PO Price]]*($W$1)^AB147 -> R52.50 | AD147: =Table1[[#This Row],[MRP]]*Table1[[#This Row],[Subtotal]] -> R210.00
A148: 035000066 | B148: =VLOOKUP(A148,[1]!Table93[[Material Number]:[Description]],4,FALSE) ->  | C148: 1111 | D148: =VLOOKUP(Table1[[#This Row],[Plant]],[2]Sheet1!$C:$G,5,FALSE) -> Maint | E148: =VLOOKUP(Table1[[#This Row],[Plant]],[2]Sheet1!$C:$I,7,FALSE) -> MAINTENANCE CAPE CORRIDOR | F148: 2018 | G148: M | H148: 1 | I148: 0.000 | J148: 0.000 | K148: 0.000 | L148: 24.000 | M148: 12.000 | N148: 64.000 | O148: 0.000 | P148: 58.000 | Q148: 28.000 | R148: 86.000 | S148: 0.000 | T148: 20.000 | U148: 0.000 | V148: =SUM(Table1[[#This Row],[Jan]:[Jan2]]) -> 292.000 | W148: =VLOOKUP($A148,'[3]All POs'!$A:$G,2,FALSE) -> 4503046094 | X148: =VLOOKUP($A148,'[3]All POs'!$A:$G,3,FALSE) -> R26.40 | Y148: =VLOOKUP($A148,'[3]All POs'!$A:$G,5,FALSE) -> 2023-03-16 | Z148: =VLOOKUP($A148,'[3]All POs'!$A:$G,7,FALSE) -> PIENAAR BROS | AA148: =YEAR(Table1[[#This Row],[Last PO date]]) -> 2023 | AB148: =$W$2-Table1[[#This Row],[Year]] -> 0 | AC148: =Table1[[#This Row],[Last PO Price]]*($W$1)^AB148 -> R26.40 | AD148: =Table1[[#This Row],[MRP]]*Table1[[#This Row],[Subtotal]] -> R7,708.80
A149: 035000066 | B149: =VLOOKUP(A149,[1]!Table93[[Material Number]:[Description]],4,FALSE) ->  | C149: 1111 | D149: =VLOOKUP(Table1[[#This Row],[Plant]],[2]Sheet1!$C:$G,5,FALSE) -> Maint | E149: =VLOOKUP(Table1[[#This Row],[Plant]],[2]Sheet1!$C:$I,7,FALSE) -> MAINTENANCE CAPE CORRIDOR | F149: 2019 | G149: M | H149: 1 | I149: 34.000 | J149: 0.000 | K149: 12.000 | L149: 0.000 | M149: 20.000 | N149: 25.000 | O149: 16.000 | P149: 0.000 | Q149: 110.000 | R149: 0.000 | S149: 0.000 | T149: 0.000 | U149: 0.000 | V149: =SUM(Table1[[#This Row],[Jan]:[Jan2]]) -> 217.000 | W149: =VLOOKUP($A149,'[3]All POs'!$A:$G,2,FALSE) -> 4503046094 | X149: =VLOOKUP($A149,'[3]All POs'!$A:$G,3,FALSE) -> R26.40 | Y149: =VLOOKUP($A149,'[3]All POs'!$A:$G,5,FALSE) -> 2023-03-16 | Z149: =VLOOKUP($A149,'[3]All POs'!$A:$G,7,FALSE) -> PIENAAR BROS | AA149: =YEAR(Table1[[#This Row],[Last PO date]]) -> 2023 | AB149: =$W$2-Table1[[#This Row],[Year]] -> 0 | AC149: =Table1[[#This Row],[Last PO Price]]*($W$1)^AB149 -> R26.40 | AD149: =Table1[[#This Row],[MRP]]*Table1[[#This Row],[Subtotal]] -> R5,728.80
A150: 035000066 | B150: =VLOOKUP(A150,[1]!Table93[[Material Number]:[Description]],4,FALSE) ->  | C150: 1111 | D150: =VLOOKUP(Table1[[#This Row],[Plant]],[2]Sheet1!$C:$G,5,FALSE) -> Maint | E150: =VLOOKUP(Table1[[#This Row],[Plant]],[2]Sheet1!$C:$I,7,FALSE) -> MAINTENANCE CAPE CORRIDOR | F150: 2020 | G150: M | H150: 1 | I150: 0.000 | J150: 0.000 | K150: 0.000 | L150: 24.000 | M150: 250.000 | N150: 20.000 | O150: 0.000 | P150: 47.000 | Q150: 10.000 | R150: 29.000 | S150: 19.000 | T150: 27.000 | U150: 0.000 | V150: =SUM(Table1[[#This Row],[Jan]:[Jan2]]) -> 426.000 | W150: =VLOOKUP($A150,'[3]All POs'!$A:$G,2,FALSE) -> 4503046094 | X150: =VLOOKUP($A150,'[3]All POs'!$A:$G,3,FALSE) -> R26.40 | Y150: =VLOOKUP($A150,'[3]All POs'!$A:$G,5,FALSE) -> 2023-03-16 | Z150: =VLOOKUP($A150,'[3]All POs'!$A:$G,7,FALSE) -> PIENAAR BROS | AA150: =YEAR(Table1[[#This Row],[Last PO date]]) -> 2023 | AB150: =$W$2-Table1[[#This Row],[Year]] -> 0 | AC150: =Table1[[#This Row],[Last PO Price]]*($W$1)^AB150 -> R26.40 | AD150: =Table1[[#This Row],[MRP]]*Table1[[#This Row],[Subtotal]] -> R11,246.40
A151: 035000066 | B151: =VLOOKUP(A151,[1]!Table93[[Material Number]:[Description]],4,FALSE) ->  | C151: 1111 | D151: =VLOOKUP(Table1[[#This Row],[Plant]],[2]Sheet1!$C:$G,5,FALSE) -> Maint | E151: =VLOOKUP(Table1[[#This Row],[Plant]],[2]Sheet1!$C:$I,7,FALSE) -> MAINTENANCE CAPE CORRIDOR | F151: 2021 | G151: M | H151: 1 | I151: 22.000 | J151: 490.000 | K151: 46.000 | L151: 13.000 | M151: 28.000 | N151: 104.000 | O151: 0.000 | P151: 0.000 | Q151: 0.000 | R151: 0.000 | S151: 48.000 | T151: 0.000 | U151: 0.000 | V151: =SUM(Table1[[#This Row],[Jan]:[Jan2]]) -> 751.000 | W151: =VLOOKUP($A151,'[3]All POs'!$A:$G,2,FALSE) -> 4503046094 | X151: =VLOOKUP($A151,'[3]All POs'!$A:$G,3,FALSE) -> R26.40 | Y151: =VLOOKUP($A151,'[3]All POs'!$A:$G,5,FALSE) -> 2023-03-16 | Z151: =VLOOKUP($A151,'[3]All POs'!$A:$G,7,FALSE) -> PIENAAR BROS | AA151: =YEAR(Table1[[#This Row],[Last PO date]]) -> 2023 | AB151: =$W$2-Table1[[#This Row],[Year]] -> 0 | AC151: =Table1[[#This Row],[Last PO Price]]*($W$1)^AB151 -> R26.40 | AD151: =Table1[[#This Row],[MRP]]*Table1[[#This Row],[Subtotal]] -> R19,826.40
A152: 035000066 | B152: =VLOOKUP(A152,[1]!Table93[[Material Number]:[Description]],4,FALSE) ->  | C152: 1111 | D152: =VLOOKUP(Table1[[#This Row],[Plant]],[2]Sheet1!$C:$G,5,FALSE) -> Maint | E152: =VLOOKUP(Table1[[#This Row],[Plant]],[2]Sheet1!$C:$I,7,FALSE) -> MAINTENANCE CAPE CORRIDOR | F152: 2022 | G152: M | H152: 1 | I152: 0.000 | J152: 22.000 | K152: 26.000 | L152: 0.000 | M152: 0.000 | N152: 44.000 | O152: 294.000 | P152: 0.000 | Q152: 36.000 | R152: 23.000 | S152: 61.000 | T152: 158.000 | U152: 0.000 | V152: =SUM(Table1[[#This Row],[Jan]:[Jan2]]) -> 664.000 | W152: =VLOOKUP($A152,'[3]All POs'!$A:$G,2,FALSE) -> 4503046094 | X152: =VLOOKUP($A152,'[3]All POs'!$A:$G,3,FALSE) -> R26.40 | Y152: =VLOOKUP($A152,'[3]All POs'!$A:$G,5,FALSE) -> 2023-03-16 | Z152: =VLOOKUP($A152,'[3]All POs'!$A:$G,7,FALSE) -> PIENAAR BROS | AA152: =YEAR(Table1[[#This Row],[Last PO date]]) -> 2023 | AB152: =$W$2-Table1[[#This Row],[Year]] -> 0 | AC152: =Table1[[#This Row],[Last PO Price]]*($W$1)^AB152 -> R26.40 | AD152: =Table1[[#This Row],[MRP]]*Table1[[#This Row],[Subtotal]] -> R17,529.60
A153: 035000066 | B153: =VLOOKUP(A153,[1]!Table93[[Material Number]:[Description]],4,FALSE) ->  | C153: 1111 | D153: =VLOOKUP(Table1[[#This Row],[Plant]],[2]Sheet1!$C:$G,5,FALSE) -> Maint | E153: =VLOOKUP(Table1[[#This Row],[Plant]],[2]Sheet1!$C:$I,7,FALSE) -> MAINTENANCE CAPE CORRIDOR | F153: 2023 | G153: M | H153: 1 | I153: 0.000 | J153: 0.000 | K153: 0.000 | L153: 0.000 | M153: 24.000 | N153: 257.000 | O153: 0.000 | P153: 0.000 | Q153: 0.000 | R153: 0.000 | S153: 0.000 | T153: 0.000 | U153: 0.000 | V153: =SUM(Table1[[#This Row],[Jan]:[Jan2]]) -> 281.000 | W153: =VLOOKUP($A153,'[3]All POs'!$A:$G,2,FALSE) -> 4503046094 | X153: =VLOOKUP($A153,'[3]All POs'!$A:$G,3,FALSE) -> R26.40 | Y153: =VLOOKUP($A153,'[3]All POs'!$A:$G,5,FALSE) -> 2023-03-16 | Z153: =VLOOKUP($A153,'[3]All POs'!$A:$G,7,FALSE) -> PIENAAR BROS | AA153: =YEAR(Table1[[#This Row],[Last PO date]]) -> 2023 | AB153: =$W$2-Table1[[#This Row],[Year]] -> 0 | AC153: =Table1[[#This Row],[Last PO Price]]*($W$1)^AB153 -> R26.40 | AD153: =Table1[[#This Row],[MRP]]*Table1[[#This Row],[Subtotal]] -> R7,418.40
A154: 035000066 | B154: =VLOOKUP(A154,[1]!Table93[[Material Number]:[Description]],4,FALSE) ->  | C154: 1151 | D154: =VLOOKUP(Table1[[#This Row],[Plant]],[2]Sheet1!$C:$G,5,FALSE) -> Maint | E154: =VLOOKUP(Table1[[#This Row],[Plant]],[2]Sheet1!$C:$I,7,FALSE) -> MAINTENANCE ORE CORRIDOR | F154: 2018 | G154: M | H154: 1 | I154: 75.000 | J154: 83.000 | K154: 50.000 | L154: 110.000 | M154: 144.000 | N154: 65.000 | O154: 130.000 | P154: 105.000 | Q154: 47.000 | R154: 144.000 | S154: 170.000 | T154: 93.000 | U154: 0.000 | V154: =SUM(Table1[[#This Row],[Jan]:[Jan2]]) -> 1216.000 | W154: =VLOOKUP($A154,'[3]All POs'!$A:$G,2,FALSE) -> 4503046094 | X154: =VLOOKUP($A154,'[3]All POs'!$A:$G,3,FALSE) -> R26.40 | Y154: =VLOOKUP($A154,'[3]All POs'!$A:$G,5,FALSE) -> 2023-03-16 | Z154: =VLOOKUP($A154,'[3]All POs'!$A:$G,7,FALSE) -> PIENAAR BROS | AA154: =YEAR(Table1[[#This Row],[Last PO date]]) -> 2023 | AB154: =$W$2-Table1[[#This Row],[Year]] -> 0 | AC154: =Table1[[#This Row],[Last PO Price]]*($W$1)^AB154 -> R26.40 | AD154: =Table1[[#This Row],[MRP]]*Table1[[#This Row],[Subtotal]] -> R32,102.40
A155: 035000066 | B155: =VLOOKUP(A155,[1]!Table93[[Material Number]:[Description]],4,FALSE) ->  | C155: 1151 | D155: =VLOOKUP(Table1[[#This Row],[Plant]],[2]Sheet1!$C:$G,5,FALSE) -> Maint | E155: =VLOOKUP(Table1[[#This Row],[Plant]],[2]Sheet1!$C:$I,7,FALSE) -> MAINTENANCE ORE CORRIDOR | F155: 2019 | G155: M | H155: 1 | I155: 23.000 | J155: 188.000 | K155: 122.000 | L155: 38.000 | M155: 160.000 | N155: 106.000 | O155: 76.000 | P155: 66.000 | Q155: 140.000 | R155: 26.000 | S155: 90.000 | T155: 102.000 | U155: 0.000 | V155: =SUM(Table1[[#This Row],[Jan]:[Jan2]]) -> 1137.000 | W155: =VLOOKUP($A155,'[3]All POs'!$A:$G,2,FALSE) -> 4503046094 | X155: =VLOOKUP($A155,'[3]All POs'!$A:$G,3,FALSE) -> R26.40 | Y155: =VLOOKUP($A155,'[3]All POs'!$A:$G,5,FALSE) -> 2023-03-16 | Z155: =VLOOKUP($A155,'[3]All POs'!$A:$G,7,FALSE) -> PIENAAR BROS | AA155: =YEAR(Table1[[#This Row],[Last PO date]]) -> 2023 | AB155: =$W$2-Table1[[#This Row],[Year]] -> 0 | AC155: =Table1[[#This Row],[Last PO Price]]*($W$1)^AB155 -> R26.40 | AD155: =Table1[[#This Row],[MRP]]*Table1[[#This Row],[Subtotal]] -> R30,016.80
A156: 035000066 | B156: =VLOOKUP(A156,[1]!Table93[[Material Number]:[Description]],4,FALSE) ->  | C156: 1151 | D156: =VLOOKUP(Table1[[#This Row],[Plant]],[2]Sheet1!$C:$G,5,FALSE) -> Maint | E156: =VLOOKUP(Table1[[#This Row],[Plant]],[2]Sheet1!$C:$I,7,FALSE) -> MAINTENANCE ORE CORRIDOR | F156: 2020 | G156: M | H156: 1 | I156: 18.000 | J156: 96.000 | K156: 0.000 | L156: 12.000 | M156: 12.000 | N156: 171.000 | O156: 222.000 | P156: 195.000 | Q156: 102.000 | R156: 0.000 | S156: 0.000 | T156: 127.000 | U156: 0.000 | V156: =SUM(Table1[[#This Row],[Jan]:[Jan2]]) -> 955.000 | W156: =VLOOKUP($A156,'[3]All POs'!$A:$G,2,FALSE) -> 4503046094 | X156: =VLOOKUP($A156,'[3]All POs'!$A:$G,3,FALSE) -> R26.40 | Y156: =VLOOKUP($A156,'[3]All POs'!$A:$G,5,FALSE) -> 2023-03-16 | Z156: =VLOOKUP($A156,'[3]All POs'!$A:$G,7,FALSE) -> PIENAAR BROS | AA156: =YEAR(Table1[[#This Row],[Last PO date]]) -> 2023 | AB156: =$W$2-Table1[[#This Row],[Year]] -> 0 | AC156: =Table1[[#This Row],[Last PO Price]]*($W$1)^AB156 -> R26.40 | AD156: =Table1[[#This Row],[MRP]]*Table1[[#This Row],[Subtotal]] -> R25,212.00
A157: 035000066 | B157: =VLOOKUP(A157,[1]!Table93[[Material Number]:[Description]],4,FALSE) ->  | C157: 1151 | D157: =VLOOKUP(Table1[[#This Row],[Plant]],[2]Sheet1!$C:$G,5,FALSE) -> Maint | E157: =VLOOKUP(Table1[[#This Row],[Plant]],[2]Sheet1!$C:$I,7,FALSE) -> MAINTENANCE ORE CORRIDOR | F157: 2021 | G157: M | H157: 1 | I157: 145.000 | J157: 230.000 | K157: 78.000 | L157: 8.000 | M157: 100.000 | N157: 0.000 | O157: 0.000 | P157: 240.000 | Q157: 0.000 | R157: 0.000 | S157: 165.000 | T157: 76.000 | U157: 0.000 | V157: =SUM(Table1[[#This Row],[Jan]:[Jan2]]) -> 1042.000 | W157: =VLOOKUP($A157,'[3]All POs'!$A:$G,2,FALSE) -> 4503046094 | X157: =VLOOKUP($A157,'[3]All POs'!$A:$G,3,FALSE) -> R26.40 | Y157: =VLOOKUP($A157,'[3]All POs'!$A:$G,5,FALSE) -> 2023-03-16 | Z157: =VLOOKUP($A157,'[3]All POs'!$A:$G,7,FALSE) -> PIENAAR BROS | AA157: =YEAR(Table1[[#This Row],[Last PO date]]) -> 2023 | AB157: =$W$2-Table1[[#This Row],[Year]] -> 0 | AC157: =Table1[[#This Row],[Last PO Price]]*($W$1)^AB157 -> R26.40 | AD157: =Table1[[#This Row],[MRP]]*Table1[[#This Row],[Subtotal]] -> R27,508.80
A158: 035000066 | B158: =VLOOKUP(A158,[1]!Table93[[Material Number]:[Description]],4,FALSE) ->  | C158: 1151 | D158: =VLOOKUP(Table1[[#This Row],[Plant]],[2]Sheet1!$C:$G,5,FALSE) -> Maint | E158: =VLOOKUP(Table1[[#This Row],[Plant]],[2]Sheet1!$C:$I,7,FALSE) -> MAINTENANCE ORE CORRIDOR | F158: 2022 | G158: M | H158: 1 | I158: 155.000 | J158: 34.000 | K158: 163.000 | L158: 177.000 | M158: 60.000 | N158: 60.000 | O158: 9.000 | P158: 0.000 | Q158: 0.000 | R158: 0.000 | S158: 0.000 | T158: 0.000 | U158: 0.000 | V158: =SUM(Table1[[#This Row],[Jan]:[Jan2]]) -> 658.000 | W158: =VLOOKUP($A158,'[3]All POs'!$A:$G,2,FALSE) -> 4503046094 | X158: =VLOOKUP($A158,'[3]All POs'!$A:$G,3,FALSE) -> R26.40 | Y158: =VLOOKUP($A158,'[3]All POs'!$A:$G,5,FALSE) -> 2023-03-16 | Z158: =VLOOKUP($A158,'[3]All POs'!$A:$G,7,FALSE) -> PIENAAR BROS | AA158: =YEAR(Table1[[#This Row],[Last PO date]]) -> 2023 | AB158: =$W$2-Table1[[#This Row],[Year]] -> 0 | AC158: =Table1[[#This Row],[Last PO Price]]*($W$1)^AB158 -> R26.40 | AD158: =Table1[[#This Row],[MRP]]*Table1[[#This Row],[Subtotal]] -> R17,371.20
A159: 035000066 | B159: =VLOOKUP(A159,[1]!Table93[[Material Number]:[Description]],4,FALSE) ->  | C159: 1151 | D159: =VLOOKUP(Table1[[#This Row],[Plant]],[2]Sheet1!$C:$G,5,FALSE) -> Maint | E159: =VLOOKUP(Table1[[#This Row],[Plant]],[2]Sheet1!$C:$I,7,FALSE) -> MAINTENANCE ORE CORRIDOR | F159: 2023 | G159: M | H159: 1 | I159: 0.000 | J159: 0.000 | K159: 60.000 | L159: 38.000 | M159: 139.000 | N159: 30.000 | O159: 0.000 | P159: 0.000 | Q159: 0.000 | R159: 0.000 | S159: 0.000 | T159: 0.000 | U159: 0.000 | V159: =SUM(Table1[[#This Row],[Jan]:[Jan2]]) -> 267.000 | W159: =VLOOKUP($A159,'[3]All POs'!$A:$G,2,FALSE) -> 4503046094 | X159: =VLOOKUP($A159,'[3]All POs'!$A:$G,3,FALSE) -> R26.40 | Y159: =VLOOKUP($A159,'[3]All POs'!$A:$G,5,FALSE) -> 2023-03-16 | Z159: =VLOOKUP($A159,'[3]All POs'!$A:$G,7,FALSE) -> PIENAAR BROS | AA159: =YEAR(Table1[[#This Row],[Last PO date]]) -> 2023 | AB159: =$W$2-Table1[[#This Row],[Year]] -> 0 | AC159: =Table1[[#This Row],[Last PO Price]]*($W$1)^AB159 -> R26.40 | AD159: =Table1[[#This Row],[MRP]]*Table1[[#This Row],[Subtotal]] -> R7,048.80
A160: 035000066 | B160: =VLOOKUP(A160,[1]!Table93[[Material Number]:[Description]],4,FALSE) ->  | C160: 1186 | D160: =VLOOKUP(Table1[[#This Row],[Plant]],[2]Sheet1!$C:$G,5,FALSE) -> Maint | E160: =VLOOKUP(Table1[[#This Row],[Plant]],[2]Sheet1!$C:$I,7,FALSE) -> MAINTENANCE NORTHERN CORRIDOR | F160: 2018 | G160: M | H160: 1 | I160: 48.000 | J160: 54.000 | K160: 0.000 | L160: 24.000 | M160: 48.000 | N160: 0.000 | O160: 86.000 | P160: 50.000 | Q160: 102.000 | R160: 84.000 | S160: 60.000 | T160: 24.000 | U160: 0.000 | V160: =SUM(Table1[[#This Row],[Jan]:[Jan2]]) -> 580.000 | W160: =VLOOKUP($A160,'[3]All POs'!$A:$G,2,FALSE) -> 4503046094 | X160: =VLOOKUP($A160,'[3]All POs'!$A:$G,3,FALSE) -> R26.40 | Y160: =VLOOKUP($A160,'[3]All POs'!$A:$G,5,FALSE) -> 2023-03-16 | Z160: =VLOOKUP($A160,'[3]All POs'!$A:$G,7,FALSE) -> PIENAAR BROS | AA160: =YEAR(Table1[[#This Row],[Last PO date]]) -> 2023 | AB160: =$W$2-Table1[[#This Row],[Year]] -> 0 | AC160: =Table1[[#This Row],[Last PO Price]]*($W$1)^AB160 -> R26.40 | AD160: =Table1[[#This Row],[MRP]]*Table1[[#This Row],[Subtotal]] -> R15,312.00
A161: 035000066 | B161: =VLOOKUP(A161,[1]!Table93[[Material Number]:[Description]],4,FALSE) ->  | C161: 1186 | D161: =VLOOKUP(Table1[[#This Row],[Plant]],[2]Sheet1!$C:$G,5,FALSE) -> Maint | E161: =VLOOKUP(Table1[[#This Row],[Plant]],[2]Sheet1!$C:$I,7,FALSE) -> MAINTENANCE NORTHERN CORRIDOR | F161: 2019 | G161: M | H161: 1 | I161: 40.000 | J161: 12.000 | K161: 0.000 | L161: 44.000 | M161: 0.000 | N161: 0.000 | O161: 20.000 | P161: 0.000 | Q161: 0.000 | R161: 24.000 | S161: 0.000 | T161: 0.000 | U161: 0.000 | V161: =SUM(Table1[[#This Row],[Jan]:[Jan2]]) -> 140.000 | W161: =VLOOKUP($A161,'[3]All POs'!$A:$G,2,FALSE) -> 4503046094 | X161: =VLOOKUP($A161,'[3]All POs'!$A:$G,3,FALSE) -> R26.40 | Y161: =VLOOKUP($A161,'[3]All POs'!$A:$G,5,FALSE) -> 2023-03-16 | Z161: =VLOOKUP($A161,'[3]All POs'!$A:$G,7,FALSE) -> PIENAAR BROS | AA161: =YEAR(Table1[[#This Row],[Last PO date]]) -> 2023 | AB161: =$W$2-Table1[[#This Row],[Year]] -> 0 | AC161: =Table1[[#This Row],[Last PO Price]]*($W$1)^AB161 -> R26.40 | AD161: =Table1[[#This Row],[MRP]]*Table1[[#This Row],[Subtotal]] -> R3,696.00
A162: 035000066 | B162: =VLOOKUP(A162,[1]!Table93[[Material Number]:[Description]],4,FALSE) ->  | C162: 1186 | D162: =VLOOKUP(Table1[[#This Row],[Plant]],[2]Sheet1!$C:$G,5,FALSE) -> Maint | E162: =VLOOKUP(Table1[[#This Row],[Plant]],[2]Sheet1!$C:$I,7,FALSE) -> MAINTENANCE NORTHERN CORRIDOR | F162: 2020 | G162: M | H162: 1 | I162: 24.000 | J162: 0.000 | K162: 0.000 | L162: 0.000 | M162: 16.000 | N162: 0.000 | O162: 0.000 | P162: 0.000 | Q162: 0.000 | R162: 0.000 | S162: 0.000 | T162: 0.000 | U162: 0.000 | V162: =SUM(Table1[[#This Row],[Jan]:[Jan2]]) -> 40.000 | W162: =VLOOKUP($A162,'[3]All POs'!$A:$G,2,FALSE) -> 4503046094 | X162: =VLOOKUP($A162,'[3]All POs'!$A:$G,3,FALSE) -> R26.40 | Y162: =VLOOKUP($A162,'[3]All POs'!$A:$G,5,FALSE) -> 2023-03-16 | Z162: =VLOOKUP($A162,'[3]All POs'!$A:$G,7,FALSE) -> PIENAAR BROS | AA162: =YEAR(Table1[[#This Row],[Last PO date]]) -> 2023 | AB162: =$W$2-Table1[[#This Row],[Year]] -> 0 | AC162: =Table1[[#This Row],[Last PO Price]]*($W$1)^AB162 -> R26.40 | AD162: =Table1[[#This Row],[MRP]]*Table1[[#This Row],[Subtotal]] -> R1,056.00
A163: 035000066 | B163: =VLOOKUP(A163,[1]!Table93[[Material Number]:[Description]],4,FALSE) ->  | C163: 1301 | D163: =VLOOKUP(Table1[[#This Row],[Plant]],[2]Sheet1!$C:$G,5,FALSE) -> Manuf | E163: =VLOOKUP(Table1[[#This Row],[Plant]],[2]Sheet1!$C:$I,7,FALSE) -> NATIONAL MANUFACTURING COACHES | F163: 2020 | G163: M | H163: 1 | I163: 0.000 | J163: 0.000 | K163: 20.000 | L163: 0.000 | M163: 8.000 | N163: 0.000 | O163: 34.000 | P163: 0.000 | Q163: 10.000 | R163: 0.000 | S163: 0.000 | T163: 0.000 | U163: 0.000 | V163: =SUM(Table1[[#This Row],[Jan]:[Jan2]]) -> 72.000 | W163: =VLOOKUP($A163,'[3]All POs'!$A:$G,2,FALSE) -> 4503046094 | X163: =VLOOKUP($A163,'[3]All POs'!$A:$G,3,FALSE) -> R26.40 | Y163: =VLOOKUP($A163,'[3]All POs'!$A:$G,5,FALSE) -> 2023-03-16 | Z163: =VLOOKUP($A163,'[3]All POs'!$A:$G,7,FALSE) -> PIENAAR BROS | AA163: =YEAR(Table1[[#This Row],[Last PO date]]) -> 2023 | AB163: =$W$2-Table1[[#This Row],[Year]] -> 0 | AC163: =Table1[[#This Row],[Last PO Price]]*($W$1)^AB163 -> R26.40 | AD163: =Table1[[#This Row],[MRP]]*Table1[[#This Row],[Subtotal]] -> R1,900.80
A164: 035000066 | B164: =VLOOKUP(A164,[1]!Table93[[Material Number]:[Description]],4,FALSE) ->  | C164: 1301 | D164: =VLOOKUP(Table1[[#This Row],[Plant]],[2]Sheet1!$C:$G,5,FALSE) -> Manuf | E164: =VLOOKUP(Table1[[#This Row],[Plant]],[2]Sheet1!$C:$I,7,FALSE) -> NATIONAL MANUFACTURING COACHES | F164: 2021 | G164: M | H164: 1 | I164: 0.000 | J164: 30.000 | K164: 0.000 | L164: 30.000 | M164: 0.000 | N164: 0.000 | O164: 0.000 | P164: 0.000 | Q164: 0.000 | R164: 15.000 | S164: 0.000 | T164: 0.000 | U164: 0.000 | V164: =SUM(Table1[[#This Row],[Jan]:[Jan2]]) -> 75.000 | W164: =VLOOKUP($A164,'[3]All POs'!$A:$G,2,FALSE) -> 4503046094 | X164: =VLOOKUP($A164,'[3]All POs'!$A:$G,3,FALSE) -> R26.40 | Y164: =VLOOKUP($A164,'[3]All POs'!$A:$G,5,FALSE) -> 2023-03-16 | Z164: =VLOOKUP($A164,'[3]All POs'!$A:$G,7,FALSE) -> PIENAAR BROS | AA164: =YEAR(Table1[[#This Row],[Last PO date]]) -> 2023 | AB164: =$W$2-Table1[[#This Row],[Year]] -> 0 | AC164: =Table1[[#This Row],[Last PO Price]]*($W$1)^AB164 -> R26.40 | AD164: =Table1[[#This Row],[MRP]]*Table1[[#This Row],[Subtotal]] -> R1,980.00
A165: 035000066 | B165: =VLOOKUP(A165,[1]!Table93[[Material Number]:[Description]],4,FALSE) ->  | C165: 1301 | D165: =VLOOKUP(Table1[[#This Row],[Plant]],[2]Sheet1!$C:$G,5,FALSE) -> Manuf | E165: =VLOOKUP(Table1[[#This Row],[Plant]],[2]Sheet1!$C:$I,7,FALSE) -> NATIONAL MANUFACTURING COACHES | F165: 2022 | G165: M | H165: 1 | I165: 0.000 | J165: 4.000 | K165: 0.000 | L165: 0.000 | M165: 3.000 | N165: 0.000 | O165: 0.000 | P165: 0.000 | Q165: 0.000 | R165: 0.000 | S165: 0.000 | T165: 0.000 | U165: 0.000 | V165: =SUM(Table1[[#This Row],[Jan]:[Jan2]]) -> 7.000 | W165: =VLOOKUP($A165,'[3]All POs'!$A:$G,2,FALSE) -> 4503046094 | X165: =VLOOKUP($A165,'[3]All POs'!$A:$G,3,FALSE) -> R26.40 | Y165: =VLOOKUP($A165,'[3]All POs'!$A:$G,5,FALSE) -> 2023-03-16 | Z165: =VLOOKUP($A165,'[3]All POs'!$A:$G,7,FALSE) -> PIENAAR BROS | AA165: =YEAR(Table1[[#This Row],[Last PO date]]) -> 2023 | AB165: =$W$2-Table1[[#This Row],[Year]] -> 0 | AC165: =Table1[[#This Row],[Last PO Price]]*($W$1)^AB165 -> R26.40 | AD165: =Table1[[#This Row],[MRP]]*Table1[[#This Row],[Subtotal]] -> R184.80
A166: 035000066 | B166: =VLOOKUP(A166,[1]!Table93[[Material Number]:[Description]],4,FALSE) ->  | C166: 1301 | D166: =VLOOKUP(Table1[[#This Row],[Plant]],[2]Sheet1!$C:$G,5,FALSE) -> Manuf | E166: =VLOOKUP(Table1[[#This Row],[Plant]],[2]Sheet1!$C:$I,7,FALSE) -> NATIONAL MANUFACTURING COACHES | F166: 2023 | G166: M | H166: 1 | I166: 0.000 | J166: 0.000 | K166: 0.000 | L166: 0.000 | M166: 0.000 | N166: 20.000 | O166: 0.000 | P166: 0.000 | Q166: 0.000 | R166: 0.000 | S166: 0.000 | T166: 0.000 | U166: 0.000 | V166: =SUM(Table1[[#This Row],[Jan]:[Jan2]]) -> 20.000 | W166: =VLOOKUP($A166,'[3]All POs'!$A:$G,2,FALSE) -> 4503046094 | X166: =VLOOKUP($A166,'[3]All POs'!$A:$G,3,FALSE) -> R26.40 | Y166: =VLOOKUP($A166,'[3]All POs'!$A:$G,5,FALSE) -> 2023-03-16 | Z166: =VLOOKUP($A166,'[3]All POs'!$A:$G,7,FALSE) -> PIENAAR BROS | AA166: =YEAR(Table1[[#This Row],[Last PO date]]) -> 2023 | AB166: =$W$2-Table1[[#This Row],[Year]] -> 0 | AC166: =Table1[[#This Row],[Last PO Price]]*($W$1)^AB166 -> R26.40 | AD166: =Table1[[#This Row],[MRP]]*Table1[[#This Row],[Subtotal]] -> R528.00
A167: 035000066 | B167: =VLOOKUP(A167,[1]!Table93[[Material Number]:[Description]],4,FALSE) ->  | C167: 1417 | D167: =VLOOKUP(Table1[[#This Row],[Plant]],[2]Sheet1!$C:$G,5,FALSE) -> Maint | E167: =VLOOKUP(Table1[[#This Row],[Plant]],[2]Sheet1!$C:$I,7,FALSE) -> MAINTENANCE CENTRAL CORRIDOR | F167: 2018 | G167: M | H167: 1 | I167: 50.000 | J167: 0.000 | K167: 0.000 | L167: 0.000 | M167: 0.000 | N167: 0.000 | O167: 0.000 | P167: 0.000 | Q167: 0.000 | R167: 0.000 | S167: 0.000 | T167: 0.000 | U167: 0.000 | V167: =SUM(Table1[[#This Row],[Jan]:[Jan2]]) -> 50.000 | W167: =VLOOKUP($A167,'[3]All POs'!$A:$G,2,FALSE) -> 4503046094 | X167: =VLOOKUP($A167,'[3]All POs'!$A:$G,3,FALSE) -> R26.40 | Y167: =VLOOKUP($A167,'[3]All POs'!$A:$G,5,FALSE) -> 2023-03-16 | Z167: =VLOOKUP($A167,'[3]All POs'!$A:$G,7,FALSE) -> PIENAAR BROS | AA167: =YEAR(Table1[[#This Row],[Last PO date]]) -> 2023 | AB167: =$W$2-Table1[[#This Row],[Year]] -> 0 | AC167: =Table1[[#This Row],[Last PO Price]]*($W$1)^AB167 -> R26.40 | AD167: =Table1[[#This Row],[MRP]]*Table1[[#This Row],[Subtotal]] -> R1,320.00
A168: 035000066 | B168: =VLOOKUP(A168,[1]!Table93[[Material Number]:[Description]],4,FALSE) ->  | C168: 1417 | D168: =VLOOKUP(Table1[[#This Row],[Plant]],[2]Sheet1!$C:$G,5,FALSE) -> Maint | E168: =VLOOKUP(Table1[[#This Row],[Plant]],[2]Sheet1!$C:$I,7,FALSE) -> MAINTENANCE CENTRAL CORRIDOR | F168: 2021 | G168: M | H168: 1 | I168: 0.000 | J168: 0.000 | K168: 50.000 | L168: 50.000 | M168: 0.000 | N168: 0.000 | O168: 0.000 | P168: 0.000 | Q168: 0.000 | R168: 0.000 | S168: 0.000 | T168: 0.000 | U168: 0.000 | V168: =SUM(Table1[[#This Row],[Jan]:[Jan2]]) -> 100.000 | W168: =VLOOKUP($A168,'[3]All POs'!$A:$G,2,FALSE) -> 4503046094 | X168: =VLOOKUP($A168,'[3]All POs'!$A:$G,3,FALSE) -> R26.40 | Y168: =VLOOKUP($A168,'[3]All POs'!$A:$G,5,FALSE) -> 2023-03-16 | Z168: =VLOOKUP($A168,'[3]All POs'!$A:$G,7,FALSE) -> PIENAAR BROS | AA168: =YEAR(Table1[[#This Row],[Last PO date]]) -> 2023 | AB168: =$W$2-Table1[[#This Row],[Year]] -> 0 | AC168: =Table1[[#This Row],[Last PO Price]]*($W$1)^AB168 -> R26.40 | AD168: =Table1[[#This Row],[MRP]]*Table1[[#This Row],[Subtotal]] -> R2,640.00
A169: 035000066 | B169: =VLOOKUP(A169,[1]!Table93[[Material Number]:[Description]],4,FALSE) ->  | C169: 1451 | D169: =VLOOKUP(Table1[[#This Row],[Plant]],[2]Sheet1!$C:$G,5,FALSE) -> Maint | E169: =VLOOKUP(Table1[[#This Row],[Plant]],[2]Sheet1!$C:$I,7,FALSE) -> MAINTENANCE ORE CORRIDOR | F169: 2020 | G169: M | H169: 1 | I169: 0.000 | J169: 0.000 | K169: 0.000 | L169: 0.000 | M169: 0.000 | N169: 0.000 | O169: 0.000 | P169: 48.000 | Q169: 0.000 | R169: 0.000 | S169: 0.000 | T169: 0.000 | U169: 0.000 | V169: =SUM(Table1[[#This Row],[Jan]:[Jan2]]) -> 48.000 | W169: =VLOOKUP($A169,'[3]All POs'!$A:$G,2,FALSE) -> 4503046094 | X169: =VLOOKUP($A169,'[3]All POs'!$A:$G,3,FALSE) -> R26.40 | Y169: =VLOOKUP($A169,'[3]All POs'!$A:$G,5,FALSE) -> 2023-03-16 | Z169: =VLOOKUP($A169,'[3]All POs'!$A:$G,7,FALSE) -> PIENAAR BROS | AA169: =YEAR(Table1[[#This Row],[Last PO date]]) -> 2023 | AB169: =$W$2-Table1[[#This Row],[Year]] -> 0 | AC169: =Table1[[#This Row],[Last PO Price]]*($W$1)^AB169 -> R26.40 | AD169: =Table1[[#This Row],[MRP]]*Table1[[#This Row],[Subtotal]] -> R1,267.20
A170: 035000066 | B170: =VLOOKUP(A170,[1]!Table93[[Material Number]:[Description]],4,FALSE) ->  | C170: 1451 | D170: =VLOOKUP(Table1[[#This Row],[Plant]],[2]Sheet1!$C:$G,5,FALSE) -> Maint | E170: =VLOOKUP(Table1[[#This Row],[Plant]],[2]Sheet1!$C:$I,7,FALSE) -> MAINTENANCE ORE CORRIDOR | F170: 2021 | G170: M | H170: 1 | I170: 0.000 | J170: 0.000 | K170: 0.000 | L170: 0.000 | M170: 0.000 | N170: 0.000 | O170: 10.000 | P170: 0.000 | Q170: 0.000 | R170: 0.000 | S170: 0.000 | T170: 0.000 | U170: 0.000 | V170: =SUM(Table1[[#This Row],[Jan]:[Jan2]]) -> 10.000 | W170: =VLOOKUP($A170,'[3]All POs'!$A:$G,2,FALSE) -> 4503046094 | X170: =VLOOKUP($A170,'[3]All POs'!$A:$G,3,FALSE) -> R26.40 | Y170: =VLOOKUP($A170,'[3]All POs'!$A:$G,5,FALSE) -> 2023-03-16 | Z170: =VLOOKUP($A170,'[3]All POs'!$A:$G,7,FALSE) -> PIENAAR BROS | AA170: =YEAR(Table1[[#This Row],[Last PO date]]) -> 2023 | AB170: =$W$2-Table1[[#This Row],[Year]] -> 0 | AC170: =Table1[[#This Row],[Last PO Price]]*($W$1)^AB170 -> R26.40 | AD170: =Table1[[#This Row],[MRP]]*Table1[[#This Row],[Subtotal]] -> R264.00
A171: 035000066 | B171: =VLOOKUP(A171,[1]!Table93[[Material Number]:[Description]],4,FALSE) ->  | C171: 1507 | D171: =VLOOKUP(Table1[[#This Row],[Plant]],[2]Sheet1!$C:$G,5,FALSE) -> Manuf | E171: =VLOOKUP(Table1[[#This Row],[Plant]],[2]Sheet1!$C:$I,7,FALSE) -> NATIONAL MANUFACTURING PORTS | F171: 2019 | G171: M | H171: 1 | I171: 0.000 | J171: 0.000 | K171: 0.000 | L171: 100.000 | M171: 48.000 | N171: 0.000 | O171: 0.000 | P171: 0.000 | Q171: 0.000 | R171: 0.000 | S171: 0.000 | T171: 0.000 | U171: 0.000 | V171: =SUM(Table1[[#This Row],[Jan]:[Jan2]]) -> 148.000 | W171: =VLOOKUP($A171,'[3]All POs'!$A:$G,2,FALSE) -> 4503046094 | X171: =VLOOKUP($A171,'[3]All POs'!$A:$G,3,FALSE) -> R26.40 | Y171: =VLOOKUP($A171,'[3]All POs'!$A:$G,5,FALSE) -> 2023-03-16 | Z171: =VLOOKUP($A171,'[3]All POs'!$A:$G,7,FALSE) -> PIENAAR BROS | AA171: =YEAR(Table1[[#This Row],[Last PO date]]) -> 2023 | AB171: =$W$2-Table1[[#This Row],[Year]] -> 0 | AC171: =Table1[[#This Row],[Last PO Price]]*($W$1)^AB171 -> R26.40 | AD171: =Table1[[#This Row],[MRP]]*Table1[[#This Row],[Subtotal]] -> R3,907.20
A172: 035000066 | B172: =VLOOKUP(A172,[1]!Table93[[Material Number]:[Description]],4,FALSE) ->  | C172: 1507 | D172: =VLOOKUP(Table1[[#This Row],[Plant]],[2]Sheet1!$C:$G,5,FALSE) -> Manuf | E172: =VLOOKUP(Table1[[#This Row],[Plant]],[2]Sheet1!$C:$I,7,FALSE) -> NATIONAL MANUFACTURING PORTS | F172: 2020 | G172: M | H172: 1 | I172: 0.000 | J172: 20.000 | K172: 0.000 | L172: 0.000 | M172: 0.000 | N172: 0.000 | O172: 0.000 | P172: 32.000 | Q172: 0.000 | R172: 0.000 | S172: 0.000 | T172: 0.000 | U172: 0.000 | V172: =SUM(Table1[[#This Row],[Jan]:[Jan2]]) -> 52.000 | W172: =VLOOKUP($A172,'[3]All POs'!$A:$G,2,FALSE) -> 4503046094 | X172: =VLOOKUP($A172,'[3]All POs'!$A:$G,3,FALSE) -> R26.40 | Y172: =VLOOKUP($A172,'[3]All POs'!$A:$G,5,FALSE) -> 2023-03-16 | Z172: =VLOOKUP($A172,'[3]All POs'!$A:$G,7,FALSE) -> PIENAAR BROS | AA172: =YEAR(Table1[[#This Row],[Last PO date]]) -> 2023 | AB172: =$W$2-Table1[[#This Row],[Year]] -> 0 | AC172: =Table1[[#This Row],[Last PO Price]]*($W$1)^AB172 -> R26.40 | AD172: =Table1[[#This Row],[MRP]]*Table1[[#This Row],[Subtotal]] -> R1,372.80
A173: 035000066 | B173: =VLOOKUP(A173,[1]!Table93[[Material Number]:[Description]],4,FALSE) ->  | C173: 2201 | D173: =VLOOKUP(Table1[[#This Row],[Plant]],[2]Sheet1!$C:$G,5,FALSE) -> Manuf | E173: =VLOOKUP(Table1[[#This Row],[Plant]],[2]Sheet1!$C:$I,7,FALSE) -> NATIONAL MANUFACTURING RS SUPPORT | F173: 2019 | G173: M | H173: 1 | I173: 0.000 | J173: 0.000 | K173: 0.000 | L173: 0.000 | M173: 0.000 | N173: 0.000 | O173: 41.000 | P173: 71.000 | Q173: 38.000 | R173: 62.000 | S173: 46.000 | T173: 0.000 | U173: 0.000 | V173: =SUM(Table1[[#This Row],[Jan]:[Jan2]]) -> 258.000 | W173: =VLOOKUP($A173,'[3]All POs'!$A:$G,2,FALSE) -> 4503046094 | X173: =VLOOKUP($A173,'[3]All POs'!$A:$G,3,FALSE) -> R26.40 | Y173: =VLOOKUP($A173,'[3]All POs'!$A:$G,5,FALSE) -> 2023-03-16 | Z173: =VLOOKUP($A173,'[3]All POs'!$A:$G,7,FALSE) -> PIENAAR BROS | AA173: =YEAR(Table1[[#This Row],[Last PO date]]) -> 2023 | AB173: =$W$2-Table1[[#This Row],[Year]] -> 0 | AC173: =Table1[[#This Row],[Last PO Price]]*($W$1)^AB173 -> R26.40 | AD173: =Table1[[#This Row],[MRP]]*Table1[[#This Row],[Subtotal]] -> R6,811.20
A174: 035000066 | B174: =VLOOKUP(A174,[1]!Table93[[Material Number]:[Description]],4,FALSE) ->  | C174: 2201 | D174: =VLOOKUP(Table1[[#This Row],[Plant]],[2]Sheet1!$C:$G,5,FALSE) -> Manuf | E174: =VLOOKUP(Table1[[#This Row],[Plant]],[2]Sheet1!$C:$I,7,FALSE) -> NATIONAL MANUFACTURING RS SUPPORT | F174: 2020 | G174: M | H174: 1 | I174: 0.000 | J174: 29.000 | K174: 136.000 | L174: 0.000 | M174: 97.000 | N174: 0.000 | O174: 7.000 | P174: 73.000 | Q174: 69.000 | R174: 135.000 | S174: 16.000 | T174: 0.000 | U174: 0.000 | V174: =SUM(Table1[[#This Row],[Jan]:[Jan2]]) -> 562.000 | W174: =VLOOKUP($A174,'[3]All POs'!$A:$G,2,FALSE) -> 4503046094 | X174: =VLOOKUP($A174,'[3]All POs'!$A:$G,3,FALSE) -> R26.40 | Y174: =VLOOKUP($A174,'[3]All POs'!$A:$G,5,FALSE) -> 2023-03-16 | Z174: =VLOOKUP($A174,'[3]All POs'!$A:$G,7,FALSE) -> PIENAAR BROS | AA174: =YEAR(Table1[[#This Row],[Last PO date]]) -> 2023 | AB174: =$W$2-Table1[[#This Row],[Year]] -> 0 | AC174: =Table1[[#This Row],[Last PO Price]]*($W$1)^AB174 -> R26.40 | AD174: =Table1[[#This Row],[MRP]]*Table1[[#This Row],[Subtotal]] -> R14,836.80
A175: 035000066 | B175: =VLOOKUP(A175,[1]!Table93[[Material Number]:[Description]],4,FALSE) ->  | C175: 2201 | D175: =VLOOKUP(Table1[[#This Row],[Plant]],[2]Sheet1!$C:$G,5,FALSE) -> Manuf | E175: =VLOOKUP(Table1[[#This Row],[Plant]],[2]Sheet1!$C:$I,7,FALSE) -> NATIONAL MANUFACTURING RS SUPPORT | F175: 2021 | G175: M | H175: 1 | I175: 72.000 | J175: 12.000 | K175: 19.000 | L175: 74.000 | M175: 89.000 | N175: 14.000 | O175: 0.000 | P175: 84.000 | Q175: 16.000 | R175: 12.000 | S175: 85.000 | T175: 6.000 | U175: 0.000 | V175: =SUM(Table1[[#This Row],[Jan]:[Jan2]]) -> 483.000 | W175: =VLOOKUP($A175,'[3]All POs'!$A:$G,2,FALSE) -> 4503046094 | X175: =VLOOKUP($A175,'[3]All POs'!$A:$G,3,FALSE) -> R26.40 | Y175: =VLOOKUP($A175,'[3]All POs'!$A:$G,5,FALSE) -> 2023-03-16 | Z175: =VLOOKUP($A175,'[3]All POs'!$A:$G,7,FALSE) -> PIENAAR BROS | AA175: =YEAR(Table1[[#This Row],[Last PO date]]) -> 2023 | AB175: =$W$2-Table1[[#This Row],[Year]] -> 0 | AC175: =Table1[[#This Row],[Last PO Price]]*($W$1)^AB175 -> R26.40 | AD175: =Table1[[#This Row],[MRP]]*Table1[[#This Row],[Subtotal]] -> R12,751.20
A176: 035000066 | B176: =VLOOKUP(A176,[1]!Table93[[Material Number]:[Description]],4,FALSE) ->  | C176: 2201 | D176: =VLOOKUP(Table1[[#This Row],[Plant]],[2]Sheet1!$C:$G,5,FALSE) -> Manuf | E176: =VLOOKUP(Table1[[#This Row],[Plant]],[2]Sheet1!$C:$I,7,FALSE) -> NATIONAL MANUFACTURING RS SUPPORT | F176: 2022 | G176: M | H176: 1 | I176: 97.000 | J176: 156.000 | K176: 8.000 | L176: 0.000 | M176: 12.000 | N176: 18.000 | O176: 0.000 | P176: 95.000 | Q176: 24.000 | R176: 31.000 | S176: 6.000 | T176: 0.000 | U176: 0.000 | V176: =SUM(Table1[[#This Row],[Jan]:[Jan2]]) -> 447.000 | W176: =VLOOKUP($A176,'[3]All POs'!$A:$G,2,FALSE) -> 4503046094 | X176: =VLOOKUP($A176,'[3]All POs'!$A:$G,3,FALSE) -> R26.40 | Y176: =VLOOKUP($A176,'[3]All POs'!$A:$G,5,FALSE) -> 2023-03-16 | Z176: =VLOOKUP($A176,'[3]All POs'!$A:$G,7,FALSE) -> PIENAAR BROS | AA176: =YEAR(Table1[[#This Row],[Last PO date]]) -> 2023 | AB176: =$W$2-Table1[[#This Row],[Year]] -> 0 | AC176: =Table1[[#This Row],[Last PO Price]]*($W$1)^AB176 -> R26.40 | AD176: =Table1[[#This Row],[MRP]]*Table1[[#This Row],[Subtotal]] -> R11,800.80
A177: 035000066 | B177: =VLOOKUP(A177,[1]!Table93[[Material Number]:[Description]],4,FALSE) ->  | C177: 2201 | D177: =VLOOKUP(Table1[[#This Row],[Plant]],[2]Sheet1!$C:$G,5,FALSE) -> Manuf | E177: =VLOOKUP(Table1[[#This Row],[Plant]],[2]Sheet1!$C:$I,7,FALSE) -> NATIONAL MANUFACTURING RS SUPPORT | F177: 2023 | G177: M | H177: 1 | I177: 0.000 | J177: 0.000 | K177: 0.000 | L177: 0.000 | M177: 38.000 | N177: 108.000 | O177: 12.000 | P177: 0.000 | Q177: 0.000 | R177: 0.000 | S177: 0.000 | T177: 0.000 | U177: 0.000 | V177: =SUM(Table1[[#This Row],[Jan]:[Jan2]]) -> 158.000 | W177: =VLOOKUP($A177,'[3]All POs'!$A:$G,2,FALSE) -> 4503046094 | X177: =VLOOKUP($A177,'[3]All POs'!$A:$G,3,FALSE) -> R26.40 | Y177: =VLOOKUP($A177,'[3]All POs'!$A:$G,5,FALSE) -> 2023-03-16 | Z177: =VLOOKUP($A177,'[3]All POs'!$A:$G,7,FALSE) -> PIENAAR BROS | AA177: =YEAR(Table1[[#This Row],[Last PO date]]) -> 2023 | AB177: =$W$2-Table1[[#This Row],[Year]] -> 0 | AC177: =Table1[[#This Row],[Last PO Price]]*($W$1)^AB177 -> R26.40 | AD177: =Table1[[#This Row],[MRP]]*Table1[[#This Row],[Subtotal]] -> R4,171.20
A178: 035000066 | B178: =VLOOKUP(A178,[1]!Table93[[Material Number]:[Description]],4,FALSE) ->  | C178: 2211 | D178: =VLOOKUP(Table1[[#This Row],[Plant]],[2]Sheet1!$C:$G,5,FALSE) -> Manuf | E178: =VLOOKUP(Table1[[#This Row],[Plant]],[2]Sheet1!$C:$I,7,FALSE) -> NATIONAL MANUFACTURING RS SUPPORT | F178: 2023 | G178: M | H178: 1 | I178: 0.000 | J178: 12.000 | K178: 12.000 | L178: 0.000 | M178: 0.000 | N178: 0.000 | O178: 0.000 | P178: 0.000 | Q178: 0.000 | R178: 0.000 | S178: 0.000 | T178: 0.000 | U178: 0.000 | V178: =SUM(Table1[[#This Row],[Jan]:[Jan2]]) -> 24.000 | W178: =VLOOKUP($A178,'[3]All POs'!$A:$G,2,FALSE) -> 4503046094 | X178: =VLOOKUP($A178,'[3]All POs'!$A:$G,3,FALSE) -> R26.40 | Y178: =VLOOKUP($A178,'[3]All POs'!$A:$G,5,FALSE) -> 2023-03-16 | Z178: =VLOOKUP($A178,'[3]All POs'!$A:$G,7,FALSE) -> PIENAAR BROS | AA178: =YEAR(Table1[[#This Row],[Last PO date]]) -> 2023 | AB178: =$W$2-Table1[[#This Row],[Year]] -> 0 | AC178: =Table1[[#This Row],[Last PO Price]]*($W$1)^AB178 -> R26.40 | AD178: =Table1[[#This Row],[MRP]]*Table1[[#This Row],[Subtotal]] -> R633.60
A179: 035000066 | B179: =VLOOKUP(A179,[1]!Table93[[Material Number]:[Description]],4,FALSE) ->  | C179: 7201 | D179: =VLOOKUP(Table1[[#This Row],[Plant]],[2]Sheet1!$C:$G,5,FALSE) -> F&I | E179: =VLOOKUP(Table1[[#This Row],[Plant]],[2]Sheet1!$C:$I,7,FALSE) -> NATIONAL MAINTENANCE OTHER | F179: 2018 | G179: M | H179: 1 | I179: 240.000 | J179: 240.000 | K179: 120.000 | L179: 264.000 | M179: 36.000 | N179: 240.000 | O179: 168.000 | P179: 108.000 | Q179: 396.000 | R179: 48.000 | S179: 252.000 | T179: 136.000 | U179: 0.000 | V179: =SUM(Table1[[#This Row],[Jan]:[Jan2]]) -> 2248.000 | W179: =VLOOKUP($A179,'[3]All POs'!$A:$G,2,FALSE) -> 4503046094 | X179: =VLOOKUP($A179,'[3]All POs'!$A:$G,3,FALSE) -> R26.40 | Y179: =VLOOKUP($A179,'[3]All POs'!$A:$G,5,FALSE) -> 2023-03-16 | Z179: =VLOOKUP($A179,'[3]All POs'!$A:$G,7,FALSE) -> PIENAAR BROS | AA179: =YEAR(Table1[[#This Row],[Last PO date]]) -> 2023 | AB179: =$W$2-Table1[[#This Row],[Year]] -> 0 | AC179: =Table1[[#This Row],[Last PO Price]]*($W$1)^AB179 -> R26.40 | AD179: =Table1[[#This Row],[MRP]]*Table1[[#This Row],[Subtotal]] -> R59,347.20
A180: 035000066 | B180: =VLOOKUP(A180,[1]!Table93[[Material Number]:[Description]],4,FALSE) ->  | C180: 7201 | D180: =VLOOKUP(Table1[[#This Row],[Plant]],[2]Sheet1!$C:$G,5,FALSE) -> F&I | E180: =VLOOKUP(Table1[[#This Row],[Plant]],[2]Sheet1!$C:$I,7,FALSE) -> NATIONAL MAINTENANCE OTHER | F180: 2019 | G180: M | H180: 1 | I180: 252.000 | J180: 148.000 | K180: 264.000 | L180: 228.000 | M180: 0.000 | N180: 0.000 | O180: 0.000 | P180: 0.000 | Q180: 0.000 | R180: 0.000 | S180: 0.000 | T180: 0.000 | U180: 0.000 | V180: =SUM(Table1[[#This Row],[Jan]:[Jan2]]) -> 892.000 | W180: =VLOOKUP($A180,'[3]All POs'!$A:$G,2,FALSE) -> 4503046094 | X180: =VLOOKUP($A180,'[3]All POs'!$A:$G,3,FALSE) -> R26.40 | Y180: =VLOOKUP($A180,'[3]All POs'!$A:$G,5,FALSE) -> 2023-03-16 | Z180: =VLOOKUP($A180,'[3]All POs'!$A:$G,7,FALSE) -> PIENAAR BROS | AA180: =YEAR(Table1[[#This Row],[Last PO date]]) -> 2023 | AB180: =$W$2-Table1[[#This Row],[Year]] -> 0 | AC180: =Table1[[#This Row],[Last PO Price]]*($W$1)^AB180 -> R26.40 | AD180: =Table1[[#This Row],[MRP]]*Table1[[#This Row],[Subtotal]] -> R23,548.80
A181: 035000071 | B181: =VLOOKUP(A181,[1]!Table93[[Material Number]:[Description]],4,FALSE) ->  | C181: 1036 | D181: =VLOOKUP(Table1[[#This Row],[Plant]],[2]Sheet1!$C:$G,5,FALSE) -> Manuf | E181: =VLOOKUP(Table1[[#This Row],[Plant]],[2]Sheet1!$C:$I,7,FALSE) -> NATIONAL MANUFACTURING LOCOMOTIVES | F181: 2019 | G181: M | H181: 1 | I181: 0.000 | J181: 0.000 | K181: 0.000 | L181: 0.000 | M181: 0.000 | N181: 30.000 | O181: 0.000 | P181: 0.000 | Q181: 0.000 | R181: 250.000 | S181: 0.000 | T181: 0.000 | U181: 0.000 | V181: =SUM(Table1[[#This Row],[Jan]:[Jan2]]) -> 280.000 | W181: =VLOOKUP($A181,'[3]All POs'!$A:$G,2,FALSE) -> 4503059393 | X181: =VLOOKUP($A181,'[3]All POs'!$A:$G,3,FALSE) -> R58.00 | Y181: =VLOOKUP($A181,'[3]All POs'!$A:$G,5,FALSE) -> 2023-06-19 | Z181: =VLOOKUP($A181,'[3]All POs'!$A:$G,7,FALSE) -> SAFETYMATE EASTERN CAPE | AA181: =YEAR(Table1[[#This Row],[Last PO date]]) -> 2023 | AB181: =$W$2-Table1[[#This Row],[Year]] -> 0 | AC181: =Table1[[#This Row],[Last PO Price]]*($W$1)^AB181 -> R58.00 | AD181: =Table1[[#This Row],[MRP]]*Table1[[#This Row],[Subtotal]] -> R16,240.00
A182: 035000071 | B182: =VLOOKUP(A182,[1]!Table93[[Material Number]:[Description]],4,FALSE) ->  | C182: 1105 | D182: =VLOOKUP(Table1[[#This Row],[Plant]],[2]Sheet1!$C:$G,5,FALSE) -> Manuf | E182: =VLOOKUP(Table1[[#This Row],[Plant]],[2]Sheet1!$C:$I,7,FALSE) -> NATIONAL MANUFACTURING LOCOMOTIVES | F182: 2018 | G182: M | H182: 1 | I182: 20.000 | J182: 60.000 | K182: 0.000 | L182: 20.000 | M182: 75.000 | N182: -5.000 | O182: 5.000 | P182: 105.000 | Q182: 30.000 | R182: 35.000 | S182: 30.000 | T182: 5.000 | U182: 0.000 | V182: =SUM(Table1[[#This Row],[Jan]:[Jan2]]) -> 380.000 | W182: =VLOOKUP($A182,'[3]All POs'!$A:$G,2,FALSE) -> 4503059393 | X182: =VLOOKUP($A182,'[3]All POs'!$A:$G,3,FALSE) -> R58.00 | Y182: =VLOOKUP($A182,'[3]All POs'!$A:$G,5,FALSE) -> 2023-06-19 | Z182: =VLOOKUP($A182,'[3]All POs'!$A:$G,7,FALSE) -> SAFETYMATE EASTERN CAPE | AA182: =YEAR(Table1[[#This Row],[Last PO date]]) -> 2023 | AB182: =$W$2-Table1[[#This Row],[Year]] -> 0 | AC182: =Table1[[#This Row],[Last PO Price]]*($W$1)^AB182 -> R58.00 | AD182: =Table1[[#This Row],[MRP]]*Table1[[#This Row],[Subtotal]] -> R22,040.00
A183: 035000071 | B183: =VLOOKUP(A183,[1]!Table93[[Material Number]:[Description]],4,FALSE) ->  | C183: 1105 | D183: =VLOOKUP(Table1[[#This Row],[Plant]],[2]Sheet1!$C:$G,5,FALSE) -> Manuf | E183: =VLOOKUP(Table1[[#This Row],[Plant]],[2]Sheet1!$C:$I,7,FALSE) -> NATIONAL MANUFACTURING LOCOMOTIVES | F183: 2019 | G183: M | H183: 1 | I183: 15.000 | J183: 20.000 | K183: 40.000 | L183: 25.000 | M183: 0.000 | N183: 0.000 | O183: 67.000 | P183: 33.000 | Q183: 25.000 | R183: 60.000 | S183: 25.000 | T183: 10.000 | U183: 0.000 | V183: =SUM(Table1[[#This Row],[Jan]:[Jan2]]) -> 320.000 | W183: =VLOOKUP($A183,'[3]All POs'!$A:$G,2,FALSE) -> 4503059393 | X183: =VLOOKUP($A183,'[3]All POs'!$A:$G,3,FALSE) -> R58.00 | Y183: =VLOOKUP($A183,'[3]All POs'!$A:$G,5,FALSE) -> 2023-06-19 | Z183: =VLOOKUP($A183,'[3]All POs'!$A:$G,7,FALSE) -> SAFETYMATE EASTERN CAPE | AA183: =YEAR(Table1[[#This Row],[Last PO date]]) -> 2023 | AB183: =$W$2-Table1[[#This Row],[Year]] -> 0 | AC183: =Table1[[#This Row],[Last PO Price]]*($W$1)^AB183 -> R58.00 | AD183: =Table1[[#This Row],[MRP]]*Table1[[#This Row],[Subtotal]] -> R18,560.00
A184: 035000071 | B184: =VLOOKUP(A184,[1]!Table93[[Material Number]:[Description]],4,FALSE) ->  | C184: 1105 | D184: =VLOOKUP(Table1[[#This Row],[Plant]],[2]Sheet1!$C:$G,5,FALSE) -> Manuf | E184: =VLOOKUP(Table1[[#This Row],[Plant]],[2]Sheet1!$C:$I,7,FALSE) -> NATIONAL MANUFACTURING LOCOMOTIVES | F184: 2020 | G184: M | H184: 1 | I184: 13.000 | J184: 107.000 | K184: 0.000 | L184: 0.000 | M184: 0.000 | N184: -10.000 | O184: 13.000 | P184: 221.000 | Q184: 0.000 | R184: 0.000 | S184: 0.000 | T184: 0.000 | U184: 0.000 | V184: =SUM(Table1[[#This Row],[Jan]:[Jan2]]) -> 344.000 | W184: =VLOOKUP($A184,'[3]All POs'!$A:$G,2,FALSE) -> 4503059393 | X184: =VLOOKUP($A184,'[3]All POs'!$A:$G,3,FALSE) -> R58.00 | Y184: =VLOOKUP($A184,'[3]All POs'!$A:$G,5,FALSE) -> 2023-06-19 | Z184: =VLOOKUP($A184,'[3]All POs'!$A:$G,7,FALSE) -> SAFETYMATE EASTERN CAPE | AA184: =YEAR(Table1[[#This Row],[Last PO date]]) -> 2023 | AB184: =$W$2-Table1[[#This Row],[Year]] -> 0 | AC184: =Table1[[#This Row],[Last PO Price]]*($W$1)^AB184 -> R58.00 | AD184: =Table1[[#This Row],[MRP]]*Table1[[#This Row],[Subtotal]] -> R19,952.00
A185: 035000071 | B185: =VLOOKUP(A185,[1]!Table93[[Material Number]:[Description]],4,FALSE) ->  | C185: 1105 | D185: =VLOOKUP(Table1[[#This Row],[Plant]],[2]Sheet1!$C:$G,5,FALSE) -> Manuf | E185: =VLOOKUP(Table1[[#This Row],[Plant]],[2]Sheet1!$C:$I,7,FALSE) -> NATIONAL MANUFACTURING LOCOMOTIVES | F185: 2021 | G185: M | H185: 1 | I185: 0.000 | J185: 28.000 | K185: 87.000 | L185: 220.000 | M185: 55.000 | N185: 69.000 | O185: 26.000 | P185: 59.000 | Q185: 68.000 | R185: 15.000 | S185: 20.000 | T185: 0.000 | U185: 0.000 | V185: =SUM(Table1[[#This Row],[Jan]:[Jan2]]) -> 647.000 | W185: =VLOOKUP($A185,'[3]All POs'!$A:$G,2,FALSE) -> 4503059393 | X185: =VLOOKUP($A185,'[3]All POs'!$A:$G,3,FALSE) -> R58.00 | Y185: =VLOOKUP($A185,'[3]All POs'!$A:$G,5,FALSE) -> 2023-06-19 | Z185: =VLOOKUP($A185,'[3]All POs'!$A:$G,7,FALSE) -> SAFETYMATE EASTERN CAPE | AA185: =YEAR(Table1[[#This Row],[Last PO date]]) -> 2023 | AB185: =$W$2-Table1[[#This Row],[Year]] -> 0 | AC185: =Table1[[#This Row],[Last PO Price]]*($W$1)^AB185 -> R58.00 | AD185: =Table1[[#This Row],[MRP]]*Table1[[#This Row],[Subtotal]] -> R37,526.00
A186: 035000071 | B186: =VLOOKUP(A186,[1]!Table93[[Material Number]:[Description]],4,FALSE) ->  | C186: 1105 | D186: =VLOOKUP(Table1[[#This Row],[Plant]],[2]Sheet1!$C:$G,5,FALSE) -> Manuf | E186: =VLOOKUP(Table1[[#This Row],[Plant]],[2]Sheet1!$C:$I,7,FALSE) -> NATIONAL MANUFACTURING LOCOMOTIVES | F186: 2022 | G186: M | H186: 1 | I186: 60.000 | J186: 54.000 | K186: 132.000 | L186: 19.000 | M186: 29.000 | N186: 44.000 | O186: 15.000 | P186: 0.000 | Q186: 0.000 | R186: 0.000 | S186: 10.000 | T186: 5.000 | U186: 0.000 | V186: =SUM(Table1[[#This Row],[Jan]:[Jan2]]) -> 368.000 | W186: =VLOOKUP($A186,'[3]All POs'!$A:$G,2,FALSE) -> 4503059393 | X186: =VLOOKUP($A186,'[3]All POs'!$A:$G,3,FALSE) -> R58.00 | Y186: =VLOOKUP($A186,'[3]All POs'!$A:$G,5,FALSE) -> 2023-06-19 | Z186: =VLOOKUP($A186,'[3]All POs'!$A:$G,7,FALSE) -> SAFETYMATE EASTERN CAPE | AA186: =YEAR(Table1[[#This Row],[Last PO date]]) -> 2023 | AB186: =$W$2-Table1[[#This Row],[Year]] -> 0 | AC186: =Table1[[#This Row],[Last PO Price]]*($W$1)^AB186 -> R58.00 | AD186: =Table1[[#This Row],[MRP]]*Table1[[#This Row],[Subtotal]] -> R21,344.00
A187: 035000071 | B187: =VLOOKUP(A187,[1]!Table93[[Material Number]:[Description]],4,FALSE) ->  | C187: 1105 | D187: =VLOOKUP(Table1[[#This Row],[Plant]],[2]Sheet1!$C:$G,5,FALSE) -> Manuf | E187: =VLOOKUP(Table1[[#This Row],[Plant]],[2]Sheet1!$C:$I,7,FALSE) -> NATIONAL MANUFACTURING LOCOMOTIVES | F187: 2023 | G187: M | H187: 1 | I187: 19.000 | J187: 23.000 | K187: 31.000 | L187: 0.000 | M187: 30.000 | N187: 61.000 | O187: 0.000 | P187: 0.000 | Q187: 0.000 | R187: 0.000 | S187: 0.000 | T187: 0.000 | U187: 0.000 | V187: =SUM(Table1[[#This Row],[Jan]:[Jan2]]) -> 164.000 | W187: =VLOOKUP($A187,'[3]All POs'!$A:$G,2,FALSE) -> 4503059393 | X187: =VLOOKUP($A187,'[3]All POs'!$A:$G,3,FALSE) -> R58.00 | Y187: =VLOOKUP($A187,'[3]All POs'!$A:$G,5,FALSE) -> 2023-06-19 | Z187: =VLOOKUP($A187,'[3]All POs'!$A:$G,7,FALSE) -> SAFETYMATE EASTERN CAPE | AA187: =YEAR(Table1[[#This Row],[Last PO date]]) -> 2023 | AB187: =$W$2-Table1[[#This Row],[Year]] -> 0 | AC187: =Table1[[#This Row],[Last PO Price]]*($W$1)^AB187 -> R58.00 | AD187: =Table1[[#This Row],[MRP]]*Table1[[#This Row],[Subtotal]] -> R9,512.00
A188: 035000071 | B188: =VLOOKUP(A188,[1]!Table93[[Material Number]:[Description]],4,FALSE) ->  | C188: 1113 | D188: =VLOOKUP(Table1[[#This Row],[Plant]],[2]Sheet1!$C:$G,5,FALSE) -> Maint | E188: =VLOOKUP(Table1[[#This Row],[Plant]],[2]Sheet1!$C:$I,7,FALSE) -> MAINTENANCE CAPE CORRIDOR | F188: 2018 | G188: M | H188: 1 | I188: 10.000 | J188: 0.000 | K188: 0.000 | L188: 20.000 | M188: 0.000 | N188: 20.000 | O188: 10.000 | P188: 14.000 | Q188: 46.000 | R188: 50.000 | S188: 10.000 | T188: 0.000 | U188: 0.000 | V188: =SUM(Table1[[#This Row],[Jan]:[Jan2]]) -> 180.000 | W188: =VLOOKUP($A188,'[3]All POs'!$A:$G,2,FALSE) -> 4503059393 | X188: =VLOOKUP($A188,'[3]All POs'!$A:$G,3,FALSE) -> R58.00 | Y188: =VLOOKUP($A188,'[3]All POs'!$A:$G,5,FALSE) -> 2023-06-19 | Z188: =VLOOKUP($A188,'[3]All POs'!$A:$G,7,FALSE) -> SAFETYMATE EASTERN CAPE | AA188: =YEAR(Table1[[#This Row],[Last PO date]]) -> 2023 | AB188: =$W$2-Table1[[#This Row],[Year]] -> 0 | AC188: =Table1[[#This Row],[Last PO Price]]*($W$1)^AB188 -> R58.00 | AD188: =Table1[[#This Row],[MRP]]*Table1[[#This Row],[Subtotal]] -> R10,440.00
A189: 035000071 | B189: =VLOOKUP(A189,[1]!Table93[[Material Number]:[Description]],4,FALSE) ->  | C189: 1113 | D189: =VLOOKUP(Table1[[#This Row],[Plant]],[2]Sheet1!$C:$G,5,FALSE) -> Maint | E189: =VLOOKUP(Table1[[#This Row],[Plant]],[2]Sheet1!$C:$I,7,FALSE) -> MAINTENANCE CAPE CORRIDOR | F189: 2019 | G189: M | H189: 1 | I189: 0.000 | J189: 0.000 | K189: 25.000 | L189: 55.000 | M189: 60.000 | N189: 0.000 | O189: 20.000 | P189: 20.000 | Q189: 50.000 | R189: 50.000 | S189: 50.000 | T189: 0.000 | U189: 0.000 | V189: =SUM(Table1[[#This Row],[Jan]:[Jan2]]) -> 330.000 | W189: =VLOOKUP($A189,'[3]All POs'!$A:$G,2,FALSE) -> 4503059393 | X189: =VLOOKUP($A189,'[3]All POs'!$A:$G,3,FALSE) -> R58.00 | Y189: =VLOOKUP($A189,'[3]All POs'!$A:$G,5,FALSE) -> 2023-06-19 | Z189: =VLOOKUP($A189,'[3]All POs'!$A:$G,7,FALSE) -> SAFETYMATE EASTERN CAPE | AA189: =YEAR(Table1[[#This Row],[Last PO date]]) -> 2023 | AB189: =$W$2-Table1[[#This Row],[Year]] -> 0 | AC189: =Table1[[#This Row],[Last PO Price]]*($W$1)^AB189 -> R58.00 | AD189: =Table1[[#This Row],[MRP]]*Table1[[#This Row],[Subtotal]] -> R19,140.00
A190: 035000071 | B190: =VLOOKUP(A190,[1]!Table93[[Material Number]:[Description]],4,FALSE) ->  | C190: 1113 | D190: =VLOOKUP(Table1[[#This Row],[Plant]],[2]Sheet1!$C:$G,5,FALSE) -> Maint | E190: =VLOOKUP(Table1[[#This Row],[Plant]],[2]Sheet1!$C:$I,7,FALSE) -> MAINTENANCE CAPE CORRIDOR | F190: 2020 | G190: M | H190: 1 | I190: 0.000 | J190: 0.000 | K190: 10.000 | L190: 0.000 | M190: 0.000 | N190: 0.000 | O190: 55.000 | P190: 145.000 | Q190: 109.000 | R190: 70.000 | S190: 0.000 | T190: 80.000 | U190: 0.000 | V190: =SUM(Table1[[#This Row],[Jan]:[Jan2]]) -> 469.000 | W190: =VLOOKUP($A190,'[3]All POs'!$A:$G,2,FALSE) -> 4503059393 | X190: =VLOOKUP($A190,'[3]All POs'!$A:$G,3,FALSE) -> R58.00 | Y190: =VLOOKUP($A190,'[3]All POs'!$A:$G,5,FALSE) -> 2023-06-19 | Z190: =VLOOKUP($A190,'[3]All POs'!$A:$G,7,FALSE) -> SAFETYMATE EASTERN CAPE | AA190: =YEAR(Table1[[#This Row],[Last PO date]]) -> 2023 | AB190: =$W$2-Table1[[#This Row],[Year]] -> 0 | AC190: =Table1[[#This Row],[Last PO Price]]*($W$1)^AB190 -> R58.00 | AD190: =Table1[[#This Row],[MRP]]*Table1[[#This Row],[Subtotal]] -> R27,202.00
A191: 035000071 | B191: =VLOOKUP(A191,[1]!Table93[[Material Number]:[Description]],4,FALSE) ->  | C191: 1113 | D191: =VLOOKUP(Table1[[#This Row],[Plant]],[2]Sheet1!$C:$G,5,FALSE) -> Maint | E191: =VLOOKUP(Table1[[#This Row],[Plant]],[2]Sheet1!$C:$I,7,FALSE) -> MAINTENANCE CAPE CORRIDOR | F191: 2021 | G191: M | H191: 1 | I191: 20.000 | J191: 20.000 | K191: 0.000 | L191: 20.000 | M191: 203.000 | N191: 67.000 | O191: 0.000 | P191: 0.000 | Q191: 30.000 | R191: 15.000 | S191: 20.000 | T191: 0.000 | U191: 0.000 | V191: =SUM(Table1[[#This Row],[Jan]:[Jan2]]) -> 395.000 | W191: =VLOOKUP($A191,'[3]All POs'!$A:$G,2,FALSE) -> 4503059393 | X191: =VLOOKUP($A191,'[3]All POs'!$A:$G,3,FALSE) -> R58.00 | Y191: =VLOOKUP($A191,'[3]All POs'!$A:$G,5,FALSE) -> 2023-06-19 | Z191: =VLOOKUP($A191,'[3]All POs'!$A:$G,7,FALSE) -> SAFETYMATE EASTERN CAPE | AA191: =YEAR(Table1[[#This Row],[Last PO date]]) -> 2023 | AB191: =$W$2-Table1[[#This Row],[Year]] -> 0 | AC191: =Table1[[#This Row],[Last PO Price]]*($W$1)^AB191 -> R58.00 | AD191: =Table1[[#This Row],[MRP]]*Table1[[#This Row],[Subtotal]] -> R22,910.00
A192: 035000071 | B192: =VLOOKUP(A192,[1]!Table93[[Material Number]:[Description]],4,FALSE) ->  | C192: 1113 | D192: =VLOOKUP(Table1[[#This Row],[Plant]],[2]Sheet1!$C:$G,5,FALSE) -> Maint | E192: =VLOOKUP(Table1[[#This Row],[Plant]],[2]Sheet1!$C:$I,7,FALSE) -> MAINTENANCE CAPE CORRIDOR | F192: 2022 | G192: M | H192: 1 | I192: 10.000 | J192: 134.000 | K192: 80.000 | L192: 30.000 | M192: 30.000 | N192: 80.000 | O192: 112.000 | P192: 0.000 | Q192: 50.000 | R192: 60.000 | S192: 40.000 | T192: 0.000 | U192: 0.000 | V192: =SUM(Table1[[#This Row],[Jan]:[Jan2]]) -> 626.000 | W192: =VLOOKUP($A192,'[3]All POs'!$A:$G,2,FALSE) -> 4503059393 | X192: =VLOOKUP($A192,'[3]All POs'!$A:$G,3,FALSE) -> R58.00 | Y192: =VLOOKUP($A192,'[3]All POs'!$A:$G,5,FALSE) -> 2023-06-19 | Z192: =VLOOKUP($A192,'[3]All POs'!$A:$G,7,FALSE) -> SAFETYMATE EASTERN CAPE | AA192: =YEAR(Table1[[#This Row],[Last PO date]]) -> 2023 | AB192: =$W$2-Table1[[#This Row],[Year]] -> 0 | AC192: =Table1[[#This Row],[Last PO Price]]*($W$1)^AB192 -> R58.00 | AD192: =Table1[[#This Row],[MRP]]*Table1[[#This Row],[Subtotal]] -> R36,308.00
A193: 035000071 | B193: =VLOOKUP(A193,[1]!Table93[[Material Number]:[Description]],4,FALSE) ->  | C193: 1113 | D193: =VLOOKUP(Table1[[#This Row],[Plant]],[2]Sheet1!$C:$G,5,FALSE) -> Maint | E193: =VLOOKUP(Table1[[#This Row],[Plant]],[2]Sheet1!$C:$I,7,FALSE) -> MAINTENANCE CAPE CORRIDOR | F193: 2023 | G193: M | H193: 1 | I193: 0.000 | J193: 60.000 | K193: 210.000 | L193: 120.000 | M193: 100.000 | N193: 0.000 | O193: 0.000 | P193: 0.000 | Q193: 0.000 | R193: 0.000 | S193: 0.000 | T193: 0.000 | U193: 0.000 | V193: =SUM(Table1[[#This Row],[Jan]:[Jan2]]) -> 490.000 | W193: =VLOOKUP($A193,'[3]All POs'!$A:$G,2,FALSE) -> 4503059393 | X193: =VLOOKUP($A193,'[3]All POs'!$A:$G,3,FALSE) -> R58.00 | Y193: =VLOOKUP($A193,'[3]All POs'!$A:$G,5,FALSE) -> 2023-06-19 | Z193: =VLOOKUP($A193,'[3]All POs'!$A:$G,7,FALSE) -> SAFETYMATE EASTERN CAPE | AA193: =YEAR(Table1[[#This Row],[Last PO date]]) -> 2023 | AB193: =$W$2-Table1[[#This Row],[Year]] -> 0 | AC193: =Table1[[#This Row],[Last PO Price]]*($W$1)^AB193 -> R58.00 | AD193: =Table1[[#This Row],[MRP]]*Table1[[#This Row],[Subtotal]] -> R28,420.00
A194: 035000071 | B194: =VLOOKUP(A194,[1]!Table93[[Material Number]:[Description]],4,FALSE) ->  | C194: 1115 | D194: =VLOOKUP(Table1[[#This Row],[Plant]],[2]Sheet1!$C:$G,5,FALSE) -> Maint | E194: =VLOOKUP(Table1[[#This Row],[Plant]],[2]Sheet1!$C:$I,7,FALSE) -> MAINTENANCE CAPE CORRIDOR | F194: 2018 | G194: M | H194: 1 | I194: 0.000 | J194: 40.000 | K194: 11.000 | L194: 20.000 | M194: 150.000 | N194: 75.000 | O194: 45.000 | P194: 50.000 | Q194: 70.000 | R194: 68.000 | S194: 48.000 | T194: 30.000 | U194: 0.000 | V194: =SUM(Table1[[#This Row],[Jan]:[Jan2]]) -> 607.000 | W194: =VLOOKUP($A194,'[3]All POs'!$A:$G,2,FALSE) -> 4503059393 | X194: =VLOOKUP($A194,'[3]All POs'!$A:$G,3,FALSE) -> R58.00 | Y194: =VLOOKUP($A194,'[3]All POs'!$A:$G,5,FALSE) -> 2023-06-19 | Z194: =VLOOKUP($A194,'[3]All POs'!$A:$G,7,FALSE) -> SAFETYMATE EASTERN CAPE | AA194: =YEAR(Table1[[#This Row],[Last PO date]]) -> 2023 | AB194: =$W$2-Table1[[#This Row],[Year]] -> 0 | AC194: =Table1[[#This Row],[Last PO Price]]*($W$1)^AB194 -> R58.00 | AD194: =Table1[[#This Row],[MRP]]*Table1[[#This Row],[Subtotal]] -> R35,206.00
A195: 035000071 | B195: =VLOOKUP(A195,[1]!Table93[[Material Number]:[Description]],4,FALSE) ->  | C195: 1115 | D195: =VLOOKUP(Table1[[#This Row],[Plant]],[2]Sheet1!$C:$G,5,FALSE) -> Maint | E195: =VLOOKUP(Table1[[#This Row],[Plant]],[2]Sheet1!$C:$I,7,FALSE) -> MAINTENANCE CAPE CORRIDOR | F195: 2019 | G195: M | H195: 1 | I195: 30.000 | J195: 20.000 | K195: 47.000 | L195: 0.000 | M195: 30.000 | N195: 55.000 | O195: 129.000 | P195: 36.000 | Q195: 55.000 | R195: 75.000 | S195: 1.000 | T195: 55.000 | U195: 0.000 | V195: =SUM(Table1[[#This Row],[Jan]:[Jan2]]) -> 533.000 | W195: =VLOOKUP($A195,'[3]All POs'!$A:$G,2,FALSE) -> 4503059393 | X195: =VLOOKUP($A195,'[3]All POs'!$A:$G,3,FALSE) -> R58.00 | Y195: =VLOOKUP($A195,'[3]All POs'!$A:$G,5,FALSE) -> 2023-06-19 | Z195: =VLOOKUP($A195,'[3]All POs'!$A:$G,7,FALSE) -> SAFETYMATE EASTERN CAPE | AA195: =YEAR(Table1[[#This Row],[Last PO date]]) -> 2023 | AB195: =$W$2-Table1[[#This Row],[Year]] -> 0 | AC195: =Table1[[#This Row],[Last PO Price]]*($W$1)^AB195 -> R58.00 | AD195: =Table1[[#This Row],[MRP]]*Table1[[#This Row],[Subtotal]] -> R30,914.00
A196: 035000071 | B196: =VLOOKUP(A196,[1]!Table93[[Material Number]:[Description]],4,FALSE) ->  | C196: 1115 | D196: =VLOOKUP(Table1[[#This Row],[Plant]],[2]Sheet1!$C:$G,5,FALSE) -> Maint | E196: =VLOOKUP(Table1[[#This Row],[Plant]],[2]Sheet1!$C:$I,7,FALSE) -> MAINTENANCE CAPE CORRIDOR | F196: 2020 | G196: M | H196: 1 | I196: 0.000 | J196: 30.000 | K196: 20.000 | L196: 0.000 | M196: 0.000 | N196: 30.000 | O196: 44.000 | P196: 0.000 | Q196: 20.000 | R196: 70.000 | S196: 0.000 | T196: 105.000 | U196: 0.000 | V196: =SUM(Table1[[#This Row],[Jan]:[Jan2]]) -> 319.000 | W196: =VLOOKUP($A196,'[3]All POs'!$A:$G,2,FALSE) -> 4503059393 | X196: =VLOOKUP($A196,'[3]All POs'!$A:$G,3,FALSE) -> R58.00 | Y196: =VLOOKUP($A196,'[3]All POs'!$A:$G,5,FALSE) -> 2023-06-19 | Z196: =VLOOKUP($A196,'[3]All POs'!$A:$G,7,FALSE) -> SAFETYMATE EASTERN CAPE | AA196: =YEAR(Table1[[#This Row],[Last PO date]]) -> 2023 | AB196: =$W$2-Table1[[#This Row],[Year]] -> 0 | AC196: =Table1[[#This Row],[Last PO Price]]*($W$1)^AB196 -> R58.00 | AD196: =Table1[[#This Row],[MRP]]*Table1[[#This Row],[Subtotal]] -> R18,502.00
A197: 035000071 | B197: =VLOOKUP(A197,[1]!Table93[[Material Number]:[Description]],4,FALSE) ->  | C197: 1115 | D197: =VLOOKUP(Table1[[#This Row],[Plant]],[2]Sheet1!$C:$G,5,FALSE) -> Maint | E197: =VLOOKUP(Table1[[#This Row],[Plant]],[2]Sheet1!$C:$I,7,FALSE) -> MAINTENANCE CAPE CORRIDOR | F197: 2021 | G197: M | H197: 1 | I197: 20.000 | J197: 20.000 | K197: 60.000 | L197: 40.000 | M197: 90.000 | N197: 31.000 | O197: 60.000 | P197: 40.000 | Q197: 51.000 | R197: 20.000 | S197: 20.000 | T197: 50.000 | U197: 0.000 | V197: =SUM(Table1[[#This Row],[Jan]:[Jan2]]) -> 502.000 | W197: =VLOOKUP($A197,'[3]All POs'!$A:$G,2,FALSE) -> 4503059393 | X197: =VLOOKUP($A197,'[3]All POs'!$A:$G,3,FALSE) -> R58.00 | Y197: =VLOOKUP($A197,'[3]All POs'!$A:$G,5,FALSE) -> 2023-06-19 | Z197: =VLOOKUP($A197,'[3]All POs'!$A:$G,7,FALSE) -> SAFETYMATE EASTERN CAPE | AA197: =YEAR(Table1[[#This Row],[Last PO date]]) -> 2023 | AB197: =$W$2-Table1[[#This Row],[Year]] -> 0 | AC197: =Table1[[#This Row],[Last PO Price]]*($W$1)^AB197 -> R58.00 | AD197: =Table1[[#This Row],[MRP]]*Table1[[#This Row],[Subtotal]] -> R29,116.00
A198: 035000071 | B198: =VLOOKUP(A198,[1]!Table93[[Material Number]:[Description]],4,FALSE) ->  | C198: 1115 | D198: =VLOOKUP(Table1[[#This Row],[Plant]],[2]Sheet1!$C:$G,5,FALSE) -> Maint | E198: =VLOOKUP(Table1[[#This Row],[Plant]],[2]Sheet1!$C:$I,7,FALSE) -> MAINTENANCE CAPE CORRIDOR | F198: 2022 | G198: M | H198: 1 | I198: 60.000 | J198: 85.000 | K198: 0.000 | L198: 20.000 | M198: 39.000 | N198: 229.000 | O198: 0.000 | P198: 0.000 | Q198: 0.000 | R198: 0.000 | S198: 0.000 | T198: 0.000 | U198: 0.000 | V198: =SUM(Table1[[#This Row],[Jan]:[Jan2]]) -> 433.000 | W198: =VLOOKUP($A198,'[3]All POs'!$A:$G,2,FALSE) -> 4503059393 | X198: =VLOOKUP($A198,'[3]All POs'!$A:$G,3,FALSE) -> R58.00 | Y198: =VLOOKUP($A198,'[3]All POs'!$A:$G,5,FALSE) -> 2023-06-19 | Z198: =VLOOKUP($A198,'[3]All POs'!$A:$G,7,FALSE) -> SAFETYMATE EASTERN CAPE | AA198: =YEAR(Table1[[#This Row],[Last PO date]]) -> 2023 | AB198: =$W$2-Table1[[#This Row],[Year]] -> 0 | AC198: =Table1[[#This Row],[Last PO Price]]*($W$1)^AB198 -> R58.00 | AD198: =Table1[[#This Row],[MRP]]*Table1[[#This Row],[Subtotal]] -> R25,114.00
A199: 035000071 | B199: =VLOOKUP(A199,[1]!Table93[[Material Number]:[Description]],4,FALSE) ->  | C199: 1118 | D199: =VLOOKUP(Table1[[#This Row],[Plant]],[2]Sheet1!$C:$G,5,FALSE) -> Maint | E199: =VLOOKUP(Table1[[#This Row],[Plant]],[2]Sheet1!$C:$I,7,FALSE) -> MAINTENANCE CENTRAL CORRIDOR | F199: 2018 | G199: M | H199: 1 | I199: 14.000 | J199: 0.000 | K199: 0.000 | L199: 0.000 | M199: 0.000 | N199: 0.000 | O199: 0.000 | P199: 0.000 | Q199: 0.000 | R199: 0.000 | S199: 0.000 | T199: 0.000 | U199: 0.000 | V199: =SUM(Table1[[#This Row],[Jan]:[Jan2]]) -> 14.000 | W199: =VLOOKUP($A199,'[3]All POs'!$A:$G,2,FALSE) -> 4503059393 | X199: =VLOOKUP($A199,'[3]All POs'!$A:$G,3,FALSE) -> R58.00 | Y199: =VLOOKUP($A199,'[3]All POs'!$A:$G,5,FALSE) -> 2023-06-19 | Z199: =VLOOKUP($A199,'[3]All POs'!$A:$G,7,FALSE) -> SAFETYMATE EASTERN CAPE | AA199: =YEAR(Table1[[#This Row],[Last PO date]]) -> 2023 | AB199: =$W$2-Table1[[#This Row],[Year]] -> 0 | AC199: =Table1[[#This Row],[Last PO Price]]*($W$1)^AB199 -> R58.00 | AD199: =Table1[[#This Row],[MRP]]*Table1[[#This Row],[Subtotal]] -> R812.00
A200: 035000071 | B200: =VLOOKUP(A200,[1]!Table93[[Material Number]:[Description]],4,FALSE) ->  | C200: 1118 | D200: =VLOOKUP(Table1[[#This Row],[Plant]],[2]Sheet1!$C:$G,5,FALSE) -> Maint | E200: =VLOOKUP(Table1[[#This Row],[Plant]],[2]Sheet1!$C:$I,7,FALSE) -> MAINTENANCE CENTRAL CORRIDOR | F200: 2023 | G200: M | H200: 1 | I200: 0.000 | J200: 0.000 | K200: 0.000 | L200: 0.000 | M200: 2.000 | N200: 8.000 | O200: 0.000 | P200: 0.000 | Q200: 0.000 | R200: 0.000 | S200: 0.000 | T200: 0.000 | U200: 0.000 | V200: =SUM(Table1[[#This Row],[Jan]:[Jan2]]) -> 10.000 | W200: =VLOOKUP($A200,'[3]All POs'!$A:$G,2,FALSE) -> 4503059393 | X200: =VLOOKUP($A200,'[3]All POs'!$A:$G,3,FALSE) -> R58.00 | Y200: =VLOOKUP($A200,'[3]All POs'!$A:$G,5,FALSE) -> 2023-06-19 | Z200: =VLOOKUP($A200,'[3]All POs'!$A:$G,7,FALSE) -> SAFETYMATE EASTERN CAPE | AA200: =YEAR(Table1[[#This Row],[Last PO date]]) -> 2023 | AB200: =$W$2-Table1[[#This Row],[Year]] -> 0 | AC200: =Table1[[#This Row],[Last PO Price]]*($W$1)^AB200 -> R58.00 | AD200: =Table1[[#This Row],[MRP]]*Table1[[#This Row],[Subtotal]] -> R580.00
... 2050 more rows
